{"text_format":"1","workbook":"xlsx","n_sheets":20,"sheets":["SolCotizacion","ResumenCotizacion","ProveedorCSV","csv","csvTemp","Cotizacion","Version","Consolidado","TempCalculos","Evaluar","Listas","DatosCCE","Parametros","ConsolidadoEva","Empates","CalculosEva","ListasEmpates","ListasAutomaticas","ListaProveedores","Cuadro Totales"],"not_rendered":{"charts":0,"images":5,"macros":1,"external_links":1,"defined_names":9,"comments":0,"pivot_tables":0},"unopened":[],"bounds":{"document_bytes":16777216,"sheet_cells":100000,"rows_first":2000,"rows_last":500,"rows_between":2000,"halvings":0,"cell_chars":16384,"cell_head_chars":4096},"cells_cut":0,"cells_raw":0,"read":"whole","date_system":"1900"}

{"sheet":"SolCotizacion","index":0,"n_rows":35,"n_cols":16,"rows_kept":35,"cut":false,"hidden":false,"merged":[[32,5,32,6],[29,1,29,7],[27,1,27,10],[28,1,28,10],[30,2,30,6],[31,2,31,6],[0,1,0,10],[1,1,1,10],[5,3,5,5],[11,1,11,2],[22,5,22,6],[11,3,11,5],[9,3,9,5],[13,1,13,2],[7,3,7,5],[5,1,5,2],[7,1,7,2],[9,1,9,2],[23,5,23,6],[3,1,3,10],[5,8,5,10],[21,1,21,10],[15,1,15,10],[7,8,7,10],[9,8,9,10]]}
[null,"SOLICITUD DE COTIZACIÓN"]
[null,"Acuerdo Marco Combustible de Aviación\nGeneracion II"]
[null,"Versión: 22","2024-07-16"]
[null,"Información de la Entidad Compradora"]
[]
[null,"Nombre de la Entidad",null,null,null,null,null,"NIT"]
[]
[null,"Dirección de la Entidad",null,null,null,null,null,"Correo de contacto"]
[]
[null,"Ciudad",null,null,null,null,null,"Teléfono de contacto"]
[]
[null,"Nombre funcionario comprador"]
[]
[null,"Fecha estimada creación solicitud",null,null,"Fecha estimada generacion OC",null,"Fecha estimada vencimiento OC"]
[]
[null,"Solicitud de Cotización"]
[]
[null,null,null,null,null,null,"Departamento"]
[null,"Cantidad de filas:"]
[null,1,null,null,null,null,"TRM (Promedio Semanal BANREP)",{"$f":"DatosCCE!$B$4","v":3964.88}]
[]
[null,"Solicitud"]
[null,"Item","Cod. Matriz","Departamento","Ciudad / Municipio","Modalidad de Entrega",null,"Tipo de Combustible","Punto de Tanqueo","Unidad","Presupuesto estimado"]
[null,1,{"$f":"INDEX(Consolidado!$A:$K,MATCH(D24&E24&F24&H24&I24,Consolidado!$K:$K,0),2)","v":{"$error":"#N/A"}}]
[null,"1. Si requiere agregue o elimine filas"]
[]
[]
[null,"Gravámenes adicionales*"]
[null,"Si los hay, indique los gravámenes adicionales a los que está sujeta la Orden de Compra. Son gravámenes adicionales por ejemplo; estampillas y demás impuestos territoriales. \nLos impuestos como ICA y retención en la fuente NO son gravámenes adicionales.\n"]
[null,"Gravámenes adicionales (estampillas)"]
[null,"No","Descripción",null,null,null,null,"Porcentaje"]
[null,1,null,null,null,null,null,null,null,null,null,null,"","","",""]
[null,null,null,null,null,"Total porcentaje:",null,{"$f":"SUM(H32:H32)","v":0}]
[null,null,null,"Filas a agregar o eliminar Gravámenes:"]
[null,null,null,2]

{"sheet":"ResumenCotizacion","index":1,"n_rows":28,"n_cols":16,"rows_kept":28,"cut":false,"hidden":true,"merged":[[11,3,11,5],[13,1,13,2],[0,1,1,10],[3,1,3,10],[5,8,5,10],[7,8,7,10],[9,8,9,10],[7,1,7,2],[7,3,7,5],[9,1,9,2],[9,3,9,5],[5,1,5,2],[5,3,5,5],[11,1,11,2],[21,11,21,15],[21,1,21,10],[22,5,22,6],[22,7,22,8],[15,1,15,10],[17,1,17,10],[25,5,25,6],[25,7,25,8],[26,5,26,6],[26,7,26,8],[23,5,23,6],[23,7,23,8],[24,5,24,6],[24,7,24,8]]}
[null,"Acuerdo Marco para el suministro de alimentos para la operación del PAE por parte de la SED\n"]
[]
[]
[null,"Información de la Entidad Compradora"]
[]
[null,"Nombre de la Entidad",null,"k",null,null,null,"NIT","k"]
[]
[null,"Dirección de la Entidad",null,"k",null,null,null,"Correo de contacto","k"]
[]
[null,"Ciudad",null,"h",null,null,null,"Teléfono de contacto","k"]
[]
[null,"Nombre funcionario comprador",null,"k"]
[]
[null,"Fecha estimada creación solicitud",null,"k","Fecha estimada generacion OC","k","Fecha estimada vencimiento OC","k"]
[]
[null,"Solicitud de Cotización"]
[]
[null,"El Proveedor debe cotizar únicamente en los Segmentos y Alimentos en los cuáles fue adjudicado, y con un precio menor o igual al precio techo presentado por el Proveedor en el Acuerdo Marco."]
[null,"Cantidad de filas:"]
[null,1]
[]
[null,"Solicitud",null,null,null,null,null,null,null,null,null,"Valores"]
[null,"Item","Cod. Matriz","Ciudad / Municipio","Modalidad","Detalle Modalidad",null,"Punto de Tanqueo",null,"Unidad","Cantidad","Precio Unitario GE A","Precio Unitario GE B","Precio Unitario GE C","Precio Unitario GE N","Precio Total"]
[null,1,{"$f":"INDEX(Consolidado!$A:$M,MATCH(D24&E24&F24&H24,Consolidado!$K:$K,0),2)","v":{"$error":"#N/A"}},"El estrecho","A Granel","A Granel en Unidad Militar o de Policía JET A1",null,"Batallón de instrucción, entrenamiento y reentrenamiento No. 29 \"Camillo Torres Tenorio\"",null,"Galon",1000,{"$f":"_xlfn.MINIFS(Consolidado!$I:$I,Consolidado!$B:$B,ResumenCotizacion!C24)","v":0},0,0,0,{"$error":"#VALUE!"}]
[null,2,{"$f":"INDEX(Consolidado!$A:$M,MATCH(D25&E25&F25&H25,Consolidado!$K:$K,0),2)","v":{"$error":"#N/A"}},"Apiay","A Granel","A Granel en Unidad Militar o de Policía JET A1",null,"Comando Aéreo de Combate No. 2 Apiay - Meta",null,"Galon",1000,{"$f":"_xlfn.MINIFS(Consolidado!$I:$I,Consolidado!$B:$B,ResumenCotizacion!C25)","v":0},0,0,0,{"$error":"#VALUE!"}]
[null,3,{"$f":"INDEX(Consolidado!$A:$M,MATCH(D26&E26&F26&H26,Consolidado!$K:$K,0),2)","v":{"$error":"#N/A"}},"Bahía Solano","A Granel","A Granel en Aeropuerto y/o aeródromos JET A1",null,"Grupo Aero Naval del Pacífico - GANPA",null,"Galon",1000,{"$f":"_xlfn.MINIFS(Consolidado!$I:$I,Consolidado!$B:$B,ResumenCotizacion!C26)","v":0},0,0,0,{"$error":"#VALUE!"}]
[null,4,{"$f":"INDEX(Consolidado!$A:$M,MATCH(D27&E27&F27&H27,Consolidado!$K:$K,0),2)","v":{"$error":"#N/A"}},"Anorí","A Granel","A Granel en Unidad Militar o de Policía JET A1",null,"Base Militar Montañita Anorí Antioquia",null,"Galon",1000,{"$f":"_xlfn.MINIFS(Consolidado!$I:$I,Consolidado!$B:$B,ResumenCotizacion!C27)","v":0},0,0,0,{"$error":"#VALUE!"}]
[null,"1. Si requiere agregue o elimine filas",null,null,null,null,null,null,null,null,null,null,null,null,"Valor Total",{"$f":"SUM($P$24:$P$27)","v":{"$error":"#VALUE!"}}]

{"sheet":"ProveedorCSV","index":2,"n_rows":4,"n_cols":1,"rows_kept":4,"cut":false,"hidden":true,"merged":[]}
["Proveedor"]
["FASTER FUEL S.A.S"]
["GLOBE AIR FUEL S.A.S"]
["WORLD FUEL SERVICES COMPANY"]

{"sheet":"csv","index":3,"n_rows":5,"n_cols":41,"rows_kept":5,"cut":false,"hidden":true,"merged":[]}
["Solicitud","Registrar identificador","¿Enviar para aprobación?","Límite de recepción de la sol.","Justificación","Nombre del departamento","Nota del comprador","Solicitado por (correo electrónico)","Solicitado por (inicio de sesión)","Nombre de tarjeta de compras","Enviar a nombre","Enviar a id.","Enviar a la atención","Enviar a calle 1","Enviar a calle 2","Enviar a ciudad","Enviar a estado","Enviar a código postal","Enviar a código de país","Enviar a nombre de país","Enviar a código de ubicación","Ocultar precio","Entidad Compradora 2","N.I.T.","Agregación","Necesidad del bien o servicio*","Modalidad de selección","Destinación del gasto*","Origen de los    recursos*","Asociado al Acuerdo de Paz","Supervisor de la Orden de Compra*","Correo electrónico del supervisor*","Teléfono del      supervisor*","Vencimiento de la Orden de Compra*","Especificaciones adicionales de entrega","Gravámenes      adicionales","Integración con SIIF","Código Unidad / Subunidad Ejecutora","Acepto términos y condiciones","codigoAMP","fechaAMP"]
["Línea de solicitudes","Registrar identificador","Número de línea","Número de artículo del catálogo","Nombre de artículo del catálogo","Descripción de artículo no catalogado","Número de parte del proveedor","Cantidad","Precio","Límite de recepción de la sol.","Anulación del método de transmisión","Correos electrónicos de transmisión","Nombre del proveedor","Número del proveedor","Código de sitio del proveedor","Código de unidad de medida","Nombre de mercancía","Nombre del contrato","Código de divisa","Etiquetas de activos","Nombre del Cuadro de cuentas","Nombre de la cuenta","Código de cuentas","Segmento 1 de la cuenta","Segmento 2 de la cuenta","Segmento 3 de la cuenta","Segmento 4 de la cuenta","Segmento 5 de la cuenta","Segmento 6 de la cuenta","Segmento 7 de la cuenta","Segmento 8 de la cuenta","Segmento 9 de la cuenta","Segmento 10 de la cuenta","Segmento 11 de la cuenta","Segmento 12 de la cuenta","Segmento 13 de la cuenta","Segmento 14 de la cuenta","Segmento 15 de la cuenta","Segmento 16 de la cuenta","Segmento 17 de la cuenta","Segmento 18 de la cuenta"]
["Asignación de cuentas","Registrar identificador","Número de línea","Monto","Porcentaje","Nombre de período de presupuesto","Nombre de la cuenta","Código de cuentas","Segmento 1 de la cuenta","Segmento 2 de la cuenta","Segmento 3 de la cuenta","Segmento 4 de la cuenta","Segmento 5 de la cuenta","Segmento 6 de la cuenta","Segmento 7 de la cuenta","Segmento 8 de la cuenta","Segmento 9 de la cuenta","Segmento 10 de la cuenta","Segmento 11 de la cuenta","Segmento 12 de la cuenta","Segmento 13 de la cuenta","Segmento 14 de la cuenta","Segmento 15 de la cuenta","Segmento 16 de la cuenta","Segmento 17 de la cuenta","Segmento 18 de la cuenta","Segmento 19 de la cuenta","Segmento 20 de la cuenta"]
["Solicitud",1,"no",null,null,"Digite nombre de la entidad",null,"crear.entidad@colombiacompra.gov.co","digite.usuario",null,"Direccion",4394,null,null,null,null,null,null,null,null,null,null,null,"Necesidad","Combustible de AviaciÑn","Necesidad","SelecciÑn Abreviada AMP","Funcionamiento","Recursos propios","No","Digite supervisor","Digite correo",1,"2020-01-01",null,"Gravámenes",null,null,"SÕ","comb-avia01","11/05/2020 9:00:00 a. m."]
["LÕnea de solicitudes",1,1,null,"coa02-comb72 IBAGUÉ CANTÓN MILITAR JAIME ROOKE",null,null,1,741921708,null,null,null,"WORLD FUEL SERVICES COMPANY",null,null,"Und","Combustible de AviaciÑn",null,"COP"]

{"sheet":"csvTemp","index":4,"n_rows":2,"n_cols":17,"rows_kept":2,"cut":false,"hidden":true,"merged":[]}
["llaveTVEC","Item","Cod. Matriz","Departamento","Ciudad / Municipio","Modalidad de Entrega",null,"Tipo de Combustible","Punto de Tanqueo","Unidad","Presupuesto estimado","Valor del Galón",null,null,null,"Galones estimados","Proveedor"]
["coa02-comb72 IBAGUÉ CANTÓN MILITAR JAIME ROOKE",3,"comb72","TOLIMA","IBAGUÉ","A GRANEL",null,"JET A1","CANTÓN MILITAR JAIME ROOKE","COP",741921708,15103.13,null,null,null,49123.705351142446,"WORLD FUEL SERVICES COMPANY"]

{"sheet":"Cotizacion","index":5,"n_rows":20,"n_cols":9,"rows_kept":20,"cut":false,"hidden":false,"merged":[[0,1,0,10],[1,1,1,10],[3,1,3,10],[5,8,5,10],[7,1,7,2],[7,3,7,5],[7,8,7,10],[5,1,5,2],[5,3,5,5],[11,3,11,5],[9,1,9,2],[9,3,9,5],[18,5,18,10],[18,3,18,4],[9,8,9,10],[15,1,15,10],[17,1,17,10],[13,1,13,2],[11,1,11,2]]}
[null,"COTIZACIÓN"]
[null,"Acuerdo Marco Combustible de Aviación\nGeneracion II"]
[null,{"$f":"+SolCotizacion!B3","v":"Versión: 22"},{"$f":"+SolCotizacion!C3","v":"2024-07-16"}]
[null,"Información de la Entidad Compradora"]
[]
[null,"Nombre de la Entidad",null,"",null,null,null,"NIT",""]
[]
[null,"Dirección de la Entidad",null,null,null,null,null,"Correo de contacto",""]
[]
[null,"Ciudad",null,"",null,null,null,"Teléfono de contacto",""]
[]
[null,"Nombre funcionario comprador",null,""]
[]
[null,"Fecha estimada creación solicitud",null,null,"Fecha estimada generacion OC",null,"Fecha estimada vencimiento OC"]
[]
[null,"Solicitud de Cotización"]
[]
[]
[null,"Cantidad de filas:",null,"Proveedor"]
[null,1]

{"sheet":"Version","index":6,"n_rows":2,"n_cols":4,"rows_kept":2,"cut":false,"hidden":true,"merged":[]}
["NombreAMP","codigoAMP","fechaAMP","version"]
["Combustible de Aviación","comb-avia01","2020-05-11T09:00:00",9]

{"sheet":"Consolidado","index":7,"n_rows":431,"n_cols":11,"rows_kept":431,"cut":false,"hidden":true,"merged":[]}
["llaveTVEC","Codigo","Departamento","Ciudad / Municipio","Modalidad Entrega","Tipo Combustible","Punto de Tanqueo","Proveedor","VALOR","llaveSimuladorC","llaveSimuladorSC"]
[{"$f":"\"coa02-\"&B2&\" \"&D2&\" \"&G2","v":"coa02-comb01 AGUACHICA BATALLÓN DE INSTRUCCIÓN, ENTRENAMIENTO Y REENTRENAMIENTO NO. 5 \"ANDRÉS MARÍA ROSILLO\""},"comb01","CESAR","AGUACHICA","A GRANEL","JET A1","BATALLÓN DE INSTRUCCIÓN, ENTRENAMIENTO Y REENTRENAMIENTO NO. 5 \"ANDRÉS MARÍA ROSILLO\"","COMBUSTIBLES Y TRANSPORTES HERNANDEZ S.A",6196,{"$f":"B2&H2","v":"comb01COMBUSTIBLES Y TRANSPORTES HERNANDEZ S.A"},{"$f":"$C2&$D2&$E2&$F2&G2","v":"CESARAGUACHICAA GRANELJET A1BATALLÓN DE INSTRUCCIÓN, ENTRENAMIENTO Y REENTRENAMIENTO NO. 5 \"ANDRÉS MARÍA ROSILLO\""}]
[{"$f":"\"coa02-\"&B3&\" \"&D3&\" \"&G3","v":"coa02-comb01 AGUACHICA BATALLÓN DE INSTRUCCIÓN, ENTRENAMIENTO Y REENTRENAMIENTO NO. 5 \"ANDRÉS MARÍA ROSILLO\""},"comb01","CESAR","AGUACHICA","A GRANEL","JET A1","BATALLÓN DE INSTRUCCIÓN, ENTRENAMIENTO Y REENTRENAMIENTO NO. 5 \"ANDRÉS MARÍA ROSILLO\"","FASTER FUEL S.A.S",6231,{"$f":"B3&H3","v":"comb01FASTER FUEL S.A.S"},{"$f":"$C3&$D3&$E3&$F3&G3","v":"CESARAGUACHICAA GRANELJET A1BATALLÓN DE INSTRUCCIÓN, ENTRENAMIENTO Y REENTRENAMIENTO NO. 5 \"ANDRÉS MARÍA ROSILLO\""}]
["coa02-comb01 AGUACHICA BATALLÓN DE INSTRUCCIÓN, ENTRENAMIENTO Y REENTRENAMIENTO NO. 5 \"ANDRÉS MARÍA ROSILLO\"","comb01","CESAR","AGUACHICA","A GRANEL","JET A1","BATALLÓN DE INSTRUCCIÓN, ENTRENAMIENTO Y REENTRENAMIENTO NO. 5 \"ANDRÉS MARÍA ROSILLO\"","GLOBE AIR FUEL S.A.S",6196,"comb01GLOBE AIR FUEL S.A.S","CESARAGUACHICAA GRANELJET A1BATALLÓN DE INSTRUCCIÓN, ENTRENAMIENTO Y REENTRENAMIENTO NO. 5 \"ANDRÉS MARÍA ROSILLO\""]
["coa02-comb01 AGUACHICA BATALLÓN DE INSTRUCCIÓN, ENTRENAMIENTO Y REENTRENAMIENTO NO. 5 \"ANDRÉS MARÍA ROSILLO\"","comb01","CESAR","AGUACHICA","A GRANEL","JET A1","BATALLÓN DE INSTRUCCIÓN, ENTRENAMIENTO Y REENTRENAMIENTO NO. 5 \"ANDRÉS MARÍA ROSILLO\"","ORGANIZACIÓN TERPEL S.A",6238,"comb01ORGANIZACIÓN TERPEL S.A","CESARAGUACHICAA GRANELJET A1BATALLÓN DE INSTRUCCIÓN, ENTRENAMIENTO Y REENTRENAMIENTO NO. 5 \"ANDRÉS MARÍA ROSILLO\""]
["coa02-comb02 AGUACHICA AEROPUERTO HACARITAMA","comb02","CESAR","AGUACHICA","AL ALA","AV GAS","AEROPUERTO HACARITAMA","COMBUSTIBLES Y TRANSPORTES HERNANDEZ S.A",3651,"comb02COMBUSTIBLES Y TRANSPORTES HERNANDEZ S.A","CESARAGUACHICAAL ALAAV GASAEROPUERTO HACARITAMA"]
["coa02-comb03 AGUACHICA AEROPUERTO HACARITAMA","comb03","CESAR","AGUACHICA","AL ALA","JET A1","AEROPUERTO HACARITAMA","COMBUSTIBLES Y TRANSPORTES HERNANDEZ S.A",4226,"comb03COMBUSTIBLES Y TRANSPORTES HERNANDEZ S.A","CESARAGUACHICAAL ALAJET A1AEROPUERTO HACARITAMA"]
["coa02-comb04 ANORÍ BASE MILITAR MONTAÑITA ANORÍ ANTIOQUIA","comb04","ANTIOQUIA","ANORÍ","A GRANEL","JET A1","BASE MILITAR MONTAÑITA ANORÍ ANTIOQUIA","FASTER FUEL S.A.S",6890,"comb04FASTER FUEL S.A.S","ANTIOQUIAANORÍA GRANELJET A1BASE MILITAR MONTAÑITA ANORÍ ANTIOQUIA"]
["coa02-comb04 ANORÍ BASE MILITAR MONTAÑITA ANORÍ ANTIOQUIA","comb04","ANTIOQUIA","ANORÍ","A GRANEL","JET A1","BASE MILITAR MONTAÑITA ANORÍ ANTIOQUIA","GLOBE AIR FUEL S.A.S",6898,"comb04GLOBE AIR FUEL S.A.S","ANTIOQUIAANORÍA GRANELJET A1BASE MILITAR MONTAÑITA ANORÍ ANTIOQUIA"]
["coa02-comb04 ANORÍ BASE MILITAR MONTAÑITA ANORÍ ANTIOQUIA","comb04","ANTIOQUIA","ANORÍ","A GRANEL","JET A1","BASE MILITAR MONTAÑITA ANORÍ ANTIOQUIA","ORGANIZACIÓN TERPEL S.A",6898,"comb04ORGANIZACIÓN TERPEL S.A","ANTIOQUIAANORÍA GRANELJET A1BASE MILITAR MONTAÑITA ANORÍ ANTIOQUIA"]
["coa02-comb05 APARTADÓ AEROPUERTO ANTONIO ROLDÁN BETANCOURT","comb05","ANTIOQUIA","APARTADÓ","AL ALA","JET A1","AEROPUERTO ANTONIO ROLDÁN BETANCOURT","FASTER FUEL S.A.S",9040,"comb05FASTER FUEL S.A.S","ANTIOQUIAAPARTADÓAL ALAJET A1AEROPUERTO ANTONIO ROLDÁN BETANCOURT"]
["coa02-comb05 APARTADÓ AEROPUERTO ANTONIO ROLDÁN BETANCOURT","comb05","ANTIOQUIA","APARTADÓ","AL ALA","JET A1","AEROPUERTO ANTONIO ROLDÁN BETANCOURT","GLOBE AIR FUEL S.A.S",7964,"comb05GLOBE AIR FUEL S.A.S","ANTIOQUIAAPARTADÓAL ALAJET A1AEROPUERTO ANTONIO ROLDÁN BETANCOURT"]
["coa02-comb05 APARTADÓ AEROPUERTO ANTONIO ROLDÁN BETANCOURT","comb05","ANTIOQUIA","APARTADÓ","AL ALA","JET A1","AEROPUERTO ANTONIO ROLDÁN BETANCOURT","ORGANIZACIÓN TERPEL S.A",9053,"comb05ORGANIZACIÓN TERPEL S.A","ANTIOQUIAAPARTADÓAL ALAJET A1AEROPUERTO ANTONIO ROLDÁN BETANCOURT"]
["coa02-comb05 APARTADÓ AEROPUERTO ANTONIO ROLDÁN BETANCOURT","comb05","ANTIOQUIA","APARTADÓ","AL ALA","JET A1","AEROPUERTO ANTONIO ROLDÁN BETANCOURT","WORLD FUEL SERVICES COMPANY",9036,"comb05WORLD FUEL SERVICES COMPANY","ANTIOQUIAAPARTADÓAL ALAJET A1AEROPUERTO ANTONIO ROLDÁN BETANCOURT"]
["coa02-comb06 APIAY COMANDO AÉREO DE COMBATE NO. 2 APIAY - META","comb06","META","APIAY","A GRANEL","AV GAS","COMANDO AÉREO DE COMBATE NO. 2 APIAY - META","COMBUSTIBLES Y TRANSPORTES HERNANDEZ S.A",6362,"comb06COMBUSTIBLES Y TRANSPORTES HERNANDEZ S.A","METAAPIAYA GRANELAV GASCOMANDO AÉREO DE COMBATE NO. 2 APIAY - META"]
["coa02-comb06 APIAY COMANDO AÉREO DE COMBATE NO. 2 APIAY - META","comb06","META","APIAY","A GRANEL","AV GAS","COMANDO AÉREO DE COMBATE NO. 2 APIAY - META","FASTER FUEL S.A.S",6404,"comb06FASTER FUEL S.A.S","METAAPIAYA GRANELAV GASCOMANDO AÉREO DE COMBATE NO. 2 APIAY - META"]
["coa02-comb06 APIAY COMANDO AÉREO DE COMBATE NO. 2 APIAY - META","comb06","META","APIAY","A GRANEL","AV GAS","COMANDO AÉREO DE COMBATE NO. 2 APIAY - META","GLOBE AIR FUEL S.A.S",6412,"comb06GLOBE AIR FUEL S.A.S","METAAPIAYA GRANELAV GASCOMANDO AÉREO DE COMBATE NO. 2 APIAY - META"]
["coa02-comb06 APIAY COMANDO AÉREO DE COMBATE NO. 2 APIAY - META","comb06","META","APIAY","A GRANEL","AV GAS","COMANDO AÉREO DE COMBATE NO. 2 APIAY - META","ORGANIZACIÓN TERPEL S.A",6412,"comb06ORGANIZACIÓN TERPEL S.A","METAAPIAYA GRANELAV GASCOMANDO AÉREO DE COMBATE NO. 2 APIAY - META"]
["coa02-comb07 APIAY COMANDO AÉREO DE COMBATE NO. 2 APIAY - META","comb07","META","APIAY","A GRANEL","JET A1","COMANDO AÉREO DE COMBATE NO. 2 APIAY - META","COMBUSTIBLES Y TRANSPORTES HERNANDEZ S.A",4403,"comb07COMBUSTIBLES Y TRANSPORTES HERNANDEZ S.A","METAAPIAYA GRANELJET A1COMANDO AÉREO DE COMBATE NO. 2 APIAY - META"]
["coa02-comb07 APIAY COMANDO AÉREO DE COMBATE NO. 2 APIAY - META","comb07","META","APIAY","A GRANEL","JET A1","COMANDO AÉREO DE COMBATE NO. 2 APIAY - META","FASTER FUEL S.A.S",4417,"comb07FASTER FUEL S.A.S","METAAPIAYA GRANELJET A1COMANDO AÉREO DE COMBATE NO. 2 APIAY - META"]
["coa02-comb07 APIAY COMANDO AÉREO DE COMBATE NO. 2 APIAY - META","comb07","META","APIAY","A GRANEL","JET A1","COMANDO AÉREO DE COMBATE NO. 2 APIAY - META","GLOBE AIR FUEL S.A.S",4370,"comb07GLOBE AIR FUEL S.A.S","METAAPIAYA GRANELJET A1COMANDO AÉREO DE COMBATE NO. 2 APIAY - META"]
["coa02-comb07 APIAY COMANDO AÉREO DE COMBATE NO. 2 APIAY - META","comb07","META","APIAY","A GRANEL","JET A1","COMANDO AÉREO DE COMBATE NO. 2 APIAY - META","ORGANIZACIÓN TERPEL S.A",4420,"comb07ORGANIZACIÓN TERPEL S.A","METAAPIAYA GRANELJET A1COMANDO AÉREO DE COMBATE NO. 2 APIAY - META"]
["coa02-comb08 ARAUCA BATALLÓN DE SERVICIOS NO. 18","comb08","ARAUCA","ARAUCA","A GRANEL","JET A1","BATALLÓN DE SERVICIOS NO. 18","FASTER FUEL S.A.S",9633,"comb08FASTER FUEL S.A.S","ARAUCAARAUCAA GRANELJET A1BATALLÓN DE SERVICIOS NO. 18"]
["coa02-comb09 ARAUCA AEROPUERTO SANTIAGO PÉREZ QUIROZ","comb09","ARAUCA","ARAUCA","AL ALA","JET A1","AEROPUERTO SANTIAGO PÉREZ QUIROZ","FASTER FUEL S.A.S",8946,"comb09FASTER FUEL S.A.S","ARAUCAARAUCAAL ALAJET A1AEROPUERTO SANTIAGO PÉREZ QUIROZ"]
["coa02-comb09 ARAUCA AEROPUERTO SANTIAGO PÉREZ QUIROZ","comb09","ARAUCA","ARAUCA","AL ALA","JET A1","AEROPUERTO SANTIAGO PÉREZ QUIROZ","GLOBE AIR FUEL S.A.S",8962,"comb09GLOBE AIR FUEL S.A.S","ARAUCAARAUCAAL ALAJET A1AEROPUERTO SANTIAGO PÉREZ QUIROZ"]
["coa02-comb09 ARAUCA AEROPUERTO SANTIAGO PÉREZ QUIROZ","comb09","ARAUCA","ARAUCA","AL ALA","JET A1","AEROPUERTO SANTIAGO PÉREZ QUIROZ","ORGANIZACIÓN TERPEL S.A",8959,"comb09ORGANIZACIÓN TERPEL S.A","ARAUCAARAUCAAL ALAJET A1AEROPUERTO SANTIAGO PÉREZ QUIROZ"]
["coa02-comb09 ARAUCA AEROPUERTO SANTIAGO PÉREZ QUIROZ","comb09","ARAUCA","ARAUCA","AL ALA","JET A1","AEROPUERTO SANTIAGO PÉREZ QUIROZ","WORLD FUEL SERVICES COMPANY",8942,"comb09WORLD FUEL SERVICES COMPANY","ARAUCAARAUCAAL ALAJET A1AEROPUERTO SANTIAGO PÉREZ QUIROZ"]
["coa02-comb10 ARAUCA AEROPUERTO SANTIAGO PEREZ QUIROZ","comb10","ARAUCA","ARAUCA","AL ALA","AV GAS","AEROPUERTO SANTIAGO PEREZ QUIROZ","COMBUSTIBLES Y TRANSPORTES HERNANDEZ S.A",8608,"comb10COMBUSTIBLES Y TRANSPORTES HERNANDEZ S.A","ARAUCAARAUCAAL ALAAV GASAEROPUERTO SANTIAGO PEREZ QUIROZ"]
["coa02-comb11 ARMENIA AEROPUERTO EL EDÉN","comb11","QUINDÍO","ARMENIA","AL ALA","JET A1","AEROPUERTO EL EDÉN","FASTER FUEL S.A.S",16011,"comb11FASTER FUEL S.A.S","QUINDÍOARMENIAAL ALAJET A1AEROPUERTO EL EDÉN"]
["coa02-comb12 BAHIA MALAGA BASE NAVAL ARC  MALAGA - MUELLE PRINCIPAL DE UNIDADES MAYORES ( BUQUES )","comb12","VALLE DEL CAUCA","BAHIA MALAGA","A GRANEL","JET A1","BASE NAVAL ARC  MALAGA - MUELLE PRINCIPAL DE UNIDADES MAYORES ( BUQUES )","FASTER FUEL S.A.S",28740,"comb12FASTER FUEL S.A.S","VALLE DEL CAUCABAHIA MALAGAA GRANELJET A1BASE NAVAL ARC  MALAGA - MUELLE PRINCIPAL DE UNIDADES MAYORES ( BUQUES )"]
["coa02-comb12 BAHIA MALAGA BASE NAVAL ARC  MALAGA - MUELLE PRINCIPAL DE UNIDADES MAYORES ( BUQUES )","comb12","VALLE DEL CAUCA","BAHIA MALAGA","A GRANEL","JET A1","BASE NAVAL ARC  MALAGA - MUELLE PRINCIPAL DE UNIDADES MAYORES ( BUQUES )","GLOBE AIR FUEL S.A.S",28796,"comb12GLOBE AIR FUEL S.A.S","VALLE DEL CAUCABAHIA MALAGAA GRANELJET A1BASE NAVAL ARC  MALAGA - MUELLE PRINCIPAL DE UNIDADES MAYORES ( BUQUES )"]
["coa02-comb13 BARRANCABERMEJA BATALLÓN DE ARTILLERÍA DE DEFENSA AÉREA NO. 2 \"NUEVA GRANADA\"","comb13","SANTANDER","BARRANCABERMEJA","A GRANEL","JET A1","BATALLÓN DE ARTILLERÍA DE DEFENSA AÉREA NO. 2 \"NUEVA GRANADA\"","COMBUSTIBLES Y TRANSPORTES HERNANDEZ S.A",4946,"comb13COMBUSTIBLES Y TRANSPORTES HERNANDEZ S.A","SANTANDERBARRANCABERMEJAA GRANELJET A1BATALLÓN DE ARTILLERÍA DE DEFENSA AÉREA NO. 2 \"NUEVA GRANADA\""]
["coa02-comb13 BARRANCABERMEJA BATALLÓN DE ARTILLERÍA DE DEFENSA AÉREA NO. 2 \"NUEVA GRANADA\"","comb13","SANTANDER","BARRANCABERMEJA","A GRANEL","JET A1","BATALLÓN DE ARTILLERÍA DE DEFENSA AÉREA NO. 2 \"NUEVA GRANADA\"","FASTER FUEL S.A.S",4938,"comb13FASTER FUEL S.A.S","SANTANDERBARRANCABERMEJAA GRANELJET A1BATALLÓN DE ARTILLERÍA DE DEFENSA AÉREA NO. 2 \"NUEVA GRANADA\""]
["coa02-comb13 BARRANCABERMEJA BATALLÓN DE ARTILLERÍA DE DEFENSA AÉREA NO. 2 \"NUEVA GRANADA\"","comb13","SANTANDER","BARRANCABERMEJA","A GRANEL","JET A1","BATALLÓN DE ARTILLERÍA DE DEFENSA AÉREA NO. 2 \"NUEVA GRANADA\"","GLOBE AIR FUEL S.A.S",4947,"comb13GLOBE AIR FUEL S.A.S","SANTANDERBARRANCABERMEJAA GRANELJET A1BATALLÓN DE ARTILLERÍA DE DEFENSA AÉREA NO. 2 \"NUEVA GRANADA\""]
["coa02-comb13 BARRANCABERMEJA BATALLÓN DE ARTILLERÍA DE DEFENSA AÉREA NO. 2 \"NUEVA GRANADA\"","comb13","SANTANDER","BARRANCABERMEJA","A GRANEL","JET A1","BATALLÓN DE ARTILLERÍA DE DEFENSA AÉREA NO. 2 \"NUEVA GRANADA\"","ORGANIZACIÓN TERPEL S.A",4915,"comb13ORGANIZACIÓN TERPEL S.A","SANTANDERBARRANCABERMEJAA GRANELJET A1BATALLÓN DE ARTILLERÍA DE DEFENSA AÉREA NO. 2 \"NUEVA GRANADA\""]
["coa02-comb14 BARRANCABERMEJA AEROPUERTO YARIGUÍES","comb14","SANTANDER","BARRANCABERMEJA","AL ALA","AV GAS","AEROPUERTO YARIGUÍES","FASTER FUEL S.A.S",13373,"comb14FASTER FUEL S.A.S","SANTANDERBARRANCABERMEJAAL ALAAV GASAEROPUERTO YARIGUÍES"]
["coa02-comb14 BARRANCABERMEJA AEROPUERTO YARIGUÍES","comb14","SANTANDER","BARRANCABERMEJA","AL ALA","AV GAS","AEROPUERTO YARIGUÍES","GLOBE AIR FUEL S.A.S",13399,"comb14GLOBE AIR FUEL S.A.S","SANTANDERBARRANCABERMEJAAL ALAAV GASAEROPUERTO YARIGUÍES"]
["coa02-comb14 BARRANCABERMEJA AEROPUERTO YARIGUÍES","comb14","SANTANDER","BARRANCABERMEJA","AL ALA","AV GAS","AEROPUERTO YARIGUÍES","ORGANIZACIÓN TERPEL S.A",13394,"comb14ORGANIZACIÓN TERPEL S.A","SANTANDERBARRANCABERMEJAAL ALAAV GASAEROPUERTO YARIGUÍES"]
["coa02-comb15 BARRANCABERMEJA AEROPUERTO YARIGUÍES","comb15","SANTANDER","BARRANCABERMEJA","AL ALA","JET A1","AEROPUERTO YARIGUÍES","FASTER FUEL S.A.S",11362,"comb15FASTER FUEL S.A.S","SANTANDERBARRANCABERMEJAAL ALAJET A1AEROPUERTO YARIGUÍES"]
["coa02-comb15 BARRANCABERMEJA AEROPUERTO YARIGUÍES","comb15","SANTANDER","BARRANCABERMEJA","AL ALA","JET A1","AEROPUERTO YARIGUÍES","GLOBE AIR FUEL S.A.S",11384,"comb15GLOBE AIR FUEL S.A.S","SANTANDERBARRANCABERMEJAAL ALAJET A1AEROPUERTO YARIGUÍES"]
["coa02-comb15 BARRANCABERMEJA AEROPUERTO YARIGUÍES","comb15","SANTANDER","BARRANCABERMEJA","AL ALA","JET A1","AEROPUERTO YARIGUÍES","ORGANIZACIÓN TERPEL S.A",11379,"comb15ORGANIZACIÓN TERPEL S.A","SANTANDERBARRANCABERMEJAAL ALAJET A1AEROPUERTO YARIGUÍES"]
["coa02-comb15 BARRANCABERMEJA AEROPUERTO YARIGUÍES","comb15","SANTANDER","BARRANCABERMEJA","AL ALA","JET A1","AEROPUERTO YARIGUÍES","WORLD FUEL SERVICES COMPANY",11363,"comb15WORLD FUEL SERVICES COMPANY","SANTANDERBARRANCABERMEJAAL ALAJET A1AEROPUERTO YARIGUÍES"]
["coa02-comb16 BARRANQUILLA GRUPO AERONAVAL DEL CARIBE - GANCA","comb16","ATLÁNTICO","BARRANQUILLA","A GRANEL","JET A1","GRUPO AERONAVAL DEL CARIBE - GANCA","FASTER FUEL S.A.S",2946,"comb16FASTER FUEL S.A.S","ATLÁNTICOBARRANQUILLAA GRANELJET A1GRUPO AERONAVAL DEL CARIBE - GANCA"]
["coa02-comb16 BARRANQUILLA GRUPO AERONAVAL DEL CARIBE - GANCA","comb16","ATLÁNTICO","BARRANQUILLA","A GRANEL","JET A1","GRUPO AERONAVAL DEL CARIBE - GANCA","GLOBE AIR FUEL S.A.S",2950,"comb16GLOBE AIR FUEL S.A.S","ATLÁNTICOBARRANQUILLAA GRANELJET A1GRUPO AERONAVAL DEL CARIBE - GANCA"]
["coa02-comb17 BARRANQUILLA COMANDO AÉREO DE COMBATE NO. 3 - CACOM-3 - MALAMBO - ATLÁNTICO","comb17","ATLÁNTICO","BARRANQUILLA","A GRANEL","JET A1","COMANDO AÉREO DE COMBATE NO. 3 - CACOM-3 - MALAMBO - ATLÁNTICO","COMBUSTIBLES Y TRANSPORTES HERNANDEZ S.A",4536,"comb17COMBUSTIBLES Y TRANSPORTES HERNANDEZ S.A","ATLÁNTICOBARRANQUILLAA GRANELJET A1COMANDO AÉREO DE COMBATE NO. 3 - CACOM-3 - MALAMBO - ATLÁNTICO"]
["coa02-comb17 BARRANQUILLA COMANDO AÉREO DE COMBATE NO. 3 - CACOM-3 - MALAMBO - ATLÁNTICO","comb17","ATLÁNTICO","BARRANQUILLA","A GRANEL","JET A1","COMANDO AÉREO DE COMBATE NO. 3 - CACOM-3 - MALAMBO - ATLÁNTICO","FASTER FUEL S.A.S",4542,"comb17FASTER FUEL S.A.S","ATLÁNTICOBARRANQUILLAA GRANELJET A1COMANDO AÉREO DE COMBATE NO. 3 - CACOM-3 - MALAMBO - ATLÁNTICO"]
["coa02-comb17 BARRANQUILLA COMANDO AÉREO DE COMBATE NO. 3 - CACOM-3 - MALAMBO - ATLÁNTICO","comb17","ATLÁNTICO","BARRANQUILLA","A GRANEL","JET A1","COMANDO AÉREO DE COMBATE NO. 3 - CACOM-3 - MALAMBO - ATLÁNTICO","GLOBE AIR FUEL S.A.S",4547,"comb17GLOBE AIR FUEL S.A.S","ATLÁNTICOBARRANQUILLAA GRANELJET A1COMANDO AÉREO DE COMBATE NO. 3 - CACOM-3 - MALAMBO - ATLÁNTICO"]
["coa02-comb17 BARRANQUILLA COMANDO AÉREO DE COMBATE NO. 3 - CACOM-3 - MALAMBO - ATLÁNTICO","comb17","ATLÁNTICO","BARRANQUILLA","A GRANEL","JET A1","COMANDO AÉREO DE COMBATE NO. 3 - CACOM-3 - MALAMBO - ATLÁNTICO","ORGANIZACIÓN TERPEL S.A",4545,"comb17ORGANIZACIÓN TERPEL S.A","ATLÁNTICOBARRANQUILLAA GRANELJET A1COMANDO AÉREO DE COMBATE NO. 3 - CACOM-3 - MALAMBO - ATLÁNTICO"]
["coa02-comb18 BARRANQUILLA AEROPUERTO INTERNACIONAL ERNESTO CORTISSOZ","comb18","ATLÁNTICO","BARRANQUILLA","AL ALA","AV GAS","AEROPUERTO INTERNACIONAL ERNESTO CORTISSOZ","FASTER FUEL S.A.S",8613,"comb18FASTER FUEL S.A.S","ATLÁNTICOBARRANQUILLAAL ALAAV GASAEROPUERTO INTERNACIONAL ERNESTO CORTISSOZ"]
["coa02-comb18 BARRANQUILLA AEROPUERTO INTERNACIONAL ERNESTO CORTISSOZ","comb18","ATLÁNTICO","BARRANQUILLA","AL ALA","AV GAS","AEROPUERTO INTERNACIONAL ERNESTO CORTISSOZ","GLOBE AIR FUEL S.A.S",8630,"comb18GLOBE AIR FUEL S.A.S","ATLÁNTICOBARRANQUILLAAL ALAAV GASAEROPUERTO INTERNACIONAL ERNESTO CORTISSOZ"]
["coa02-comb19 BARRANQUILLA AEROPUERTO INTERNACIONAL ERNESTO CORTISSOZ","comb19","ATLÁNTICO","BARRANQUILLA","AL ALA","JET A1","AEROPUERTO INTERNACIONAL ERNESTO CORTISSOZ","FASTER FUEL S.A.S",5245,"comb19FASTER FUEL S.A.S","ATLÁNTICOBARRANQUILLAAL ALAJET A1AEROPUERTO INTERNACIONAL ERNESTO CORTISSOZ"]
["coa02-comb19 BARRANQUILLA AEROPUERTO INTERNACIONAL ERNESTO CORTISSOZ","comb19","ATLÁNTICO","BARRANQUILLA","AL ALA","JET A1","AEROPUERTO INTERNACIONAL ERNESTO CORTISSOZ","GLOBE AIR FUEL S.A.S",5254,"comb19GLOBE AIR FUEL S.A.S","ATLÁNTICOBARRANQUILLAAL ALAJET A1AEROPUERTO INTERNACIONAL ERNESTO CORTISSOZ"]
["coa02-comb19 BARRANQUILLA AEROPUERTO INTERNACIONAL ERNESTO CORTISSOZ","comb19","ATLÁNTICO","BARRANQUILLA","AL ALA","JET A1","AEROPUERTO INTERNACIONAL ERNESTO CORTISSOZ","ORGANIZACIÓN TERPEL S.A",5250,"comb19ORGANIZACIÓN TERPEL S.A","ATLÁNTICOBARRANQUILLAAL ALAJET A1AEROPUERTO INTERNACIONAL ERNESTO CORTISSOZ"]
["coa02-comb19 BARRANQUILLA AEROPUERTO INTERNACIONAL ERNESTO CORTISSOZ","comb19","ATLÁNTICO","BARRANQUILLA","AL ALA","JET A1","AEROPUERTO INTERNACIONAL ERNESTO CORTISSOZ","WORLD FUEL SERVICES COMPANY",5233,"comb19WORLD FUEL SERVICES COMPANY","ATLÁNTICOBARRANQUILLAAL ALAJET A1AEROPUERTO INTERNACIONAL ERNESTO CORTISSOZ"]
["coa02-comb20 BELLO BATALLÓN DE INGENIEROS NO. 4 PEDRO NEL OSPINA","comb20","ANTIOQUIA","BELLO","A GRANEL","JET A1","BATALLÓN DE INGENIEROS NO. 4 PEDRO NEL OSPINA","FASTER FUEL S.A.S",4516,"comb20FASTER FUEL S.A.S","ANTIOQUIABELLOA GRANELJET A1BATALLÓN DE INGENIEROS NO. 4 PEDRO NEL OSPINA"]
["coa02-comb20 BELLO BATALLÓN DE INGENIEROS NO. 4 PEDRO NEL OSPINA","comb20","ANTIOQUIA","BELLO","A GRANEL","JET A1","BATALLÓN DE INGENIEROS NO. 4 PEDRO NEL OSPINA","GLOBE AIR FUEL S.A.S",4525,"comb20GLOBE AIR FUEL S.A.S","ANTIOQUIABELLOA GRANELJET A1BATALLÓN DE INGENIEROS NO. 4 PEDRO NEL OSPINA"]
["coa02-comb20 BELLO BATALLÓN DE INGENIEROS NO. 4 PEDRO NEL OSPINA","comb20","ANTIOQUIA","BELLO","A GRANEL","JET A1","BATALLÓN DE INGENIEROS NO. 4 PEDRO NEL OSPINA","ORGANIZACIÓN TERPEL S.A",4520,"comb20ORGANIZACIÓN TERPEL S.A","ANTIOQUIABELLOA GRANELJET A1BATALLÓN DE INGENIEROS NO. 4 PEDRO NEL OSPINA"]
["coa02-comb21 BOGOTÁ D.C. GRUPO AERONAVAL CENTRAL - AEROPUERTO EL DORADO","comb21","BOGOTÁ D.C.","BOGOTÁ D.C.","AL ALA","JET A1","GRUPO AERONAVAL CENTRAL - AEROPUERTO EL DORADO","WORLD FUEL SERVICES COMPANY",3307,"comb21WORLD FUEL SERVICES COMPANY","BOGOTÁ D.C.BOGOTÁ D.C.AL ALAJET A1GRUPO AERONAVAL CENTRAL - AEROPUERTO EL DORADO"]
["coa02-comb22 BOGOTÁ D.C. GRUPO AERONAVAL CENTRAL - AEROPUERTO EL DORADO","comb22","BOGOTÁ D.C.","BOGOTÁ D.C.","A GRANEL","JET A1","GRUPO AERONAVAL CENTRAL - AEROPUERTO EL DORADO","FASTER FUEL S.A.S",3857,"comb22FASTER FUEL S.A.S","BOGOTÁ D.C.BOGOTÁ D.C.A GRANELJET A1GRUPO AERONAVAL CENTRAL - AEROPUERTO EL DORADO"]
["coa02-comb22 BOGOTÁ D.C. GRUPO AERONAVAL CENTRAL - AEROPUERTO EL DORADO","comb22","BOGOTÁ D.C.","BOGOTÁ D.C.","A GRANEL","JET A1","GRUPO AERONAVAL CENTRAL - AEROPUERTO EL DORADO","GLOBE AIR FUEL S.A.S",3861,"comb22GLOBE AIR FUEL S.A.S","BOGOTÁ D.C.BOGOTÁ D.C.A GRANELJET A1GRUPO AERONAVAL CENTRAL - AEROPUERTO EL DORADO"]
["coa02-comb22 BOGOTÁ D.C. GRUPO AERONAVAL CENTRAL - AEROPUERTO EL DORADO","comb22","BOGOTÁ D.C.","BOGOTÁ D.C.","A GRANEL","JET A1","GRUPO AERONAVAL CENTRAL - AEROPUERTO EL DORADO","ORGANIZACIÓN TERPEL S.A",3831,"comb22ORGANIZACIÓN TERPEL S.A","BOGOTÁ D.C.BOGOTÁ D.C.A GRANELJET A1GRUPO AERONAVAL CENTRAL - AEROPUERTO EL DORADO"]
["coa02-comb22 BOGOTÁ D.C. GRUPO AERONAVAL CENTRAL - AEROPUERTO EL DORADO","comb22","BOGOTÁ D.C.","BOGOTÁ D.C.","A GRANEL","JET A1","GRUPO AERONAVAL CENTRAL - AEROPUERTO EL DORADO","WORLD FUEL SERVICES COMPANY",3660,"comb22WORLD FUEL SERVICES COMPANY","BOGOTÁ D.C.BOGOTÁ D.C.A GRANELJET A1GRUPO AERONAVAL CENTRAL - AEROPUERTO EL DORADO"]
["coa02-comb23 BOGOTÁ D.C. BATALLÓN DE ABASTECIMIENTOS Y SERVICIOS PARA LA AVIACIÓN","comb23","BOGOTÁ D.C.","BOGOTÁ D.C.","A GRANEL","JET A1","BATALLÓN DE ABASTECIMIENTOS Y SERVICIOS PARA LA AVIACIÓN","FASTER FUEL S.A.S",3857,"comb23FASTER FUEL S.A.S","BOGOTÁ D.C.BOGOTÁ D.C.A GRANELJET A1BATALLÓN DE ABASTECIMIENTOS Y SERVICIOS PARA LA AVIACIÓN"]
["coa02-comb23 BOGOTÁ D.C. BATALLÓN DE ABASTECIMIENTOS Y SERVICIOS PARA LA AVIACIÓN","comb23","BOGOTÁ D.C.","BOGOTÁ D.C.","A GRANEL","JET A1","BATALLÓN DE ABASTECIMIENTOS Y SERVICIOS PARA LA AVIACIÓN","GLOBE AIR FUEL S.A.S",3861,"comb23GLOBE AIR FUEL S.A.S","BOGOTÁ D.C.BOGOTÁ D.C.A GRANELJET A1BATALLÓN DE ABASTECIMIENTOS Y SERVICIOS PARA LA AVIACIÓN"]
["coa02-comb23 BOGOTÁ D.C. BATALLÓN DE ABASTECIMIENTOS Y SERVICIOS PARA LA AVIACIÓN","comb23","BOGOTÁ D.C.","BOGOTÁ D.C.","A GRANEL","JET A1","BATALLÓN DE ABASTECIMIENTOS Y SERVICIOS PARA LA AVIACIÓN","ORGANIZACIÓN TERPEL S.A",3831,"comb23ORGANIZACIÓN TERPEL S.A","BOGOTÁ D.C.BOGOTÁ D.C.A GRANELJET A1BATALLÓN DE ABASTECIMIENTOS Y SERVICIOS PARA LA AVIACIÓN"]
["coa02-comb23 BOGOTÁ D.C. BATALLÓN DE ABASTECIMIENTOS Y SERVICIOS PARA LA AVIACIÓN","comb23","BOGOTÁ D.C.","BOGOTÁ D.C.","A GRANEL","JET A1","BATALLÓN DE ABASTECIMIENTOS Y SERVICIOS PARA LA AVIACIÓN","WORLD FUEL SERVICES COMPANY",3660,"comb23WORLD FUEL SERVICES COMPANY","BOGOTÁ D.C.BOGOTÁ D.C.A GRANELJET A1BATALLÓN DE ABASTECIMIENTOS Y SERVICIOS PARA LA AVIACIÓN"]
[{"$f":"\"coa02-\"&B67&\" \"&D67&\" \"&G67","v":"coa02-comb24 BOGOTÁ D.C. COMANDO AÉREO DE TRANSPORTE MILITAR CATAM - AEROPUERTO EL DORADO"},"comb24","BOGOTÁ D.C.","BOGOTÁ D.C.","A GRANEL","JET A1","COMANDO AÉREO DE TRANSPORTE MILITAR CATAM - AEROPUERTO EL DORADO","FASTER FUEL S.A.S",3857,{"$f":"B67&H67","v":"comb24FASTER FUEL S.A.S"},{"$f":"$C67&$D67&$E67&$F67&G67","v":"BOGOTÁ D.C.BOGOTÁ D.C.A GRANELJET A1COMANDO AÉREO DE TRANSPORTE MILITAR CATAM - AEROPUERTO EL DORADO"}]
["coa02-comb24 BOGOTÁ D.C. COMANDO AÉREO DE TRANSPORTE MILITAR CATAM - AEROPUERTO EL DORADO","comb24","BOGOTÁ D.C.","BOGOTÁ D.C.","A GRANEL","JET A1","COMANDO AÉREO DE TRANSPORTE MILITAR CATAM - AEROPUERTO EL DORADO","GLOBE AIR FUEL S.A.S",3861,"comb24GLOBE AIR FUEL S.A.S","BOGOTÁ D.C.BOGOTÁ D.C.A GRANELJET A1COMANDO AÉREO DE TRANSPORTE MILITAR CATAM - AEROPUERTO EL DORADO"]
["coa02-comb24 BOGOTÁ D.C. COMANDO AÉREO DE TRANSPORTE MILITAR CATAM - AEROPUERTO EL DORADO","comb24","BOGOTÁ D.C.","BOGOTÁ D.C.","A GRANEL","JET A1","COMANDO AÉREO DE TRANSPORTE MILITAR CATAM - AEROPUERTO EL DORADO","ORGANIZACIÓN TERPEL S.A",3831,"comb24ORGANIZACIÓN TERPEL S.A","BOGOTÁ D.C.BOGOTÁ D.C.A GRANELJET A1COMANDO AÉREO DE TRANSPORTE MILITAR CATAM - AEROPUERTO EL DORADO"]
["coa02-comb24 BOGOTÁ D.C. COMANDO AÉREO DE TRANSPORTE MILITAR CATAM - AEROPUERTO EL DORADO","comb24","BOGOTÁ D.C.","BOGOTÁ D.C.","A GRANEL","JET A1","COMANDO AÉREO DE TRANSPORTE MILITAR CATAM - AEROPUERTO EL DORADO","WORLD FUEL SERVICES COMPANY",3660,"comb24WORLD FUEL SERVICES COMPANY","BOGOTÁ D.C.BOGOTÁ D.C.A GRANELJET A1COMANDO AÉREO DE TRANSPORTE MILITAR CATAM - AEROPUERTO EL DORADO"]
["coa02-comb25 BOGOTÁ D.C. COMPAÑÍA ANTINARCÓTICOS POLICÍA","comb25","BOGOTÁ D.C.","BOGOTÁ D.C.","A GRANEL","JET A1","COMPAÑÍA ANTINARCÓTICOS POLICÍA","FASTER FUEL S.A.S",3857,"comb25FASTER FUEL S.A.S","BOGOTÁ D.C.BOGOTÁ D.C.A GRANELJET A1COMPAÑÍA ANTINARCÓTICOS POLICÍA"]
["coa02-comb25 BOGOTÁ D.C. COMPAÑÍA ANTINARCÓTICOS POLICÍA","comb25","BOGOTÁ D.C.","BOGOTÁ D.C.","A GRANEL","JET A1","COMPAÑÍA ANTINARCÓTICOS POLICÍA","GLOBE AIR FUEL S.A.S",3861,"comb25GLOBE AIR FUEL S.A.S","BOGOTÁ D.C.BOGOTÁ D.C.A GRANELJET A1COMPAÑÍA ANTINARCÓTICOS POLICÍA"]
["coa02-comb25 BOGOTÁ D.C. COMPAÑÍA ANTINARCÓTICOS POLICÍA","comb25","BOGOTÁ D.C.","BOGOTÁ D.C.","A GRANEL","JET A1","COMPAÑÍA ANTINARCÓTICOS POLICÍA","ORGANIZACIÓN TERPEL S.A",3831,"comb25ORGANIZACIÓN TERPEL S.A","BOGOTÁ D.C.BOGOTÁ D.C.A GRANELJET A1COMPAÑÍA ANTINARCÓTICOS POLICÍA"]
["coa02-comb25 BOGOTÁ D.C. COMPAÑÍA ANTINARCÓTICOS POLICÍA","comb25","BOGOTÁ D.C.","BOGOTÁ D.C.","A GRANEL","JET A1","COMPAÑÍA ANTINARCÓTICOS POLICÍA","WORLD FUEL SERVICES COMPANY",3660,"comb25WORLD FUEL SERVICES COMPANY","BOGOTÁ D.C.BOGOTÁ D.C.A GRANELJET A1COMPAÑÍA ANTINARCÓTICOS POLICÍA"]
["coa02-comb26 BOGOTÁ D.C. AEROPUERTO INTERNACIONAL EL DORADO","comb26","BOGOTÁ D.C.","BOGOTÁ D.C.","AL ALA","JET A1","AEROPUERTO INTERNACIONAL EL DORADO","GLOBE AIR FUEL S.A.S",3329,"comb26GLOBE AIR FUEL S.A.S","BOGOTÁ D.C.BOGOTÁ D.C.AL ALAJET A1AEROPUERTO INTERNACIONAL EL DORADO"]
["coa02-comb26 BOGOTÁ D.C. AEROPUERTO INTERNACIONAL EL DORADO","comb26","BOGOTÁ D.C.","BOGOTÁ D.C.","AL ALA","JET A1","AEROPUERTO INTERNACIONAL EL DORADO","WORLD FUEL SERVICES COMPANY",3307,"comb26WORLD FUEL SERVICES COMPANY","BOGOTÁ D.C.BOGOTÁ D.C.AL ALAJET A1AEROPUERTO INTERNACIONAL EL DORADO"]
["coa02-comb27 BUCARAMANGA AEROPUERTO INTERNACIONAL PALONEGRO","comb27","SANTANDER","BUCARAMANGA","AL ALA","AV GAS","AEROPUERTO INTERNACIONAL PALONEGRO","FASTER FUEL S.A.S",9938,"comb27FASTER FUEL S.A.S","SANTANDERBUCARAMANGAAL ALAAV GASAEROPUERTO INTERNACIONAL PALONEGRO"]
["coa02-comb27 BUCARAMANGA AEROPUERTO INTERNACIONAL PALONEGRO","comb27","SANTANDER","BUCARAMANGA","AL ALA","AV GAS","AEROPUERTO INTERNACIONAL PALONEGRO","GLOBE AIR FUEL S.A.S",9958,"comb27GLOBE AIR FUEL S.A.S","SANTANDERBUCARAMANGAAL ALAAV GASAEROPUERTO INTERNACIONAL PALONEGRO"]
["coa02-comb27 BUCARAMANGA AEROPUERTO INTERNACIONAL PALONEGRO","comb27","SANTANDER","BUCARAMANGA","AL ALA","AV GAS","AEROPUERTO INTERNACIONAL PALONEGRO","ORGANIZACIÓN TERPEL S.A",9952,"comb27ORGANIZACIÓN TERPEL S.A","SANTANDERBUCARAMANGAAL ALAAV GASAEROPUERTO INTERNACIONAL PALONEGRO"]
["coa02-comb27 BUCARAMANGA AEROPUERTO INTERNACIONAL PALONEGRO","comb27","SANTANDER","BUCARAMANGA","AL ALA","AV GAS","AEROPUERTO INTERNACIONAL PALONEGRO","WORLD FUEL SERVICES COMPANY",9935,"comb27WORLD FUEL SERVICES COMPANY","SANTANDERBUCARAMANGAAL ALAAV GASAEROPUERTO INTERNACIONAL PALONEGRO"]
["coa02-comb28 BUCARAMANGA AEROPUERTO INTERNACIONAL PALONEGRO","comb28","SANTANDER","BUCARAMANGA","AL ALA","JET A1","AEROPUERTO INTERNACIONAL PALONEGRO","FASTER FUEL S.A.S",6547,"comb28FASTER FUEL S.A.S","SANTANDERBUCARAMANGAAL ALAJET A1AEROPUERTO INTERNACIONAL PALONEGRO"]
["coa02-comb28 BUCARAMANGA AEROPUERTO INTERNACIONAL PALONEGRO","comb28","SANTANDER","BUCARAMANGA","AL ALA","JET A1","AEROPUERTO INTERNACIONAL PALONEGRO","GLOBE AIR FUEL S.A.S",6558,"comb28GLOBE AIR FUEL S.A.S","SANTANDERBUCARAMANGAAL ALAJET A1AEROPUERTO INTERNACIONAL PALONEGRO"]
["coa02-comb28 BUCARAMANGA AEROPUERTO INTERNACIONAL PALONEGRO","comb28","SANTANDER","BUCARAMANGA","AL ALA","JET A1","AEROPUERTO INTERNACIONAL PALONEGRO","ORGANIZACIÓN TERPEL S.A",6554,"comb28ORGANIZACIÓN TERPEL S.A","SANTANDERBUCARAMANGAAL ALAJET A1AEROPUERTO INTERNACIONAL PALONEGRO"]
["coa02-comb28 BUCARAMANGA AEROPUERTO INTERNACIONAL PALONEGRO","comb28","SANTANDER","BUCARAMANGA","AL ALA","JET A1","AEROPUERTO INTERNACIONAL PALONEGRO","WORLD FUEL SERVICES COMPANY",6538,"comb28WORLD FUEL SERVICES COMPANY","SANTANDERBUCARAMANGAAL ALAJET A1AEROPUERTO INTERNACIONAL PALONEGRO"]
["coa02-comb29 BUENAVENTURA COMPAÑÍA ANTINARCÓTICOS POLICÍA","comb29","VALLE DEL CAUCA","BUENAVENTURA","A GRANEL","JET A1","COMPAÑÍA ANTINARCÓTICOS POLICÍA","FASTER FUEL S.A.S",3755,"comb29FASTER FUEL S.A.S","VALLE DEL CAUCABUENAVENTURAA GRANELJET A1COMPAÑÍA ANTINARCÓTICOS POLICÍA"]
["coa02-comb29 BUENAVENTURA COMPAÑÍA ANTINARCÓTICOS POLICÍA","comb29","VALLE DEL CAUCA","BUENAVENTURA","A GRANEL","JET A1","COMPAÑÍA ANTINARCÓTICOS POLICÍA","GLOBE AIR FUEL S.A.S",3763,"comb29GLOBE AIR FUEL S.A.S","VALLE DEL CAUCABUENAVENTURAA GRANELJET A1COMPAÑÍA ANTINARCÓTICOS POLICÍA"]
["coa02-comb30 BUENAVENTURA BASE NAVAL BAHIA MALAGA BN2","comb30","VALLE DEL CAUCA","BUENAVENTURA","A GRANEL","JET A1","BASE NAVAL BAHIA MALAGA BN2","GLOBE AIR FUEL S.A.S",21648,"comb30GLOBE AIR FUEL S.A.S","VALLE DEL CAUCABUENAVENTURAA GRANELJET A1BASE NAVAL BAHIA MALAGA BN2"]
["coa02-comb31 BUENAVENTURA AEROPUERTO GERARDO TOBAR LÓPEZ","comb31","VALLE DEL CAUCA","BUENAVENTURA","AL ALA","JET A1","AEROPUERTO GERARDO TOBAR LÓPEZ","FASTER FUEL S.A.S",18771,"comb31FASTER FUEL S.A.S","VALLE DEL CAUCABUENAVENTURAAL ALAJET A1AEROPUERTO GERARDO TOBAR LÓPEZ"]
["coa02-comb32 BUENAVISTA FUERTE MILITAR BUENAVISTA BATALLÓN RONDÓN BUENAVISTA GUAJIRA","comb32","LA GUAJIRA","BUENAVISTA","A GRANEL","JET A1","FUERTE MILITAR BUENAVISTA BATALLÓN RONDÓN BUENAVISTA GUAJIRA","COMBUSTIBLES Y TRANSPORTES HERNANDEZ S.A",4968,"comb32COMBUSTIBLES Y TRANSPORTES HERNANDEZ S.A","LA GUAJIRABUENAVISTAA GRANELJET A1FUERTE MILITAR BUENAVISTA BATALLÓN RONDÓN BUENAVISTA GUAJIRA"]
["coa02-comb32 BUENAVISTA FUERTE MILITAR BUENAVISTA BATALLÓN RONDÓN BUENAVISTA GUAJIRA","comb32","LA GUAJIRA","BUENAVISTA","A GRANEL","JET A1","FUERTE MILITAR BUENAVISTA BATALLÓN RONDÓN BUENAVISTA GUAJIRA","FASTER FUEL S.A.S",4974,"comb32FASTER FUEL S.A.S","LA GUAJIRABUENAVISTAA GRANELJET A1FUERTE MILITAR BUENAVISTA BATALLÓN RONDÓN BUENAVISTA GUAJIRA"]
["coa02-comb32 BUENAVISTA FUERTE MILITAR BUENAVISTA BATALLÓN RONDÓN BUENAVISTA GUAJIRA","comb32","LA GUAJIRA","BUENAVISTA","A GRANEL","JET A1","FUERTE MILITAR BUENAVISTA BATALLÓN RONDÓN BUENAVISTA GUAJIRA","GLOBE AIR FUEL S.A.S",4984,"comb32GLOBE AIR FUEL S.A.S","LA GUAJIRABUENAVISTAA GRANELJET A1FUERTE MILITAR BUENAVISTA BATALLÓN RONDÓN BUENAVISTA GUAJIRA"]
["coa02-comb32 BUENAVISTA FUERTE MILITAR BUENAVISTA BATALLÓN RONDÓN BUENAVISTA GUAJIRA","comb32","LA GUAJIRA","BUENAVISTA","A GRANEL","JET A1","FUERTE MILITAR BUENAVISTA BATALLÓN RONDÓN BUENAVISTA GUAJIRA","ORGANIZACIÓN TERPEL S.A",4979,"comb32ORGANIZACIÓN TERPEL S.A","LA GUAJIRABUENAVISTAA GRANELJET A1FUERTE MILITAR BUENAVISTA BATALLÓN RONDÓN BUENAVISTA GUAJIRA"]
["coa02-comb33 CALAMAR BATALLÓN DE INFANTERÍA DE SELVA NO. 24 “GR. LUIS CARLOS CAMACHO LEYVA”","comb33","GUAVIARE","CALAMAR","A GRANEL","JET A1","BATALLÓN DE INFANTERÍA DE SELVA NO. 24 “GR. LUIS CARLOS CAMACHO LEYVA”","COMBUSTIBLES Y TRANSPORTES HERNANDEZ S.A",4824,"comb33COMBUSTIBLES Y TRANSPORTES HERNANDEZ S.A","GUAVIARECALAMARA GRANELJET A1BATALLÓN DE INFANTERÍA DE SELVA NO. 24 “GR. LUIS CARLOS CAMACHO LEYVA”"]
["coa02-comb33 CALAMAR BATALLÓN DE INFANTERÍA DE SELVA NO. 24 “GR. LUIS CARLOS CAMACHO LEYVA”","comb33","GUAVIARE","CALAMAR","A GRANEL","JET A1","BATALLÓN DE INFANTERÍA DE SELVA NO. 24 “GR. LUIS CARLOS CAMACHO LEYVA”","FASTER FUEL S.A.S",4828,"comb33FASTER FUEL S.A.S","GUAVIARECALAMARA GRANELJET A1BATALLÓN DE INFANTERÍA DE SELVA NO. 24 “GR. LUIS CARLOS CAMACHO LEYVA”"]
["coa02-comb34 CALI BATALLÓN DE LOS SERVICIOS NO. 3","comb34","VALLE DEL CAUCA","CALI","A GRANEL","JET A1","BATALLÓN DE LOS SERVICIOS NO. 3","COMBUSTIBLES Y TRANSPORTES HERNANDEZ S.A",6041,"comb34COMBUSTIBLES Y TRANSPORTES HERNANDEZ S.A","VALLE DEL CAUCACALIA GRANELJET A1BATALLÓN DE LOS SERVICIOS NO. 3"]
["coa02-comb34 CALI BATALLÓN DE LOS SERVICIOS NO. 3","comb34","VALLE DEL CAUCA","CALI","A GRANEL","JET A1","BATALLÓN DE LOS SERVICIOS NO. 3","FASTER FUEL S.A.S",6045,"comb34FASTER FUEL S.A.S","VALLE DEL CAUCACALIA GRANELJET A1BATALLÓN DE LOS SERVICIOS NO. 3"]
["coa02-comb34 CALI BATALLÓN DE LOS SERVICIOS NO. 3","comb34","VALLE DEL CAUCA","CALI","A GRANEL","JET A1","BATALLÓN DE LOS SERVICIOS NO. 3","GLOBE AIR FUEL S.A.S",6054,"comb34GLOBE AIR FUEL S.A.S","VALLE DEL CAUCACALIA GRANELJET A1BATALLÓN DE LOS SERVICIOS NO. 3"]
["coa02-comb34 CALI BATALLÓN DE LOS SERVICIOS NO. 3","comb34","VALLE DEL CAUCA","CALI","A GRANEL","JET A1","BATALLÓN DE LOS SERVICIOS NO. 3","ORGANIZACIÓN TERPEL S.A",6052,"comb34ORGANIZACIÓN TERPEL S.A","VALLE DEL CAUCACALIA GRANELJET A1BATALLÓN DE LOS SERVICIOS NO. 3"]
["coa02-comb35 CALI ESCUELA MILITAR DE AVIACIÓN - EMAVI","comb35","VALLE DEL CAUCA","CALI","A GRANEL","JET A1","ESCUELA MILITAR DE AVIACIÓN - EMAVI","COMBUSTIBLES Y TRANSPORTES HERNANDEZ S.A",3563,"comb35COMBUSTIBLES Y TRANSPORTES HERNANDEZ S.A","VALLE DEL CAUCACALIA GRANELJET A1ESCUELA MILITAR DE AVIACIÓN - EMAVI"]
["coa02-comb35 CALI ESCUELA MILITAR DE AVIACIÓN - EMAVI","comb35","VALLE DEL CAUCA","CALI","A GRANEL","JET A1","ESCUELA MILITAR DE AVIACIÓN - EMAVI","GLOBE AIR FUEL S.A.S",3564,"comb35GLOBE AIR FUEL S.A.S","VALLE DEL CAUCACALIA GRANELJET A1ESCUELA MILITAR DE AVIACIÓN - EMAVI"]
["coa02-comb35 CALI ESCUELA MILITAR DE AVIACIÓN - EMAVI","comb35","VALLE DEL CAUCA","CALI","A GRANEL","JET A1","ESCUELA MILITAR DE AVIACIÓN - EMAVI","ORGANIZACIÓN TERPEL S.A",3560,"comb35ORGANIZACIÓN TERPEL S.A","VALLE DEL CAUCACALIA GRANELJET A1ESCUELA MILITAR DE AVIACIÓN - EMAVI"]
["coa02-comb36 CALI ESCUELA MILITAR DE AVIACIÓN - EMAVI","comb36","VALLE DEL CAUCA","CALI","A GRANEL","AV GAS","ESCUELA MILITAR DE AVIACIÓN - EMAVI","COMBUSTIBLES Y TRANSPORTES HERNANDEZ S.A",5742,"comb36COMBUSTIBLES Y TRANSPORTES HERNANDEZ S.A","VALLE DEL CAUCACALIA GRANELAV GASESCUELA MILITAR DE AVIACIÓN - EMAVI"]
["coa02-comb36 CALI ESCUELA MILITAR DE AVIACIÓN - EMAVI","comb36","VALLE DEL CAUCA","CALI","A GRANEL","AV GAS","ESCUELA MILITAR DE AVIACIÓN - EMAVI","GLOBE AIR FUEL S.A.S",5753,"comb36GLOBE AIR FUEL S.A.S","VALLE DEL CAUCACALIA GRANELAV GASESCUELA MILITAR DE AVIACIÓN - EMAVI"]
["coa02-comb36 CALI ESCUELA MILITAR DE AVIACIÓN - EMAVI","comb36","VALLE DEL CAUCA","CALI","A GRANEL","AV GAS","ESCUELA MILITAR DE AVIACIÓN - EMAVI","ORGANIZACIÓN TERPEL S.A",5748,"comb36ORGANIZACIÓN TERPEL S.A","VALLE DEL CAUCACALIA GRANELAV GASESCUELA MILITAR DE AVIACIÓN - EMAVI"]
["coa02-comb37 CALI AEROPUERTO INTERNACIONAL ALFONSO BONILLA ARAGÓN","comb37","VALLE DEL CAUCA","CALI","AL ALA","JET A1","AEROPUERTO INTERNACIONAL ALFONSO BONILLA ARAGÓN","FASTER FUEL S.A.S",5731,"comb37FASTER FUEL S.A.S","VALLE DEL CAUCACALIAL ALAJET A1AEROPUERTO INTERNACIONAL ALFONSO BONILLA ARAGÓN"]
["coa02-comb37 CALI AEROPUERTO INTERNACIONAL ALFONSO BONILLA ARAGÓN","comb37","VALLE DEL CAUCA","CALI","AL ALA","JET A1","AEROPUERTO INTERNACIONAL ALFONSO BONILLA ARAGÓN","GLOBE AIR FUEL S.A.S",5742,"comb37GLOBE AIR FUEL S.A.S","VALLE DEL CAUCACALIAL ALAJET A1AEROPUERTO INTERNACIONAL ALFONSO BONILLA ARAGÓN"]
["coa02-comb37 CALI AEROPUERTO INTERNACIONAL ALFONSO BONILLA ARAGÓN","comb37","VALLE DEL CAUCA","CALI","AL ALA","JET A1","AEROPUERTO INTERNACIONAL ALFONSO BONILLA ARAGÓN","ORGANIZACIÓN TERPEL S.A",5737,"comb37ORGANIZACIÓN TERPEL S.A","VALLE DEL CAUCACALIAL ALAJET A1AEROPUERTO INTERNACIONAL ALFONSO BONILLA ARAGÓN"]
["coa02-comb37 CALI AEROPUERTO INTERNACIONAL ALFONSO BONILLA ARAGÓN","comb37","VALLE DEL CAUCA","CALI","AL ALA","JET A1","AEROPUERTO INTERNACIONAL ALFONSO BONILLA ARAGÓN","WORLD FUEL SERVICES COMPANY",5720,"comb37WORLD FUEL SERVICES COMPANY","VALLE DEL CAUCACALIAL ALAJET A1AEROPUERTO INTERNACIONAL ALFONSO BONILLA ARAGÓN"]
["coa02-comb38 CALI AEROPUERTO INTERNACIONAL ALFONSO BONILLA ARAGÓN","comb38","VALLE DEL CAUCA","CALI","AL ALA","AV GAS","AEROPUERTO INTERNACIONAL ALFONSO BONILLA ARAGÓN","FASTER FUEL S.A.S",8613,"comb38FASTER FUEL S.A.S","VALLE DEL CAUCACALIAL ALAAV GASAEROPUERTO INTERNACIONAL ALFONSO BONILLA ARAGÓN"]
["coa02-comb39 CAÑO LIMÓN BASE MILITAR CARI CARI DEL EJERCITO NACIONAL EN EL ÁREA GENERAL DEL BAEV NO. 16","comb39","ARAUCA","CAÑO LIMÓN","A GRANEL","JET A1","BASE MILITAR CARI CARI DEL EJERCITO NACIONAL EN EL ÁREA GENERAL DEL BAEV NO. 16","FASTER FUEL S.A.S",10490,"comb39FASTER FUEL S.A.S","ARAUCACAÑO LIMÓNA GRANELJET A1BASE MILITAR CARI CARI DEL EJERCITO NACIONAL EN EL ÁREA GENERAL DEL BAEV NO. 16"]
["coa02-comb40 CAREPA BATALLÓN DE ASPC NO. 17 CLARA ELISA NARVÁEZ ARTEAGA","comb40","ANTIOQUIA","CAREPA","A GRANEL","JET A1","BATALLÓN DE ASPC NO. 17 CLARA ELISA NARVÁEZ ARTEAGA","FASTER FUEL S.A.S",9354,"comb40FASTER FUEL S.A.S","ANTIOQUIACAREPAA GRANELJET A1BATALLÓN DE ASPC NO. 17 CLARA ELISA NARVÁEZ ARTEAGA"]
["coa02-comb40 CAREPA BATALLÓN DE ASPC NO. 17 CLARA ELISA NARVÁEZ ARTEAGA","comb40","ANTIOQUIA","CAREPA","A GRANEL","JET A1","BATALLÓN DE ASPC NO. 17 CLARA ELISA NARVÁEZ ARTEAGA","GLOBE AIR FUEL S.A.S",9371,"comb40GLOBE AIR FUEL S.A.S","ANTIOQUIACAREPAA GRANELJET A1BATALLÓN DE ASPC NO. 17 CLARA ELISA NARVÁEZ ARTEAGA"]
["coa02-comb41 CARTAGENA AEROPUERTO INTERNACIONAL RAFAEL NÚÑEZ","comb41","BOLÍVAR","CARTAGENA","AL ALA","AV GAS","AEROPUERTO INTERNACIONAL RAFAEL NÚÑEZ","FASTER FUEL S.A.S",8191,"comb41FASTER FUEL S.A.S","BOLÍVARCARTAGENAAL ALAAV GASAEROPUERTO INTERNACIONAL RAFAEL NÚÑEZ"]
["coa02-comb41 CARTAGENA AEROPUERTO INTERNACIONAL RAFAEL NÚÑEZ","comb41","BOLÍVAR","CARTAGENA","AL ALA","AV GAS","AEROPUERTO INTERNACIONAL RAFAEL NÚÑEZ","GLOBE AIR FUEL S.A.S",8206,"comb41GLOBE AIR FUEL S.A.S","BOLÍVARCARTAGENAAL ALAAV GASAEROPUERTO INTERNACIONAL RAFAEL NÚÑEZ"]
["coa02-comb41 CARTAGENA AEROPUERTO INTERNACIONAL RAFAEL NÚÑEZ","comb41","BOLÍVAR","CARTAGENA","AL ALA","AV GAS","AEROPUERTO INTERNACIONAL RAFAEL NÚÑEZ","ORGANIZACIÓN TERPEL S.A",8202,"comb41ORGANIZACIÓN TERPEL S.A","BOLÍVARCARTAGENAAL ALAAV GASAEROPUERTO INTERNACIONAL RAFAEL NÚÑEZ"]
["coa02-comb42 CARTAGENA AEROPUERTO INTERNACIONAL RAFAEL NÚÑEZ","comb42","BOLÍVAR","CARTAGENA","AL ALA","JET A1","AEROPUERTO INTERNACIONAL RAFAEL NÚÑEZ","FASTER FUEL S.A.S",5170,"comb42FASTER FUEL S.A.S","BOLÍVARCARTAGENAAL ALAJET A1AEROPUERTO INTERNACIONAL RAFAEL NÚÑEZ"]
["coa02-comb42 CARTAGENA AEROPUERTO INTERNACIONAL RAFAEL NÚÑEZ","comb42","BOLÍVAR","CARTAGENA","AL ALA","JET A1","AEROPUERTO INTERNACIONAL RAFAEL NÚÑEZ","GLOBE AIR FUEL S.A.S",5178,"comb42GLOBE AIR FUEL S.A.S","BOLÍVARCARTAGENAAL ALAJET A1AEROPUERTO INTERNACIONAL RAFAEL NÚÑEZ"]
["coa02-comb42 CARTAGENA AEROPUERTO INTERNACIONAL RAFAEL NÚÑEZ","comb42","BOLÍVAR","CARTAGENA","AL ALA","JET A1","AEROPUERTO INTERNACIONAL RAFAEL NÚÑEZ","ORGANIZACIÓN TERPEL S.A",5175,"comb42ORGANIZACIÓN TERPEL S.A","BOLÍVARCARTAGENAAL ALAJET A1AEROPUERTO INTERNACIONAL RAFAEL NÚÑEZ"]
["coa02-comb42 CARTAGENA AEROPUERTO INTERNACIONAL RAFAEL NÚÑEZ","comb42","BOLÍVAR","CARTAGENA","AL ALA","JET A1","AEROPUERTO INTERNACIONAL RAFAEL NÚÑEZ","WORLD FUEL SERVICES COMPANY",5158,"comb42WORLD FUEL SERVICES COMPANY","BOLÍVARCARTAGENAAL ALAJET A1AEROPUERTO INTERNACIONAL RAFAEL NÚÑEZ"]
["coa02-comb43 CARTAGENA ESTACION AERONAVAL DE CARTAGENA","comb43","BOLÍVAR","CARTAGENA","A GRANEL","JET A1","ESTACION AERONAVAL DE CARTAGENA","FASTER FUEL S.A.S",5625,"comb43FASTER FUEL S.A.S","BOLÍVARCARTAGENAA GRANELJET A1ESTACION AERONAVAL DE CARTAGENA"]
["coa02-comb43 CARTAGENA ESTACION AERONAVAL DE CARTAGENA","comb43","BOLÍVAR","CARTAGENA","A GRANEL","JET A1","ESTACION AERONAVAL DE CARTAGENA","GLOBE AIR FUEL S.A.S",5635,"comb43GLOBE AIR FUEL S.A.S","BOLÍVARCARTAGENAA GRANELJET A1ESTACION AERONAVAL DE CARTAGENA"]
["coa02-comb44 CARTAGENA BASE NAVAL ARC BOLIVAR, MUELLE PRINCIPAL BN1","comb44","BOLÍVAR","CARTAGENA","A GRANEL","JET A1","BASE NAVAL ARC BOLIVAR, MUELLE PRINCIPAL BN1","FASTER FUEL S.A.S",4942,"comb44FASTER FUEL S.A.S","BOLÍVARCARTAGENAA GRANELJET A1BASE NAVAL ARC BOLIVAR, MUELLE PRINCIPAL BN1"]
["coa02-comb44 CARTAGENA BASE NAVAL ARC BOLIVAR, MUELLE PRINCIPAL BN1","comb44","BOLÍVAR","CARTAGENA","A GRANEL","JET A1","BASE NAVAL ARC BOLIVAR, MUELLE PRINCIPAL BN1","GLOBE AIR FUEL S.A.S",4951,"comb44GLOBE AIR FUEL S.A.S","BOLÍVARCARTAGENAA GRANELJET A1BASE NAVAL ARC BOLIVAR, MUELLE PRINCIPAL BN1"]
["coa02-comb45 CARTAGENA DEL CHAIRÁ BASE MILITAR IDEMA CARTAGENA DEL CHAIRÁ","comb45","CAQUETÁ","CARTAGENA DEL CHAIRÁ","A GRANEL","JET A1","BASE MILITAR IDEMA CARTAGENA DEL CHAIRÁ","FASTER FUEL S.A.S",4969,"comb45FASTER FUEL S.A.S","CAQUETÁCARTAGENA DEL CHAIRÁA GRANELJET A1BASE MILITAR IDEMA CARTAGENA DEL CHAIRÁ"]
["coa02-comb45 CARTAGENA DEL CHAIRÁ BASE MILITAR IDEMA CARTAGENA DEL CHAIRÁ","comb45","CAQUETÁ","CARTAGENA DEL CHAIRÁ","A GRANEL","JET A1","BASE MILITAR IDEMA CARTAGENA DEL CHAIRÁ","GLOBE AIR FUEL S.A.S",4978,"comb45GLOBE AIR FUEL S.A.S","CAQUETÁCARTAGENA DEL CHAIRÁA GRANELJET A1BASE MILITAR IDEMA CARTAGENA DEL CHAIRÁ"]
["coa02-comb46 CARTAGO AEROPUERTO SANTA ANA","comb46","VALLE DEL CAUCA","CARTAGO","AL ALA","AV GAS","AEROPUERTO SANTA ANA","ORGANIZACIÓN TERPEL S.A",6633,"comb46ORGANIZACIÓN TERPEL S.A","VALLE DEL CAUCACARTAGOAL ALAAV GASAEROPUERTO SANTA ANA"]
["coa02-comb47 CAUCASIA COMPAÑÍA ANTINARCÓTICOS POLICÍA","comb47","ANTIOQUIA","CAUCASIA","A GRANEL","JET A1","COMPAÑÍA ANTINARCÓTICOS POLICÍA","COMBUSTIBLES Y TRANSPORTES HERNANDEZ S.A",5510,"comb47COMBUSTIBLES Y TRANSPORTES HERNANDEZ S.A","ANTIOQUIACAUCASIAA GRANELJET A1COMPAÑÍA ANTINARCÓTICOS POLICÍA"]
["coa02-comb47 CAUCASIA COMPAÑÍA ANTINARCÓTICOS POLICÍA","comb47","ANTIOQUIA","CAUCASIA","A GRANEL","JET A1","COMPAÑÍA ANTINARCÓTICOS POLICÍA","FASTER FUEL S.A.S",5521,"comb47FASTER FUEL S.A.S","ANTIOQUIACAUCASIAA GRANELJET A1COMPAÑÍA ANTINARCÓTICOS POLICÍA"]
["coa02-comb47 CAUCASIA COMPAÑÍA ANTINARCÓTICOS POLICÍA","comb47","ANTIOQUIA","CAUCASIA","A GRANEL","JET A1","COMPAÑÍA ANTINARCÓTICOS POLICÍA","GLOBE AIR FUEL S.A.S",5530,"comb47GLOBE AIR FUEL S.A.S","ANTIOQUIACAUCASIAA GRANELJET A1COMPAÑÍA ANTINARCÓTICOS POLICÍA"]
["coa02-comb47 CAUCASIA COMPAÑÍA ANTINARCÓTICOS POLICÍA","comb47","ANTIOQUIA","CAUCASIA","A GRANEL","JET A1","COMPAÑÍA ANTINARCÓTICOS POLICÍA","ORGANIZACIÓN TERPEL S.A",5499,"comb47ORGANIZACIÓN TERPEL S.A","ANTIOQUIACAUCASIAA GRANELJET A1COMPAÑÍA ANTINARCÓTICOS POLICÍA"]
[{"$f":"\"coa02-\"&B131&\" \"&D131&\" \"&G131","v":"coa02-comb48 CAUCASIA BATALLÓN DE INFANTERÍA AEROTRANSPORTADO NO. 31 \"RIFLES\""},"comb48","ANTIOQUIA","CAUCASIA","A GRANEL","JET A1","BATALLÓN DE INFANTERÍA AEROTRANSPORTADO NO. 31 \"RIFLES\"","COMBUSTIBLES Y TRANSPORTES HERNANDEZ S.A",5510,{"$f":"B131&H131","v":"comb48COMBUSTIBLES Y TRANSPORTES HERNANDEZ S.A"},{"$f":"$C131&$D131&$E131&$F131&G131","v":"ANTIOQUIACAUCASIAA GRANELJET A1BATALLÓN DE INFANTERÍA AEROTRANSPORTADO NO. 31 \"RIFLES\""}]
["coa02-comb48 CAUCASIA BATALLÓN DE INFANTERÍA AEROTRANSPORTADO NO. 31 \"RIFLES\"","comb48","ANTIOQUIA","CAUCASIA","A GRANEL","JET A1","BATALLÓN DE INFANTERÍA AEROTRANSPORTADO NO. 31 \"RIFLES\"","FASTER FUEL S.A.S",5521,"comb48FASTER FUEL S.A.S","ANTIOQUIACAUCASIAA GRANELJET A1BATALLÓN DE INFANTERÍA AEROTRANSPORTADO NO. 31 \"RIFLES\""]
["coa02-comb48 CAUCASIA BATALLÓN DE INFANTERÍA AEROTRANSPORTADO NO. 31 \"RIFLES\"","comb48","ANTIOQUIA","CAUCASIA","A GRANEL","JET A1","BATALLÓN DE INFANTERÍA AEROTRANSPORTADO NO. 31 \"RIFLES\"","GLOBE AIR FUEL S.A.S",5530,"comb48GLOBE AIR FUEL S.A.S","ANTIOQUIACAUCASIAA GRANELJET A1BATALLÓN DE INFANTERÍA AEROTRANSPORTADO NO. 31 \"RIFLES\""]
["coa02-comb48 CAUCASIA BATALLÓN DE INFANTERÍA AEROTRANSPORTADO NO. 31 \"RIFLES\"","comb48","ANTIOQUIA","CAUCASIA","A GRANEL","JET A1","BATALLÓN DE INFANTERÍA AEROTRANSPORTADO NO. 31 \"RIFLES\"","ORGANIZACIÓN TERPEL S.A",5499,"comb48ORGANIZACIÓN TERPEL S.A","ANTIOQUIACAUCASIAA GRANELJET A1BATALLÓN DE INFANTERÍA AEROTRANSPORTADO NO. 31 \"RIFLES\""]
["coa02-comb49 CAUCASIA AEROPUERTO JUAN H. WHITE","comb49","ANTIOQUIA","CAUCASIA","AL ALA","JET A1","AEROPUERTO JUAN H. WHITE","WORLD FUEL SERVICES COMPANY",17496,"comb49WORLD FUEL SERVICES COMPANY","ANTIOQUIACAUCASIAAL ALAJET A1AEROPUERTO JUAN H. WHITE"]
["coa02-comb50 CHAPARRAL BATALLÓN DE INFANTERÍA NO. 17 \"GR. DOMINGO CAICEDO\"","comb50","TOLIMA","CHAPARRAL","A GRANEL","JET A1","BATALLÓN DE INFANTERÍA NO. 17 \"GR. DOMINGO CAICEDO\"","COMBUSTIBLES Y TRANSPORTES HERNANDEZ S.A",5034,"comb50COMBUSTIBLES Y TRANSPORTES HERNANDEZ S.A","TOLIMACHAPARRALA GRANELJET A1BATALLÓN DE INFANTERÍA NO. 17 \"GR. DOMINGO CAICEDO\""]
["coa02-comb50 CHAPARRAL BATALLÓN DE INFANTERÍA NO. 17 \"GR. DOMINGO CAICEDO\"","comb50","TOLIMA","CHAPARRAL","A GRANEL","JET A1","BATALLÓN DE INFANTERÍA NO. 17 \"GR. DOMINGO CAICEDO\"","FASTER FUEL S.A.S",5033,"comb50FASTER FUEL S.A.S","TOLIMACHAPARRALA GRANELJET A1BATALLÓN DE INFANTERÍA NO. 17 \"GR. DOMINGO CAICEDO\""]
["coa02-comb50 CHAPARRAL BATALLÓN DE INFANTERÍA NO. 17 \"GR. DOMINGO CAICEDO\"","comb50","TOLIMA","CHAPARRAL","A GRANEL","JET A1","BATALLÓN DE INFANTERÍA NO. 17 \"GR. DOMINGO CAICEDO\"","GLOBE AIR FUEL S.A.S",5041,"comb50GLOBE AIR FUEL S.A.S","TOLIMACHAPARRALA GRANELJET A1BATALLÓN DE INFANTERÍA NO. 17 \"GR. DOMINGO CAICEDO\""]
["coa02-comb51 COROZAL BRIGADA DE INFANTERÍA DE MARINA NO. 1 - COROZAL - SUCRE","comb51","SUCRE","COROZAL","A GRANEL","JET A1","BRIGADA DE INFANTERÍA DE MARINA NO. 1 - COROZAL - SUCRE","FASTER FUEL S.A.S",4091,"comb51FASTER FUEL S.A.S","SUCRECOROZALA GRANELJET A1BRIGADA DE INFANTERÍA DE MARINA NO. 1 - COROZAL - SUCRE"]
["coa02-comb51 COROZAL BRIGADA DE INFANTERÍA DE MARINA NO. 1 - COROZAL - SUCRE","comb51","SUCRE","COROZAL","A GRANEL","JET A1","BRIGADA DE INFANTERÍA DE MARINA NO. 1 - COROZAL - SUCRE","GLOBE AIR FUEL S.A.S",4098,"comb51GLOBE AIR FUEL S.A.S","SUCRECOROZALA GRANELJET A1BRIGADA DE INFANTERÍA DE MARINA NO. 1 - COROZAL - SUCRE"]
["coa02-comb52 COROZAL AEROPUERTO LAS BRUJAS","comb52","SUCRE","COROZAL","AL ALA","JET A1","AEROPUERTO LAS BRUJAS","FASTER FUEL S.A.S",17115,"comb52FASTER FUEL S.A.S","SUCRECOROZALAL ALAJET A1AEROPUERTO LAS BRUJAS"]
["coa02-comb53 COVEÑAS AEROPUERTO RAMIRO SALAZAR","comb53","SUCRE","COVEÑAS","AL ALA","JET A1","AEROPUERTO RAMIRO SALAZAR","WORLD FUEL SERVICES COMPANY",13403,"comb53WORLD FUEL SERVICES COMPANY","SUCRECOVEÑASAL ALAJET A1AEROPUERTO RAMIRO SALAZAR"]
["coa02-comb54 CÚCUTA AEROPUERTO INTERNACIONAL CAMILO DAZA","comb54","NORTE DE SANTANDER","CÚCUTA","AL ALA","JET A1","AEROPUERTO INTERNACIONAL CAMILO DAZA","FASTER FUEL S.A.S",7162,"comb54FASTER FUEL S.A.S","NORTE DE SANTANDERCÚCUTAAL ALAJET A1AEROPUERTO INTERNACIONAL CAMILO DAZA"]
["coa02-comb54 CÚCUTA AEROPUERTO INTERNACIONAL CAMILO DAZA","comb54","NORTE DE SANTANDER","CÚCUTA","AL ALA","JET A1","AEROPUERTO INTERNACIONAL CAMILO DAZA","GLOBE AIR FUEL S.A.S",7176,"comb54GLOBE AIR FUEL S.A.S","NORTE DE SANTANDERCÚCUTAAL ALAJET A1AEROPUERTO INTERNACIONAL CAMILO DAZA"]
["coa02-comb54 CÚCUTA AEROPUERTO INTERNACIONAL CAMILO DAZA","comb54","NORTE DE SANTANDER","CÚCUTA","AL ALA","JET A1","AEROPUERTO INTERNACIONAL CAMILO DAZA","ORGANIZACIÓN TERPEL S.A",7171,"comb54ORGANIZACIÓN TERPEL S.A","NORTE DE SANTANDERCÚCUTAAL ALAJET A1AEROPUERTO INTERNACIONAL CAMILO DAZA"]
["coa02-comb54 CÚCUTA AEROPUERTO INTERNACIONAL CAMILO DAZA","comb54","NORTE DE SANTANDER","CÚCUTA","AL ALA","JET A1","AEROPUERTO INTERNACIONAL CAMILO DAZA","WORLD FUEL SERVICES COMPANY",7154,"comb54WORLD FUEL SERVICES COMPANY","NORTE DE SANTANDERCÚCUTAAL ALAJET A1AEROPUERTO INTERNACIONAL CAMILO DAZA"]
["coa02-comb55 CÚCUTA BATALLÓN ASPC NO. 30 GUASIMALES","comb55","NORTE DE SANTANDER","CÚCUTA","A GRANEL","JET A1","BATALLÓN ASPC NO. 30 GUASIMALES","FASTER FUEL S.A.S",6803,"comb55FASTER FUEL S.A.S","NORTE DE SANTANDERCÚCUTAA GRANELJET A1BATALLÓN ASPC NO. 30 GUASIMALES"]
["coa02-comb55 CÚCUTA BATALLÓN ASPC NO. 30 GUASIMALES","comb55","NORTE DE SANTANDER","CÚCUTA","A GRANEL","JET A1","BATALLÓN ASPC NO. 30 GUASIMALES","GLOBE AIR FUEL S.A.S",6815,"comb55GLOBE AIR FUEL S.A.S","NORTE DE SANTANDERCÚCUTAA GRANELJET A1BATALLÓN ASPC NO. 30 GUASIMALES"]
["coa02-comb56 CUMARIBO BATALLÓN DE INFANTERÍA MOTORIZADO NO. 43 \"GR. EFRAÍN ROJAS ACEVEDO\"","comb56","VICHADA","CUMARIBO","A GRANEL","JET A1","BATALLÓN DE INFANTERÍA MOTORIZADO NO. 43 \"GR. EFRAÍN ROJAS ACEVEDO\"","COMBUSTIBLES Y TRANSPORTES HERNANDEZ S.A",4592,"comb56COMBUSTIBLES Y TRANSPORTES HERNANDEZ S.A","VICHADACUMARIBOA GRANELJET A1BATALLÓN DE INFANTERÍA MOTORIZADO NO. 43 \"GR. EFRAÍN ROJAS ACEVEDO\""]
["coa02-comb57 CUMARIBO AEROPUERTO CUMARIBO","comb57","VICHADA","CUMARIBO","AL ALA","AV GAS","AEROPUERTO CUMARIBO","COMBUSTIBLES Y TRANSPORTES HERNANDEZ S.A",10887,"comb57COMBUSTIBLES Y TRANSPORTES HERNANDEZ S.A","VICHADACUMARIBOAL ALAAV GASAEROPUERTO CUMARIBO"]
["coa02-comb58 CUMARIBO AERÓDROMO CUMARIBO","comb58","VICHADA","CUMARIBO","A GRANEL","JET A1","AERÓDROMO CUMARIBO","COMBUSTIBLES Y TRANSPORTES HERNANDEZ S.A",8331,"comb58COMBUSTIBLES Y TRANSPORTES HERNANDEZ S.A","VICHADACUMARIBOA GRANELJET A1AERÓDROMO CUMARIBO"]
["coa02-comb59 CUMARIBO AERÓDROMO CUMARIBO","comb59","VICHADA","CUMARIBO","AL ALA","JET A1","AERÓDROMO CUMARIBO","COMBUSTIBLES Y TRANSPORTES HERNANDEZ S.A",7192,"comb59COMBUSTIBLES Y TRANSPORTES HERNANDEZ S.A","VICHADACUMARIBOAL ALAJET A1AERÓDROMO CUMARIBO"]
["coa02-comb60 EL BAGRE BATALLÓN ESPECIAL ENERGÉTICO VIAL Y MINERO- BAEEV NO. 5 EL BAGRE ANTIOQUIA","comb60","ANTIOQUIA","EL BAGRE","A GRANEL","JET A1","BATALLÓN ESPECIAL ENERGÉTICO VIAL Y MINERO- BAEEV NO. 5 EL BAGRE ANTIOQUIA","FASTER FUEL S.A.S",7122,"comb60FASTER FUEL S.A.S","ANTIOQUIAEL BAGREA GRANELJET A1BATALLÓN ESPECIAL ENERGÉTICO VIAL Y MINERO- BAEEV NO. 5 EL BAGRE ANTIOQUIA"]
["coa02-comb60 EL BAGRE BATALLÓN ESPECIAL ENERGÉTICO VIAL Y MINERO- BAEEV NO. 5 EL BAGRE ANTIOQUIA","comb60","ANTIOQUIA","EL BAGRE","A GRANEL","JET A1","BATALLÓN ESPECIAL ENERGÉTICO VIAL Y MINERO- BAEEV NO. 5 EL BAGRE ANTIOQUIA","GLOBE AIR FUEL S.A.S",7135,"comb60GLOBE AIR FUEL S.A.S","ANTIOQUIAEL BAGREA GRANELJET A1BATALLÓN ESPECIAL ENERGÉTICO VIAL Y MINERO- BAEEV NO. 5 EL BAGRE ANTIOQUIA"]
["coa02-comb61 EL BAGRE AEROPUERTO EL TOMÍN","comb61","ANTIOQUIA","EL BAGRE","A GRANEL","JET A1","AEROPUERTO EL TOMÍN","FASTER FUEL S.A.S",7122,"comb61FASTER FUEL S.A.S","ANTIOQUIAEL BAGREA GRANELJET A1AEROPUERTO EL TOMÍN"]
["coa02-comb61 EL BAGRE AEROPUERTO EL TOMÍN","comb61","ANTIOQUIA","EL BAGRE","A GRANEL","JET A1","AEROPUERTO EL TOMÍN","GLOBE AIR FUEL S.A.S",7135,"comb61GLOBE AIR FUEL S.A.S","ANTIOQUIAEL BAGREA GRANELJET A1AEROPUERTO EL TOMÍN"]
["coa02-comb62 EL BANCO BASE MILITAR DEL BANCO MAGDALENA","comb62","MAGDALENA","EL BANCO","A GRANEL","JET A1","BASE MILITAR DEL BANCO MAGDALENA","COMBUSTIBLES Y TRANSPORTES HERNANDEZ S.A",4857,"comb62COMBUSTIBLES Y TRANSPORTES HERNANDEZ S.A","MAGDALENAEL BANCOA GRANELJET A1BASE MILITAR DEL BANCO MAGDALENA"]
["coa02-comb62 EL BANCO BASE MILITAR DEL BANCO MAGDALENA","comb62","MAGDALENA","EL BANCO","A GRANEL","JET A1","BASE MILITAR DEL BANCO MAGDALENA","FASTER FUEL S.A.S",4858,"comb62FASTER FUEL S.A.S","MAGDALENAEL BANCOA GRANELJET A1BASE MILITAR DEL BANCO MAGDALENA"]
["coa02-comb62 EL BANCO BASE MILITAR DEL BANCO MAGDALENA","comb62","MAGDALENA","EL BANCO","A GRANEL","JET A1","BASE MILITAR DEL BANCO MAGDALENA","GLOBE AIR FUEL S.A.S",4868,"comb62GLOBE AIR FUEL S.A.S","MAGDALENAEL BANCOA GRANELJET A1BASE MILITAR DEL BANCO MAGDALENA"]
["coa02-comb62 EL BANCO BASE MILITAR DEL BANCO MAGDALENA","comb62","MAGDALENA","EL BANCO","A GRANEL","JET A1","BASE MILITAR DEL BANCO MAGDALENA","ORGANIZACIÓN TERPEL S.A",4863,"comb62ORGANIZACIÓN TERPEL S.A","MAGDALENAEL BANCOA GRANELJET A1BASE MILITAR DEL BANCO MAGDALENA"]
["coa02-comb63 FLORENCIA AEROPUERTO GUSTAVO ARTUNDUAGA","comb63","CAQUETÁ","FLORENCIA","AL ALA","JET A1","AEROPUERTO GUSTAVO ARTUNDUAGA","FASTER FUEL S.A.S",8715,"comb63FASTER FUEL S.A.S","CAQUETÁFLORENCIAAL ALAJET A1AEROPUERTO GUSTAVO ARTUNDUAGA"]
["coa02-comb64 GIRARDOT AEROPUERTO SANTIAGO VILA","comb64","CUNDINAMARCA","GIRARDOT","AL ALA","JET A1","AEROPUERTO SANTIAGO VILA","GLOBE AIR FUEL S.A.S",8851,"comb64GLOBE AIR FUEL S.A.S","CUNDINAMARCAGIRARDOTAL ALAJET A1AEROPUERTO SANTIAGO VILA"]
["coa02-comb65 GIRARDOT AEROPUERTO SANTIAGO VILA","comb65","CUNDINAMARCA","GIRARDOT","AL ALA","AV GAS","AEROPUERTO SANTIAGO VILA","GLOBE AIR FUEL S.A.S",9966,"comb65GLOBE AIR FUEL S.A.S","CUNDINAMARCAGIRARDOTAL ALAAV GASAEROPUERTO SANTIAGO VILA"]
["coa02-comb66 GUALTAL BATALLÓN DE SELVA NO. 53","comb66","NARIÑO","GUALTAL","A GRANEL","JET A1","BATALLÓN DE SELVA NO. 53","GLOBE AIR FUEL S.A.S",4297,"comb66GLOBE AIR FUEL S.A.S","NARIÑOGUALTALA GRANELJET A1BATALLÓN DE SELVA NO. 53"]
["coa02-comb67 GUAPI AEROPUERTO JUAN CASIANO SOLÍS","comb67","CAUCA","GUAPI","AL ALA","JET A1","AEROPUERTO JUAN CASIANO SOLÍS","FASTER FUEL S.A.S",47480,"comb67FASTER FUEL S.A.S","CAUCAGUAPIAL ALAJET A1AEROPUERTO JUAN CASIANO SOLÍS"]
["coa02-comb68 GUAYMARAL COMPAÑÍA ANTINARCÓTICOS POLICÍA","comb68","CUNDINAMARCA","GUAYMARAL","A GRANEL","JET A1","COMPAÑÍA ANTINARCÓTICOS POLICÍA","FASTER FUEL S.A.S",4439,"comb68FASTER FUEL S.A.S","CUNDINAMARCAGUAYMARALA GRANELJET A1COMPAÑÍA ANTINARCÓTICOS POLICÍA"]
["coa02-comb68 GUAYMARAL COMPAÑÍA ANTINARCÓTICOS POLICÍA","comb68","CUNDINAMARCA","GUAYMARAL","A GRANEL","JET A1","COMPAÑÍA ANTINARCÓTICOS POLICÍA","GLOBE AIR FUEL S.A.S",4442,"comb68GLOBE AIR FUEL S.A.S","CUNDINAMARCAGUAYMARALA GRANELJET A1COMPAÑÍA ANTINARCÓTICOS POLICÍA"]
["coa02-comb68 GUAYMARAL COMPAÑÍA ANTINARCÓTICOS POLICÍA","comb68","CUNDINAMARCA","GUAYMARAL","A GRANEL","JET A1","COMPAÑÍA ANTINARCÓTICOS POLICÍA","ORGANIZACIÓN TERPEL S.A",4415,"comb68ORGANIZACIÓN TERPEL S.A","CUNDINAMARCAGUAYMARALA GRANELJET A1COMPAÑÍA ANTINARCÓTICOS POLICÍA"]
["coa02-comb68 GUAYMARAL COMPAÑÍA ANTINARCÓTICOS POLICÍA","comb68","CUNDINAMARCA","GUAYMARAL","A GRANEL","JET A1","COMPAÑÍA ANTINARCÓTICOS POLICÍA","WORLD FUEL SERVICES COMPANY",4212,"comb68WORLD FUEL SERVICES COMPANY","CUNDINAMARCAGUAYMARALA GRANELJET A1COMPAÑÍA ANTINARCÓTICOS POLICÍA"]
["coa02-comb69 GUAYMARAL AEROPUERTO FLAMINIO SUÁREZ CAMACHO - GUAYMARAL","comb69","CUNDINAMARCA","GUAYMARAL","AL ALA","AV GAS","AEROPUERTO FLAMINIO SUÁREZ CAMACHO - GUAYMARAL","FASTER FUEL S.A.S",5578,"comb69FASTER FUEL S.A.S","CUNDINAMARCAGUAYMARALAL ALAAV GASAEROPUERTO FLAMINIO SUÁREZ CAMACHO - GUAYMARAL"]
["coa02-comb69 GUAYMARAL AEROPUERTO FLAMINIO SUÁREZ CAMACHO - GUAYMARAL","comb69","CUNDINAMARCA","GUAYMARAL","AL ALA","AV GAS","AEROPUERTO FLAMINIO SUÁREZ CAMACHO - GUAYMARAL","GLOBE AIR FUEL S.A.S",5590,"comb69GLOBE AIR FUEL S.A.S","CUNDINAMARCAGUAYMARALAL ALAAV GASAEROPUERTO FLAMINIO SUÁREZ CAMACHO - GUAYMARAL"]
["coa02-comb70 IBAGUÉ AEROPUERTO PERALES","comb70","TOLIMA","IBAGUÉ","AL ALA","AV GAS","AEROPUERTO PERALES","FASTER FUEL S.A.S",17115,"comb70FASTER FUEL S.A.S","TOLIMAIBAGUÉAL ALAAV GASAEROPUERTO PERALES"]
["coa02-comb70 IBAGUÉ AEROPUERTO PERALES","comb70","TOLIMA","IBAGUÉ","AL ALA","AV GAS","AEROPUERTO PERALES","GLOBE AIR FUEL S.A.S",17149,"comb70GLOBE AIR FUEL S.A.S","TOLIMAIBAGUÉAL ALAAV GASAEROPUERTO PERALES"]
["coa02-comb71 IBAGUÉ AEROPUERTO PERALES","comb71","TOLIMA","IBAGUÉ","AL ALA","JET A1","AEROPUERTO PERALES","FASTER FUEL S.A.S",16011,"comb71FASTER FUEL S.A.S","TOLIMAIBAGUÉAL ALAJET A1AEROPUERTO PERALES"]
["coa02-comb71 IBAGUÉ AEROPUERTO PERALES","comb71","TOLIMA","IBAGUÉ","AL ALA","JET A1","AEROPUERTO PERALES","GLOBE AIR FUEL S.A.S",16043,"comb71GLOBE AIR FUEL S.A.S","TOLIMAIBAGUÉAL ALAJET A1AEROPUERTO PERALES"]
["coa02-comb72 IBAGUÉ CANTÓN MILITAR JAIME ROOKE","comb72","TOLIMA","IBAGUÉ","A GRANEL","JET A1","CANTÓN MILITAR JAIME ROOKE","COMBUSTIBLES Y TRANSPORTES HERNANDEZ S.A",3419,"comb72COMBUSTIBLES Y TRANSPORTES HERNANDEZ S.A","TOLIMAIBAGUÉA GRANELJET A1CANTÓN MILITAR JAIME ROOKE"]
["coa02-comb72 IBAGUÉ CANTÓN MILITAR JAIME ROOKE","comb72","TOLIMA","IBAGUÉ","A GRANEL","JET A1","CANTÓN MILITAR JAIME ROOKE","FASTER FUEL S.A.S",3420,"comb72FASTER FUEL S.A.S","TOLIMAIBAGUÉA GRANELJET A1CANTÓN MILITAR JAIME ROOKE"]
["coa02-comb72 IBAGUÉ CANTÓN MILITAR JAIME ROOKE","comb72","TOLIMA","IBAGUÉ","A GRANEL","JET A1","CANTÓN MILITAR JAIME ROOKE","GLOBE AIR FUEL S.A.S",3427,"comb72GLOBE AIR FUEL S.A.S","TOLIMAIBAGUÉA GRANELJET A1CANTÓN MILITAR JAIME ROOKE"]
["coa02-comb72 IBAGUÉ CANTÓN MILITAR JAIME ROOKE","comb72","TOLIMA","IBAGUÉ","A GRANEL","JET A1","CANTÓN MILITAR JAIME ROOKE","WORLD FUEL SERVICES COMPANY",3245,"comb72WORLD FUEL SERVICES COMPANY","TOLIMAIBAGUÉA GRANELJET A1CANTÓN MILITAR JAIME ROOKE"]
["coa02-comb73 IPIALES AEROPUERTO SAN LUIS","comb73","NARIÑO","IPIALES","AL ALA","JET A1","AEROPUERTO SAN LUIS","WORLD FUEL SERVICES COMPANY",18333,"comb73WORLD FUEL SERVICES COMPANY","NARIÑOIPIALESAL ALAJET A1AEROPUERTO SAN LUIS"]
["coa02-comb74 JUANCHACO UNIDAD MILITAR JUANCHACO","comb74","VALLE DEL CAUCA","JUANCHACO","A GRANEL","JET A1","UNIDAD MILITAR JUANCHACO","FASTER FUEL S.A.S",22566,"comb74FASTER FUEL S.A.S","VALLE DEL CAUCAJUANCHACOA GRANELJET A1UNIDAD MILITAR JUANCHACO"]
["coa02-comb74 JUANCHACO UNIDAD MILITAR JUANCHACO","comb74","VALLE DEL CAUCA","JUANCHACO","A GRANEL","JET A1","UNIDAD MILITAR JUANCHACO","GLOBE AIR FUEL S.A.S",22612,"comb74GLOBE AIR FUEL S.A.S","VALLE DEL CAUCAJUANCHACOA GRANELJET A1UNIDAD MILITAR JUANCHACO"]
["coa02-comb75 LA MACARENA AEROPUERTO JAVIER NOREÑA VALENCIA","comb75","META","LA MACARENA","A GRANEL","JET A1","AEROPUERTO JAVIER NOREÑA VALENCIA","COMBUSTIBLES Y TRANSPORTES HERNANDEZ S.A",9355,"comb75COMBUSTIBLES Y TRANSPORTES HERNANDEZ S.A","METALA MACARENAA GRANELJET A1AEROPUERTO JAVIER NOREÑA VALENCIA"]
["coa02-comb76 LA MACARENA AEROPUERTO JAVIER NOREÑA VALENCIA","comb76","META","LA MACARENA","AL ALA","JET A1","AEROPUERTO JAVIER NOREÑA VALENCIA","COMBUSTIBLES Y TRANSPORTES HERNANDEZ S.A",9355,"comb76COMBUSTIBLES Y TRANSPORTES HERNANDEZ S.A","METALA MACARENAAL ALAJET A1AEROPUERTO JAVIER NOREÑA VALENCIA"]
["coa02-comb77 LA PLATA BATALLÓN DE INSTRUCCIÓN, ENTRENAMIENTO Y REENTRENAMIENTO NO. 9\" VICENTE DE LA ROCHA Y FLÓREZ\"","comb77","HUILA","LA PLATA","A GRANEL","JET A1","BATALLÓN DE INSTRUCCIÓN, ENTRENAMIENTO Y REENTRENAMIENTO NO. 9\" VICENTE DE LA ROCHA Y FLÓREZ\"","COMBUSTIBLES Y TRANSPORTES HERNANDEZ S.A",7734,"comb77COMBUSTIBLES Y TRANSPORTES HERNANDEZ S.A","HUILALA PLATAA GRANELJET A1BATALLÓN DE INSTRUCCIÓN, ENTRENAMIENTO Y REENTRENAMIENTO NO. 9\" VICENTE DE LA ROCHA Y FLÓREZ\""]
["coa02-comb77 LA PLATA BATALLÓN DE INSTRUCCIÓN, ENTRENAMIENTO Y REENTRENAMIENTO NO. 9\" VICENTE DE LA ROCHA Y FLÓREZ\"","comb77","HUILA","LA PLATA","A GRANEL","JET A1","BATALLÓN DE INSTRUCCIÓN, ENTRENAMIENTO Y REENTRENAMIENTO NO. 9\" VICENTE DE LA ROCHA Y FLÓREZ\"","FASTER FUEL S.A.S",7729,"comb77FASTER FUEL S.A.S","HUILALA PLATAA GRANELJET A1BATALLÓN DE INSTRUCCIÓN, ENTRENAMIENTO Y REENTRENAMIENTO NO. 9\" VICENTE DE LA ROCHA Y FLÓREZ\""]
["coa02-comb77 LA PLATA BATALLÓN DE INSTRUCCIÓN, ENTRENAMIENTO Y REENTRENAMIENTO NO. 9\" VICENTE DE LA ROCHA Y FLÓREZ\"","comb77","HUILA","LA PLATA","A GRANEL","JET A1","BATALLÓN DE INSTRUCCIÓN, ENTRENAMIENTO Y REENTRENAMIENTO NO. 9\" VICENTE DE LA ROCHA Y FLÓREZ\"","GLOBE AIR FUEL S.A.S",7745,"comb77GLOBE AIR FUEL S.A.S","HUILALA PLATAA GRANELJET A1BATALLÓN DE INSTRUCCIÓN, ENTRENAMIENTO Y REENTRENAMIENTO NO. 9\" VICENTE DE LA ROCHA Y FLÓREZ\""]
["coa02-comb78 LA URIBE AEROPUERTO LA URIBE","comb78","META","LA URIBE","AL ALA","JET A1","AEROPUERTO LA URIBE","COMBUSTIBLES Y TRANSPORTES HERNANDEZ S.A",7734,"comb78COMBUSTIBLES Y TRANSPORTES HERNANDEZ S.A","METALA URIBEAL ALAJET A1AEROPUERTO LA URIBE"]
["coa02-comb79 LA URIBE AERÓDROMO LA URIBE","comb79","META","LA URIBE","A GRANEL","JET A1","AERÓDROMO LA URIBE","COMBUSTIBLES Y TRANSPORTES HERNANDEZ S.A",7656,"comb79COMBUSTIBLES Y TRANSPORTES HERNANDEZ S.A","METALA URIBEA GRANELJET A1AERÓDROMO LA URIBE"]
["coa02-comb80 LA URIBE BATALLÓN DE INFANTERÍA NO. 29 \"TC. GERMÁN OCAMPO HERRERA\"","comb80","META","LA URIBE","A GRANEL","JET A1","BATALLÓN DE INFANTERÍA NO. 29 \"TC. GERMÁN OCAMPO HERRERA\"","COMBUSTIBLES Y TRANSPORTES HERNANDEZ S.A",3684,"comb80COMBUSTIBLES Y TRANSPORTES HERNANDEZ S.A","METALA URIBEA GRANELJET A1BATALLÓN DE INFANTERÍA NO. 29 \"TC. GERMÁN OCAMPO HERRERA\""]
["coa02-comb81 LARANDIA BATALLÓN DE MANIOBRA DE AVIACIÓN NO. 6 \"TE. JULIO TURRIAGO HINCAPIÉ\" / COMPAÑÍA ANTINARCÓTICOS POLICÍA","comb81","CAQUETÁ","LARANDIA","A GRANEL","JET A1","BATALLÓN DE MANIOBRA DE AVIACIÓN NO. 6 \"TE. JULIO TURRIAGO HINCAPIÉ\" / COMPAÑÍA ANTINARCÓTICOS POLICÍA","COMBUSTIBLES Y TRANSPORTES HERNANDEZ S.A",5078,"comb81COMBUSTIBLES Y TRANSPORTES HERNANDEZ S.A","CAQUETÁLARANDIAA GRANELJET A1BATALLÓN DE MANIOBRA DE AVIACIÓN NO. 6 \"TE. JULIO TURRIAGO HINCAPIÉ\" / COMPAÑÍA ANTINARCÓTICOS POLICÍA"]
["coa02-comb81 LARANDIA BATALLÓN DE MANIOBRA DE AVIACIÓN NO. 6 \"TE. JULIO TURRIAGO HINCAPIÉ\" / COMPAÑÍA ANTINARCÓTICOS POLICÍA","comb81","CAQUETÁ","LARANDIA","A GRANEL","JET A1","BATALLÓN DE MANIOBRA DE AVIACIÓN NO. 6 \"TE. JULIO TURRIAGO HINCAPIÉ\" / COMPAÑÍA ANTINARCÓTICOS POLICÍA","FASTER FUEL S.A.S",5080,"comb81FASTER FUEL S.A.S","CAQUETÁLARANDIAA GRANELJET A1BATALLÓN DE MANIOBRA DE AVIACIÓN NO. 6 \"TE. JULIO TURRIAGO HINCAPIÉ\" / COMPAÑÍA ANTINARCÓTICOS POLICÍA"]
["coa02-comb81 LARANDIA BATALLÓN DE MANIOBRA DE AVIACIÓN NO. 6 \"TE. JULIO TURRIAGO HINCAPIÉ\" / COMPAÑÍA ANTINARCÓTICOS POLICÍA","comb81","CAQUETÁ","LARANDIA","A GRANEL","JET A1","BATALLÓN DE MANIOBRA DE AVIACIÓN NO. 6 \"TE. JULIO TURRIAGO HINCAPIÉ\" / COMPAÑÍA ANTINARCÓTICOS POLICÍA","GLOBE AIR FUEL S.A.S",5086,"comb81GLOBE AIR FUEL S.A.S","CAQUETÁLARANDIAA GRANELJET A1BATALLÓN DE MANIOBRA DE AVIACIÓN NO. 6 \"TE. JULIO TURRIAGO HINCAPIÉ\" / COMPAÑÍA ANTINARCÓTICOS POLICÍA"]
["coa02-comb82 LARANDIA BATALLÓN DE APOYO DE SERVICIOS CONTRA EL NARCOTRÁFICO","comb82","CAQUETÁ","LARANDIA","A GRANEL","JET A1","BATALLÓN DE APOYO DE SERVICIOS CONTRA EL NARCOTRÁFICO","COMBUSTIBLES Y TRANSPORTES HERNANDEZ S.A",5687,"comb82COMBUSTIBLES Y TRANSPORTES HERNANDEZ S.A","CAQUETÁLARANDIAA GRANELJET A1BATALLÓN DE APOYO DE SERVICIOS CONTRA EL NARCOTRÁFICO"]
[{"$f":"\"coa02-\"&B195&\" \"&D195&\" \"&G195","v":"coa02-comb82 LARANDIA BATALLÓN DE APOYO DE SERVICIOS CONTRA EL NARCOTRÁFICO"},"comb82","CAQUETÁ","LARANDIA","A GRANEL","JET A1","BATALLÓN DE APOYO DE SERVICIOS CONTRA EL NARCOTRÁFICO","FASTER FUEL S.A.S",5687,{"$f":"B195&H195","v":"comb82FASTER FUEL S.A.S"},{"$f":"$C195&$D195&$E195&$F195&G195","v":"CAQUETÁLARANDIAA GRANELJET A1BATALLÓN DE APOYO DE SERVICIOS CONTRA EL NARCOTRÁFICO"}]
["coa02-comb82 LARANDIA BATALLÓN DE APOYO DE SERVICIOS CONTRA EL NARCOTRÁFICO","comb82","CAQUETÁ","LARANDIA","A GRANEL","JET A1","BATALLÓN DE APOYO DE SERVICIOS CONTRA EL NARCOTRÁFICO","GLOBE AIR FUEL S.A.S",5695,"comb82GLOBE AIR FUEL S.A.S","CAQUETÁLARANDIAA GRANELJET A1BATALLÓN DE APOYO DE SERVICIOS CONTRA EL NARCOTRÁFICO"]
["coa02-comb83 LAS ANIMAS BATALLÓN DE INGENIEROS NO. 15 \"GR. JULIO LONDOÑO LONDOÑO\"","comb83","CHOCÓ","LAS ANIMAS","A GRANEL","JET A1","BATALLÓN DE INGENIEROS NO. 15 \"GR. JULIO LONDOÑO LONDOÑO\"","FASTER FUEL S.A.S",6183,"comb83FASTER FUEL S.A.S","CHOCÓLAS ANIMASA GRANELJET A1BATALLÓN DE INGENIEROS NO. 15 \"GR. JULIO LONDOÑO LONDOÑO\""]
["coa02-comb83 LAS ANIMAS BATALLÓN DE INGENIEROS NO. 15 \"GR. JULIO LONDOÑO LONDOÑO\"","comb83","CHOCÓ","LAS ANIMAS","A GRANEL","JET A1","BATALLÓN DE INGENIEROS NO. 15 \"GR. JULIO LONDOÑO LONDOÑO\"","GLOBE AIR FUEL S.A.S",6196,"comb83GLOBE AIR FUEL S.A.S","CHOCÓLAS ANIMASA GRANELJET A1BATALLÓN DE INGENIEROS NO. 15 \"GR. JULIO LONDOÑO LONDOÑO\""]
["coa02-comb84 LETICIA AEROPUERTO INTERNACIONAL ALFREDO VÁSQUEZ COBO","comb84","AMAZONAS","LETICIA","AL ALA","JET A1","AEROPUERTO INTERNACIONAL ALFREDO VÁSQUEZ COBO","FASTER FUEL S.A.S",12181,"comb84FASTER FUEL S.A.S","AMAZONASLETICIAAL ALAJET A1AEROPUERTO INTERNACIONAL ALFREDO VÁSQUEZ COBO"]
["coa02-comb84 LETICIA AEROPUERTO INTERNACIONAL ALFREDO VÁSQUEZ COBO","comb84","AMAZONAS","LETICIA","AL ALA","JET A1","AEROPUERTO INTERNACIONAL ALFREDO VÁSQUEZ COBO","GLOBE AIR FUEL S.A.S",12206,"comb84GLOBE AIR FUEL S.A.S","AMAZONASLETICIAAL ALAJET A1AEROPUERTO INTERNACIONAL ALFREDO VÁSQUEZ COBO"]
["coa02-comb84 LETICIA AEROPUERTO INTERNACIONAL ALFREDO VÁSQUEZ COBO","comb84","AMAZONAS","LETICIA","AL ALA","JET A1","AEROPUERTO INTERNACIONAL ALFREDO VÁSQUEZ COBO","ORGANIZACIÓN TERPEL S.A",12200,"comb84ORGANIZACIÓN TERPEL S.A","AMAZONASLETICIAAL ALAJET A1AEROPUERTO INTERNACIONAL ALFREDO VÁSQUEZ COBO"]
["coa02-comb84 LETICIA AEROPUERTO INTERNACIONAL ALFREDO VÁSQUEZ COBO","comb84","AMAZONAS","LETICIA","AL ALA","JET A1","AEROPUERTO INTERNACIONAL ALFREDO VÁSQUEZ COBO","WORLD FUEL SERVICES COMPANY",12184,"comb84WORLD FUEL SERVICES COMPANY","AMAZONASLETICIAAL ALAJET A1AEROPUERTO INTERNACIONAL ALFREDO VÁSQUEZ COBO"]
["coa02-comb85 LETICIA GRUPO AÉREO DEL AMAZONAS GAAMA - LETICIA","comb85","AMAZONAS","LETICIA","A GRANEL","JET A1","GRUPO AÉREO DEL AMAZONAS GAAMA - LETICIA","ORGANIZACIÓN TERPEL S.A",12540,"comb85ORGANIZACIÓN TERPEL S.A","AMAZONASLETICIAA GRANELJET A1GRUPO AÉREO DEL AMAZONAS GAAMA - LETICIA"]
["coa02-comb86 MADRID COMANDO AÉREO DE MANTENIMIENTO - CAMAN - MADRID - CUNDINAMARCA","comb86","CUNDINAMARCA","MADRID","A GRANEL","JET A1","COMANDO AÉREO DE MANTENIMIENTO - CAMAN - MADRID - CUNDINAMARCA","FASTER FUEL S.A.S",4464,"comb86FASTER FUEL S.A.S","CUNDINAMARCAMADRIDA GRANELJET A1COMANDO AÉREO DE MANTENIMIENTO - CAMAN - MADRID - CUNDINAMARCA"]
["coa02-comb86 MADRID COMANDO AÉREO DE MANTENIMIENTO - CAMAN - MADRID - CUNDINAMARCA","comb86","CUNDINAMARCA","MADRID","A GRANEL","JET A1","COMANDO AÉREO DE MANTENIMIENTO - CAMAN - MADRID - CUNDINAMARCA","GLOBE AIR FUEL S.A.S",4470,"comb86GLOBE AIR FUEL S.A.S","CUNDINAMARCAMADRIDA GRANELJET A1COMANDO AÉREO DE MANTENIMIENTO - CAMAN - MADRID - CUNDINAMARCA"]
["coa02-comb86 MADRID COMANDO AÉREO DE MANTENIMIENTO - CAMAN - MADRID - CUNDINAMARCA","comb86","CUNDINAMARCA","MADRID","A GRANEL","JET A1","COMANDO AÉREO DE MANTENIMIENTO - CAMAN - MADRID - CUNDINAMARCA","ORGANIZACIÓN TERPEL S.A",4440,"comb86ORGANIZACIÓN TERPEL S.A","CUNDINAMARCAMADRIDA GRANELJET A1COMANDO AÉREO DE MANTENIMIENTO - CAMAN - MADRID - CUNDINAMARCA"]
["coa02-comb86 MADRID COMANDO AÉREO DE MANTENIMIENTO - CAMAN - MADRID - CUNDINAMARCA","comb86","CUNDINAMARCA","MADRID","A GRANEL","JET A1","COMANDO AÉREO DE MANTENIMIENTO - CAMAN - MADRID - CUNDINAMARCA","WORLD FUEL SERVICES COMPANY",4236,"comb86WORLD FUEL SERVICES COMPANY","CUNDINAMARCAMADRIDA GRANELJET A1COMANDO AÉREO DE MANTENIMIENTO - CAMAN - MADRID - CUNDINAMARCA"]
["coa02-comb87 MAICAO GRUPO DE CABALLERÍA BLINDADO MEDIANO \"GR. GUSTAVO MATAMOROS D´COSTA\"","comb87","LA GUAJIRA","MAICAO","A GRANEL","JET A1","GRUPO DE CABALLERÍA BLINDADO MEDIANO \"GR. GUSTAVO MATAMOROS D´COSTA\"","FASTER FUEL S.A.S",5628,"comb87FASTER FUEL S.A.S","LA GUAJIRAMAICAOA GRANELJET A1GRUPO DE CABALLERÍA BLINDADO MEDIANO \"GR. GUSTAVO MATAMOROS D´COSTA\""]
["coa02-comb87 MAICAO GRUPO DE CABALLERÍA BLINDADO MEDIANO \"GR. GUSTAVO MATAMOROS D´COSTA\"","comb87","LA GUAJIRA","MAICAO","A GRANEL","JET A1","GRUPO DE CABALLERÍA BLINDADO MEDIANO \"GR. GUSTAVO MATAMOROS D´COSTA\"","GLOBE AIR FUEL S.A.S",5639,"comb87GLOBE AIR FUEL S.A.S","LA GUAJIRAMAICAOA GRANELJET A1GRUPO DE CABALLERÍA BLINDADO MEDIANO \"GR. GUSTAVO MATAMOROS D´COSTA\""]
["coa02-comb87 MAICAO GRUPO DE CABALLERÍA BLINDADO MEDIANO \"GR. GUSTAVO MATAMOROS D´COSTA\"","comb87","LA GUAJIRA","MAICAO","A GRANEL","JET A1","GRUPO DE CABALLERÍA BLINDADO MEDIANO \"GR. GUSTAVO MATAMOROS D´COSTA\"","ORGANIZACIÓN TERPEL S.A",5634,"comb87ORGANIZACIÓN TERPEL S.A","LA GUAJIRAMAICAOA GRANELJET A1GRUPO DE CABALLERÍA BLINDADO MEDIANO \"GR. GUSTAVO MATAMOROS D´COSTA\""]
["coa02-comb88 MAICAO AEROPUERTO JORGE ISAACS","comb88","LA GUAJIRA","MAICAO","A GRANEL","JET A1","AEROPUERTO JORGE ISAACS","FASTER FUEL S.A.S",5628,"comb88FASTER FUEL S.A.S","LA GUAJIRAMAICAOA GRANELJET A1AEROPUERTO JORGE ISAACS"]
["coa02-comb88 MAICAO AEROPUERTO JORGE ISAACS","comb88","LA GUAJIRA","MAICAO","A GRANEL","JET A1","AEROPUERTO JORGE ISAACS","GLOBE AIR FUEL S.A.S",5639,"comb88GLOBE AIR FUEL S.A.S","LA GUAJIRAMAICAOA GRANELJET A1AEROPUERTO JORGE ISAACS"]
["coa02-comb89 MAICAO AEROPUERTO LA MAJAYURA","comb89","LA GUAJIRA","MAICAO","A GRANEL","JET A1","AEROPUERTO LA MAJAYURA","FASTER FUEL S.A.S",5628,"comb89FASTER FUEL S.A.S","LA GUAJIRAMAICAOA GRANELJET A1AEROPUERTO LA MAJAYURA"]
["coa02-comb89 MAICAO AEROPUERTO LA MAJAYURA","comb89","LA GUAJIRA","MAICAO","A GRANEL","JET A1","AEROPUERTO LA MAJAYURA","GLOBE AIR FUEL S.A.S",5639,"comb89GLOBE AIR FUEL S.A.S","LA GUAJIRAMAICAOA GRANELJET A1AEROPUERTO LA MAJAYURA"]
["coa02-comb90 MANIZALES AEROPUERTO LA NUBIA","comb90","CALDAS","MANIZALES","AL ALA","JET A1","AEROPUERTO LA NUBIA","FASTER FUEL S.A.S",16452,"comb90FASTER FUEL S.A.S","CALDASMANIZALESAL ALAJET A1AEROPUERTO LA NUBIA"]
["coa02-comb91 MAPIRIPÁN BASE MILITAR MAPIRIPÁN","comb91","META","MAPIRIPÁN","A GRANEL","JET A1","BASE MILITAR MAPIRIPÁN","FASTER FUEL S.A.S",8723,"comb91FASTER FUEL S.A.S","METAMAPIRIPÁNA GRANELJET A1BASE MILITAR MAPIRIPÁN"]
["coa02-comb92 MARIQUITA COMPAÑÍA ANTINARCÓTICOS POLICÍA","comb92","TOLIMA","MARIQUITA","A GRANEL","AV GAS","COMPAÑÍA ANTINARCÓTICOS POLICÍA","COMBUSTIBLES Y TRANSPORTES HERNANDEZ S.A",3872,"comb92COMBUSTIBLES Y TRANSPORTES HERNANDEZ S.A","TOLIMAMARIQUITAA GRANELAV GASCOMPAÑÍA ANTINARCÓTICOS POLICÍA"]
["coa02-comb92 MARIQUITA COMPAÑÍA ANTINARCÓTICOS POLICÍA","comb92","TOLIMA","MARIQUITA","A GRANEL","AV GAS","COMPAÑÍA ANTINARCÓTICOS POLICÍA","GLOBE AIR FUEL S.A.S",3817,"comb92GLOBE AIR FUEL S.A.S","TOLIMAMARIQUITAA GRANELAV GASCOMPAÑÍA ANTINARCÓTICOS POLICÍA"]
["coa02-comb93 MARIQUITA COMPAÑÍA ANTINARCÓTICOS POLICÍA","comb93","TOLIMA","MARIQUITA","A GRANEL","JET A1","COMPAÑÍA ANTINARCÓTICOS POLICÍA","FASTER FUEL S.A.S",4348,"comb93FASTER FUEL S.A.S","TOLIMAMARIQUITAA GRANELJET A1COMPAÑÍA ANTINARCÓTICOS POLICÍA"]
["coa02-comb93 MARIQUITA COMPAÑÍA ANTINARCÓTICOS POLICÍA","comb93","TOLIMA","MARIQUITA","A GRANEL","JET A1","COMPAÑÍA ANTINARCÓTICOS POLICÍA","GLOBE AIR FUEL S.A.S",4315,"comb93GLOBE AIR FUEL S.A.S","TOLIMAMARIQUITAA GRANELJET A1COMPAÑÍA ANTINARCÓTICOS POLICÍA"]
["coa02-comb93 MARIQUITA COMPAÑÍA ANTINARCÓTICOS POLICÍA","comb93","TOLIMA","MARIQUITA","A GRANEL","JET A1","COMPAÑÍA ANTINARCÓTICOS POLICÍA","ORGANIZACIÓN TERPEL S.A",4324,"comb93ORGANIZACIÓN TERPEL S.A","TOLIMAMARIQUITAA GRANELJET A1COMPAÑÍA ANTINARCÓTICOS POLICÍA"]
["coa02-comb93 MARIQUITA COMPAÑÍA ANTINARCÓTICOS POLICÍA","comb93","TOLIMA","MARIQUITA","A GRANEL","JET A1","COMPAÑÍA ANTINARCÓTICOS POLICÍA","WORLD FUEL SERVICES COMPANY",4126,"comb93WORLD FUEL SERVICES COMPANY","TOLIMAMARIQUITAA GRANELJET A1COMPAÑÍA ANTINARCÓTICOS POLICÍA"]
["coa02-comb94 MARIQUITA AEROPUERTO JOSE CELESTINO MUTIS","comb94","TOLIMA","MARIQUITA","A GRANEL","JET A1","AEROPUERTO JOSE CELESTINO MUTIS","FASTER FUEL S.A.S",4348,"comb94FASTER FUEL S.A.S","TOLIMAMARIQUITAA GRANELJET A1AEROPUERTO JOSE CELESTINO MUTIS"]
["coa02-comb94 MARIQUITA AEROPUERTO JOSE CELESTINO MUTIS","comb94","TOLIMA","MARIQUITA","A GRANEL","JET A1","AEROPUERTO JOSE CELESTINO MUTIS","GLOBE AIR FUEL S.A.S",4315,"comb94GLOBE AIR FUEL S.A.S","TOLIMAMARIQUITAA GRANELJET A1AEROPUERTO JOSE CELESTINO MUTIS"]
["coa02-comb94 MARIQUITA AEROPUERTO JOSE CELESTINO MUTIS","comb94","TOLIMA","MARIQUITA","A GRANEL","JET A1","AEROPUERTO JOSE CELESTINO MUTIS","WORLD FUEL SERVICES COMPANY",4126,"comb94WORLD FUEL SERVICES COMPANY","TOLIMAMARIQUITAA GRANELJET A1AEROPUERTO JOSE CELESTINO MUTIS"]
["coa02-comb95 MEDELLÍN AEROPUERTO OLAYA HERRERA","comb95","ANTIOQUIA","MEDELLÍN","AL ALA","AV GAS","AEROPUERTO OLAYA HERRERA","FASTER FUEL S.A.S",8710,"comb95FASTER FUEL S.A.S","ANTIOQUIAMEDELLÍNAL ALAAV GASAEROPUERTO OLAYA HERRERA"]
["coa02-comb95 MEDELLÍN AEROPUERTO OLAYA HERRERA","comb95","ANTIOQUIA","MEDELLÍN","AL ALA","AV GAS","AEROPUERTO OLAYA HERRERA","GLOBE AIR FUEL S.A.S",8727,"comb95GLOBE AIR FUEL S.A.S","ANTIOQUIAMEDELLÍNAL ALAAV GASAEROPUERTO OLAYA HERRERA"]
["coa02-comb95 MEDELLÍN AEROPUERTO OLAYA HERRERA","comb95","ANTIOQUIA","MEDELLÍN","AL ALA","AV GAS","AEROPUERTO OLAYA HERRERA","ORGANIZACIÓN TERPEL S.A",8722,"comb95ORGANIZACIÓN TERPEL S.A","ANTIOQUIAMEDELLÍNAL ALAAV GASAEROPUERTO OLAYA HERRERA"]
["coa02-comb96 MEDELLÍN AEROPUERTO OLAYA HERRERA","comb96","ANTIOQUIA","MEDELLÍN","AL ALA","JET A1","AEROPUERTO OLAYA HERRERA","FASTER FUEL S.A.S",5955,"comb96FASTER FUEL S.A.S","ANTIOQUIAMEDELLÍNAL ALAJET A1AEROPUERTO OLAYA HERRERA"]
["coa02-comb96 MEDELLÍN AEROPUERTO OLAYA HERRERA","comb96","ANTIOQUIA","MEDELLÍN","AL ALA","JET A1","AEROPUERTO OLAYA HERRERA","GLOBE AIR FUEL S.A.S",5962,"comb96GLOBE AIR FUEL S.A.S","ANTIOQUIAMEDELLÍNAL ALAJET A1AEROPUERTO OLAYA HERRERA"]
["coa02-comb96 MEDELLÍN AEROPUERTO OLAYA HERRERA","comb96","ANTIOQUIA","MEDELLÍN","AL ALA","JET A1","AEROPUERTO OLAYA HERRERA","ORGANIZACIÓN TERPEL S.A",5961,"comb96ORGANIZACIÓN TERPEL S.A","ANTIOQUIAMEDELLÍNAL ALAJET A1AEROPUERTO OLAYA HERRERA"]
["coa02-comb96 MEDELLÍN AEROPUERTO OLAYA HERRERA","comb96","ANTIOQUIA","MEDELLÍN","AL ALA","JET A1","AEROPUERTO OLAYA HERRERA","WORLD FUEL SERVICES COMPANY",5945,"comb96WORLD FUEL SERVICES COMPANY","ANTIOQUIAMEDELLÍNAL ALAJET A1AEROPUERTO OLAYA HERRERA"]
["coa02-comb97 MELGAR COMANDO AÉREO DE COMBATE NO. 4 - CACOM-4 - MELGAR - TOLIMA","comb97","TOLIMA","MELGAR","A GRANEL","JET A1","COMANDO AÉREO DE COMBATE NO. 4 - CACOM-4 - MELGAR - TOLIMA","FASTER FUEL S.A.S",4445,"comb97FASTER FUEL S.A.S","TOLIMAMELGARA GRANELJET A1COMANDO AÉREO DE COMBATE NO. 4 - CACOM-4 - MELGAR - TOLIMA"]
["coa02-comb97 MELGAR COMANDO AÉREO DE COMBATE NO. 4 - CACOM-4 - MELGAR - TOLIMA","comb97","TOLIMA","MELGAR","A GRANEL","JET A1","COMANDO AÉREO DE COMBATE NO. 4 - CACOM-4 - MELGAR - TOLIMA","GLOBE AIR FUEL S.A.S",4448,"comb97GLOBE AIR FUEL S.A.S","TOLIMAMELGARA GRANELJET A1COMANDO AÉREO DE COMBATE NO. 4 - CACOM-4 - MELGAR - TOLIMA"]
["coa02-comb97 MELGAR COMANDO AÉREO DE COMBATE NO. 4 - CACOM-4 - MELGAR - TOLIMA","comb97","TOLIMA","MELGAR","A GRANEL","JET A1","COMANDO AÉREO DE COMBATE NO. 4 - CACOM-4 - MELGAR - TOLIMA","ORGANIZACIÓN TERPEL S.A",4421,"comb97ORGANIZACIÓN TERPEL S.A","TOLIMAMELGARA GRANELJET A1COMANDO AÉREO DE COMBATE NO. 4 - CACOM-4 - MELGAR - TOLIMA"]
["coa02-comb97 MELGAR COMANDO AÉREO DE COMBATE NO. 4 - CACOM-4 - MELGAR - TOLIMA","comb97","TOLIMA","MELGAR","A GRANEL","JET A1","COMANDO AÉREO DE COMBATE NO. 4 - CACOM-4 - MELGAR - TOLIMA","WORLD FUEL SERVICES COMPANY",4219,"comb97WORLD FUEL SERVICES COMPANY","TOLIMAMELGARA GRANELJET A1COMANDO AÉREO DE COMBATE NO. 4 - CACOM-4 - MELGAR - TOLIMA"]
["coa02-comb98 MIRANDA BASE MILITAR MIRANDA","comb98","CAUCA","MIRANDA","A GRANEL","JET A1","BASE MILITAR MIRANDA","FASTER FUEL S.A.S",5996,"comb98FASTER FUEL S.A.S","CAUCAMIRANDAA GRANELJET A1BASE MILITAR MIRANDA"]
["coa02-comb98 MIRANDA BASE MILITAR MIRANDA","comb98","CAUCA","MIRANDA","A GRANEL","JET A1","BASE MILITAR MIRANDA","ORGANIZACIÓN TERPEL S.A",6002,"comb98ORGANIZACIÓN TERPEL S.A","CAUCAMIRANDAA GRANELJET A1BASE MILITAR MIRANDA"]
["coa02-comb99 MITÚ AEROPUERTO FABIO ALBERTO LEON BENTLEY","comb99","VAUPÉS","MITÚ","AL ALA","JET A1","AEROPUERTO FABIO ALBERTO LEON BENTLEY","COMBUSTIBLES Y TRANSPORTES HERNANDEZ S.A",18809,"comb99COMBUSTIBLES Y TRANSPORTES HERNANDEZ S.A","VAUPÉSMITÚAL ALAJET A1AEROPUERTO FABIO ALBERTO LEON BENTLEY"]
["coa02-comb100 MITÚ AEROPUERTO FABIO ALBERTO LEÓN BENTLEY ","comb100","VAUPÉS","MITÚ","AL ALA","AV GAS","AEROPUERTO FABIO ALBERTO LEÓN BENTLEY ","COMBUSTIBLES Y TRANSPORTES HERNANDEZ S.A",19915,"comb100COMBUSTIBLES Y TRANSPORTES HERNANDEZ S.A","VAUPÉSMITÚAL ALAAV GASAEROPUERTO FABIO ALBERTO LEÓN BENTLEY "]
["coa02-comb101 MITÚ AEROPUERTO FABIO ALBERTO LEÓN BENTLEY","comb101","VAUPÉS","MITÚ","A GRANEL","JET A1","AEROPUERTO FABIO ALBERTO LEÓN BENTLEY","COMBUSTIBLES Y TRANSPORTES HERNANDEZ S.A",18809,"comb101COMBUSTIBLES Y TRANSPORTES HERNANDEZ S.A","VAUPÉSMITÚA GRANELJET A1AEROPUERTO FABIO ALBERTO LEÓN BENTLEY"]
["coa02-comb102 MONTERÍA DÉCIMA PRIMERA BRIGADA","comb102","CORDOBA","MONTERÍA","A GRANEL","JET A1","DÉCIMA PRIMERA BRIGADA","FASTER FUEL S.A.S",5254,"comb102FASTER FUEL S.A.S","CORDOBAMONTERÍAA GRANELJET A1DÉCIMA PRIMERA BRIGADA"]
["coa02-comb102 MONTERÍA DÉCIMA PRIMERA BRIGADA","comb102","CORDOBA","MONTERÍA","A GRANEL","JET A1","DÉCIMA PRIMERA BRIGADA","GLOBE AIR FUEL S.A.S",5264,"comb102GLOBE AIR FUEL S.A.S","CORDOBAMONTERÍAA GRANELJET A1DÉCIMA PRIMERA BRIGADA"]
["coa02-comb102 MONTERÍA DÉCIMA PRIMERA BRIGADA","comb102","CORDOBA","MONTERÍA","A GRANEL","JET A1","DÉCIMA PRIMERA BRIGADA","ORGANIZACIÓN TERPEL S.A",5259,"comb102ORGANIZACIÓN TERPEL S.A","CORDOBAMONTERÍAA GRANELJET A1DÉCIMA PRIMERA BRIGADA"]
["coa02-comb103 MONTERÍA AEROPUERTO INTERNACIONAL LOS GARZONES","comb103","CORDOBA","MONTERÍA","AL ALA","AV GAS","AEROPUERTO INTERNACIONAL LOS GARZONES","FASTER FUEL S.A.S",11452,"comb103FASTER FUEL S.A.S","CORDOBAMONTERÍAAL ALAAV GASAEROPUERTO INTERNACIONAL LOS GARZONES"]
["coa02-comb103 MONTERÍA AEROPUERTO INTERNACIONAL LOS GARZONES","comb103","CORDOBA","MONTERÍA","AL ALA","AV GAS","AEROPUERTO INTERNACIONAL LOS GARZONES","GLOBE AIR FUEL S.A.S",11473,"comb103GLOBE AIR FUEL S.A.S","CORDOBAMONTERÍAAL ALAAV GASAEROPUERTO INTERNACIONAL LOS GARZONES"]
["coa02-comb103 MONTERÍA AEROPUERTO INTERNACIONAL LOS GARZONES","comb103","CORDOBA","MONTERÍA","AL ALA","AV GAS","AEROPUERTO INTERNACIONAL LOS GARZONES","ORGANIZACIÓN TERPEL S.A",11469,"comb103ORGANIZACIÓN TERPEL S.A","CORDOBAMONTERÍAAL ALAAV GASAEROPUERTO INTERNACIONAL LOS GARZONES"]
["coa02-comb104 MONTERÍA AEROPUERTO INTERNACIONAL LOS GARZONES","comb104","CORDOBA","MONTERÍA","AL ALA","JET A1","AEROPUERTO INTERNACIONAL LOS GARZONES","FASTER FUEL S.A.S",8215,"comb104FASTER FUEL S.A.S","CORDOBAMONTERÍAAL ALAJET A1AEROPUERTO INTERNACIONAL LOS GARZONES"]
["coa02-comb104 MONTERÍA AEROPUERTO INTERNACIONAL LOS GARZONES","comb104","CORDOBA","MONTERÍA","AL ALA","JET A1","AEROPUERTO INTERNACIONAL LOS GARZONES","GLOBE AIR FUEL S.A.S",7673,"comb104GLOBE AIR FUEL S.A.S","CORDOBAMONTERÍAAL ALAJET A1AEROPUERTO INTERNACIONAL LOS GARZONES"]
["coa02-comb104 MONTERÍA AEROPUERTO INTERNACIONAL LOS GARZONES","comb104","CORDOBA","MONTERÍA","AL ALA","JET A1","AEROPUERTO INTERNACIONAL LOS GARZONES","ORGANIZACIÓN TERPEL S.A",8226,"comb104ORGANIZACIÓN TERPEL S.A","CORDOBAMONTERÍAAL ALAJET A1AEROPUERTO INTERNACIONAL LOS GARZONES"]
["coa02-comb104 MONTERÍA AEROPUERTO INTERNACIONAL LOS GARZONES","comb104","CORDOBA","MONTERÍA","AL ALA","JET A1","AEROPUERTO INTERNACIONAL LOS GARZONES","WORLD FUEL SERVICES COMPANY",8209,"comb104WORLD FUEL SERVICES COMPANY","CORDOBAMONTERÍAAL ALAJET A1AEROPUERTO INTERNACIONAL LOS GARZONES"]
["coa02-comb105 MUTATÁ BASE MILITAR DE MUTATÁ (ANTIOQUIA)","comb105","ANTIOQUIA","MUTATÁ","A GRANEL","JET A1","BASE MILITAR DE MUTATÁ (ANTIOQUIA)","FASTER FUEL S.A.S",5916,"comb105FASTER FUEL S.A.S","ANTIOQUIAMUTATÁA GRANELJET A1BASE MILITAR DE MUTATÁ (ANTIOQUIA)"]
["coa02-comb105 MUTATÁ BASE MILITAR DE MUTATÁ (ANTIOQUIA)","comb105","ANTIOQUIA","MUTATÁ","A GRANEL","JET A1","BASE MILITAR DE MUTATÁ (ANTIOQUIA)","GLOBE AIR FUEL S.A.S",5928,"comb105GLOBE AIR FUEL S.A.S","ANTIOQUIAMUTATÁA GRANELJET A1BASE MILITAR DE MUTATÁ (ANTIOQUIA)"]
["coa02-comb105 MUTATÁ BASE MILITAR DE MUTATÁ (ANTIOQUIA)","comb105","ANTIOQUIA","MUTATÁ","A GRANEL","JET A1","BASE MILITAR DE MUTATÁ (ANTIOQUIA)","ORGANIZACIÓN TERPEL S.A",5923,"comb105ORGANIZACIÓN TERPEL S.A","ANTIOQUIAMUTATÁA GRANELJET A1BASE MILITAR DE MUTATÁ (ANTIOQUIA)"]
["coa02-comb106 NECOCLÍ COMPAÑÍA ANTINARCÓTICOS POLICÍA","comb106","ANTIOQUIA","NECOCLÍ","A GRANEL","JET A1","COMPAÑÍA ANTINARCÓTICOS POLICÍA","COMBUSTIBLES Y TRANSPORTES HERNANDEZ S.A",5731,"comb106COMBUSTIBLES Y TRANSPORTES HERNANDEZ S.A","ANTIOQUIANECOCLÍA GRANELJET A1COMPAÑÍA ANTINARCÓTICOS POLICÍA"]
["coa02-comb106 NECOCLÍ COMPAÑÍA ANTINARCÓTICOS POLICÍA","comb106","ANTIOQUIA","NECOCLÍ","A GRANEL","JET A1","COMPAÑÍA ANTINARCÓTICOS POLICÍA","FASTER FUEL S.A.S",5726,"comb106FASTER FUEL S.A.S","ANTIOQUIANECOCLÍA GRANELJET A1COMPAÑÍA ANTINARCÓTICOS POLICÍA"]
["coa02-comb106 NECOCLÍ COMPAÑÍA ANTINARCÓTICOS POLICÍA","comb106","ANTIOQUIA","NECOCLÍ","A GRANEL","JET A1","COMPAÑÍA ANTINARCÓTICOS POLICÍA","GLOBE AIR FUEL S.A.S",5738,"comb106GLOBE AIR FUEL S.A.S","ANTIOQUIANECOCLÍA GRANELJET A1COMPAÑÍA ANTINARCÓTICOS POLICÍA"]
["coa02-comb106 NECOCLÍ COMPAÑÍA ANTINARCÓTICOS POLICÍA","comb106","ANTIOQUIA","NECOCLÍ","A GRANEL","JET A1","COMPAÑÍA ANTINARCÓTICOS POLICÍA","ORGANIZACIÓN TERPEL S.A",5732,"comb106ORGANIZACIÓN TERPEL S.A","ANTIOQUIANECOCLÍA GRANELJET A1COMPAÑÍA ANTINARCÓTICOS POLICÍA"]
[{"$f":"\"coa02-\"&B259&\" \"&D259&\" \"&G259","v":"coa02-comb107 NECOCLÍ AEROPUERTO NECOCLÍ"},"comb107","ANTIOQUIA","NECOCLÍ","A GRANEL","JET A1","AEROPUERTO NECOCLÍ","FASTER FUEL S.A.S",5726,{"$f":"B259&H259","v":"comb107FASTER FUEL S.A.S"},{"$f":"$C259&$D259&$E259&$F259&G259","v":"ANTIOQUIANECOCLÍA GRANELJET A1AEROPUERTO NECOCLÍ"}]
["coa02-comb107 NECOCLÍ AEROPUERTO NECOCLÍ","comb107","ANTIOQUIA","NECOCLÍ","A GRANEL","JET A1","AEROPUERTO NECOCLÍ","GLOBE AIR FUEL S.A.S",5738,"comb107GLOBE AIR FUEL S.A.S","ANTIOQUIANECOCLÍA GRANELJET A1AEROPUERTO NECOCLÍ"]
["coa02-comb108 NEIVA BATALLÓN DE ARTILLERÍA NO. 9 \"TENERIFE\"","comb108","HUILA","NEIVA","A GRANEL","JET A1","BATALLÓN DE ARTILLERÍA NO. 9 \"TENERIFE\"","COMBUSTIBLES Y TRANSPORTES HERNANDEZ S.A",3883,"comb108COMBUSTIBLES Y TRANSPORTES HERNANDEZ S.A","HUILANEIVAA GRANELJET A1BATALLÓN DE ARTILLERÍA NO. 9 \"TENERIFE\""]
["coa02-comb108 NEIVA BATALLÓN DE ARTILLERÍA NO. 9 \"TENERIFE\"","comb108","HUILA","NEIVA","A GRANEL","JET A1","BATALLÓN DE ARTILLERÍA NO. 9 \"TENERIFE\"","FASTER FUEL S.A.S",3881,"comb108FASTER FUEL S.A.S","HUILANEIVAA GRANELJET A1BATALLÓN DE ARTILLERÍA NO. 9 \"TENERIFE\""]
["coa02-comb108 NEIVA BATALLÓN DE ARTILLERÍA NO. 9 \"TENERIFE\"","comb108","HUILA","NEIVA","A GRANEL","JET A1","BATALLÓN DE ARTILLERÍA NO. 9 \"TENERIFE\"","GLOBE AIR FUEL S.A.S",3889,"comb108GLOBE AIR FUEL S.A.S","HUILANEIVAA GRANELJET A1BATALLÓN DE ARTILLERÍA NO. 9 \"TENERIFE\""]
["coa02-comb109 NEIVA AEROPUERTO BENITO SALAS","comb109","HUILA","NEIVA","AL ALA","JET A1","AEROPUERTO BENITO SALAS","WORLD FUEL SERVICES COMPANY",14234,"comb109WORLD FUEL SERVICES COMPANY","HUILANEIVAAL ALAJET A1AEROPUERTO BENITO SALAS"]
["coa02-comb110 NEIVA BRIGADA EJERCITO","comb110","HUILA","NEIVA","AL ALA","JET A1","BRIGADA EJERCITO","FASTER FUEL S.A.S",11911,"comb110FASTER FUEL S.A.S","HUILANEIVAAL ALAJET A1BRIGADA EJERCITO"]
["coa02-comb111 NILO FUERTE MILITAR DE TOLEMAIDA","comb111","CUNDINAMARCA","NILO","A GRANEL","JET A1","FUERTE MILITAR DE TOLEMAIDA","FASTER FUEL S.A.S",4826,"comb111FASTER FUEL S.A.S","CUNDINAMARCANILOA GRANELJET A1FUERTE MILITAR DE TOLEMAIDA"]
["coa02-comb111 NILO FUERTE MILITAR DE TOLEMAIDA","comb111","CUNDINAMARCA","NILO","A GRANEL","JET A1","FUERTE MILITAR DE TOLEMAIDA","GLOBE AIR FUEL S.A.S",4824,"comb111GLOBE AIR FUEL S.A.S","CUNDINAMARCANILOA GRANELJET A1FUERTE MILITAR DE TOLEMAIDA"]
["coa02-comb111 NILO FUERTE MILITAR DE TOLEMAIDA","comb111","CUNDINAMARCA","NILO","A GRANEL","JET A1","FUERTE MILITAR DE TOLEMAIDA","ORGANIZACIÓN TERPEL S.A",4803,"comb111ORGANIZACIÓN TERPEL S.A","CUNDINAMARCANILOA GRANELJET A1FUERTE MILITAR DE TOLEMAIDA"]
["coa02-comb111 NILO FUERTE MILITAR DE TOLEMAIDA","comb111","CUNDINAMARCA","NILO","A GRANEL","JET A1","FUERTE MILITAR DE TOLEMAIDA","WORLD FUEL SERVICES COMPANY",4579,"comb111WORLD FUEL SERVICES COMPANY","CUNDINAMARCANILOA GRANELJET A1FUERTE MILITAR DE TOLEMAIDA"]
["coa02-comb112 OCAÑA BATALLÓN DE INFANTERÍA NO. 15 \"GR. FRANCISCO DE PAULA SANTANDER\"","comb112","NORTE DE SANTANDER","OCAÑA","A GRANEL","JET A1","BATALLÓN DE INFANTERÍA NO. 15 \"GR. FRANCISCO DE PAULA SANTANDER\"","FASTER FUEL S.A.S",5466,"comb112FASTER FUEL S.A.S","NORTE DE SANTANDEROCAÑAA GRANELJET A1BATALLÓN DE INFANTERÍA NO. 15 \"GR. FRANCISCO DE PAULA SANTANDER\""]
["coa02-comb112 OCAÑA BATALLÓN DE INFANTERÍA NO. 15 \"GR. FRANCISCO DE PAULA SANTANDER\"","comb112","NORTE DE SANTANDER","OCAÑA","A GRANEL","JET A1","BATALLÓN DE INFANTERÍA NO. 15 \"GR. FRANCISCO DE PAULA SANTANDER\"","GLOBE AIR FUEL S.A.S",5477,"comb112GLOBE AIR FUEL S.A.S","NORTE DE SANTANDEROCAÑAA GRANELJET A1BATALLÓN DE INFANTERÍA NO. 15 \"GR. FRANCISCO DE PAULA SANTANDER\""]
["coa02-comb112 OCAÑA BATALLÓN DE INFANTERÍA NO. 15 \"GR. FRANCISCO DE PAULA SANTANDER\"","comb112","NORTE DE SANTANDER","OCAÑA","A GRANEL","JET A1","BATALLÓN DE INFANTERÍA NO. 15 \"GR. FRANCISCO DE PAULA SANTANDER\"","ORGANIZACIÓN TERPEL S.A",5471,"comb112ORGANIZACIÓN TERPEL S.A","NORTE DE SANTANDEROCAÑAA GRANELJET A1BATALLÓN DE INFANTERÍA NO. 15 \"GR. FRANCISCO DE PAULA SANTANDER\""]
["coa02-comb113 PASTO AEROPUERTO ANTONIO NARIÑO","comb113","NARIÑO","PASTO","AL ALA","JET A1","AEROPUERTO ANTONIO NARIÑO","WORLD FUEL SERVICES COMPANY",18831,"comb113WORLD FUEL SERVICES COMPANY","NARIÑOPASTOAL ALAJET A1AEROPUERTO ANTONIO NARIÑO"]
["coa02-comb114 PATÍA BATALLÓN DE INSTRUCCIÓN, ENTRENAMIENTO Y REENTRENAMIENTO NO. 29 \"CAMILLO TORRES TENORIO\" EL ESTRECHO","comb114","CAUCA","PATÍA","A GRANEL","JET A1","BATALLÓN DE INSTRUCCIÓN, ENTRENAMIENTO Y REENTRENAMIENTO NO. 29 \"CAMILLO TORRES TENORIO\" EL ESTRECHO","FASTER FUEL S.A.S",7176,"comb114FASTER FUEL S.A.S","CAUCAPATÍAA GRANELJET A1BATALLÓN DE INSTRUCCIÓN, ENTRENAMIENTO Y REENTRENAMIENTO NO. 29 \"CAMILLO TORRES TENORIO\" EL ESTRECHO"]
["coa02-comb114 PATÍA BATALLÓN DE INSTRUCCIÓN, ENTRENAMIENTO Y REENTRENAMIENTO NO. 29 \"CAMILLO TORRES TENORIO\" EL ESTRECHO","comb114","CAUCA","PATÍA","A GRANEL","JET A1","BATALLÓN DE INSTRUCCIÓN, ENTRENAMIENTO Y REENTRENAMIENTO NO. 29 \"CAMILLO TORRES TENORIO\" EL ESTRECHO","GLOBE AIR FUEL S.A.S",7190,"comb114GLOBE AIR FUEL S.A.S","CAUCAPATÍAA GRANELJET A1BATALLÓN DE INSTRUCCIÓN, ENTRENAMIENTO Y REENTRENAMIENTO NO. 29 \"CAMILLO TORRES TENORIO\" EL ESTRECHO"]
["coa02-comb115 PAZ DE ARIPORO BASE MILITAR DE PAZ DE ARIPORO","comb115","CASANARE","PAZ DE ARIPORO","A GRANEL","JET A1","BASE MILITAR DE PAZ DE ARIPORO","COMBUSTIBLES Y TRANSPORTES HERNANDEZ S.A",8929,"comb115COMBUSTIBLES Y TRANSPORTES HERNANDEZ S.A","CASANAREPAZ DE ARIPOROA GRANELJET A1BASE MILITAR DE PAZ DE ARIPORO"]
["coa02-comb115 PAZ DE ARIPORO BASE MILITAR DE PAZ DE ARIPORO","comb115","CASANARE","PAZ DE ARIPORO","A GRANEL","JET A1","BASE MILITAR DE PAZ DE ARIPORO","FASTER FUEL S.A.S",8922,"comb115FASTER FUEL S.A.S","CASANAREPAZ DE ARIPOROA GRANELJET A1BASE MILITAR DE PAZ DE ARIPORO"]
["coa02-comb115 PAZ DE ARIPORO BASE MILITAR DE PAZ DE ARIPORO","comb115","CASANARE","PAZ DE ARIPORO","A GRANEL","JET A1","BASE MILITAR DE PAZ DE ARIPORO","GLOBE AIR FUEL S.A.S",8940,"comb115GLOBE AIR FUEL S.A.S","CASANAREPAZ DE ARIPOROA GRANELJET A1BASE MILITAR DE PAZ DE ARIPORO"]
["coa02-comb116 PEREIRA AEROPUERTO INTERNACIONAL MATECAÑA","comb116","RISARALDA","PEREIRA","AL ALA","AV GAS","AEROPUERTO INTERNACIONAL MATECAÑA","FASTER FUEL S.A.S",8815,"comb116FASTER FUEL S.A.S","RISARALDAPEREIRAAL ALAAV GASAEROPUERTO INTERNACIONAL MATECAÑA"]
["coa02-comb116 PEREIRA AEROPUERTO INTERNACIONAL MATECAÑA","comb116","RISARALDA","PEREIRA","AL ALA","AV GAS","AEROPUERTO INTERNACIONAL MATECAÑA","GLOBE AIR FUEL S.A.S",8832,"comb116GLOBE AIR FUEL S.A.S","RISARALDAPEREIRAAL ALAAV GASAEROPUERTO INTERNACIONAL MATECAÑA"]
["coa02-comb116 PEREIRA AEROPUERTO INTERNACIONAL MATECAÑA","comb116","RISARALDA","PEREIRA","AL ALA","AV GAS","AEROPUERTO INTERNACIONAL MATECAÑA","ORGANIZACIÓN TERPEL S.A",8827,"comb116ORGANIZACIÓN TERPEL S.A","RISARALDAPEREIRAAL ALAAV GASAEROPUERTO INTERNACIONAL MATECAÑA"]
["coa02-comb117 PEREIRA AEROPUERTO INTERNACIONAL MATECAÑA","comb117","RISARALDA","PEREIRA","AL ALA","JET A1","AEROPUERTO INTERNACIONAL MATECAÑA","FASTER FUEL S.A.S",6670,"comb117FASTER FUEL S.A.S","RISARALDAPEREIRAAL ALAJET A1AEROPUERTO INTERNACIONAL MATECAÑA"]
["coa02-comb117 PEREIRA AEROPUERTO INTERNACIONAL MATECAÑA","comb117","RISARALDA","PEREIRA","AL ALA","JET A1","AEROPUERTO INTERNACIONAL MATECAÑA","GLOBE AIR FUEL S.A.S",6684,"comb117GLOBE AIR FUEL S.A.S","RISARALDAPEREIRAAL ALAJET A1AEROPUERTO INTERNACIONAL MATECAÑA"]
["coa02-comb117 PEREIRA AEROPUERTO INTERNACIONAL MATECAÑA","comb117","RISARALDA","PEREIRA","AL ALA","JET A1","AEROPUERTO INTERNACIONAL MATECAÑA","ORGANIZACIÓN TERPEL S.A",6678,"comb117ORGANIZACIÓN TERPEL S.A","RISARALDAPEREIRAAL ALAJET A1AEROPUERTO INTERNACIONAL MATECAÑA"]
["coa02-comb117 PEREIRA AEROPUERTO INTERNACIONAL MATECAÑA","comb117","RISARALDA","PEREIRA","AL ALA","JET A1","AEROPUERTO INTERNACIONAL MATECAÑA","WORLD FUEL SERVICES COMPANY",6662,"comb117WORLD FUEL SERVICES COMPANY","RISARALDAPEREIRAAL ALAJET A1AEROPUERTO INTERNACIONAL MATECAÑA"]
["coa02-comb118 PITALITO BATALLÓN DE INFANTERÍA NO. 27 \"MAGDALENA\"","comb118","HUILA","PITALITO","A GRANEL","JET A1","BATALLÓN DE INFANTERÍA NO. 27 \"MAGDALENA\"","COMBUSTIBLES Y TRANSPORTES HERNANDEZ S.A",7402,"comb118COMBUSTIBLES Y TRANSPORTES HERNANDEZ S.A","HUILAPITALITOA GRANELJET A1BATALLÓN DE INFANTERÍA NO. 27 \"MAGDALENA\""]
["coa02-comb118 PITALITO BATALLÓN DE INFANTERÍA NO. 27 \"MAGDALENA\"","comb118","HUILA","PITALITO","A GRANEL","JET A1","BATALLÓN DE INFANTERÍA NO. 27 \"MAGDALENA\"","FASTER FUEL S.A.S",7398,"comb118FASTER FUEL S.A.S","HUILAPITALITOA GRANELJET A1BATALLÓN DE INFANTERÍA NO. 27 \"MAGDALENA\""]
["coa02-comb118 PITALITO BATALLÓN DE INFANTERÍA NO. 27 \"MAGDALENA\"","comb118","HUILA","PITALITO","A GRANEL","JET A1","BATALLÓN DE INFANTERÍA NO. 27 \"MAGDALENA\"","GLOBE AIR FUEL S.A.S",7413,"comb118GLOBE AIR FUEL S.A.S","HUILAPITALITOA GRANELJET A1BATALLÓN DE INFANTERÍA NO. 27 \"MAGDALENA\""]
["coa02-comb119 PLANADAS BATALLÓN DE COMBATE TERRESTRE NO. 18","comb119","TOLIMA","PLANADAS","A GRANEL","JET A1","BATALLÓN DE COMBATE TERRESTRE NO. 18","FASTER FUEL S.A.S",5174,"comb119FASTER FUEL S.A.S","TOLIMAPLANADASA GRANELJET A1BATALLÓN DE COMBATE TERRESTRE NO. 18"]
["coa02-comb119 PLANADAS BATALLÓN DE COMBATE TERRESTRE NO. 18","comb119","TOLIMA","PLANADAS","A GRANEL","JET A1","BATALLÓN DE COMBATE TERRESTRE NO. 18","GLOBE AIR FUEL S.A.S",5185,"comb119GLOBE AIR FUEL S.A.S","TOLIMAPLANADASA GRANELJET A1BATALLÓN DE COMBATE TERRESTRE NO. 18"]
["coa02-comb120 POPAYÁN BATALLÓN DE MANIOBRA DE AVIACIÓN NO. 3 \"TE. EDUARDO VILLAMIL BERMÉO\"","comb120","CAUCA","POPAYÁN","A GRANEL","JET A1","BATALLÓN DE MANIOBRA DE AVIACIÓN NO. 3 \"TE. EDUARDO VILLAMIL BERMÉO\"","FASTER FUEL S.A.S",5355,"comb120FASTER FUEL S.A.S","CAUCAPOPAYÁNA GRANELJET A1BATALLÓN DE MANIOBRA DE AVIACIÓN NO. 3 \"TE. EDUARDO VILLAMIL BERMÉO\""]
["coa02-comb120 POPAYÁN BATALLÓN DE MANIOBRA DE AVIACIÓN NO. 3 \"TE. EDUARDO VILLAMIL BERMÉO\"","comb120","CAUCA","POPAYÁN","A GRANEL","JET A1","BATALLÓN DE MANIOBRA DE AVIACIÓN NO. 3 \"TE. EDUARDO VILLAMIL BERMÉO\"","GLOBE AIR FUEL S.A.S",5355,"comb120GLOBE AIR FUEL S.A.S","CAUCAPOPAYÁNA GRANELJET A1BATALLÓN DE MANIOBRA DE AVIACIÓN NO. 3 \"TE. EDUARDO VILLAMIL BERMÉO\""]
["coa02-comb120 POPAYÁN BATALLÓN DE MANIOBRA DE AVIACIÓN NO. 3 \"TE. EDUARDO VILLAMIL BERMÉO\"","comb120","CAUCA","POPAYÁN","A GRANEL","JET A1","BATALLÓN DE MANIOBRA DE AVIACIÓN NO. 3 \"TE. EDUARDO VILLAMIL BERMÉO\"","ORGANIZACIÓN TERPEL S.A",5333,"comb120ORGANIZACIÓN TERPEL S.A","CAUCAPOPAYÁNA GRANELJET A1BATALLÓN DE MANIOBRA DE AVIACIÓN NO. 3 \"TE. EDUARDO VILLAMIL BERMÉO\""]
["coa02-comb121 POPAYÁN AEROPUERTO GUILLERMO LEÓN VALENCIA","comb121","CAUCA","POPAYÁN","AL ALA","JET A1","AEROPUERTO GUILLERMO LEÓN VALENCIA","FASTER FUEL S.A.S",18219,"comb121FASTER FUEL S.A.S","CAUCAPOPAYÁNAL ALAJET A1AEROPUERTO GUILLERMO LEÓN VALENCIA"]
["coa02-comb122 PUERTO BERRÍO BATALLÓN DE INFANTERÍA N° 42 BATALLA DE BOMBONÁ","comb122","ANTIOQUIA","PUERTO BERRÍO","A GRANEL","JET A1","BATALLÓN DE INFANTERÍA N° 42 BATALLA DE BOMBONÁ","GLOBE AIR FUEL S.A.S",8424,"comb122GLOBE AIR FUEL S.A.S","ANTIOQUIAPUERTO BERRÍOA GRANELJET A1BATALLÓN DE INFANTERÍA N° 42 BATALLA DE BOMBONÁ"]
["coa02-comb123 PUERTO BOYACÁ UNIDAD MILITAR VELASQUEZ","comb123","BOYACÁ","PUERTO BOYACÁ","A GRANEL","AV GAS","UNIDAD MILITAR VELASQUEZ","FASTER FUEL S.A.S",8230,"comb123FASTER FUEL S.A.S","BOYACÁPUERTO BOYACÁA GRANELAV GASUNIDAD MILITAR VELASQUEZ"]
["coa02-comb123 PUERTO BOYACÁ UNIDAD MILITAR VELASQUEZ","comb123","BOYACÁ","PUERTO BOYACÁ","A GRANEL","AV GAS","UNIDAD MILITAR VELASQUEZ","GLOBE AIR FUEL S.A.S",8246,"comb123GLOBE AIR FUEL S.A.S","BOYACÁPUERTO BOYACÁA GRANELAV GASUNIDAD MILITAR VELASQUEZ"]
["coa02-comb123 PUERTO BOYACÁ UNIDAD MILITAR VELASQUEZ","comb123","BOYACÁ","PUERTO BOYACÁ","A GRANEL","AV GAS","UNIDAD MILITAR VELASQUEZ","ORGANIZACIÓN TERPEL S.A",8240,"comb123ORGANIZACIÓN TERPEL S.A","BOYACÁPUERTO BOYACÁA GRANELAV GASUNIDAD MILITAR VELASQUEZ"]
["coa02-comb124 PUERTO CARREÑO AEROPUERTO GERMÁN OLANO","comb124","VICHADA","PUERTO CARREÑO","AL ALA","JET A1","AEROPUERTO GERMÁN OLANO","WORLD FUEL SERVICES COMPANY",10157,"comb124WORLD FUEL SERVICES COMPANY","VICHADAPUERTO CARREÑOAL ALAJET A1AEROPUERTO GERMÁN OLANO"]
["coa02-comb125 PUERTO INÍRIDA AEROPUERTO CESAR GAVIRIA TRUJILLO","comb125","GUAINÍA","PUERTO INÍRIDA","AL ALA","AV GAS","AEROPUERTO CESAR GAVIRIA TRUJILLO","COMBUSTIBLES Y TRANSPORTES HERNANDEZ S.A",22891,"comb125COMBUSTIBLES Y TRANSPORTES HERNANDEZ S.A","GUAINÍAPUERTO INÍRIDAAL ALAAV GASAEROPUERTO CESAR GAVIRIA TRUJILLO"]
["coa02-comb126 PUERTO INÍRIDA AEROPUERTO CESAR GAVIRIA TRUJILLO","comb126","GUAINÍA","PUERTO INÍRIDA","AL ALA","JET A1","AEROPUERTO CESAR GAVIRIA TRUJILLO","COMBUSTIBLES Y TRANSPORTES HERNANDEZ S.A",19583,"comb126COMBUSTIBLES Y TRANSPORTES HERNANDEZ S.A","GUAINÍAPUERTO INÍRIDAAL ALAJET A1AEROPUERTO CESAR GAVIRIA TRUJILLO"]
["coa02-comb127 PUERTO JORDÁN BATALLÓN DE ARTILLERÍA NO. 18 MANTILLA SAN MIGUEL","comb127","ARAUCA","PUERTO JORDÁN","A GRANEL","JET A1","BATALLÓN DE ARTILLERÍA NO. 18 MANTILLA SAN MIGUEL","FASTER FUEL S.A.S",6625,"comb127FASTER FUEL S.A.S","ARAUCAPUERTO JORDÁNA GRANELJET A1BATALLÓN DE ARTILLERÍA NO. 18 MANTILLA SAN MIGUEL"]
["coa02-comb128 PUERTO LEGUIZAMO AEROPUERTO CAUCAYA","comb128","PUTUMAYO","PUERTO LEGUIZAMO","AL ALA","JET A1","AEROPUERTO CAUCAYA","GLOBE AIR FUEL S.A.S",25558,"comb128GLOBE AIR FUEL S.A.S","PUTUMAYOPUERTO LEGUIZAMOAL ALAJET A1AEROPUERTO CAUCAYA"]
["coa02-comb129 PUERTO LIBERTADOR BATALLÓN DE OPERACIONES TERRESTRES NO. 23 BASE MILITAR CARBONES","comb129","CORDOBA","PUERTO LIBERTADOR","A GRANEL","JET A1","BATALLÓN DE OPERACIONES TERRESTRES NO. 23 BASE MILITAR CARBONES","FASTER FUEL S.A.S",5731,"comb129FASTER FUEL S.A.S","CORDOBAPUERTO LIBERTADORA GRANELJET A1BATALLÓN DE OPERACIONES TERRESTRES NO. 23 BASE MILITAR CARBONES"]
["coa02-comb129 PUERTO LIBERTADOR BATALLÓN DE OPERACIONES TERRESTRES NO. 23 BASE MILITAR CARBONES","comb129","CORDOBA","PUERTO LIBERTADOR","A GRANEL","JET A1","BATALLÓN DE OPERACIONES TERRESTRES NO. 23 BASE MILITAR CARBONES","ORGANIZACIÓN TERPEL S.A",5737,"comb129ORGANIZACIÓN TERPEL S.A","CORDOBAPUERTO LIBERTADORA GRANELJET A1BATALLÓN DE OPERACIONES TERRESTRES NO. 23 BASE MILITAR CARBONES"]
["coa02-comb130 PUERTO RICO BATALLÓN DE OPERACIONES TERRESTRES NO. 20 BASE MILITAR EL CARMELO","comb130","CAQUETÁ","PUERTO RICO","A GRANEL","JET A1","BATALLÓN DE OPERACIONES TERRESTRES NO. 20 BASE MILITAR EL CARMELO","COMBUSTIBLES Y TRANSPORTES HERNANDEZ S.A",7291,"comb130COMBUSTIBLES Y TRANSPORTES HERNANDEZ S.A","CAQUETÁPUERTO RICOA GRANELJET A1BATALLÓN DE OPERACIONES TERRESTRES NO. 20 BASE MILITAR EL CARMELO"]
["coa02-comb130 PUERTO RICO BATALLÓN DE OPERACIONES TERRESTRES NO. 20 BASE MILITAR EL CARMELO","comb130","CAQUETÁ","PUERTO RICO","A GRANEL","JET A1","BATALLÓN DE OPERACIONES TERRESTRES NO. 20 BASE MILITAR EL CARMELO","FASTER FUEL S.A.S",7288,"comb130FASTER FUEL S.A.S","CAQUETÁPUERTO RICOA GRANELJET A1BATALLÓN DE OPERACIONES TERRESTRES NO. 20 BASE MILITAR EL CARMELO"]
["coa02-comb131 PUERTO RICO BATALLÓN DE OPERACIONES TERRESTRE NO. 4","comb131","META","PUERTO RICO","A GRANEL","JET A1","BATALLÓN DE OPERACIONES TERRESTRE NO. 4","COMBUSTIBLES Y TRANSPORTES HERNANDEZ S.A",7081,"comb131COMBUSTIBLES Y TRANSPORTES HERNANDEZ S.A","METAPUERTO RICOA GRANELJET A1BATALLÓN DE OPERACIONES TERRESTRE NO. 4"]
["coa02-comb131 PUERTO RICO BATALLÓN DE OPERACIONES TERRESTRE NO. 4","comb131","META","PUERTO RICO","A GRANEL","JET A1","BATALLÓN DE OPERACIONES TERRESTRE NO. 4","FASTER FUEL S.A.S",7069,"comb131FASTER FUEL S.A.S","METAPUERTO RICOA GRANELJET A1BATALLÓN DE OPERACIONES TERRESTRE NO. 4"]
["coa02-comb132 PUERTO RICO AEROPUERTO PUERTO RICO","comb132","META","PUERTO RICO","A GRANEL","JET A1","AEROPUERTO PUERTO RICO","FASTER FUEL S.A.S",7069,"comb132FASTER FUEL S.A.S","METAPUERTO RICOA GRANELJET A1AEROPUERTO PUERTO RICO"]
["coa02-comb133 PUERTO SALGAR COMANDO AÉREO DE COMBATE NO. 1 - CACOM-1 - PUERTO SALGAR - CUNDINAMARCA","comb133","CUNDINAMARCA","PUERTO SALGAR","A GRANEL","JET A1","COMANDO AÉREO DE COMBATE NO. 1 - CACOM-1 - PUERTO SALGAR - CUNDINAMARCA","COMBUSTIBLES Y TRANSPORTES HERNANDEZ S.A",3906,"comb133COMBUSTIBLES Y TRANSPORTES HERNANDEZ S.A","CUNDINAMARCAPUERTO SALGARA GRANELJET A1COMANDO AÉREO DE COMBATE NO. 1 - CACOM-1 - PUERTO SALGAR - CUNDINAMARCA"]
["coa02-comb133 PUERTO SALGAR COMANDO AÉREO DE COMBATE NO. 1 - CACOM-1 - PUERTO SALGAR - CUNDINAMARCA","comb133","CUNDINAMARCA","PUERTO SALGAR","A GRANEL","JET A1","COMANDO AÉREO DE COMBATE NO. 1 - CACOM-1 - PUERTO SALGAR - CUNDINAMARCA","GLOBE AIR FUEL S.A.S",3924,"comb133GLOBE AIR FUEL S.A.S","CUNDINAMARCAPUERTO SALGARA GRANELJET A1COMANDO AÉREO DE COMBATE NO. 1 - CACOM-1 - PUERTO SALGAR - CUNDINAMARCA"]
["coa02-comb133 PUERTO SALGAR COMANDO AÉREO DE COMBATE NO. 1 - CACOM-1 - PUERTO SALGAR - CUNDINAMARCA","comb133","CUNDINAMARCA","PUERTO SALGAR","A GRANEL","JET A1","COMANDO AÉREO DE COMBATE NO. 1 - CACOM-1 - PUERTO SALGAR - CUNDINAMARCA","ORGANIZACIÓN TERPEL S.A",3919,"comb133ORGANIZACIÓN TERPEL S.A","CUNDINAMARCAPUERTO SALGARA GRANELJET A1COMANDO AÉREO DE COMBATE NO. 1 - CACOM-1 - PUERTO SALGAR - CUNDINAMARCA"]
["coa02-comb133 PUERTO SALGAR COMANDO AÉREO DE COMBATE NO. 1 - CACOM-1 - PUERTO SALGAR - CUNDINAMARCA","comb133","CUNDINAMARCA","PUERTO SALGAR","A GRANEL","JET A1","COMANDO AÉREO DE COMBATE NO. 1 - CACOM-1 - PUERTO SALGAR - CUNDINAMARCA","WORLD FUEL SERVICES COMPANY",3716,"comb133WORLD FUEL SERVICES COMPANY","CUNDINAMARCAPUERTO SALGARA GRANELJET A1COMANDO AÉREO DE COMBATE NO. 1 - CACOM-1 - PUERTO SALGAR - CUNDINAMARCA"]
["coa02-comb134 PUERTO SALGAR COMANDO AÉREO DE COMBATE NO. 1 - CACOM-1 - PUERTO SALGAR - CUNDINAMARCA","comb134","CUNDINAMARCA","PUERTO SALGAR","A GRANEL","AV GAS","COMANDO AÉREO DE COMBATE NO. 1 - CACOM-1 - PUERTO SALGAR - CUNDINAMARCA","COMBUSTIBLES Y TRANSPORTES HERNANDEZ S.A",5975,"comb134COMBUSTIBLES Y TRANSPORTES HERNANDEZ S.A","CUNDINAMARCAPUERTO SALGARA GRANELAV GASCOMANDO AÉREO DE COMBATE NO. 1 - CACOM-1 - PUERTO SALGAR - CUNDINAMARCA"]
["coa02-comb134 PUERTO SALGAR COMANDO AÉREO DE COMBATE NO. 1 - CACOM-1 - PUERTO SALGAR - CUNDINAMARCA","comb134","CUNDINAMARCA","PUERTO SALGAR","A GRANEL","AV GAS","COMANDO AÉREO DE COMBATE NO. 1 - CACOM-1 - PUERTO SALGAR - CUNDINAMARCA","GLOBE AIR FUEL S.A.S",5972,"comb134GLOBE AIR FUEL S.A.S","CUNDINAMARCAPUERTO SALGARA GRANELAV GASCOMANDO AÉREO DE COMBATE NO. 1 - CACOM-1 - PUERTO SALGAR - CUNDINAMARCA"]
["coa02-comb134 PUERTO SALGAR COMANDO AÉREO DE COMBATE NO. 1 - CACOM-1 - PUERTO SALGAR - CUNDINAMARCA","comb134","CUNDINAMARCA","PUERTO SALGAR","A GRANEL","AV GAS","COMANDO AÉREO DE COMBATE NO. 1 - CACOM-1 - PUERTO SALGAR - CUNDINAMARCA","ORGANIZACIÓN TERPEL S.A",5969,"comb134ORGANIZACIÓN TERPEL S.A","CUNDINAMARCAPUERTO SALGARA GRANELAV GASCOMANDO AÉREO DE COMBATE NO. 1 - CACOM-1 - PUERTO SALGAR - CUNDINAMARCA"]
["coa02-comb135 QUIBDÓ BATALLÓN DE SERVICIOS  NO. 15 BASE MILITAR EL CARAÑO","comb135","CHOCÓ","QUIBDÓ","A GRANEL","JET A1","BATALLÓN DE SERVICIOS  NO. 15 BASE MILITAR EL CARAÑO","GLOBE AIR FUEL S.A.S",5500,"comb135GLOBE AIR FUEL S.A.S","CHOCÓQUIBDÓA GRANELJET A1BATALLÓN DE SERVICIOS  NO. 15 BASE MILITAR EL CARAÑO"]
["coa02-comb135 QUIBDÓ BATALLÓN DE SERVICIOS  NO. 15 BASE MILITAR EL CARAÑO","comb135","CHOCÓ","QUIBDÓ","A GRANEL","JET A1","BATALLÓN DE SERVICIOS  NO. 15 BASE MILITAR EL CARAÑO","ORGANIZACIÓN TERPEL S.A",5467,"comb135ORGANIZACIÓN TERPEL S.A","CHOCÓQUIBDÓA GRANELJET A1BATALLÓN DE SERVICIOS  NO. 15 BASE MILITAR EL CARAÑO"]
["coa02-comb136 QUIBDÓ AEROPUERTO EL CARAÑO","comb136","CHOCÓ","QUIBDÓ","AL ALA","JET A1","AEROPUERTO EL CARAÑO","FASTER FUEL S.A.S",21532,"comb136FASTER FUEL S.A.S","CHOCÓQUIBDÓAL ALAJET A1AEROPUERTO EL CARAÑO"]
["coa02-comb137 RIOHACHA AEROPUERTO INTERNACIONAL ALMIRANTE PADILLA","comb137","LA GUAJIRA","RIOHACHA","AL ALA","JET A1","AEROPUERTO INTERNACIONAL ALMIRANTE PADILLA","FASTER FUEL S.A.S",6496,"comb137FASTER FUEL S.A.S","LA GUAJIRARIOHACHAAL ALAJET A1AEROPUERTO INTERNACIONAL ALMIRANTE PADILLA"]
["coa02-comb137 RIOHACHA AEROPUERTO INTERNACIONAL ALMIRANTE PADILLA","comb137","LA GUAJIRA","RIOHACHA","AL ALA","JET A1","AEROPUERTO INTERNACIONAL ALMIRANTE PADILLA","GLOBE AIR FUEL S.A.S",6509,"comb137GLOBE AIR FUEL S.A.S","LA GUAJIRARIOHACHAAL ALAJET A1AEROPUERTO INTERNACIONAL ALMIRANTE PADILLA"]
[{"$f":"\"coa02-\"&B323&\" \"&D323&\" \"&G323","v":"coa02-comb137 RIOHACHA AEROPUERTO INTERNACIONAL ALMIRANTE PADILLA"},"comb137","LA GUAJIRA","RIOHACHA","AL ALA","JET A1","AEROPUERTO INTERNACIONAL ALMIRANTE PADILLA","ORGANIZACIÓN TERPEL S.A",6503,{"$f":"B323&H323","v":"comb137ORGANIZACIÓN TERPEL S.A"},{"$f":"$C323&$D323&$E323&$F323&G323","v":"LA GUAJIRARIOHACHAAL ALAJET A1AEROPUERTO INTERNACIONAL ALMIRANTE PADILLA"}]
["coa02-comb137 RIOHACHA AEROPUERTO INTERNACIONAL ALMIRANTE PADILLA","comb137","LA GUAJIRA","RIOHACHA","AL ALA","JET A1","AEROPUERTO INTERNACIONAL ALMIRANTE PADILLA","WORLD FUEL SERVICES COMPANY",6487,"comb137WORLD FUEL SERVICES COMPANY","LA GUAJIRARIOHACHAAL ALAJET A1AEROPUERTO INTERNACIONAL ALMIRANTE PADILLA"]
["coa02-comb138 RIONEGRO COMANDO AÉREO DE COMBATE NO. 5 - CACOM-5 - RIONEGRO - ANTIOQUIA","comb138","ANTIOQUIA","RIONEGRO","A GRANEL","JET A1","COMANDO AÉREO DE COMBATE NO. 5 - CACOM-5 - RIONEGRO - ANTIOQUIA","GLOBE AIR FUEL S.A.S",3381,"comb138GLOBE AIR FUEL S.A.S","ANTIOQUIARIONEGROA GRANELJET A1COMANDO AÉREO DE COMBATE NO. 5 - CACOM-5 - RIONEGRO - ANTIOQUIA"]
["coa02-comb138 RIONEGRO COMANDO AÉREO DE COMBATE NO. 5 - CACOM-5 - RIONEGRO - ANTIOQUIA","comb138","ANTIOQUIA","RIONEGRO","A GRANEL","JET A1","COMANDO AÉREO DE COMBATE NO. 5 - CACOM-5 - RIONEGRO - ANTIOQUIA","ORGANIZACIÓN TERPEL S.A",3376,"comb138ORGANIZACIÓN TERPEL S.A","ANTIOQUIARIONEGROA GRANELJET A1COMANDO AÉREO DE COMBATE NO. 5 - CACOM-5 - RIONEGRO - ANTIOQUIA"]
["coa02-comb139 RIONEGRO AEROPUERTO INTERNACIONAL JOSÉ MARÍA CÓRDOVA","comb139","ANTIOQUIA","RIONEGRO","AL ALA","AV GAS","AEROPUERTO INTERNACIONAL JOSÉ MARÍA CÓRDOVA","FASTER FUEL S.A.S",8944,"comb139FASTER FUEL S.A.S","ANTIOQUIARIONEGROAL ALAAV GASAEROPUERTO INTERNACIONAL JOSÉ MARÍA CÓRDOVA"]
["coa02-comb139 RIONEGRO AEROPUERTO INTERNACIONAL JOSÉ MARÍA CÓRDOVA","comb139","ANTIOQUIA","RIONEGRO","AL ALA","AV GAS","AEROPUERTO INTERNACIONAL JOSÉ MARÍA CÓRDOVA","GLOBE AIR FUEL S.A.S",8962,"comb139GLOBE AIR FUEL S.A.S","ANTIOQUIARIONEGROAL ALAAV GASAEROPUERTO INTERNACIONAL JOSÉ MARÍA CÓRDOVA"]
["coa02-comb139 RIONEGRO AEROPUERTO INTERNACIONAL JOSÉ MARÍA CÓRDOVA","comb139","ANTIOQUIA","RIONEGRO","AL ALA","AV GAS","AEROPUERTO INTERNACIONAL JOSÉ MARÍA CÓRDOVA","ORGANIZACIÓN TERPEL S.A",8956,"comb139ORGANIZACIÓN TERPEL S.A","ANTIOQUIARIONEGROAL ALAAV GASAEROPUERTO INTERNACIONAL JOSÉ MARÍA CÓRDOVA"]
["coa02-comb140 RIONEGRO AEROPUERTO INTERNACIONAL JOSÉ MARÍA CÓRDOVA","comb140","ANTIOQUIA","RIONEGRO","AL ALA","JET A1","AEROPUERTO INTERNACIONAL JOSÉ MARÍA CÓRDOVA","FASTER FUEL S.A.S",5826,"comb140FASTER FUEL S.A.S","ANTIOQUIARIONEGROAL ALAJET A1AEROPUERTO INTERNACIONAL JOSÉ MARÍA CÓRDOVA"]
["coa02-comb140 RIONEGRO AEROPUERTO INTERNACIONAL JOSÉ MARÍA CÓRDOVA","comb140","ANTIOQUIA","RIONEGRO","AL ALA","JET A1","AEROPUERTO INTERNACIONAL JOSÉ MARÍA CÓRDOVA","GLOBE AIR FUEL S.A.S",5835,"comb140GLOBE AIR FUEL S.A.S","ANTIOQUIARIONEGROAL ALAJET A1AEROPUERTO INTERNACIONAL JOSÉ MARÍA CÓRDOVA"]
["coa02-comb140 RIONEGRO AEROPUERTO INTERNACIONAL JOSÉ MARÍA CÓRDOVA","comb140","ANTIOQUIA","RIONEGRO","AL ALA","JET A1","AEROPUERTO INTERNACIONAL JOSÉ MARÍA CÓRDOVA","ORGANIZACIÓN TERPEL S.A",5832,"comb140ORGANIZACIÓN TERPEL S.A","ANTIOQUIARIONEGROAL ALAJET A1AEROPUERTO INTERNACIONAL JOSÉ MARÍA CÓRDOVA"]
["coa02-comb140 RIONEGRO AEROPUERTO INTERNACIONAL JOSÉ MARÍA CÓRDOVA","comb140","ANTIOQUIA","RIONEGRO","AL ALA","JET A1","AEROPUERTO INTERNACIONAL JOSÉ MARÍA CÓRDOVA","WORLD FUEL SERVICES COMPANY",5815,"comb140WORLD FUEL SERVICES COMPANY","ANTIOQUIARIONEGROAL ALAJET A1AEROPUERTO INTERNACIONAL JOSÉ MARÍA CÓRDOVA"]
["coa02-comb141 SAN ANDRÉS AEROPUERTO GUSTAVO ROJAS PINILLA","comb141","SAN ANDRÉS Y PROVIDENCIA","SAN ANDRÉS","AL ALA","JET A1","AEROPUERTO GUSTAVO ROJAS PINILLA","FASTER FUEL S.A.S",8834,"comb141FASTER FUEL S.A.S","SAN ANDRÉS Y PROVIDENCIASAN ANDRÉSAL ALAJET A1AEROPUERTO GUSTAVO ROJAS PINILLA"]
["coa02-comb141 SAN ANDRÉS AEROPUERTO GUSTAVO ROJAS PINILLA","comb141","SAN ANDRÉS Y PROVIDENCIA","SAN ANDRÉS","AL ALA","JET A1","AEROPUERTO GUSTAVO ROJAS PINILLA","GLOBE AIR FUEL S.A.S",8851,"comb141GLOBE AIR FUEL S.A.S","SAN ANDRÉS Y PROVIDENCIASAN ANDRÉSAL ALAJET A1AEROPUERTO GUSTAVO ROJAS PINILLA"]
["coa02-comb141 SAN ANDRÉS AEROPUERTO GUSTAVO ROJAS PINILLA","comb141","SAN ANDRÉS Y PROVIDENCIA","SAN ANDRÉS","AL ALA","JET A1","AEROPUERTO GUSTAVO ROJAS PINILLA","WORLD FUEL SERVICES COMPANY",8829,"comb141WORLD FUEL SERVICES COMPANY","SAN ANDRÉS Y PROVIDENCIASAN ANDRÉSAL ALAJET A1AEROPUERTO GUSTAVO ROJAS PINILLA"]
["coa02-comb142 SAN JOSÉ DEL GUAVIARE BATALLÓN DE APOYO Y SERVICIOS NO. 22","comb142","GUAVIARE","SAN JOSÉ DEL GUAVIARE","A GRANEL","JET A1","BATALLÓN DE APOYO Y SERVICIOS NO. 22","COMBUSTIBLES Y TRANSPORTES HERNANDEZ S.A",5466,"comb142COMBUSTIBLES Y TRANSPORTES HERNANDEZ S.A","GUAVIARESAN JOSÉ DEL GUAVIAREA GRANELJET A1BATALLÓN DE APOYO Y SERVICIOS NO. 22"]
["coa02-comb142 SAN JOSÉ DEL GUAVIARE BATALLÓN DE APOYO Y SERVICIOS NO. 22","comb142","GUAVIARE","SAN JOSÉ DEL GUAVIARE","A GRANEL","JET A1","BATALLÓN DE APOYO Y SERVICIOS NO. 22","FASTER FUEL S.A.S",5458,"comb142FASTER FUEL S.A.S","GUAVIARESAN JOSÉ DEL GUAVIAREA GRANELJET A1BATALLÓN DE APOYO Y SERVICIOS NO. 22"]
["coa02-comb142 SAN JOSÉ DEL GUAVIARE BATALLÓN DE APOYO Y SERVICIOS NO. 22","comb142","GUAVIARE","SAN JOSÉ DEL GUAVIARE","A GRANEL","JET A1","BATALLÓN DE APOYO Y SERVICIOS NO. 22","GLOBE AIR FUEL S.A.S",5468,"comb142GLOBE AIR FUEL S.A.S","GUAVIARESAN JOSÉ DEL GUAVIAREA GRANELJET A1BATALLÓN DE APOYO Y SERVICIOS NO. 22"]
["coa02-comb142 SAN JOSÉ DEL GUAVIARE BATALLÓN DE APOYO Y SERVICIOS NO. 22","comb142","GUAVIARE","SAN JOSÉ DEL GUAVIARE","A GRANEL","JET A1","BATALLÓN DE APOYO Y SERVICIOS NO. 22","ORGANIZACIÓN TERPEL S.A",5463,"comb142ORGANIZACIÓN TERPEL S.A","GUAVIARESAN JOSÉ DEL GUAVIAREA GRANELJET A1BATALLÓN DE APOYO Y SERVICIOS NO. 22"]
["coa02-comb143 SAN JOSÉ DEL GUAVIARE COMPAÑÍA ANTINARCÓTICOS POLICÍA","comb143","GUAVIARE","SAN JOSÉ DEL GUAVIARE","A GRANEL","JET A1","COMPAÑÍA ANTINARCÓTICOS POLICÍA","COMBUSTIBLES Y TRANSPORTES HERNANDEZ S.A",5466,"comb143COMBUSTIBLES Y TRANSPORTES HERNANDEZ S.A","GUAVIARESAN JOSÉ DEL GUAVIAREA GRANELJET A1COMPAÑÍA ANTINARCÓTICOS POLICÍA"]
["coa02-comb143 SAN JOSÉ DEL GUAVIARE COMPAÑÍA ANTINARCÓTICOS POLICÍA","comb143","GUAVIARE","SAN JOSÉ DEL GUAVIARE","A GRANEL","JET A1","COMPAÑÍA ANTINARCÓTICOS POLICÍA","FASTER FUEL S.A.S",5458,"comb143FASTER FUEL S.A.S","GUAVIARESAN JOSÉ DEL GUAVIAREA GRANELJET A1COMPAÑÍA ANTINARCÓTICOS POLICÍA"]
["coa02-comb143 SAN JOSÉ DEL GUAVIARE COMPAÑÍA ANTINARCÓTICOS POLICÍA","comb143","GUAVIARE","SAN JOSÉ DEL GUAVIARE","A GRANEL","JET A1","COMPAÑÍA ANTINARCÓTICOS POLICÍA","GLOBE AIR FUEL S.A.S",5468,"comb143GLOBE AIR FUEL S.A.S","GUAVIARESAN JOSÉ DEL GUAVIAREA GRANELJET A1COMPAÑÍA ANTINARCÓTICOS POLICÍA"]
["coa02-comb143 SAN JOSÉ DEL GUAVIARE COMPAÑÍA ANTINARCÓTICOS POLICÍA","comb143","GUAVIARE","SAN JOSÉ DEL GUAVIARE","A GRANEL","JET A1","COMPAÑÍA ANTINARCÓTICOS POLICÍA","ORGANIZACIÓN TERPEL S.A",5463,"comb143ORGANIZACIÓN TERPEL S.A","GUAVIARESAN JOSÉ DEL GUAVIAREA GRANELJET A1COMPAÑÍA ANTINARCÓTICOS POLICÍA"]
["coa02-comb144 SAN JOSÉ DEL GUAVIARE AEROPUERTO JORGE ENRIQUE GONZÁLEZ TORRES","comb144","GUAVIARE","SAN JOSÉ DEL GUAVIARE","AL ALA","AV GAS","AEROPUERTO JORGE ENRIQUE GONZÁLEZ TORRES","COMBUSTIBLES Y TRANSPORTES HERNANDEZ S.A",8851,"comb144COMBUSTIBLES Y TRANSPORTES HERNANDEZ S.A","GUAVIARESAN JOSÉ DEL GUAVIAREAL ALAAV GASAEROPUERTO JORGE ENRIQUE GONZÁLEZ TORRES"]
["coa02-comb145 SAN JOSÉ DEL GUAVIARE AEROPUERTO JORGE ENRIQUE GONZÁLEZ TORRES","comb145","GUAVIARE","SAN JOSÉ DEL GUAVIARE","AL ALA","JET A1","AEROPUERTO JORGE ENRIQUE GONZÁLEZ TORRES","COMBUSTIBLES Y TRANSPORTES HERNANDEZ S.A",6019,"comb145COMBUSTIBLES Y TRANSPORTES HERNANDEZ S.A","GUAVIARESAN JOSÉ DEL GUAVIAREAL ALAJET A1AEROPUERTO JORGE ENRIQUE GONZÁLEZ TORRES"]
["coa02-comb145 SAN JOSÉ DEL GUAVIARE AEROPUERTO JORGE ENRIQUE GONZÁLEZ TORRES","comb145","GUAVIARE","SAN JOSÉ DEL GUAVIARE","AL ALA","JET A1","AEROPUERTO JORGE ENRIQUE GONZÁLEZ TORRES","FASTER FUEL S.A.S",6017,"comb145FASTER FUEL S.A.S","GUAVIARESAN JOSÉ DEL GUAVIAREAL ALAJET A1AEROPUERTO JORGE ENRIQUE GONZÁLEZ TORRES"]
["coa02-comb145 SAN JOSÉ DEL GUAVIARE AEROPUERTO JORGE ENRIQUE GONZÁLEZ TORRES","comb145","GUAVIARE","SAN JOSÉ DEL GUAVIARE","AL ALA","JET A1","AEROPUERTO JORGE ENRIQUE GONZÁLEZ TORRES","WORLD FUEL SERVICES COMPANY",6007,"comb145WORLD FUEL SERVICES COMPANY","GUAVIARESAN JOSÉ DEL GUAVIAREAL ALAJET A1AEROPUERTO JORGE ENRIQUE GONZÁLEZ TORRES"]
["coa02-comb146 SAN JOSÉ DEL GUAVIARE AEROPUERTO JORGE ENRIQUE GONZÁLEZ TORRES","comb146","GUAVIARE","SAN JOSÉ DEL GUAVIARE","A GRANEL","JET A1","AEROPUERTO JORGE ENRIQUE GONZÁLEZ TORRES","COMBUSTIBLES Y TRANSPORTES HERNANDEZ S.A",5532,"comb146COMBUSTIBLES Y TRANSPORTES HERNANDEZ S.A","GUAVIARESAN JOSÉ DEL GUAVIAREA GRANELJET A1AEROPUERTO JORGE ENRIQUE GONZÁLEZ TORRES"]
["coa02-comb146 SAN JOSÉ DEL GUAVIARE AEROPUERTO JORGE ENRIQUE GONZÁLEZ TORRES","comb146","GUAVIARE","SAN JOSÉ DEL GUAVIARE","A GRANEL","JET A1","AEROPUERTO JORGE ENRIQUE GONZÁLEZ TORRES","FASTER FUEL S.A.S",5521,"comb146FASTER FUEL S.A.S","GUAVIARESAN JOSÉ DEL GUAVIAREA GRANELJET A1AEROPUERTO JORGE ENRIQUE GONZÁLEZ TORRES"]
["coa02-comb146 SAN JOSÉ DEL GUAVIARE AEROPUERTO JORGE ENRIQUE GONZÁLEZ TORRES","comb146","GUAVIARE","SAN JOSÉ DEL GUAVIARE","A GRANEL","JET A1","AEROPUERTO JORGE ENRIQUE GONZÁLEZ TORRES","GLOBE AIR FUEL S.A.S",5530,"comb146GLOBE AIR FUEL S.A.S","GUAVIARESAN JOSÉ DEL GUAVIAREA GRANELJET A1AEROPUERTO JORGE ENRIQUE GONZÁLEZ TORRES"]
["coa02-comb147 SAN VICENTE DEL CAGUÁN AEROPUERTO EDUARDO FALLA SOLANO","comb147","CAQUETÁ","SAN VICENTE DEL CAGUÁN","AL ALA","JET A1","AEROPUERTO EDUARDO FALLA SOLANO","COMBUSTIBLES Y TRANSPORTES HERNANDEZ S.A",6074,"comb147COMBUSTIBLES Y TRANSPORTES HERNANDEZ S.A","CAQUETÁSAN VICENTE DEL CAGUÁNAL ALAJET A1AEROPUERTO EDUARDO FALLA SOLANO"]
["coa02-comb148 SAN VICENTE DEL CAGUÁN AEROPUERTO EDUARDO FALLA SOLANO","comb148","CAQUETÁ","SAN VICENTE DEL CAGUÁN","A GRANEL","JET A1","AEROPUERTO EDUARDO FALLA SOLANO","COMBUSTIBLES Y TRANSPORTES HERNANDEZ S.A",6638,"comb148COMBUSTIBLES Y TRANSPORTES HERNANDEZ S.A","CAQUETÁSAN VICENTE DEL CAGUÁNA GRANELJET A1AEROPUERTO EDUARDO FALLA SOLANO"]
["coa02-comb149 SAN VICENTE DEL CAGUÁN AEROPUERTO EDUARDO FALLA SOLANO","comb149","CAQUETÁ","SAN VICENTE DEL CAGUÁN","AL ALA","AV GAS","AEROPUERTO EDUARDO FALLA SOLANO","COMBUSTIBLES Y TRANSPORTES HERNANDEZ S.A",10179,"comb149COMBUSTIBLES Y TRANSPORTES HERNANDEZ S.A","CAQUETÁSAN VICENTE DEL CAGUÁNAL ALAAV GASAEROPUERTO EDUARDO FALLA SOLANO"]
["coa02-comb150 SANTA ANA BATALLÓN DE ARTILLERÍA NO. 27 \"GR. LUIS ERNESTO ORDOÑEZ CASTILLO\"","comb150","PUTUMAYO","SANTA ANA","A GRANEL","JET A1","BATALLÓN DE ARTILLERÍA NO. 27 \"GR. LUIS ERNESTO ORDOÑEZ CASTILLO\"","COMBUSTIBLES Y TRANSPORTES HERNANDEZ S.A",5388,"comb150COMBUSTIBLES Y TRANSPORTES HERNANDEZ S.A","PUTUMAYOSANTA ANAA GRANELJET A1BATALLÓN DE ARTILLERÍA NO. 27 \"GR. LUIS ERNESTO ORDOÑEZ CASTILLO\""]
["coa02-comb150 SANTA ANA BATALLÓN DE ARTILLERÍA NO. 27 \"GR. LUIS ERNESTO ORDOÑEZ CASTILLO\"","comb150","PUTUMAYO","SANTA ANA","A GRANEL","JET A1","BATALLÓN DE ARTILLERÍA NO. 27 \"GR. LUIS ERNESTO ORDOÑEZ CASTILLO\"","FASTER FUEL S.A.S",5380,"comb150FASTER FUEL S.A.S","PUTUMAYOSANTA ANAA GRANELJET A1BATALLÓN DE ARTILLERÍA NO. 27 \"GR. LUIS ERNESTO ORDOÑEZ CASTILLO\""]
["coa02-comb151 SANTA MARTA FUERTE MILITAR SAN FERNANDO / COMPAÑÍA ANTINARCÓTICOS POLICÍA","comb151","MAGDALENA","SANTA MARTA","A GRANEL","JET A1","FUERTE MILITAR SAN FERNANDO / COMPAÑÍA ANTINARCÓTICOS POLICÍA","COMBUSTIBLES Y TRANSPORTES HERNANDEZ S.A",4448,"comb151COMBUSTIBLES Y TRANSPORTES HERNANDEZ S.A","MAGDALENASANTA MARTAA GRANELJET A1FUERTE MILITAR SAN FERNANDO / COMPAÑÍA ANTINARCÓTICOS POLICÍA"]
["coa02-comb151 SANTA MARTA FUERTE MILITAR SAN FERNANDO / COMPAÑÍA ANTINARCÓTICOS POLICÍA","comb151","MAGDALENA","SANTA MARTA","A GRANEL","JET A1","FUERTE MILITAR SAN FERNANDO / COMPAÑÍA ANTINARCÓTICOS POLICÍA","FASTER FUEL S.A.S",4442,"comb151FASTER FUEL S.A.S","MAGDALENASANTA MARTAA GRANELJET A1FUERTE MILITAR SAN FERNANDO / COMPAÑÍA ANTINARCÓTICOS POLICÍA"]
["coa02-comb151 SANTA MARTA FUERTE MILITAR SAN FERNANDO / COMPAÑÍA ANTINARCÓTICOS POLICÍA","comb151","MAGDALENA","SANTA MARTA","A GRANEL","JET A1","FUERTE MILITAR SAN FERNANDO / COMPAÑÍA ANTINARCÓTICOS POLICÍA","GLOBE AIR FUEL S.A.S",4451,"comb151GLOBE AIR FUEL S.A.S","MAGDALENASANTA MARTAA GRANELJET A1FUERTE MILITAR SAN FERNANDO / COMPAÑÍA ANTINARCÓTICOS POLICÍA"]
["coa02-comb151 SANTA MARTA FUERTE MILITAR SAN FERNANDO / COMPAÑÍA ANTINARCÓTICOS POLICÍA","comb151","MAGDALENA","SANTA MARTA","A GRANEL","JET A1","FUERTE MILITAR SAN FERNANDO / COMPAÑÍA ANTINARCÓTICOS POLICÍA","ORGANIZACIÓN TERPEL S.A",4446,"comb151ORGANIZACIÓN TERPEL S.A","MAGDALENASANTA MARTAA GRANELJET A1FUERTE MILITAR SAN FERNANDO / COMPAÑÍA ANTINARCÓTICOS POLICÍA"]
["coa02-comb152 SANTA MARTA AEROPUERTO INTERNACIONAL SIMÓN BOLÍVAR","comb152","MAGDALENA","SANTA MARTA","AL ALA","AV GAS","AEROPUERTO INTERNACIONAL SIMÓN BOLÍVAR","FASTER FUEL S.A.S",8245,"comb152FASTER FUEL S.A.S","MAGDALENASANTA MARTAAL ALAAV GASAEROPUERTO INTERNACIONAL SIMÓN BOLÍVAR"]
["coa02-comb152 SANTA MARTA AEROPUERTO INTERNACIONAL SIMÓN BOLÍVAR","comb152","MAGDALENA","SANTA MARTA","AL ALA","AV GAS","AEROPUERTO INTERNACIONAL SIMÓN BOLÍVAR","GLOBE AIR FUEL S.A.S",8261,"comb152GLOBE AIR FUEL S.A.S","MAGDALENASANTA MARTAAL ALAAV GASAEROPUERTO INTERNACIONAL SIMÓN BOLÍVAR"]
["coa02-comb152 SANTA MARTA AEROPUERTO INTERNACIONAL SIMÓN BOLÍVAR","comb152","MAGDALENA","SANTA MARTA","AL ALA","AV GAS","AEROPUERTO INTERNACIONAL SIMÓN BOLÍVAR","ORGANIZACIÓN TERPEL S.A",8256,"comb152ORGANIZACIÓN TERPEL S.A","MAGDALENASANTA MARTAAL ALAAV GASAEROPUERTO INTERNACIONAL SIMÓN BOLÍVAR"]
["coa02-comb153 SANTA MARTA AEROPUERTO INTERNACIONAL SIMÓN BOLÍVAR","comb153","MAGDALENA","SANTA MARTA","AL ALA","JET A1","AEROPUERTO INTERNACIONAL SIMÓN BOLÍVAR","FASTER FUEL S.A.S",5319,"comb153FASTER FUEL S.A.S","MAGDALENASANTA MARTAAL ALAJET A1AEROPUERTO INTERNACIONAL SIMÓN BOLÍVAR"]
["coa02-comb153 SANTA MARTA AEROPUERTO INTERNACIONAL SIMÓN BOLÍVAR","comb153","MAGDALENA","SANTA MARTA","AL ALA","JET A1","AEROPUERTO INTERNACIONAL SIMÓN BOLÍVAR","GLOBE AIR FUEL S.A.S",5328,"comb153GLOBE AIR FUEL S.A.S","MAGDALENASANTA MARTAAL ALAJET A1AEROPUERTO INTERNACIONAL SIMÓN BOLÍVAR"]
["coa02-comb153 SANTA MARTA AEROPUERTO INTERNACIONAL SIMÓN BOLÍVAR","comb153","MAGDALENA","SANTA MARTA","AL ALA","JET A1","AEROPUERTO INTERNACIONAL SIMÓN BOLÍVAR","ORGANIZACIÓN TERPEL S.A",5324,"comb153ORGANIZACIÓN TERPEL S.A","MAGDALENASANTA MARTAAL ALAJET A1AEROPUERTO INTERNACIONAL SIMÓN BOLÍVAR"]
["coa02-comb153 SANTA MARTA AEROPUERTO INTERNACIONAL SIMÓN BOLÍVAR","comb153","MAGDALENA","SANTA MARTA","AL ALA","JET A1","AEROPUERTO INTERNACIONAL SIMÓN BOLÍVAR","WORLD FUEL SERVICES COMPANY",5307,"comb153WORLD FUEL SERVICES COMPANY","MAGDALENASANTA MARTAAL ALAJET A1AEROPUERTO INTERNACIONAL SIMÓN BOLÍVAR"]
["coa02-comb154 SANTA ROSA DEL SUR BATALLÓN DE SELVA NO. 48 \"PRÓCER MANUEL RODRÍGUEZ TORICES\"","comb154","BOLÍVAR","SANTA ROSA DEL SUR","A GRANEL","JET A1","BATALLÓN DE SELVA NO. 48 \"PRÓCER MANUEL RODRÍGUEZ TORICES\"","FASTER FUEL S.A.S",5411,"comb154FASTER FUEL S.A.S","BOLÍVARSANTA ROSA DEL SURA GRANELJET A1BATALLÓN DE SELVA NO. 48 \"PRÓCER MANUEL RODRÍGUEZ TORICES\""]
["coa02-comb154 SANTA ROSA DEL SUR BATALLÓN DE SELVA NO. 48 \"PRÓCER MANUEL RODRÍGUEZ TORICES\"","comb154","BOLÍVAR","SANTA ROSA DEL SUR","A GRANEL","JET A1","BATALLÓN DE SELVA NO. 48 \"PRÓCER MANUEL RODRÍGUEZ TORICES\"","GLOBE AIR FUEL S.A.S",5421,"comb154GLOBE AIR FUEL S.A.S","BOLÍVARSANTA ROSA DEL SURA GRANELJET A1BATALLÓN DE SELVA NO. 48 \"PRÓCER MANUEL RODRÍGUEZ TORICES\""]
["coa02-comb154 SANTA ROSA DEL SUR BATALLÓN DE SELVA NO. 48 \"PRÓCER MANUEL RODRÍGUEZ TORICES\"","comb154","BOLÍVAR","SANTA ROSA DEL SUR","A GRANEL","JET A1","BATALLÓN DE SELVA NO. 48 \"PRÓCER MANUEL RODRÍGUEZ TORICES\"","ORGANIZACIÓN TERPEL S.A",5416,"comb154ORGANIZACIÓN TERPEL S.A","BOLÍVARSANTA ROSA DEL SURA GRANELJET A1BATALLÓN DE SELVA NO. 48 \"PRÓCER MANUEL RODRÍGUEZ TORICES\""]
["coa02-comb155 SARAVENA AEROPUERTO LOS COLONIZADORES","comb155","ARAUCA","SARAVENA","AL ALA","JET A1","AEROPUERTO LOS COLONIZADORES","COMBUSTIBLES Y TRANSPORTES HERNANDEZ S.A",7192,"comb155COMBUSTIBLES Y TRANSPORTES HERNANDEZ S.A","ARAUCASARAVENAAL ALAJET A1AEROPUERTO LOS COLONIZADORES"]
["coa02-comb156 SARAVENA BATALLÓN DE MOVILIDAD Y MANIOBRA NO 8","comb156","ARAUCA","SARAVENA","A GRANEL","JET A1","BATALLÓN DE MOVILIDAD Y MANIOBRA NO 8","COMBUSTIBLES Y TRANSPORTES HERNANDEZ S.A",5373,"comb156COMBUSTIBLES Y TRANSPORTES HERNANDEZ S.A","ARAUCASARAVENAA GRANELJET A1BATALLÓN DE MOVILIDAD Y MANIOBRA NO 8"]
["coa02-comb157 SEGOVIA BATALLÓN ESPECIAL ENERGÉTICO Y VIAL NO. 8 \"MY. MARIO SERPA CUESTO\"","comb157","ANTIOQUIA","SEGOVIA","A GRANEL","JET A1","BATALLÓN ESPECIAL ENERGÉTICO Y VIAL NO. 8 \"MY. MARIO SERPA CUESTO\"","COMBUSTIBLES Y TRANSPORTES HERNANDEZ S.A",5477,"comb157COMBUSTIBLES Y TRANSPORTES HERNANDEZ S.A","ANTIOQUIASEGOVIAA GRANELJET A1BATALLÓN ESPECIAL ENERGÉTICO Y VIAL NO. 8 \"MY. MARIO SERPA CUESTO\""]
["coa02-comb157 SEGOVIA BATALLÓN ESPECIAL ENERGÉTICO Y VIAL NO. 8 \"MY. MARIO SERPA CUESTO\"","comb157","ANTIOQUIA","SEGOVIA","A GRANEL","JET A1","BATALLÓN ESPECIAL ENERGÉTICO Y VIAL NO. 8 \"MY. MARIO SERPA CUESTO\"","GLOBE AIR FUEL S.A.S",5477,"comb157GLOBE AIR FUEL S.A.S","ANTIOQUIASEGOVIAA GRANELJET A1BATALLÓN ESPECIAL ENERGÉTICO Y VIAL NO. 8 \"MY. MARIO SERPA CUESTO\""]
["coa02-comb157 SEGOVIA BATALLÓN ESPECIAL ENERGÉTICO Y VIAL NO. 8 \"MY. MARIO SERPA CUESTO\"","comb157","ANTIOQUIA","SEGOVIA","A GRANEL","JET A1","BATALLÓN ESPECIAL ENERGÉTICO Y VIAL NO. 8 \"MY. MARIO SERPA CUESTO\"","ORGANIZACIÓN TERPEL S.A",5471,"comb157ORGANIZACIÓN TERPEL S.A","ANTIOQUIASEGOVIAA GRANELJET A1BATALLÓN ESPECIAL ENERGÉTICO Y VIAL NO. 8 \"MY. MARIO SERPA CUESTO\""]
["coa02-comb158 TAME BATALLÓN DE INGENIEROS NO. 18 \"GR. RAFAEL NAVAS PARDO\"","comb158","ARAUCA","TAME","A GRANEL","JET A1","BATALLÓN DE INGENIEROS NO. 18 \"GR. RAFAEL NAVAS PARDO\"","COMBUSTIBLES Y TRANSPORTES HERNANDEZ S.A",5753,"comb158COMBUSTIBLES Y TRANSPORTES HERNANDEZ S.A","ARAUCATAMEA GRANELJET A1BATALLÓN DE INGENIEROS NO. 18 \"GR. RAFAEL NAVAS PARDO\""]
["coa02-comb158 TAME BATALLÓN DE INGENIEROS NO. 18 \"GR. RAFAEL NAVAS PARDO\"","comb158","ARAUCA","TAME","A GRANEL","JET A1","BATALLÓN DE INGENIEROS NO. 18 \"GR. RAFAEL NAVAS PARDO\"","FASTER FUEL S.A.S",5759,"comb158FASTER FUEL S.A.S","ARAUCATAMEA GRANELJET A1BATALLÓN DE INGENIEROS NO. 18 \"GR. RAFAEL NAVAS PARDO\""]
["coa02-comb159 TAME AEROPUERTO GABRIEL VARGAS SANTOS","comb159","ARAUCA","TAME","AL ALA","JET A1","AEROPUERTO GABRIEL VARGAS SANTOS","COMBUSTIBLES Y TRANSPORTES HERNANDEZ S.A",7192,"comb159COMBUSTIBLES Y TRANSPORTES HERNANDEZ S.A","ARAUCATAMEAL ALAJET A1AEROPUERTO GABRIEL VARGAS SANTOS"]
["coa02-comb160 TARAZÁ BATALLÓN DE OPERACIONES TERRESTRES #24","comb160","ANTIOQUIA","TARAZÁ","A GRANEL","JET A1","BATALLÓN DE OPERACIONES TERRESTRES #24","FASTER FUEL S.A.S",5487,"comb160FASTER FUEL S.A.S","ANTIOQUIATARAZÁA GRANELJET A1BATALLÓN DE OPERACIONES TERRESTRES #24"]
["coa02-comb160 TARAZÁ BATALLÓN DE OPERACIONES TERRESTRES #24","comb160","ANTIOQUIA","TARAZÁ","A GRANEL","JET A1","BATALLÓN DE OPERACIONES TERRESTRES #24","GLOBE AIR FUEL S.A.S",5498,"comb160GLOBE AIR FUEL S.A.S","ANTIOQUIATARAZÁA GRANELJET A1BATALLÓN DE OPERACIONES TERRESTRES #24"]
["coa02-comb161 TRES ESQUINAS COMANDO AÉREO DE COMBATE NO. 6 - CACOM-6 - TRES ESQUINAS - CAQUETÁ","comb161","CAQUETÁ","TRES ESQUINAS","A GRANEL","JET A1","COMANDO AÉREO DE COMBATE NO. 6 - CACOM-6 - TRES ESQUINAS - CAQUETÁ","FASTER FUEL S.A.S",103436,"comb161FASTER FUEL S.A.S","CAQUETÁTRES ESQUINASA GRANELJET A1COMANDO AÉREO DE COMBATE NO. 6 - CACOM-6 - TRES ESQUINAS - CAQUETÁ"]
["coa02-comb162 TUCURINCA BASE MILITAR DE TUCURINCA","comb162","MAGDALENA","TUCURINCA","A GRANEL","JET A1","BASE MILITAR DE TUCURINCA","GLOBE AIR FUEL S.A.S",5576,"comb162GLOBE AIR FUEL S.A.S","MAGDALENATUCURINCAA GRANELJET A1BASE MILITAR DE TUCURINCA"]
["coa02-comb162 TUCURINCA BASE MILITAR DE TUCURINCA","comb162","MAGDALENA","TUCURINCA","A GRANEL","JET A1","BASE MILITAR DE TUCURINCA","ORGANIZACIÓN TERPEL S.A",5571,"comb162ORGANIZACIÓN TERPEL S.A","MAGDALENATUCURINCAA GRANELJET A1BASE MILITAR DE TUCURINCA"]
["coa02-comb163 TULUÁ COMPAÑÍA ANTINARCÓTICOS POLICÍA","comb163","VALLE DEL CAUCA","TULUÁ","A GRANEL","JET A1","COMPAÑÍA ANTINARCÓTICOS POLICÍA","COMBUSTIBLES Y TRANSPORTES HERNANDEZ S.A",5466,"comb163COMBUSTIBLES Y TRANSPORTES HERNANDEZ S.A","VALLE DEL CAUCATULUÁA GRANELJET A1COMPAÑÍA ANTINARCÓTICOS POLICÍA"]
["coa02-comb163 TULUÁ COMPAÑÍA ANTINARCÓTICOS POLICÍA","comb163","VALLE DEL CAUCA","TULUÁ","A GRANEL","JET A1","COMPAÑÍA ANTINARCÓTICOS POLICÍA","FASTER FUEL S.A.S",5466,"comb163FASTER FUEL S.A.S","VALLE DEL CAUCATULUÁA GRANELJET A1COMPAÑÍA ANTINARCÓTICOS POLICÍA"]
["coa02-comb163 TULUÁ COMPAÑÍA ANTINARCÓTICOS POLICÍA","comb163","VALLE DEL CAUCA","TULUÁ","A GRANEL","JET A1","COMPAÑÍA ANTINARCÓTICOS POLICÍA","GLOBE AIR FUEL S.A.S",5477,"comb163GLOBE AIR FUEL S.A.S","VALLE DEL CAUCATULUÁA GRANELJET A1COMPAÑÍA ANTINARCÓTICOS POLICÍA"]
[{"$f":"\"coa02-\"&B387&\" \"&D387&\" \"&G387","v":"coa02-comb163 TULUÁ COMPAÑÍA ANTINARCÓTICOS POLICÍA"},"comb163","VALLE DEL CAUCA","TULUÁ","A GRANEL","JET A1","COMPAÑÍA ANTINARCÓTICOS POLICÍA","ORGANIZACIÓN TERPEL S.A",5471,{"$f":"B387&H387","v":"comb163ORGANIZACIÓN TERPEL S.A"},{"$f":"$C387&$D387&$E387&$F387&G387","v":"VALLE DEL CAUCATULUÁA GRANELJET A1COMPAÑÍA ANTINARCÓTICOS POLICÍA"}]
["coa02-comb164 TULUÁ AEROPUERTO HERIBERTO GIL MARTÍNEZ ","comb164","VALLE DEL CAUCA","TULUÁ","A GRANEL","AV GAS","AEROPUERTO HERIBERTO GIL MARTÍNEZ ","GLOBE AIR FUEL S.A.S",5700,"comb164GLOBE AIR FUEL S.A.S","VALLE DEL CAUCATULUÁA GRANELAV GASAEROPUERTO HERIBERTO GIL MARTÍNEZ "]
["coa02-comb165 TUMACO COMPAÑÍA ANTINARCÓTICOS POLICÍA","comb165","NARIÑO","TUMACO","A GRANEL","JET A1","COMPAÑÍA ANTINARCÓTICOS POLICÍA","GLOBE AIR FUEL S.A.S",6386,"comb165GLOBE AIR FUEL S.A.S","NARIÑOTUMACOA GRANELJET A1COMPAÑÍA ANTINARCÓTICOS POLICÍA"]
["coa02-comb166 TUMACO AEROPUERTO LA FLORIDA","comb166","NARIÑO","TUMACO","AL ALA","JET A1","AEROPUERTO LA FLORIDA","WORLD FUEL SERVICES COMPANY",19163,"comb166WORLD FUEL SERVICES COMPANY","NARIÑOTUMACOAL ALAJET A1AEROPUERTO LA FLORIDA"]
["coa02-comb167 TUMACO FUERZA DE TAREA HÉRCULES.","comb167","NARIÑO","TUMACO","A GRANEL","JET A1","FUERZA DE TAREA HÉRCULES.","GLOBE AIR FUEL S.A.S",6386,"comb167GLOBE AIR FUEL S.A.S","NARIÑOTUMACOA GRANELJET A1FUERZA DE TAREA HÉRCULES."]
["coa02-comb168 TUMACO BATALLÓN DE INFANTERÍA NO 4","comb168","NARIÑO","TUMACO","A GRANEL","JET A1","BATALLÓN DE INFANTERÍA NO 4","GLOBE AIR FUEL S.A.S",6386,"comb168GLOBE AIR FUEL S.A.S","NARIÑOTUMACOA GRANELJET A1BATALLÓN DE INFANTERÍA NO 4"]
["coa02-comb169 URIBIA AEROPUERTO PUERTO BOLÍVAR","comb169","LA GUAJIRA","URIBIA","A GRANEL","JET A1","AEROPUERTO PUERTO BOLÍVAR","GLOBE AIR FUEL S.A.S",5193,"comb169GLOBE AIR FUEL S.A.S","LA GUAJIRAURIBIAA GRANELJET A1AEROPUERTO PUERTO BOLÍVAR"]
["coa02-comb169 URIBIA AEROPUERTO PUERTO BOLÍVAR","comb169","LA GUAJIRA","URIBIA","A GRANEL","JET A1","AEROPUERTO PUERTO BOLÍVAR","ORGANIZACIÓN TERPEL S.A",5188,"comb169ORGANIZACIÓN TERPEL S.A","LA GUAJIRAURIBIAA GRANELJET A1AEROPUERTO PUERTO BOLÍVAR"]
["coa02-comb170 URRAO BATALLÓN NUTIBARA BASE MILITAR BUENOS AIRES","comb170","ANTIOQUIA","URRAO","A GRANEL","JET A1","BATALLÓN NUTIBARA BASE MILITAR BUENOS AIRES","GLOBE AIR FUEL S.A.S",5337,"comb170GLOBE AIR FUEL S.A.S","ANTIOQUIAURRAOA GRANELJET A1BATALLÓN NUTIBARA BASE MILITAR BUENOS AIRES"]
["coa02-comb170 URRAO BATALLÓN NUTIBARA BASE MILITAR BUENOS AIRES","comb170","ANTIOQUIA","URRAO","A GRANEL","JET A1","BATALLÓN NUTIBARA BASE MILITAR BUENOS AIRES","ORGANIZACIÓN TERPEL S.A",5332,"comb170ORGANIZACIÓN TERPEL S.A","ANTIOQUIAURRAOA GRANELJET A1BATALLÓN NUTIBARA BASE MILITAR BUENOS AIRES"]
["coa02-comb171 VALLEDUPAR BATALLÓN DE ARTILLERÍA NO. 2 LA POPA","comb171","CESAR","VALLEDUPAR","A GRANEL","JET A1","BATALLÓN DE ARTILLERÍA NO. 2 LA POPA","COMBUSTIBLES Y TRANSPORTES HERNANDEZ S.A",4968,"comb171COMBUSTIBLES Y TRANSPORTES HERNANDEZ S.A","CESARVALLEDUPARA GRANELJET A1BATALLÓN DE ARTILLERÍA NO. 2 LA POPA"]
["coa02-comb171 VALLEDUPAR BATALLÓN DE ARTILLERÍA NO. 2 LA POPA","comb171","CESAR","VALLEDUPAR","A GRANEL","JET A1","BATALLÓN DE ARTILLERÍA NO. 2 LA POPA","GLOBE AIR FUEL S.A.S",4968,"comb171GLOBE AIR FUEL S.A.S","CESARVALLEDUPARA GRANELJET A1BATALLÓN DE ARTILLERÍA NO. 2 LA POPA"]
["coa02-comb171 VALLEDUPAR BATALLÓN DE ARTILLERÍA NO. 2 LA POPA","comb171","CESAR","VALLEDUPAR","A GRANEL","JET A1","BATALLÓN DE ARTILLERÍA NO. 2 LA POPA","ORGANIZACIÓN TERPEL S.A",4962,"comb171ORGANIZACIÓN TERPEL S.A","CESARVALLEDUPARA GRANELJET A1BATALLÓN DE ARTILLERÍA NO. 2 LA POPA"]
["coa02-comb172 VALLEDUPAR AEROPUERTO ALFONSO LÓPEZ PUMAREJO","comb172","CESAR","VALLEDUPAR","AL ALA","AV GAS","AEROPUERTO ALFONSO LÓPEZ PUMAREJO","FASTER FUEL S.A.S",11577,"comb172FASTER FUEL S.A.S","CESARVALLEDUPARAL ALAAV GASAEROPUERTO ALFONSO LÓPEZ PUMAREJO"]
["coa02-comb172 VALLEDUPAR AEROPUERTO ALFONSO LÓPEZ PUMAREJO","comb172","CESAR","VALLEDUPAR","AL ALA","AV GAS","AEROPUERTO ALFONSO LÓPEZ PUMAREJO","GLOBE AIR FUEL S.A.S",11601,"comb172GLOBE AIR FUEL S.A.S","CESARVALLEDUPARAL ALAAV GASAEROPUERTO ALFONSO LÓPEZ PUMAREJO"]
["coa02-comb172 VALLEDUPAR AEROPUERTO ALFONSO LÓPEZ PUMAREJO","comb172","CESAR","VALLEDUPAR","AL ALA","AV GAS","AEROPUERTO ALFONSO LÓPEZ PUMAREJO","ORGANIZACIÓN TERPEL S.A",11595,"comb172ORGANIZACIÓN TERPEL S.A","CESARVALLEDUPARAL ALAAV GASAEROPUERTO ALFONSO LÓPEZ PUMAREJO"]
["coa02-comb173 VALLEDUPAR AEROPUERTO ALFONSO LÓPEZ PUMAREJO","comb173","CESAR","VALLEDUPAR","AL ALA","JET A1","AEROPUERTO ALFONSO LÓPEZ PUMAREJO","FASTER FUEL S.A.S",9922,"comb173FASTER FUEL S.A.S","CESARVALLEDUPARAL ALAJET A1AEROPUERTO ALFONSO LÓPEZ PUMAREJO"]
["coa02-comb173 VALLEDUPAR AEROPUERTO ALFONSO LÓPEZ PUMAREJO","comb173","CESAR","VALLEDUPAR","AL ALA","JET A1","AEROPUERTO ALFONSO LÓPEZ PUMAREJO","GLOBE AIR FUEL S.A.S",9940,"comb173GLOBE AIR FUEL S.A.S","CESARVALLEDUPARAL ALAJET A1AEROPUERTO ALFONSO LÓPEZ PUMAREJO"]
["coa02-comb173 VALLEDUPAR AEROPUERTO ALFONSO LÓPEZ PUMAREJO","comb173","CESAR","VALLEDUPAR","AL ALA","JET A1","AEROPUERTO ALFONSO LÓPEZ PUMAREJO","ORGANIZACIÓN TERPEL S.A",9937,"comb173ORGANIZACIÓN TERPEL S.A","CESARVALLEDUPARAL ALAJET A1AEROPUERTO ALFONSO LÓPEZ PUMAREJO"]
["coa02-comb173 VALLEDUPAR AEROPUERTO ALFONSO LÓPEZ PUMAREJO","comb173","CESAR","VALLEDUPAR","AL ALA","JET A1","AEROPUERTO ALFONSO LÓPEZ PUMAREJO","WORLD FUEL SERVICES COMPANY",9920,"comb173WORLD FUEL SERVICES COMPANY","CESARVALLEDUPARAL ALAJET A1AEROPUERTO ALFONSO LÓPEZ PUMAREJO"]
["coa02-comb174 VILLAGARZÓN COMPAÑÍA ANTINARCÓTICOS POLICÍA","comb174","PUTUMAYO","VILLAGARZÓN","A GRANEL","JET A1","COMPAÑÍA ANTINARCÓTICOS POLICÍA","COMBUSTIBLES Y TRANSPORTES HERNANDEZ S.A",5333,"comb174COMBUSTIBLES Y TRANSPORTES HERNANDEZ S.A","PUTUMAYOVILLAGARZÓNA GRANELJET A1COMPAÑÍA ANTINARCÓTICOS POLICÍA"]
["coa02-comb174 VILLAGARZÓN COMPAÑÍA ANTINARCÓTICOS POLICÍA","comb174","PUTUMAYO","VILLAGARZÓN","A GRANEL","JET A1","COMPAÑÍA ANTINARCÓTICOS POLICÍA","GLOBE AIR FUEL S.A.S",5333,"comb174GLOBE AIR FUEL S.A.S","PUTUMAYOVILLAGARZÓNA GRANELJET A1COMPAÑÍA ANTINARCÓTICOS POLICÍA"]
["coa02-comb175 VILLAGARZÓN AEROPUERTO VILLA GARZÓN","comb175","PUTUMAYO","VILLAGARZÓN","A GRANEL","JET A1","AEROPUERTO VILLA GARZÓN","COMBUSTIBLES Y TRANSPORTES HERNANDEZ S.A",7590,"comb175COMBUSTIBLES Y TRANSPORTES HERNANDEZ S.A","PUTUMAYOVILLAGARZÓNA GRANELJET A1AEROPUERTO VILLA GARZÓN"]
["coa02-comb175 VILLAGARZÓN AEROPUERTO VILLA GARZÓN","comb175","PUTUMAYO","VILLAGARZÓN","A GRANEL","JET A1","AEROPUERTO VILLA GARZÓN","GLOBE AIR FUEL S.A.S",7590,"comb175GLOBE AIR FUEL S.A.S","PUTUMAYOVILLAGARZÓNA GRANELJET A1AEROPUERTO VILLA GARZÓN"]
["coa02-comb176 VILLAGARZÓN AEROPUERTO CANANGUCHAL","comb176","PUTUMAYO","VILLAGARZÓN","AL ALA","JET A1","AEROPUERTO CANANGUCHAL","COMBUSTIBLES Y TRANSPORTES HERNANDEZ S.A",6638,"comb176COMBUSTIBLES Y TRANSPORTES HERNANDEZ S.A","PUTUMAYOVILLAGARZÓNAL ALAJET A1AEROPUERTO CANANGUCHAL"]
["coa02-comb177 VILLAVICENCIO AEROPUERTO VANGUARDIA","comb177","META","VILLAVICENCIO","AL ALA","AV GAS","AEROPUERTO VANGUARDIA","FASTER FUEL S.A.S",9717,"comb177FASTER FUEL S.A.S","METAVILLAVICENCIOAL ALAAV GASAEROPUERTO VANGUARDIA"]
["coa02-comb177 VILLAVICENCIO AEROPUERTO VANGUARDIA","comb177","META","VILLAVICENCIO","AL ALA","AV GAS","AEROPUERTO VANGUARDIA","GLOBE AIR FUEL S.A.S",9736,"comb177GLOBE AIR FUEL S.A.S","METAVILLAVICENCIOAL ALAAV GASAEROPUERTO VANGUARDIA"]
["coa02-comb177 VILLAVICENCIO AEROPUERTO VANGUARDIA","comb177","META","VILLAVICENCIO","AL ALA","AV GAS","AEROPUERTO VANGUARDIA","ORGANIZACIÓN TERPEL S.A",9731,"comb177ORGANIZACIÓN TERPEL S.A","METAVILLAVICENCIOAL ALAAV GASAEROPUERTO VANGUARDIA"]
["coa02-comb178 VILLAVICENCIO AEROPUERTO VANGUARDIA","comb178","META","VILLAVICENCIO","AL ALA","JET A1","AEROPUERTO VANGUARDIA","FASTER FUEL S.A.S",8281,"comb178FASTER FUEL S.A.S","METAVILLAVICENCIOAL ALAJET A1AEROPUERTO VANGUARDIA"]
["coa02-comb178 VILLAVICENCIO AEROPUERTO VANGUARDIA","comb178","META","VILLAVICENCIO","AL ALA","JET A1","AEROPUERTO VANGUARDIA","GLOBE AIR FUEL S.A.S",8292,"comb178GLOBE AIR FUEL S.A.S","METAVILLAVICENCIOAL ALAJET A1AEROPUERTO VANGUARDIA"]
["coa02-comb178 VILLAVICENCIO AEROPUERTO VANGUARDIA","comb178","META","VILLAVICENCIO","AL ALA","JET A1","AEROPUERTO VANGUARDIA","ORGANIZACIÓN TERPEL S.A",8292,"comb178ORGANIZACIÓN TERPEL S.A","METAVILLAVICENCIOAL ALAJET A1AEROPUERTO VANGUARDIA"]
["coa02-comb178 VILLAVICENCIO AEROPUERTO VANGUARDIA","comb178","META","VILLAVICENCIO","AL ALA","JET A1","AEROPUERTO VANGUARDIA","WORLD FUEL SERVICES COMPANY",8276,"comb178WORLD FUEL SERVICES COMPANY","METAVILLAVICENCIOAL ALAJET A1AEROPUERTO VANGUARDIA"]
["coa02-comb179 VISTA HERMOSA BATALLÓN DE OPERACIONES TERRESTRES NO. 6","comb179","META","VISTA HERMOSA","A GRANEL","JET A1","BATALLÓN DE OPERACIONES TERRESTRES NO. 6","COMBUSTIBLES Y TRANSPORTES HERNANDEZ S.A",4381,"comb179COMBUSTIBLES Y TRANSPORTES HERNANDEZ S.A","METAVISTA HERMOSAA GRANELJET A1BATALLÓN DE OPERACIONES TERRESTRES NO. 6"]
["coa02-comb180 YOPAL BATALLÓN DE SERVICIOS NO. 16","comb180","CASANARE","YOPAL","A GRANEL","JET A1","BATALLÓN DE SERVICIOS NO. 16","COMBUSTIBLES Y TRANSPORTES HERNANDEZ S.A",5167,"comb180COMBUSTIBLES Y TRANSPORTES HERNANDEZ S.A","CASANAREYOPALA GRANELJET A1BATALLÓN DE SERVICIOS NO. 16"]
["coa02-comb180 YOPAL BATALLÓN DE SERVICIOS NO. 16","comb180","CASANARE","YOPAL","A GRANEL","JET A1","BATALLÓN DE SERVICIOS NO. 16","FASTER FUEL S.A.S",5162,"comb180FASTER FUEL S.A.S","CASANAREYOPALA GRANELJET A1BATALLÓN DE SERVICIOS NO. 16"]
["coa02-comb180 YOPAL BATALLÓN DE SERVICIOS NO. 16","comb180","CASANARE","YOPAL","A GRANEL","JET A1","BATALLÓN DE SERVICIOS NO. 16","GLOBE AIR FUEL S.A.S",5167,"comb180GLOBE AIR FUEL S.A.S","CASANAREYOPALA GRANELJET A1BATALLÓN DE SERVICIOS NO. 16"]
["coa02-comb180 YOPAL BATALLÓN DE SERVICIOS NO. 16","comb180","CASANARE","YOPAL","A GRANEL","JET A1","BATALLÓN DE SERVICIOS NO. 16","ORGANIZACIÓN TERPEL S.A",5167,"comb180ORGANIZACIÓN TERPEL S.A","CASANAREYOPALA GRANELJET A1BATALLÓN DE SERVICIOS NO. 16"]
["coa02-comb181 YOPAL AEROPUERTO EL ALCARAVÁN","comb181","CASANARE","YOPAL","A GRANEL","JET A1","AEROPUERTO EL ALCARAVÁN","GLOBE AIR FUEL S.A.S",13310,"comb181GLOBE AIR FUEL S.A.S","CASANAREYOPALA GRANELJET A1AEROPUERTO EL ALCARAVÁN"]
["coa02-comb182 YOPAL AEROPUERTO EL ALCARAVÁN","comb182","CASANARE","YOPAL","AL ALA","JET A1","AEROPUERTO EL ALCARAVÁN","GLOBE AIR FUEL S.A.S",11697,"comb182GLOBE AIR FUEL S.A.S","CASANAREYOPALAL ALAJET A1AEROPUERTO EL ALCARAVÁN"]
["coa02-comb182 YOPAL AEROPUERTO EL ALCARAVÁN","comb182","CASANARE","YOPAL","AL ALA","JET A1","AEROPUERTO EL ALCARAVÁN","ORGANIZACIÓN TERPEL S.A",11694,"comb182ORGANIZACIÓN TERPEL S.A","CASANAREYOPALAL ALAJET A1AEROPUERTO EL ALCARAVÁN"]
["coa02-comb182 YOPAL AEROPUERTO EL ALCARAVÁN","comb182","CASANARE","YOPAL","AL ALA","JET A1","AEROPUERTO EL ALCARAVÁN","WORLD FUEL SERVICES COMPANY",11677,"comb182WORLD FUEL SERVICES COMPANY","CASANAREYOPALAL ALAJET A1AEROPUERTO EL ALCARAVÁN"]
["coa02-comb183 YOPAL GRUPO AÉREO DEL CASANARE - GACAS - YOPAL - CASANARE","comb183","CASANARE","YOPAL","A GRANEL","JET A1","GRUPO AÉREO DEL CASANARE - GACAS - YOPAL - CASANARE","COMBUSTIBLES Y TRANSPORTES HERNANDEZ S.A",5200,"comb183COMBUSTIBLES Y TRANSPORTES HERNANDEZ S.A","CASANAREYOPALA GRANELJET A1GRUPO AÉREO DEL CASANARE - GACAS - YOPAL - CASANARE"]
["coa02-comb183 YOPAL GRUPO AÉREO DEL CASANARE - GACAS - YOPAL - CASANARE","comb183","CASANARE","YOPAL","A GRANEL","JET A1","GRUPO AÉREO DEL CASANARE - GACAS - YOPAL - CASANARE","FASTER FUEL S.A.S",5200,"comb183FASTER FUEL S.A.S","CASANAREYOPALA GRANELJET A1GRUPO AÉREO DEL CASANARE - GACAS - YOPAL - CASANARE"]
["coa02-comb183 YOPAL GRUPO AÉREO DEL CASANARE - GACAS - YOPAL - CASANARE","comb183","CASANARE","YOPAL","A GRANEL","JET A1","GRUPO AÉREO DEL CASANARE - GACAS - YOPAL - CASANARE","GLOBE AIR FUEL S.A.S",5200,"comb183GLOBE AIR FUEL S.A.S","CASANAREYOPALA GRANELJET A1GRUPO AÉREO DEL CASANARE - GACAS - YOPAL - CASANARE"]
["coa02-comb183 YOPAL GRUPO AÉREO DEL CASANARE - GACAS - YOPAL - CASANARE","comb183","CASANARE","YOPAL","A GRANEL","JET A1","GRUPO AÉREO DEL CASANARE - GACAS - YOPAL - CASANARE","ORGANIZACIÓN TERPEL S.A",5177,"comb183ORGANIZACIÓN TERPEL S.A","CASANAREYOPALA GRANELJET A1GRUPO AÉREO DEL CASANARE - GACAS - YOPAL - CASANARE"]

{"sheet":"TempCalculos","index":8,"n_rows":0,"n_cols":0,"rows_kept":0,"cut":false,"hidden":true,"merged":[]}

{"sheet":"Evaluar","index":9,"n_rows":21,"n_cols":2,"rows_kept":21,"cut":false,"hidden":false,"merged":[[0,0,0,16],[20,1,20,16]]}
["EVALUACIÓN"]
[]
[]
[]
[]
[]
[]
[]
[]
[]
[]
[]
[]
[]
[]
[]
[]
[]
[]
[]
[null,"Consolidación y Evaluación de las Ofertas"]

{"sheet":"Listas","index":10,"n_rows":34,"n_cols":2,"rows_kept":34,"cut":false,"hidden":true,"merged":[]}
["DEPARTAMENTO","Proveedores"]
["AMAZONAS"]
["ANTIOQUIA"]
["ARAUCA"]
["ATLÁNTICO"]
["BOGOTÁ D.C."]
["BOLÍVAR"]
["BOYACÁ"]
["CALDAS"]
["CAQUETÁ"]
["CASANARE"]
["CAUCA"]
["CESAR"]
["CHOCÓ"]
["CORDOBA"]
["CUNDINAMARCA"]
["GUAINÍA"]
["GUAVIARE"]
["HUILA"]
["LA GUAJIRA"]
["MAGDALENA"]
["META"]
["NARIÑO"]
["NORTE DE SANTANDER"]
["PUTUMAYO"]
["QUINDÍO"]
["RISARALDA"]
["SAN ANDRÉS Y PROVIDENCIA"]
["SANTANDER"]
["SUCRE"]
["TOLIMA"]
["VALLE DEL CAUCA"]
["VAUPÉS"]
["VICHADA"]

{"sheet":"DatosCCE","index":11,"n_rows":7,"n_cols":2,"rows_kept":7,"cut":false,"hidden":true,"merged":[]}
["Campo","Valor"]
["INGRESO AL PRODUCTOR USD/GLN",2.5055800000000001]
["IVA USD/GLN",0.19]
["TRM Promedio semanal",3964.88]
["IMPUESTO AL CARBONO\n$/GLN",254.22]
["IVA $/GLN",0.19]
["INGRESO AL PRODUCTOR AV GAS",18617.63]

{"sheet":"Parametros","index":12,"n_rows":14,"n_cols":4,"rows_kept":14,"cut":false,"hidden":true,"merged":[[0,1,0,3],[1,1,1,3]]}
["Directorio",{"$f":"Evaluar!C2","v":0}]
["Nombre de la Pestaña","OfertaEconomica"]
["Separar por Segmento","UNICA"]
["Nombre del Proveedor","UNICA","F",19]
["comb50Total","UNICA","AH",24]
["comb66Total","UNICA","AH",25]
["comb72Total","UNICA","AH",26]
["comb74Total","UNICA","AH",27]
["comb91Total","UNICA","AH",28]
["comb50","UNICA","AI",24]
["comb66","UNICA","AI",25]
["comb72","UNICA","AI",26]
["comb74","UNICA","AI",27]
["comb91","UNICA","AI",28]

{"sheet":"ConsolidadoEva","index":13,"n_rows":5,"n_cols":12,"rows_kept":5,"cut":false,"hidden":true,"merged":[]}
["Nombre del Proveedor","comb50Total","comb66Total","comb72Total","comb74Total","comb91Total","comb50","comb66","comb72","comb74","comb91","PATH"]
["COMBUSTIBLES Y TRANSPORTES HERNANDEZ S.A",5690.94,{"$error":"#N/A"},3865.18,{"$error":"#N/A"},{"$error":"#N/A"},17854.11,{"$error":"#N/A"},16028.35,{"$error":"#N/A"},{"$error":"#N/A"},"D:\\Efra\\CCE\\2024\\Ejecución\\Simuladores_Excel\\GLPI\\1127715 (Comb_aviacion)\\respuestas\\1_227.amp-combustiblesaviacion_g2_v05_2-04-2024.xlsm"]
["FASTER FUEL S.A.S",5390.34,{"$error":"#N/A"},3662.82,24168.19,9342.33,17564.46,{"$error":"#N/A"},15836.94,36342.31,21516.45,"D:\\Efra\\CCE\\2024\\Ejecución\\Simuladores_Excel\\GLPI\\1127715 (Comb_aviacion)\\respuestas\\2_227.amp-combustiblesaviacion_g2_v05_2-04-2024.xlsm"]
["GLOBE AIR FUEL S.A.S",5098.97,4346.42,3466.41,22872.04,{"$error":"#N/A"},17284.04,16531.490000000002,15651.48,35057.11,{"$error":"#N/A"},"D:\\Efra\\CCE\\2024\\Ejecución\\Simuladores_Excel\\GLPI\\1127715 (Comb_aviacion)\\respuestas\\3_227.amp-combustiblesaviacion_g2_v05_2-04-2024.xlsm"]
["WORLD FUEL SERVICES COMPANY",{"$error":"#N/A"},{"$error":"#N/A"},2896.16,{"$error":"#N/A"},{"$error":"#N/A"},{"$error":"#N/A"},{"$error":"#N/A"},15103.13,{"$error":"#N/A"},{"$error":"#N/A"},"D:\\Efra\\CCE\\2024\\Ejecución\\Simuladores_Excel\\GLPI\\1127715 (Comb_aviacion)\\respuestas\\4_227.amp-combustiblesaviacion_g2_v05_2-04-2024.xlsm"]

{"sheet":"Empates","index":14,"n_rows":6,"n_cols":8,"rows_kept":6,"cut":false,"hidden":true,"merged":[]}
["Alimentos","AlimentosxGE","COMBUSTIBLES Y TRANSPORTES HERNANDEZ S.A","FASTER FUEL S.A.S","GLOBE AIR FUEL S.A.S","WORLD FUEL SERVICES COMPANY","Minimo","Empates"]
["comb50","comb50",{"$f":"IF(VLOOKUP($A2&\"Total\",CalculosEva!$B$2:$F$12,MATCH(C$1,CalculosEva!$B$1:$F$1,0),0)=0,\"\",VLOOKUP($A2&\"Total\",CalculosEva!$B$2:$F$12,MATCH(C$1,CalculosEva!$B$1:$F$1,0),0))","v":5690.94},{"$f":"IF(VLOOKUP($A2&\"Total\",CalculosEva!$B$2:$F$12,MATCH(D$1,CalculosEva!$B$1:$F$1,0),0)=0,\"\",VLOOKUP($A2&\"Total\",CalculosEva!$B$2:$F$12,MATCH(D$1,CalculosEva!$B$1:$F$1,0),0))","v":5390.34},{"$f":"IF(VLOOKUP($A2&\"Total\",CalculosEva!$B$2:$F$12,MATCH(E$1,CalculosEva!$B$1:$F$1,0),0)=0,\"\",VLOOKUP($A2&\"Total\",CalculosEva!$B$2:$F$12,MATCH(E$1,CalculosEva!$B$1:$F$1,0),0))","v":5098.97},{"$f":"IF(VLOOKUP($A2&\"Total\",CalculosEva!$B$2:$F$12,MATCH(F$1,CalculosEva!$B$1:$F$1,0),0)=0,\"\",VLOOKUP($A2&\"Total\",CalculosEva!$B$2:$F$12,MATCH(F$1,CalculosEva!$B$1:$F$1,0),0))","v":""},{"$f":"MIN($B2:F2)","v":5098.97},{"$f":"COUNTIF($C2:F2,G2)","v":1}]
["comb66","comb66",{"$f":"IF(VLOOKUP($A3&\"Total\",CalculosEva!$B$2:$F$12,MATCH(C$1,CalculosEva!$B$1:$F$1,0),0)=0,\"\",VLOOKUP($A3&\"Total\",CalculosEva!$B$2:$F$12,MATCH(C$1,CalculosEva!$B$1:$F$1,0),0))","v":""},{"$f":"IF(VLOOKUP($A3&\"Total\",CalculosEva!$B$2:$F$12,MATCH(D$1,CalculosEva!$B$1:$F$1,0),0)=0,\"\",VLOOKUP($A3&\"Total\",CalculosEva!$B$2:$F$12,MATCH(D$1,CalculosEva!$B$1:$F$1,0),0))","v":""},{"$f":"IF(VLOOKUP($A3&\"Total\",CalculosEva!$B$2:$F$12,MATCH(E$1,CalculosEva!$B$1:$F$1,0),0)=0,\"\",VLOOKUP($A3&\"Total\",CalculosEva!$B$2:$F$12,MATCH(E$1,CalculosEva!$B$1:$F$1,0),0))","v":4346.42},{"$f":"IF(VLOOKUP($A3&\"Total\",CalculosEva!$B$2:$F$12,MATCH(F$1,CalculosEva!$B$1:$F$1,0),0)=0,\"\",VLOOKUP($A3&\"Total\",CalculosEva!$B$2:$F$12,MATCH(F$1,CalculosEva!$B$1:$F$1,0),0))","v":""},{"$f":"MIN($B3:F3)","v":4346.42},{"$f":"COUNTIF($C3:F3,G3)","v":1}]
["comb72","comb72",{"$f":"IF(VLOOKUP($A4&\"Total\",CalculosEva!$B$2:$F$12,MATCH(C$1,CalculosEva!$B$1:$F$1,0),0)=0,\"\",VLOOKUP($A4&\"Total\",CalculosEva!$B$2:$F$12,MATCH(C$1,CalculosEva!$B$1:$F$1,0),0))","v":3865.18},{"$f":"IF(VLOOKUP($A4&\"Total\",CalculosEva!$B$2:$F$12,MATCH(D$1,CalculosEva!$B$1:$F$1,0),0)=0,\"\",VLOOKUP($A4&\"Total\",CalculosEva!$B$2:$F$12,MATCH(D$1,CalculosEva!$B$1:$F$1,0),0))","v":3662.82},{"$f":"IF(VLOOKUP($A4&\"Total\",CalculosEva!$B$2:$F$12,MATCH(E$1,CalculosEva!$B$1:$F$1,0),0)=0,\"\",VLOOKUP($A4&\"Total\",CalculosEva!$B$2:$F$12,MATCH(E$1,CalculosEva!$B$1:$F$1,0),0))","v":3466.41},{"$f":"IF(VLOOKUP($A4&\"Total\",CalculosEva!$B$2:$F$12,MATCH(F$1,CalculosEva!$B$1:$F$1,0),0)=0,\"\",VLOOKUP($A4&\"Total\",CalculosEva!$B$2:$F$12,MATCH(F$1,CalculosEva!$B$1:$F$1,0),0))","v":2896.16},{"$f":"MIN($B4:F4)","v":2896.16},{"$f":"COUNTIF($C4:F4,G4)","v":1}]
["comb74","comb74",{"$f":"IF(VLOOKUP($A5&\"Total\",CalculosEva!$B$2:$F$12,MATCH(C$1,CalculosEva!$B$1:$F$1,0),0)=0,\"\",VLOOKUP($A5&\"Total\",CalculosEva!$B$2:$F$12,MATCH(C$1,CalculosEva!$B$1:$F$1,0),0))","v":""},{"$f":"IF(VLOOKUP($A5&\"Total\",CalculosEva!$B$2:$F$12,MATCH(D$1,CalculosEva!$B$1:$F$1,0),0)=0,\"\",VLOOKUP($A5&\"Total\",CalculosEva!$B$2:$F$12,MATCH(D$1,CalculosEva!$B$1:$F$1,0),0))","v":24168.19},{"$f":"IF(VLOOKUP($A5&\"Total\",CalculosEva!$B$2:$F$12,MATCH(E$1,CalculosEva!$B$1:$F$1,0),0)=0,\"\",VLOOKUP($A5&\"Total\",CalculosEva!$B$2:$F$12,MATCH(E$1,CalculosEva!$B$1:$F$1,0),0))","v":22872.04},{"$f":"IF(VLOOKUP($A5&\"Total\",CalculosEva!$B$2:$F$12,MATCH(F$1,CalculosEva!$B$1:$F$1,0),0)=0,\"\",VLOOKUP($A5&\"Total\",CalculosEva!$B$2:$F$12,MATCH(F$1,CalculosEva!$B$1:$F$1,0),0))","v":""},{"$f":"MIN($B5:F5)","v":22872.04},{"$f":"COUNTIF($C5:F5,G5)","v":1}]
["comb91","comb91",{"$f":"IF(VLOOKUP($A6&\"Total\",CalculosEva!$B$2:$F$12,MATCH(C$1,CalculosEva!$B$1:$F$1,0),0)=0,\"\",VLOOKUP($A6&\"Total\",CalculosEva!$B$2:$F$12,MATCH(C$1,CalculosEva!$B$1:$F$1,0),0))","v":""},{"$f":"IF(VLOOKUP($A6&\"Total\",CalculosEva!$B$2:$F$12,MATCH(D$1,CalculosEva!$B$1:$F$1,0),0)=0,\"\",VLOOKUP($A6&\"Total\",CalculosEva!$B$2:$F$12,MATCH(D$1,CalculosEva!$B$1:$F$1,0),0))","v":9342.33},{"$f":"IF(VLOOKUP($A6&\"Total\",CalculosEva!$B$2:$F$12,MATCH(E$1,CalculosEva!$B$1:$F$1,0),0)=0,\"\",VLOOKUP($A6&\"Total\",CalculosEva!$B$2:$F$12,MATCH(E$1,CalculosEva!$B$1:$F$1,0),0))","v":""},{"$f":"IF(VLOOKUP($A6&\"Total\",CalculosEva!$B$2:$F$12,MATCH(F$1,CalculosEva!$B$1:$F$1,0),0)=0,\"\",VLOOKUP($A6&\"Total\",CalculosEva!$B$2:$F$12,MATCH(F$1,CalculosEva!$B$1:$F$1,0),0))","v":""},{"$f":"MIN($B6:F6)","v":9342.33},{"$f":"COUNTIF($C6:F6,G6)","v":1}]

{"sheet":"CalculosEva","index":15,"n_rows":12,"n_cols":6,"rows_kept":12,"cut":false,"hidden":true,"merged":[]}
["Alimentos","AlimentosxGE","COMBUSTIBLES Y TRANSPORTES HERNANDEZ S.A","FASTER FUEL S.A.S","GLOBE AIR FUEL S.A.S","WORLD FUEL SERVICES COMPANY"]
[{"$error":"#N/A"},"comb50Total",5690.94,5390.34,5098.97]
[{"$error":"#N/A"},"comb66Total",null,null,4346.42]
[{"$error":"#N/A"},"comb72Total",3865.18,3662.82,3466.41,2896.16]
[{"$error":"#N/A"},"comb74Total",null,24168.19,22872.04]
[{"$error":"#N/A"},"comb91Total",null,9342.33]
["comb50","comb50",17854.11,17564.46,17284.04]
["comb66","comb66",null,null,16531.490000000002]
["comb72","comb72",16028.35,15836.94,15651.48,15103.13]
["comb74","comb74",null,36342.31,35057.11]
["comb91","comb91",null,21516.45]
[null,"PATH","D:\\Efra\\CCE\\2024\\Ejecución\\Simuladores_Excel\\GLPI\\1127715 (Comb_aviacion)\\respuestas\\1_227.amp-combustiblesaviacion_g2_v05_2-04-2024.xlsm","D:\\Efra\\CCE\\2024\\Ejecución\\Simuladores_Excel\\GLPI\\1127715 (Comb_aviacion)\\respuestas\\2_227.amp-combustiblesaviacion_g2_v05_2-04-2024.xlsm","D:\\Efra\\CCE\\2024\\Ejecución\\Simuladores_Excel\\GLPI\\1127715 (Comb_aviacion)\\respuestas\\3_227.amp-combustiblesaviacion_g2_v05_2-04-2024.xlsm","D:\\Efra\\CCE\\2024\\Ejecución\\Simuladores_Excel\\GLPI\\1127715 (Comb_aviacion)\\respuestas\\4_227.amp-combustiblesaviacion_g2_v05_2-04-2024.xlsm"]

{"sheet":"ListasEmpates","index":16,"n_rows":0,"n_cols":0,"rows_kept":0,"cut":false,"hidden":true,"merged":[]}

{"sheet":"ListasAutomaticas","index":17,"n_rows":16,"n_cols":2469,"rows_kept":16,"cut":false,"hidden":true,"merged":[]}
["GAlimentos","1Modalidad","1DetalleModalidad","1Puntosdetanqueo","1Puntosdetanqueo","2DetalleModalidad","2Puntosdetanqueo","2Puntosdetanqueo","3DetalleModalidad","3Puntosdetanqueo","3Puntosdetanqueo","4DetalleModalidad","4Puntosdetanqueo","4Puntosdetanqueo","5DetalleModalidad","5Puntosdetanqueo","5Puntosdetanqueo","6DetalleModalidad","6Puntosdetanqueo","7Modalidad","7DetalleModalidad","7Puntosdetanqueo","8Modalidad","8DetalleModalidad","8Puntosdetanqueo","9Modalidad","9DetalleModalidad","9Puntosdetanqueo","10Modalidad","10DetalleModalidad","10Puntosdetanqueo","11Modalidad","11DetalleModalidad","11Puntosdetanqueo","12Modalidad","12DetalleModalidad","12Puntosdetanqueo","13Modalidad","13DetalleModalidad","13Puntosdetanqueo","14Modalidad","14DetalleModalidad","14Puntosdetanqueo","15Modalidad","15DetalleModalidad","15Puntosdetanqueo","16Modalidad","16DetalleModalidad","16Puntosdetanqueo","16Puntosdetanqueo","17DetalleModalidad","17Puntosdetanqueo","18Modalidad","18DetalleModalidad","18Puntosdetanqueo","19Modalidad","19DetalleModalidad","19Puntosdetanqueo","20Modalidad","20DetalleModalidad","20Puntosdetanqueo","21Modalidad","21DetalleModalidad","21Puntosdetanqueo","22Modalidad","22DetalleModalidad","22Puntosdetanqueo","23Modalidad","23DetalleModalidad","23Puntosdetanqueo","24Modalidad","24DetalleModalidad","24Puntosdetanqueo","25Modalidad","25DetalleModalidad","25Puntosdetanqueo","26Modalidad","26DetalleModalidad","26Puntosdetanqueo","27Modalidad","27DetalleModalidad","27Puntosdetanqueo","28Modalidad","28DetalleModalidad","28Puntosdetanqueo","29Modalidad","29DetalleModalidad","29Puntosdetanqueo","30Modalidad","30DetalleModalidad","30Puntosdetanqueo",null,null,null,null,null,null,null,null,null,null,null,null,null,null,null,null,null,null,null,null,null,null,null,null,null,null,null,null,null,null,null,null,null,null,null,null,null,null,null,null,null,null,null,null,null,null,null,null,null,null,null,null,null,null,null,null,null,null,null,null,null,null,null,null,null,null,null,null,null,null,null,null,null,null,null,null,null,null,null,null,null,null,null,null,null,null,null,null,null,null,null,null,null,null,null,null,null,null,null,null,null,null,null,null,null,null,null,null,null,null,null,null,null,null,null,null,null,null,null,null,null,null,null,null,null,null,null,null,null,null,null,null,null,null,null,null,null,null,null,null,null,null,null,null,null,null,null,null,null,null,null,null,null,null,null,null,null,null,null,null,null,null,null,null,null,null,null,null,null,null,null,null,null,null,null,null,null,null,null,null,null,null,null,null,null,null,null,null,null,null,null,null,null,null,null,null,null,null,null,null,null,null,null,null,null,null,null,null,null,null,null,null,null,null,null,null,null,null,null,null,null,null,null,null,null,null,null,null,null,null,null,null,null,null,null,null,null,null,null,null,null,null,null,null,null,null,null,null,null,null,null,null,null,null,null,null,null,null,null,null,null,null,null,null,null,null,null,null,null,null,null,null,null,null,null,null,null,null,null,null,null,null,null,null,null,null,null,null,null,null,null,null,null,null,null,null,null,null,null,null,null,null,null,null,null,null,null,null,null,null,null,null,null,null,null,null,null,null,null,null,null,null,null,null,null,null,null,null,null,null,null,null,null,null,null,null,null,null,null,null,null,null,null,null,null,null,null,null,null,null,null,null,null,null,null,null,null,null,null,null,null,null,null,null,null,null,null,null,null,null,null,null,null,null,null,null,null,null,null,null,null,null,null,null,null,null,null,null,null,null,null,null,null,null,null,null,null,null,null,null,null,null,null,null,null,null,null,null,null,null,null,null,null,null,null,null,null,null,null,null,null,null,null,null,null,null,null,null,null,null,null,null,null,null,null,null,null,null,null,null,null,null,null,null,null,null,null,null,null,null,null,null,null,null,null,null,null,null,null,null,null,null,null,null,null,null,null,null,null,null,null,null,null,null,null,null,null,null,null,null,null,null,null,null,null,null,null,null,null,null,null,null,null,null,null,null,null,null,null,null,null,null,null,null,null,null,null,null,null,null,null,null,null,null,null,null,null,null,null,null,null,null,null,null,null,null,null,null,null,null,null,null,null,null,null,null,null,null,null,null,null,null,null,null,null,null,null,null,null,null,null,null,null,null,null,null,null,null,null,null,null,null,null,null,null,null,null,null,null,null,null,null,null,null,null,null,null,null,null,null,null,null,null,null,null,null,null,null,null,null,null,null,null,null,null,null,null,null,null,null,null,null,null,null,null,null,null,null,null,null,null,null,null,null,null,null,null,null,null,null,null,null,null,null,null,null,null,null,null,null,null,null,null,null,null,null,null,null,null,null,null,null,null,null,null,null,null,null,null,null,null,null,null,null,null,null,null,null,null,null,null,null,null,null,null,null,null,null,null,null,null,null,null,null,null,null,null,null,null,null,null,null,null,null,null,null,null,null,null,null,null,null,null,null,null,null,null,null,null,null,null,null,null,null,null,null,null,null,null,null,null,null,null,null,null,null,null,null,null,null,null,null,null,null,null,null,null,null,null,null,null,null,null,null,null,null,null,null,null,null,null,null,null,null,null,null,null,null,null,null,null,null,null,null,null,null,null,null,null,null,null,null,null,null,null,null,null,null,null,null,null,null,null,null,null,null,null,null,null,null,null,null,null,null,null,null,null,null,null,null,null,null,null,null,null,null,null,null,null,null,null,null,null,null,null,null,null,null,null,null,null,null,null,null,null,null,null,null,null,null,null,null,null,null,null,null,null,null,null,null,null,null,null,null,null,null,null,null,null,null,null,null,null,null,null,null,null,null,null,null,null,null,null,null,null,null,null,null,null,null,null,null,null,null,null,null,null,null,null,null,null,null,null,null,null,null,null,null,null,null,null,null,null,null,null,null,null,null,null,null,null,null,null,null,null,null,null,null,null,null,null,null,null,null,null,null,null,null,null,null,null,null,null,null,null,null,null,null,null,null,null,null,null,null,null,null,null,null,null,null,null,null,null,null,null,null,null,null,null,null,null,null,null,null,null,null,null,null,null,null,null,null,null,null,null,null,null,null,null,null,null,null,null,null,null,null,null,null,null,null,null,null,null,null,null,null,null,null,null,null,null,null,null,null,null,null,null,null,null,null,null,null,null,null,null,null,null,null,null,null,null,null,null,null,null,null,null,null,null,null,null,null,null,null,null,null,null,null,null,null,null,null,null,null,null,null,null,null,null,null,null,null,null,null,null,null,null,null,null,null,null,null,null,null,null,null,null,null,null,null,null,null,null,null,null,null,null,null,null,null,null,null,null,null,null,null,null,null,null,null,null,null,null,null,null,null,null,null,null,null,null,null,null,null,null,null,null,null,null,null,null,null,null,null,null,null,null,null,null,null,null,null,null,null,null,null,null,null,null,null,null,null,null,null,null,null,null,null,null,null,null,null,null,null,null,null,null,null,null,null,null,null,null,null,null,null,null,null,null,null,null,null,null,null,null,null,null,null,null,null,null,null,null,null,null,null,null,null,null,null,null,null,null,null,null,null,null,null,null,null,null,null,null,null,null,null,null,null,null,null,null,null,null,null,null,null,null,null,null,null,null,null,null,null,null,null,null,null,null,null,null,null,null,null,null,null,null,null,null,null,null,null,null,null,null,null,null,null,null,null,null,null,null,null,null,null,null,null,null,null,null,null,null,null,null,null,null,null,null,null,null,null,null,null,null,null,null,null,null,null,null,null,null,null,null,null,null,null,null,null,null,null,null,null,null,null,null,null,null,null,null,null,null,null,null,null,null,null,null,null,null,null,null,null,null,null,null,null,null,null,null,null,null,null,null,null,null,null,null,null,null,null,null,null,null,null,null,null,null,null,null,null,null,null,null,null,null,null,null,null,null,null,null,null,null,null,null,null,null,null,null,null,null,null,null,null,null,null,null,null,null,null,null,null,null,null,null,null,null,null,null,null,null,null,null,null,null,null,null,null,null,null,null,null,null,null,null,null,null,null,null,null,null,null,null,null,null,null,null,null,null,null,null,null,null,null,null,null,null,null,null,null,null,null,null,null,null,null,null,null,null,null,null,null,null,null,null,null,null,null,null,null,null,null,null,null,null,null,null,null,null,null,null,null,null,null,null,null,null,null,null,null,null,null,null,null,null,null,null,null,null,null,null,null,null,null,null,null,null,null,null,null,null,null,null,null,null,null,null,null,null,null,null,null,null,null,null,null,null,null,null,null,null,null,null,null,null,null,null,null,null,null,null,null,null,null,null,null,null,null,null,null,null,null,null,null,null,null,null,null,null,null,null,null,null,null,null,null,null,null,null,null,null,null,null,null,null,null,null,null,null,null,null,null,null,null,null,null,null,null,null,null,null,null,null,null,null,null,null,null,null,null,null,null,null,null,null,null,null,null,null,null,null,null,null,null,null,null,null,null,null,null,null,null,null,null,null,null,null,null,null,null,null,null,null,null,null,null,null,null,null,null,null,null,null,null,null,null,null,null,null,null,null,null,null,null,null,null,null,null,null,null,null,null,null,null,null,null,null,null,null,null,null,null,null,null,null,null,null,null,null,null,null,null,null,null,null,null,null,null,null,null,null,null,null,null,null,null,null,null,null,null,null,null,null,null,null,null,null,null,null,null,null,null,null,null,null,null,null,null,null,null,null,null,null,null,null,null,null,null,null,null,null,null,null,null,null,null,null,null,null,null,null,null,null,null,null,null,null,null,null,null,null,null,null,null,null,null,null,null,null,null,null,null,null,null,null,null,null,null,null,null,null,null,null,null,null,null,null,null,null,null,null,null,null,null,null,null,null,null,null,null,null,null,null,null,null,null,null,null,null,null,null,null,null,null,null,null,null,null,null,null,null,null,null,null,null,null,null,null,null,null,null,null,null,null,null,null,null,null,null,null,null,null,null,null,null,null,null,null,null,null,null,null,null,null,null,null,null,null,null,null,null,null,null,null,null,null,null,null,null,null,null,null,null,null,null,null,null,null,null,null,null,null,null,null,null,null,null,null,null,null,null,null,null,null,null,null,null,null,null,null,null,null,null,null,null,null,null,null,null,null,null,null,null,null,null,null,null,null,null,null,null,null,null,null,null,null,null,null,null,null,null,null,null,null,null,null,null,null,null,null,null,null,null,null,null,null,null,null,null,null,null,null,null,null,null,null,null,null,null,null,null,null,null,null,null,null,null,null,null,null,null,null,null,null,null,null,null,null,null,null,null,null,null,null,null,null,null,null,null,null,null,null,null,null,null,null,null,null,null,null,null,null,null,null,null,null,null,null,null,null,null,null,null,null,null,null,null,null,null,null,null,null,null,null,null,null,null,null,null,null,null,null,null,null,null,null,null,null,null,null,null,null,null,null,null,null,null,null,null,null,null,null,null,null,null,null,null,null,null,null,null,null,null,null,null,null,null,null,null,null,null,null,null,null,null,null,null,null,null,null,null,null,null,null,null,null,null,null,null,null,null,null,null,null,null,null,null,null,null,null,null,null,null,null,null,null,null,null,null,null,null,null,null,null,null,null,null,null,null,null,null,null,null,null,null,null,null,null,null,null,null,null,null,null,null,null,null,null,null,null,null,null,null,null,null,null,null,null,null,null,null,null,null,null,null,null,null,null,null,null,null,null,null,null,null,null,null,null,null,null,null,null,null,null,null,null,null,null,null,null,null,null,null,null,null,null,null,null,null,null,null,null,null,null,null,null,null,null,null,null,null,null,null,null,null,null,null,null,null,null,null,null,null,null,null,null,null,null,null,null,null,null,null,null,null,null,null,null,null,null,null,null,null,null,null,null,null,null,null,null,null,null,null,null,null,null,null,null,null,null,null,null,null,null,null,null,null,null,null,null,null,null,null,null,null,null,null,null,null,null,null,null,null,null,null,null,null,null,null,null,null,null,null,null,null,null,null,null,null,null,null,null,null,null,null,null,null,null,null,null,null,null,null,null,null,null,null,null,null,null,null,null,null,null,null,null,null,null,null,null,null,null,null,null,null,null,null,null,null,null,null,null,null,null,null,null,null,null,null,null,null,null,null,null,null,null,null,null,null,null,null,null,null,null,null,null,null,null,null,null,null,null,null,null,null,null,null,null,null,null,null,null,null,null,null,null,null,null,null,null,null,null,null,null,null,null,null,null,null,null,null,null,null,null,null,null,null,null,null,null,null,null,null,null,null,null,null,null,null,null,null,null,null,null,null,null,null,null,null,null,null,null,null,null,null,null,null,null,null,null,null,null,null,null,null,null,null,null,null,null,null,null,null,null,"823Alimentos","823Segmento"]
["AGUA","ARAUCA","A GRANEL","JET A1","BASE MILITAR CARI CARI DEL EJERCITO NACIONAL EN EL ÁREA GENERAL DEL BAEV NO. 16","A GRANEL","JET A1","BATALLÓN DE ABASTECIMIENTOS Y SERVICIOS PARA LA AVIACIÓN","A GRANEL","JET A1","CANTÓN MILITAR JAIME ROOKE","A GRANEL","JET A1","UNIDAD MILITAR JUANCHACO","A GRANEL","JET A1","BASE MILITAR MAPIRIPÁN","A GRANEL","AV GAS","MITÚ","A GRANEL","AV GAS","MITÚ","A GRANEL","JET A1","ANORÍ","A GRANEL","JET A1","LA PLATA","A GRANEL","JET A1","PAZ DE ARIPORO","A GRANEL","JET A1","LA PLATA","A GRANEL","JET A1","ANORÍ","A GRANEL","JET A1","ANORÍ","AL ALA","JET A1","PUERTO BOYACÁ","A GRANEL","AV GAS","CHAPARRAL","A GRANEL","AV GAS","COMPAÑÍA ANTINARCÓTICOS POLICÍA","Aeropuertos y/o aeródromos al Ala JET A1","Aeropuerto Internacional Almirante Padilla","A Granel","Aeropuertos y/o aeródromos al Ala AV GAS","Aeropuerto Alfonso López Pumarejo","Al Ala","Aeropuertos y/o aeródromos al Ala AV GAS","Aeropuerto Internacional Palonegro","A Granel","Aeropuertos y/o aeródromos al Ala AV GAS","Aeropuerto Internacional Los Garzones","A Granel","Aeropuertos y/o aeródromos al Ala JET A1","Aeropuerto Santiago Pérez","A Granel","Aeropuertos y/o aeródromos al Ala AV GAS","Aeropuerto Yariguíes","Al Ala","Aeropuertos y/o aeródromos al Ala AV GAS","Aeropuerto Olaya Herrera","A Granel","Aeropuertos y/o aeródromos al Ala AV GAS","Aeropuerto Internacional Simón Bolívar","Al Ala","Aeropuertos y/o aeródromos al Ala AV GAS","Aeropuerto Internacional Matecaña","Al Ala","Aeropuertos y/o aeródromos al Ala AV GAS","Aeropuerto Vanguardia","A Granel","Aeropuertos y/o aeródromos al Ala AV GAS","Aeropuerto Internacional Ernesto Cortissoz","A Granel","Aeropuertos y/o aeródromos al Ala AV GAS","Aeropuerto Jorge Enrique González Torres","Al Ala","Aeropuertos y/o aeródromos al Ala AV GAS","Aeropuerto Olaya Herrera","A Granel","A Granel en Aeropuerto y/o aeródromos JET A1","Grupo Aero Naval del Pacífico - GANPA",null,null,null,null,null,null,null,null,null,null,null,null,null,null,null,null,null,null,null,null,null,null,null,null,null,null,null,null,null,null,null,null,null,null,null,null,null,null,null,null,null,null,null,null,null,null,null,null,null,null,null,null,null,null,null,null,null,null,null,null,null,null,null,null,null,null,null,null,null,null,null,null,null,null,null,null,null,null,null,null,null,null,null,null,null,null,null,null,null,null,null,null,null,null,null,null,null,null,null,null,null,null,null,null,null,null,null,null,null,null,null,null,null,null,null,null,null,null,null,null,null,null,null,null,null,null,null,null,null,null,null,null,null,null,null,null,null,null,null,null,null,null,null,null,null,null,null,null,null,null,null,null,null,null,null,null,null,null,null,null,null,null,null,null,null,null,null,null,null,null,null,null,null,null,null,null,null,null,null,null,null,null,null,null,null,null,null,null,null,null,null,null,null,null,null,null,null,null,null,null,null,null,null,null,null,null,null,null,null,null,null,null,null,null,null,null,null,null,null,null,null,null,null,null,null,null,null,null,null,null,null,null,null,null,null,null,null,null,null,null,null,null,null,null,null,null,null,null,null,null,null,null,null,null,null,null,null,null,null,null,null,null,null,null,null,null,null,null,null,null,null,null,null,null,null,null,null,null,null,null,null,null,null,null,null,null,null,null,null,null,null,null,null,null,null,null,null,null,null,null,null,null,null,null,null,null,null,null,null,null,null,null,null,null,null,null,null,null,null,null,null,null,null,null,null,null,null,null,null,null,null,null,null,null,null,null,null,null,null,null,null,null,null,null,null,null,null,null,null,null,null,null,null,null,null,null,null,null,null,null,null,null,null,null,null,null,null,null,null,null,null,null,null,null,null,null,null,null,null,null,null,null,null,null,null,null,null,null,null,null,null,null,null,null,null,null,null,null,null,null,null,null,null,null,null,null,null,null,null,null,null,null,null,null,null,null,null,null,null,null,null,null,null,null,null,null,null,null,null,null,null,null,null,null,null,null,null,null,null,null,null,null,null,null,null,null,null,null,null,null,null,null,null,null,null,null,null,null,null,null,null,null,null,null,null,null,null,null,null,null,null,null,null,null,null,null,null,null,null,null,null,null,null,null,null,null,null,null,null,null,null,null,null,null,null,null,null,null,null,null,null,null,null,null,null,null,null,null,null,null,null,null,null,null,null,null,null,null,null,null,null,null,null,null,null,null,null,null,null,null,null,null,null,null,null,null,null,null,null,null,null,null,null,null,null,null,null,null,null,null,null,null,null,null,null,null,null,null,null,null,null,null,null,null,null,null,null,null,null,null,null,null,null,null,null,null,null,null,null,null,null,null,null,null,null,null,null,null,null,null,null,null,null,null,null,null,null,null,null,null,null,null,null,null,null,null,null,null,null,null,null,null,null,null,null,null,null,null,null,null,null,null,null,null,null,null,null,null,null,null,null,null,null,null,null,null,null,null,null,null,null,null,null,null,null,null,null,null,null,null,null,null,null,null,null,null,null,null,null,null,null,null,null,null,null,null,null,null,null,null,null,null,null,null,null,null,null,null,null,null,null,null,null,null,null,null,null,null,null,null,null,null,null,null,null,null,null,null,null,null,null,null,null,null,null,null,null,null,null,null,null,null,null,null,null,null,null,null,null,null,null,null,null,null,null,null,null,null,null,null,null,null,null,null,null,null,null,null,null,null,null,null,null,null,null,null,null,null,null,null,null,null,null,null,null,null,null,null,null,null,null,null,null,null,null,null,null,null,null,null,null,null,null,null,null,null,null,null,null,null,null,null,null,null,null,null,null,null,null,null,null,null,null,null,null,null,null,null,null,null,null,null,null,null,null,null,null,null,null,null,null,null,null,null,null,null,null,null,null,null,null,null,null,null,null,null,null,null,null,null,null,null,null,null,null,null,null,null,null,null,null,null,null,null,null,null,null,null,null,null,null,null,null,null,null,null,null,null,null,null,null,null,null,null,null,null,null,null,null,null,null,null,null,null,null,null,null,null,null,null,null,null,null,null,null,null,null,null,null,null,null,null,null,null,null,null,null,null,null,null,null,null,null,null,null,null,null,null,null,null,null,null,null,null,null,null,null,null,null,null,null,null,null,null,null,null,null,null,null,null,null,null,null,null,null,null,null,null,null,null,null,null,null,null,null,null,null,null,null,null,null,null,null,null,null,null,null,null,null,null,null,null,null,null,null,null,null,null,null,null,null,null,null,null,null,null,null,null,null,null,null,null,null,null,null,null,null,null,null,null,null,null,null,null,null,null,null,null,null,null,null,null,null,null,null,null,null,null,null,null,null,null,null,null,null,null,null,null,null,null,null,null,null,null,null,null,null,null,null,null,null,null,null,null,null,null,null,null,null,null,null,null,null,null,null,null,null,null,null,null,null,null,null,null,null,null,null,null,null,null,null,null,null,null,null,null,null,null,null,null,null,null,null,null,null,null,null,null,null,null,null,null,null,null,null,null,null,null,null,null,null,null,null,null,null,null,null,null,null,null,null,null,null,null,null,null,null,null,null,null,null,null,null,null,null,null,null,null,null,null,null,null,null,null,null,null,null,null,null,null,null,null,null,null,null,null,null,null,null,null,null,null,null,null,null,null,null,null,null,null,null,null,null,null,null,null,null,null,null,null,null,null,null,null,null,null,null,null,null,null,null,null,null,null,null,null,null,null,null,null,null,null,null,null,null,null,null,null,null,null,null,null,null,null,null,null,null,null,null,null,null,null,null,null,null,null,null,null,null,null,null,null,null,null,null,null,null,null,null,null,null,null,null,null,null,null,null,null,null,null,null,null,null,null,null,null,null,null,null,null,null,null,null,null,null,null,null,null,null,null,null,null,null,null,null,null,null,null,null,null,null,null,null,null,null,null,null,null,null,null,null,null,null,null,null,null,null,null,null,null,null,null,null,null,null,null,null,null,null,null,null,null,null,null,null,null,null,null,null,null,null,null,null,null,null,null,null,null,null,null,null,null,null,null,null,null,null,null,null,null,null,null,null,null,null,null,null,null,null,null,null,null,null,null,null,null,null,null,null,null,null,null,null,null,null,null,null,null,null,null,null,null,null,null,null,null,null,null,null,null,null,null,null,null,null,null,null,null,null,null,null,null,null,null,null,null,null,null,null,null,null,null,null,null,null,null,null,null,null,null,null,null,null,null,null,null,null,null,null,null,null,null,null,null,null,null,null,null,null,null,null,null,null,null,null,null,null,null,null,null,null,null,null,null,null,null,null,null,null,null,null,null,null,null,null,null,null,null,null,null,null,null,null,null,null,null,null,null,null,null,null,null,null,null,null,null,null,null,null,null,null,null,null,null,null,null,null,null,null,null,null,null,null,null,null,null,null,null,null,null,null,null,null,null,null,null,null,null,null,null,null,null,null,null,null,null,null,null,null,null,null,null,null,null,null,null,null,null,null,null,null,null,null,null,null,null,null,null,null,null,null,null,null,null,null,null,null,null,null,null,null,null,null,null,null,null,null,null,null,null,null,null,null,null,null,null,null,null,null,null,null,null,null,null,null,null,null,null,null,null,null,null,null,null,null,null,null,null,null,null,null,null,null,null,null,null,null,null,null,null,null,null,null,null,null,null,null,null,null,null,null,null,null,null,null,null,null,null,null,null,null,null,null,null,null,null,null,null,null,null,null,null,null,null,null,null,null,null,null,null,null,null,null,null,null,null,null,null,null,null,null,null,null,null,null,null,null,null,null,null,null,null,null,null,null,null,null,null,null,null,null,null,null,null,null,null,null,null,null,null,null,null,null,null,null,null,null,null,null,null,null,null,null,null,null,null,null,null,null,null,null,null,null,null,null,null,null,null,null,null,null,null,null,null,null,null,null,null,null,null,null,null,null,null,null,null,null,null,null,null,null,null,null,null,null,null,null,null,null,null,null,null,null,null,null,null,null,null,null,null,null,null,null,null,null,null,null,null,null,null,null,null,null,null,null,null,null,null,null,null,null,null,null,null,null,null,null,null,null,null,null,null,null,null,null,null,null,null,null,null,null,null,null,null,null,null,null,null,null,null,null,null,null,null,null,null,null,null,null,null,null,null,null,null,null,null,null,null,null,null,null,null,null,null,null,null,null,null,null,null,null,null,null,null,null,null,null,null,null,null,null,null,null,null,null,null,null,null,null,null,null,null,null,null,null,null,null,null,null,null,null,null,null,null,null,null,null,null,null,null,null,null,null,null,null,null,null,null,null,null,null,null,null,null,null,null,null,null,null,null,null,null,null,null,null,null,null,null,null,null,null,null,null,null,null,null,null,null,null,null,null,null,null,null,null,null,null,null,null,null,null,null,null,null,null,null,null,null,null,null,null,null,null,null,null,null,null,null,null,null,null,null,null,null,null,null,null,null,null,null,null,null,null,null,null,null,null,null,null,null,null,null,null,null,null,null,null,null,null,null,null,null,null,null,null,null,null,null,null,null,null,null,null,null,null,null,null,null,null,null,null,null,null,null,null,null,null,null,null,null,null,null,null,null,null,null,null,null,null,null,null,null,null,null,null,null,null,null,null,null,null,null,null,null,null,null,null,null,null,null,null,null,null,null,null,null,null,null,null,null,null,null,null,null,null,null,null,null,null,null,null,null,null,null,null,null,null,null,null,null,null,null,null,null,null,null,null,null,null,null,null,null,null,null,null,null,null,null,null,null,null,null,null,null,null,null,null,null,null,null,null,null,null,null,null,null,null,null,null,null,null,null,null,null,null,null,null,null,null,null,null,null,null,null,null,null,null,null,null,null,null,null,null,null,null,null,null,null,null,null,null,null,null,null,null,null,null,null,null,null,null,null,null,null,null,null,null,null,null,null,null,null,null,null,null,null,null,null,null,null,null,null,null,null,null,null,null,null,null,null,null,null,null,null,null,null,null,null,null,null,null,null,null,null,null,null,null,null,null,null,null,null,null,null,null,null,null,null,null,null,null,null,null,null,null,null,null,null,null,null,null,null,null,null,null,null,null,null,null,null,null,null,null,null,null,null,null,null,null,null,null,null,null,null,null,null,null,null,null,null,null,null,null,null,null,null,null,null,null,null,null,null,null,null,null,null,null,null,null,null,null,null,null,null,null,null,null,null,null,null,null,null,null,null,null,null,null,null,null,null,null,null,null,null,null,null,null,null,null,null,null,null,null,null,null,null,null,null,null,null,null,null,null,null,null,null,null,null,null,null,null,null,null,null,null,null,null,null,null,null,null,null,null,null,null,null,null,null,null,null,null,null,null,null,null,null,null,null,null,null,null,null,null,null,null,null,null,null,null,null,null,null,null,null,null,null,null,null,null,null,null,null,null,null,null,null,null,null,null,null,null,null,null,null,null,null,null,null,null,null,null,null,null,null,null,null,null,null,null,null,null,null,null,null,null,null,"44 : Maní con Sal.",1]
["BEBIDAS LÁCTEAS","CAÑO LIMÓN",null,null,null,"AL ALA",null,"COMANDO AÉREO DE TRANSPORTE MILITAR CATAM - AEROPUERTO EL DORADO","AL ALA",null,null,null,null,null,null,null,null,"AL ALA","JET A1",null,"AL ALA","JET A1",null,"AL ALA",null,"APARTADÓ",null,null,"NEIVA","AL ALA",null,"YOPAL",null,null,"NEIVA",null,null,"APARTADÓ",null,null,"APARTADÓ",null,null,null,null,null,"IBAGUÉ",null,"JET A1",null,null,null,"Al Ala","Aeropuertos y/o aeródromos al Ala JET A1",null,null,"Aeropuertos y/o aeródromos al Ala JET A1",null,"Al Ala","Aeropuertos y/o aeródromos al Ala JET A1",null,"Al Ala",null,null,"Al Ala","Aeropuertos y/o aeródromos al Ala JET A1",null,null,"Aeropuertos y/o aeródromos al Ala JET A1",null,"Al Ala","Aeropuertos y/o aeródromos al Ala JET A1",null,null,"Aeropuertos y/o aeródromos al Ala JET A1",null,null,"Aeropuertos y/o aeródromos al Ala JET A1",null,"Al Ala","Aeropuertos y/o aeródromos al Ala JET A1",null,"Al Ala","Aeropuertos y/o aeródromos al Ala JET A1",null,null,"Aeropuertos y/o aeródromos al Ala JET A1",null,null,null,null,null,null,null,null,null,null,null,null,null,null,null,null,null,null,null,null,null,null,null,null,null,null,null,null,null,null,null,null,null,null,null,null,null,null,null,null,null,null,null,null,null,null,null,null,null,null,null,null,null,null,null,null,null,null,null,null,null,null,null,null,null,null,null,null,null,null,null,null,null,null,null,null,null,null,null,null,null,null,null,null,null,null,null,null,null,null,null,null,null,null,null,null,null,null,null,null,null,null,null,null,null,null,null,null,null,null,null,null,null,null,null,null,null,null,null,null,null,null,null,null,null,null,null,null,null,null,null,null,null,null,null,null,null,null,null,null,null,null,null,null,null,null,null,null,null,null,null,null,null,null,null,null,null,null,null,null,null,null,null,null,null,null,null,null,null,null,null,null,null,null,null,null,null,null,null,null,null,null,null,null,null,null,null,null,null,null,null,null,null,null,null,null,null,null,null,null,null,null,null,null,null,null,null,null,null,null,null,null,null,null,null,null,null,null,null,null,null,null,null,null,null,null,null,null,null,null,null,null,null,null,null,null,null,null,null,null,null,null,null,null,null,null,null,null,null,null,null,null,null,null,null,null,null,null,null,null,null,null,null,null,null,null,null,null,null,null,null,null,null,null,null,null,null,null,null,null,null,null,null,null,null,null,null,null,null,null,null,null,null,null,null,null,null,null,null,null,null,null,null,null,null,null,null,null,null,null,null,null,null,null,null,null,null,null,null,null,null,null,null,null,null,null,null,null,null,null,null,null,null,null,null,null,null,null,null,null,null,null,null,null,null,null,null,null,null,null,null,null,null,null,null,null,null,null,null,null,null,null,null,null,null,null,null,null,null,null,null,null,null,null,null,null,null,null,null,null,null,null,null,null,null,null,null,null,null,null,null,null,null,null,null,null,null,null,null,null,null,null,null,null,null,null,null,null,null,null,null,null,null,null,null,null,null,null,null,null,null,null,null,null,null,null,null,null,null,null,null,null,null,null,null,null,null,null,null,null,null,null,null,null,null,null,null,null,null,null,null,null,null,null,null,null,null,null,null,null,null,null,null,null,null,null,null,null,null,null,null,null,null,null,null,null,null,null,null,null,null,null,null,null,null,null,null,null,null,null,null,null,null,null,null,null,null,null,null,null,null,null,null,null,null,null,null,null,null,null,null,null,null,null,null,null,null,null,null,null,null,null,null,null,null,null,null,null,null,null,null,null,null,null,null,null,null,null,null,null,null,null,null,null,null,null,null,null,null,null,null,null,null,null,null,null,null,null,null,null,null,null,null,null,null,null,null,null,null,null,null,null,null,null,null,null,null,null,null,null,null,null,null,null,null,null,null,null,null,null,null,null,null,null,null,null,null,null,null,null,null,null,null,null,null,null,null,null,null,null,null,null,null,null,null,null,null,null,null,null,null,null,null,null,null,null,null,null,null,null,null,null,null,null,null,null,null,null,null,null,null,null,null,null,null,null,null,null,null,null,null,null,null,null,null,null,null,null,null,null,null,null,null,null,null,null,null,null,null,null,null,null,null,null,null,null,null,null,null,null,null,null,null,null,null,null,null,null,null,null,null,null,null,null,null,null,null,null,null,null,null,null,null,null,null,null,null,null,null,null,null,null,null,null,null,null,null,null,null,null,null,null,null,null,null,null,null,null,null,null,null,null,null,null,null,null,null,null,null,null,null,null,null,null,null,null,null,null,null,null,null,null,null,null,null,null,null,null,null,null,null,null,null,null,null,null,null,null,null,null,null,null,null,null,null,null,null,null,null,null,null,null,null,null,null,null,null,null,null,null,null,null,null,null,null,null,null,null,null,null,null,null,null,null,null,null,null,null,null,null,null,null,null,null,null,null,null,null,null,null,null,null,null,null,null,null,null,null,null,null,null,null,null,null,null,null,null,null,null,null,null,null,null,null,null,null,null,null,null,null,null,null,null,null,null,null,null,null,null,null,null,null,null,null,null,null,null,null,null,null,null,null,null,null,null,null,null,null,null,null,null,null,null,null,null,null,null,null,null,null,null,null,null,null,null,null,null,null,null,null,null,null,null,null,null,null,null,null,null,null,null,null,null,null,null,null,null,null,null,null,null,null,null,null,null,null,null,null,null,null,null,null,null,null,null,null,null,null,null,null,null,null,null,null,null,null,null,null,null,null,null,null,null,null,null,null,null,null,null,null,null,null,null,null,null,null,null,null,null,null,null,null,null,null,null,null,null,null,null,null,null,null,null,null,null,null,null,null,null,null,null,null,null,null,null,null,null,null,null,null,null,null,null,null,null,null,null,null,null,null,null,null,null,null,null,null,null,null,null,null,null,null,null,null,null,null,null,null,null,null,null,null,null,null,null,null,null,null,null,null,null,null,null,null,null,null,null,null,null,null,null,null,null,null,null,null,null,null,null,null,null,null,null,null,null,null,null,null,null,null,null,null,null,null,null,null,null,null,null,null,null,null,null,null,null,null,null,null,null,null,null,null,null,null,null,null,null,null,null,null,null,null,null,null,null,null,null,null,null,null,null,null,null,null,null,null,null,null,null,null,null,null,null,null,null,null,null,null,null,null,null,null,null,null,null,null,null,null,null,null,null,null,null,null,null,null,null,null,null,null,null,null,null,null,null,null,null,null,null,null,null,null,null,null,null,null,null,null,null,null,null,null,null,null,null,null,null,null,null,null,null,null,null,null,null,null,null,null,null,null,null,null,null,null,null,null,null,null,null,null,null,null,null,null,null,null,null,null,null,null,null,null,null,null,null,null,null,null,null,null,null,null,null,null,null,null,null,null,null,null,null,null,null,null,null,null,null,null,null,null,null,null,null,null,null,null,null,null,null,null,null,null,null,null,null,null,null,null,null,null,null,null,null,null,null,null,null,null,null,null,null,null,null,null,null,null,null,null,null,null,null,null,null,null,null,null,null,null,null,null,null,null,null,null,null,null,null,null,null,null,null,null,null,null,null,null,null,null,null,null,null,null,null,null,null,null,null,null,null,null,null,null,null,null,null,null,null,null,null,null,null,null,null,null,null,null,null,null,null,null,null,null,null,null,null,null,null,null,null,null,null,null,null,null,null,null,null,null,null,null,null,null,null,null,null,null,null,null,null,null,null,null,null,null,null,null,null,null,null,null,null,null,null,null,null,null,null,null,null,null,null,null,null,null,null,null,null,null,null,null,null,null,null,null,null,null,null,null,null,null,null,null,null,null,null,null,null,null,null,null,null,null,null,null,null,null,null,null,null,null,null,null,null,null,null,null,null,null,null,null,null,null,null,null,null,null,null,null,null,null,null,null,null,null,null,null,null,null,null,null,null,null,null,null,null,null,null,null,null,null,null,null,null,null,null,null,null,null,null,null,null,null,null,null,null,null,null,null,null,null,null,null,null,null,null,null,null,null,null,null,null,null,null,null,null,null,null,null,null,null,null,null,null,null,null,null,null,null,null,null,null,null,null,null,null,null,null,null,null,null,null,null,null,null,null,null,null,null,null,null,null,null,null,null,null,null,null,null,null,null,null,null,null,null,null,null,null,null,null,null,null,null,null,null,null,null,null,null,null,null,null,null,null,null,null,null,null,null,null,null,null,null,null,null,null,null,null,null,null,null,null,null,null,null,null,null,null,null,null,null,null,null,null,null,null,null,null,null,null,null,null,null,null,null,null,null,null,null,null,null,null,null,null,null,null,null,null,null,null,null,null,null,null,null,null,null,null,null,null,null,null,null,null,null,null,null,null,null,null,null,null,null,null,null,null,null,null,null,null,null,null,null,null,null,null,null,null,null,null,null,null,null,null,null,null,null,null,null,null,null,null,null,null,null,null,null,null,null,null,null,null,null,null,null,null,null,null,null,null,null,null,null,null,null,null,null,null,null,null,null,null,null,null,null,null,null,null,null,null,null,null,null,null,null,null,null,null,null,null,null,null,null,null,null,null,null,null,null,null,null,null,null,null,null,null,null,null,null,null,null,null,null,null,null,null,null,null,null,null,null,null,null,null,null,null,null,null,null,null,null,null,null,null,null,null,null,null,null,null,null,null,null,null,null,null,null,null,null,null,null,null,null,null,null,null,null,null,null,null,null,null,null,null,null,null,null,null,null,null,null,null,null,null,null,null,null,null,null,null,null,null,null,null,null,null,null,null,null,null,null,null,null,null,null,null,null,null,null,null,null,null,null,null,null,null,null,null,null,null,null,null,null,null,null,null,null,null,null,null,null,null,null,null,null,null,null,null,null,null,null,null,null,null,null,null,null,null,null,null,null,null,null,null,null,null,null,null,null,null,null,null,null,null,null,null,null,null,null,null,null,null,null,null,null,null,null,null,null,null,null,null,null,null,null,null,null,null,null,null,null,null,null,null,null,null,null,null,null,null,null,null,null,null,null,null,null,null,null,null,null,null,null,null,null,null,null,null,null,null,null,null,null,null,null,null,null,null,null,null,null,null,null,null,null,null,null,null,null,null,null,null,null,null,null,null,null,null,null,null,null,null,null,null,null,null,null,null,null,null,null,null,null,null,null,null,null,null,null,null,null,null,null,null,null,null,null,null,null,null,null,null,null,null,null,null,null,null,null,null,null,null,null,null,null,null,null,null,null,null,null,null,null,null,null,null,null,null,null,null,null,null,null,null,null,null,null,null,null,null,null,null,null,null,null,null,null,null,null,null,null,null,null,null,null,null,null,null,null,null,null,null,null,null,null,null,null,null,null,null,null,null,null,null,null,null,null,null,null,null,null,null,null,null,null,null,null,null,null,null,null,null,null,null,null,null,null,null,null,null,null,null,null,null,null,null,null,null,null,null,null,null,null,null,null,null,null,null,null,null,null,null,null,null,null,null,null,null,null,null,null,null,null,null,null,null,null,null,null,null,null,null,null,null,null,null,null,null,null,null,null,null,null,null,null,null,null,null,null,null,null,null,null,null,null,null,null,null,null,null,null,null,null,null,null,null,null,null,null,null,null,null,null,null,null,null,null,null,null,null,null,null,null,null,null,null,null,null,null,null,null,null,null,null,null,null,null,null,null,null,null,null,null,null,null,null,null,null,null,null,null,null,null,null,null,null,null,null,null,null,null,null,null,null,null,null,null,null,null,null,null,null,null,null,null,null,null,null,null,null,null,null,null,null,null,null,null,null,null,null,null,null,null,null,null,null,null,null,null,null,null,null,null,null,null,null,null,null,null,null,null,null,null,null,null,null,null,null,null,null,null,null,null,null,null,null,null,null,null,null,null,null,null,null,null,null,null,null,null,null,null,null,null,null,null,null,null,null,null,null,null,null,null,null,null,null,null,null,null,null,null,null,null,null,null,null,null,null,null,null,null,null,null,null,null,null,null,null,null,null,null,null,null,null,null,null,null,null,null,null,null,null,null,null,null,null,null,null,null,null,null,"48 : Mezcla de Frutos Secos (maní de sal, almendras, uvas pasas, maíz tostado)",2]
["CEREAL EMPACADO","PUERTO JORDÁN",null,null,null,null,null,"COMPAÑÍA ANTINARCÓTICOS POLICÍA",null,null,null,null,null,null,null,null,null,null,null,null,null,null,null,null,null,"BELLO",null,null,"PITALITO",null,null,null,null,null,"PITALITO",null,null,"BELLO",null,null,"BELLO",null,null,null,null,null,"MARIQUITA",null,null,null,null,null,null,null,null,null,null,null,null,null,null,null,null,null,null,null,null,null,null,null,null,null,null,null,null,null,null,null,null,null,"Unidad Militar o de Policía al Ala JET A1",null,null,null,null,null,null,null,null,null,null,null,null,null,null,null,null,null,null,null,null,null,null,null,null,null,null,null,null,null,null,null,null,null,null,null,null,null,null,null,null,null,null,null,null,null,null,null,null,null,null,null,null,null,null,null,null,null,null,null,null,null,null,null,null,null,null,null,null,null,null,null,null,null,null,null,null,null,null,null,null,null,null,null,null,null,null,null,null,null,null,null,null,null,null,null,null,null,null,null,null,null,null,null,null,null,null,null,null,null,null,null,null,null,null,null,null,null,null,null,null,null,null,null,null,null,null,null,null,null,null,null,null,null,null,null,null,null,null,null,null,null,null,null,null,null,null,null,null,null,null,null,null,null,null,null,null,null,null,null,null,null,null,null,null,null,null,null,null,null,null,null,null,null,null,null,null,null,null,null,null,null,null,null,null,null,null,null,null,null,null,null,null,null,null,null,null,null,null,null,null,null,null,null,null,null,null,null,null,null,null,null,null,null,null,null,null,null,null,null,null,null,null,null,null,null,null,null,null,null,null,null,null,null,null,null,null,null,null,null,null,null,null,null,null,null,null,null,null,null,null,null,null,null,null,null,null,null,null,null,null,null,null,null,null,null,null,null,null,null,null,null,null,null,null,null,null,null,null,null,null,null,null,null,null,null,null,null,null,null,null,null,null,null,null,null,null,null,null,null,null,null,null,null,null,null,null,null,null,null,null,null,null,null,null,null,null,null,null,null,null,null,null,null,null,null,null,null,null,null,null,null,null,null,null,null,null,null,null,null,null,null,null,null,null,null,null,null,null,null,null,null,null,null,null,null,null,null,null,null,null,null,null,null,null,null,null,null,null,null,null,null,null,null,null,null,null,null,null,null,null,null,null,null,null,null,null,null,null,null,null,null,null,null,null,null,null,null,null,null,null,null,null,null,null,null,null,null,null,null,null,null,null,null,null,null,null,null,null,null,null,null,null,null,null,null,null,null,null,null,null,null,null,null,null,null,null,null,null,null,null,null,null,null,null,null,null,null,null,null,null,null,null,null,null,null,null,null,null,null,null,null,null,null,null,null,null,null,null,null,null,null,null,null,null,null,null,null,null,null,null,null,null,null,null,null,null,null,null,null,null,null,null,null,null,null,null,null,null,null,null,null,null,null,null,null,null,null,null,null,null,null,null,null,null,null,null,null,null,null,null,null,null,null,null,null,null,null,null,null,null,null,null,null,null,null,null,null,null,null,null,null,null,null,null,null,null,null,null,null,null,null,null,null,null,null,null,null,null,null,null,null,null,null,null,null,null,null,null,null,null,null,null,null,null,null,null,null,null,null,null,null,null,null,null,null,null,null,null,null,null,null,null,null,null,null,null,null,null,null,null,null,null,null,null,null,null,null,null,null,null,null,null,null,null,null,null,null,null,null,null,null,null,null,null,null,null,null,null,null,null,null,null,null,null,null,null,null,null,null,null,null,null,null,null,null,null,null,null,null,null,null,null,null,null,null,null,null,null,null,null,null,null,null,null,null,null,null,null,null,null,null,null,null,null,null,null,null,null,null,null,null,null,null,null,null,null,null,null,null,null,null,null,null,null,null,null,null,null,null,null,null,null,null,null,null,null,null,null,null,null,null,null,null,null,null,null,null,null,null,null,null,null,null,null,null,null,null,null,null,null,null,null,null,null,null,null,null,null,null,null,null,null,null,null,null,null,null,null,null,null,null,null,null,null,null,null,null,null,null,null,null,null,null,null,null,null,null,null,null,null,null,null,null,null,null,null,null,null,null,null,null,null,null,null,null,null,null,null,null,null,null,null,null,null,null,null,null,null,null,null,null,null,null,null,null,null,null,null,null,null,null,null,null,null,null,null,null,null,null,null,null,null,null,null,null,null,null,null,null,null,null,null,null,null,null,null,null,null,null,null,null,null,null,null,null,null,null,null,null,null,null,null,null,null,null,null,null,null,null,null,null,null,null,null,null,null,null,null,null,null,null,null,null,null,null,null,null,null,null,null,null,null,null,null,null,null,null,null,null,null,null,null,null,null,null,null,null,null,null,null,null,null,null,null,null,null,null,null,null,null,null,null,null,null,null,null,null,null,null,null,null,null,null,null,null,null,null,null,null,null,null,null,null,null,null,null,null,null,null,null,null,null,null,null,null,null,null,null,null,null,null,null,null,null,null,null,null,null,null,null,null,null,null,null,null,null,null,null,null,null,null,null,null,null,null,null,null,null,null,null,null,null,null,null,null,null,null,null,null,null,null,null,null,null,null,null,null,null,null,null,null,null,null,null,null,null,null,null,null,null,null,null,null,null,null,null,null,null,null,null,null,null,null,null,null,null,null,null,null,null,null,null,null,null,null,null,null,null,null,null,null,null,null,null,null,null,null,null,null,null,null,null,null,null,null,null,null,null,null,null,null,null,null,null,null,null,null,null,null,null,null,null,null,null,null,null,null,null,null,null,null,null,null,null,null,null,null,null,null,null,null,null,null,null,null,null,null,null,null,null,null,null,null,null,null,null,null,null,null,null,null,null,null,null,null,null,null,null,null,null,null,null,null,null,null,null,null,null,null,null,null,null,null,null,null,null,null,null,null,null,null,null,null,null,null,null,null,null,null,null,null,null,null,null,null,null,null,null,null,null,null,null,null,null,null,null,null,null,null,null,null,null,null,null,null,null,null,null,null,null,null,null,null,null,null,null,null,null,null,null,null,null,null,null,null,null,null,null,null,null,null,null,null,null,null,null,null,null,null,null,null,null,null,null,null,null,null,null,null,null,null,null,null,null,null,null,null,null,null,null,null,null,null,null,null,null,null,null,null,null,null,null,null,null,null,null,null,null,null,null,null,null,null,null,null,null,null,null,null,null,null,null,null,null,null,null,null,null,null,null,null,null,null,null,null,null,null,null,null,null,null,null,null,null,null,null,null,null,null,null,null,null,null,null,null,null,null,null,null,null,null,null,null,null,null,null,null,null,null,null,null,null,null,null,null,null,null,null,null,null,null,null,null,null,null,null,null,null,null,null,null,null,null,null,null,null,null,null,null,null,null,null,null,null,null,null,null,null,null,null,null,null,null,null,null,null,null,null,null,null,null,null,null,null,null,null,null,null,null,null,null,null,null,null,null,null,null,null,null,null,null,null,null,null,null,null,null,null,null,null,null,null,null,null,null,null,null,null,null,null,null,null,null,null,null,null,null,null,null,null,null,null,null,null,null,null,null,null,null,null,null,null,null,null,null,null,null,null,null,null,null,null,null,null,null,null,null,null,null,null,null,null,null,null,null,null,null,null,null,null,null,null,null,null,null,null,null,null,null,null,null,null,null,null,null,null,null,null,null,null,null,null,null,null,null,null,null,null,null,null,null,null,null,null,null,null,null,null,null,null,null,null,null,null,null,null,null,null,null,null,null,null,null,null,null,null,null,null,null,null,null,null,null,null,null,null,null,null,null,null,null,null,null,null,null,null,null,null,null,null,null,null,null,null,null,null,null,null,null,null,null,null,null,null,null,null,null,null,null,null,null,null,null,null,null,null,null,null,null,null,null,null,null,null,null,null,null,null,null,null,null,null,null,null,null,null,null,null,null,null,null,null,null,null,null,null,null,null,null,null,null,null,null,null,null,null,null,null,null,null,null,null,null,null,null,null,null,null,null,null,null,null,null,null,null,null,null,null,null,null,null,null,null,null,null,null,null,null,null,null,null,null,null,null,null,null,null,null,null,null,null,null,null,null,null,null,null,null,null,null,null,null,null,null,null,null,null,null,null,null,null,null,null,null,null,null,null,null,null,null,null,null,null,null,null,null,null,null,null,null,null,null,null,null,null,null,null,null,null,null,null,null,null,null,null,null,null,null,null,null,null,null,null,null,null,null,null,null,null,null,null,null,null,null,null,null,null,null,null,null,null,null,null,null,null,null,null,null,null,null,null,null,null,null,null,null,null,null,null,null,null,null,null,null,null,null,null,null,null,null,null,null,null,null,null,null,null,null,null,null,null,null,null,null,null,null,null,null,null,null,null,null,null,null,null,null,null,null,null,null,null,null,null,null,null,null,null,null,null,null,null,null,null,null,null,null,null,null,null,null,null,null,null,null,null,null,null,null,null,null,null,null,null,null,null,null,null,null,null,null,null,null,null,null,null,null,null,null,null,null,null,null,null,null,null,null,null,null,null,null,null,null,null,null,null,null,null,null,null,null,null,null,null,null,null,null,null,null,null,null,null,null,null,null,null,null,null,null,null,null,null,null,null,null,null,null,null,null,null,null,null,null,null,null,null,null,null,null,null,null,null,null,null,null,null,null,null,null,null,null,null,null,null,null,null,null,null,null,null,null,null,null,null,null,null,null,null,null,null,null,null,null,null,null,null,null,null,null,null,null,null,null,null,null,null,null,null,null,null,null,null,null,null,null,null,null,null,null,null,null,null,null,null,null,null,null,null,null,null,null,null,null,null,null,null,null,null,null,null,null,null,null,null,null,null,null,null,null,null,null,null,null,null,null,null,null,null,null,null,null,null,null,null,null,null,null,null,null,null,null,null,null,null,null,null,null,null,null,null,null,null,null,null,null,null,null,null,null,null,null,null,null,null,null,null,null,null,null,null,null,null,null,null,null,null,null,null,null,null,null,null,null,null,null,null,null,null,null,null,null,null,null,null,null,null,null,null,null,null,null,null,null,null,null,null,null,null,null,null,null,null,null,null,null,null,null,null,null,null,null,null,null,null,null,null,null,null,null,null,null,null,null,null,null,null,null,null,null,null,null,null,null,null,null,null,null,null,null,null,null,null,null,null,null,null,null,null,null,null,null,null,null,null,null,null,null,null,null,null,null,null,null,null,null,null,null,null,null,null,null,null,null,null,null,null,null,null,null,null,null,null,null,null,null,null,null,null,null,null,null,null,null,null,null,null,null,null,null,null,null,null,null,null,null,null,null,null,null,null,null,null,null,null,null,null,null,null,null,null,null,null,null,null,null,null,null,null,null,null,null,null,null,null,null,null,null,null,null,null,null,null,null,null,null,null,null,null,null,null,null,null,null,null,null,null,null,null,null,null,null,null,null,null,null,null,null,null,null,null,null,null,null,null,null,null,null,null,null,null,null,null,null,null,null,null,null,null,null,null,null,null,null,null,null,null,null,null,null,null,null,null,null,null,null,null,null,null,null,null,null,null,null,null,null,null,null,null,null,null,null,null,null,null,null,null,null,null,null,null,null,null,null,null,null,null,null,null,null,null,null,null,null,null,null,null,null,null,null,null,null,null,null,null,null,null,null,null,null,null,null,null,null,null,null,null,null,null,null,null,null,null,null,null,null,null,null,null,null,null,null,null,null,null,null,null,null,null,null,null,null,null,null,null,null,null,null,null,null,null,null,null,null,null,null,null,null,null,null,null,null,null,null,null,null,null,null,"49 : Mix de fruta deshidratada.",3]
["FRUTA","SARAVENA",null,null,null,null,null,"GRUPO AERONAVAL CENTRAL - AEROPUERTO EL DORADO",null,null,null,null,null,null,null,null,null,null,null,null,null,null,null,null,null,"CAREPA",null,null,null,null,null,null,null,null,null,null,null,"CAREPA",null,null,"CAREPA",null,null,null,null,null,"MELGAR",null,null,null,null,null,null,null,null,null,null,null,null,null,null,null,null,null,null,null,null,null,null,null,null,null,null,null,null,null,null,null,null,null,null,null,null,null,null,null,null,null,null,null,null,null,null,null,null,null,null,null,null,null,null,null,null,null,null,null,null,null,null,null,null,null,null,null,null,null,null,null,null,null,null,null,null,null,null,null,null,null,null,null,null,null,null,null,null,null,null,null,null,null,null,null,null,null,null,null,null,null,null,null,null,null,null,null,null,null,null,null,null,null,null,null,null,null,null,null,null,null,null,null,null,null,null,null,null,null,null,null,null,null,null,null,null,null,null,null,null,null,null,null,null,null,null,null,null,null,null,null,null,null,null,null,null,null,null,null,null,null,null,null,null,null,null,null,null,null,null,null,null,null,null,null,null,null,null,null,null,null,null,null,null,null,null,null,null,null,null,null,null,null,null,null,null,null,null,null,null,null,null,null,null,null,null,null,null,null,null,null,null,null,null,null,null,null,null,null,null,null,null,null,null,null,null,null,null,null,null,null,null,null,null,null,null,null,null,null,null,null,null,null,null,null,null,null,null,null,null,null,null,null,null,null,null,null,null,null,null,null,null,null,null,null,null,null,null,null,null,null,null,null,null,null,null,null,null,null,null,null,null,null,null,null,null,null,null,null,null,null,null,null,null,null,null,null,null,null,null,null,null,null,null,null,null,null,null,null,null,null,null,null,null,null,null,null,null,null,null,null,null,null,null,null,null,null,null,null,null,null,null,null,null,null,null,null,null,null,null,null,null,null,null,null,null,null,null,null,null,null,null,null,null,null,null,null,null,null,null,null,null,null,null,null,null,null,null,null,null,null,null,null,null,null,null,null,null,null,null,null,null,null,null,null,null,null,null,null,null,null,null,null,null,null,null,null,null,null,null,null,null,null,null,null,null,null,null,null,null,null,null,null,null,null,null,null,null,null,null,null,null,null,null,null,null,null,null,null,null,null,null,null,null,null,null,null,null,null,null,null,null,null,null,null,null,null,null,null,null,null,null,null,null,null,null,null,null,null,null,null,null,null,null,null,null,null,null,null,null,null,null,null,null,null,null,null,null,null,null,null,null,null,null,null,null,null,null,null,null,null,null,null,null,null,null,null,null,null,null,null,null,null,null,null,null,null,null,null,null,null,null,null,null,null,null,null,null,null,null,null,null,null,null,null,null,null,null,null,null,null,null,null,null,null,null,null,null,null,null,null,null,null,null,null,null,null,null,null,null,null,null,null,null,null,null,null,null,null,null,null,null,null,null,null,null,null,null,null,null,null,null,null,null,null,null,null,null,null,null,null,null,null,null,null,null,null,null,null,null,null,null,null,null,null,null,null,null,null,null,null,null,null,null,null,null,null,null,null,null,null,null,null,null,null,null,null,null,null,null,null,null,null,null,null,null,null,null,null,null,null,null,null,null,null,null,null,null,null,null,null,null,null,null,null,null,null,null,null,null,null,null,null,null,null,null,null,null,null,null,null,null,null,null,null,null,null,null,null,null,null,null,null,null,null,null,null,null,null,null,null,null,null,null,null,null,null,null,null,null,null,null,null,null,null,null,null,null,null,null,null,null,null,null,null,null,null,null,null,null,null,null,null,null,null,null,null,null,null,null,null,null,null,null,null,null,null,null,null,null,null,null,null,null,null,null,null,null,null,null,null,null,null,null,null,null,null,null,null,null,null,null,null,null,null,null,null,null,null,null,null,null,null,null,null,null,null,null,null,null,null,null,null,null,null,null,null,null,null,null,null,null,null,null,null,null,null,null,null,null,null,null,null,null,null,null,null,null,null,null,null,null,null,null,null,null,null,null,null,null,null,null,null,null,null,null,null,null,null,null,null,null,null,null,null,null,null,null,null,null,null,null,null,null,null,null,null,null,null,null,null,null,null,null,null,null,null,null,null,null,null,null,null,null,null,null,null,null,null,null,null,null,null,null,null,null,null,null,null,null,null,null,null,null,null,null,null,null,null,null,null,null,null,null,null,null,null,null,null,null,null,null,null,null,null,null,null,null,null,null,null,null,null,null,null,null,null,null,null,null,null,null,null,null,null,null,null,null,null,null,null,null,null,null,null,null,null,null,null,null,null,null,null,null,null,null,null,null,null,null,null,null,null,null,null,null,null,null,null,null,null,null,null,null,null,null,null,null,null,null,null,null,null,null,null,null,null,null,null,null,null,null,null,null,null,null,null,null,null,null,null,null,null,null,null,null,null,null,null,null,null,null,null,null,null,null,null,null,null,null,null,null,null,null,null,null,null,null,null,null,null,null,null,null,null,null,null,null,null,null,null,null,null,null,null,null,null,null,null,null,null,null,null,null,null,null,null,null,null,null,null,null,null,null,null,null,null,null,null,null,null,null,null,null,null,null,null,null,null,null,null,null,null,null,null,null,null,null,null,null,null,null,null,null,null,null,null,null,null,null,null,null,null,null,null,null,null,null,null,null,null,null,null,null,null,null,null,null,null,null,null,null,null,null,null,null,null,null,null,null,null,null,null,null,null,null,null,null,null,null,null,null,null,null,null,null,null,null,null,null,null,null,null,null,null,null,null,null,null,null,null,null,null,null,null,null,null,null,null,null,null,null,null,null,null,null,null,null,null,null,null,null,null,null,null,null,null,null,null,null,null,null,null,null,null,null,null,null,null,null,null,null,null,null,null,null,null,null,null,null,null,null,null,null,null,null,null,null,null,null,null,null,null,null,null,null,null,null,null,null,null,null,null,null,null,null,null,null,null,null,null,null,null,null,null,null,null,null,null,null,null,null,null,null,null,null,null,null,null,null,null,null,null,null,null,null,null,null,null,null,null,null,null,null,null,null,null,null,null,null,null,null,null,null,null,null,null,null,null,null,null,null,null,null,null,null,null,null,null,null,null,null,null,null,null,null,null,null,null,null,null,null,null,null,null,null,null,null,null,null,null,null,null,null,null,null,null,null,null,null,null,null,null,null,null,null,null,null,null,null,null,null,null,null,null,null,null,null,null,null,null,null,null,null,null,null,null,null,null,null,null,null,null,null,null,null,null,null,null,null,null,null,null,null,null,null,null,null,null,null,null,null,null,null,null,null,null,null,null,null,null,null,null,null,null,null,null,null,null,null,null,null,null,null,null,null,null,null,null,null,null,null,null,null,null,null,null,null,null,null,null,null,null,null,null,null,null,null,null,null,null,null,null,null,null,null,null,null,null,null,null,null,null,null,null,null,null,null,null,null,null,null,null,null,null,null,null,null,null,null,null,null,null,null,null,null,null,null,null,null,null,null,null,null,null,null,null,null,null,null,null,null,null,null,null,null,null,null,null,null,null,null,null,null,null,null,null,null,null,null,null,null,null,null,null,null,null,null,null,null,null,null,null,null,null,null,null,null,null,null,null,null,null,null,null,null,null,null,null,null,null,null,null,null,null,null,null,null,null,null,null,null,null,null,null,null,null,null,null,null,null,null,null,null,null,null,null,null,null,null,null,null,null,null,null,null,null,null,null,null,null,null,null,null,null,null,null,null,null,null,null,null,null,null,null,null,null,null,null,null,null,null,null,null,null,null,null,null,null,null,null,null,null,null,null,null,null,null,null,null,null,null,null,null,null,null,null,null,null,null,null,null,null,null,null,null,null,null,null,null,null,null,null,null,null,null,null,null,null,null,null,null,null,null,null,null,null,null,null,null,null,null,null,null,null,null,null,null,null,null,null,null,null,null,null,null,null,null,null,null,null,null,null,null,null,null,null,null,null,null,null,null,null,null,null,null,null,null,null,null,null,null,null,null,null,null,null,null,null,null,null,null,null,null,null,null,null,null,null,null,null,null,null,null,null,null,null,null,null,null,null,null,null,null,null,null,null,null,null,null,null,null,null,null,null,null,null,null,null,null,null,null,null,null,null,null,null,null,null,null,null,null,null,null,null,null,null,null,null,null,null,null,null,null,null,null,null,null,null,null,null,null,null,null,null,null,null,null,null,null,null,null,null,null,null,null,null,null,null,null,null,null,null,null,null,null,null,null,null,null,null,null,null,null,null,null,null,null,null,null,null,null,null,null,null,null,null,null,null,null,null,null,null,null,null,null,null,null,null,null,null,null,null,null,null,null,null,null,null,null,null,null,null,null,null,null,null,null,null,null,null,null,null,null,null,null,null,null,null,null,null,null,null,null,null,null,null,null,null,null,null,null,null,null,null,null,null,null,null,null,null,null,null,null,null,null,null,null,null,null,null,null,null,null,null,null,null,null,null,null,null,null,null,null,null,null,null,null,null,null,null,null,null,null,null,null,null,null,null,null,null,null,null,null,null,null,null,null,null,null,null,null,null,null,null,null,null,null,null,null,null,null,null,null,null,null,null,null,null,null,null,null,null,null,null,null,null,null,null,null,null,null,null,null,null,null,null,null,null,null,null,null,null,null,null,null,null,null,null,null,null,null,null,null,null,null,null,null,null,null,null,null,null,null,null,null,null,null,null,null,null,null,null,null,null,null,null,null,null,null,null,null,null,null,null,null,null,null,null,null,null,null,null,null,null,null,null,null,null,null,null,null,null,null,null,null,null,null,null,null,null,null,null,null,null,null,null,null,null,null,null,null,null,null,null,null,null,null,null,null,null,null,null,null,null,null,null,null,null,null,null,null,null,null,null,null,null,null,null,null,null,null,null,null,null,null,null,null,null,null,null,null,null,null,null,null,null,null,null,null,null,null,null,null,null,null,null,null,null,null,null,null,null,null,null,null,null,null,null,null,null,null,null,null,null,null,null,null,null,null,null,null,null,null,null,null,null,null,null,null,null,null,null,null,null,null,null,null,null,null,null,null,null,null,null,null,null,null,null,null,null,null,null,null,null,null,null,null,null,null,null,null,null,null,null,null,null,null,null,null,null,null,null,null,null,null,null,null,null,null,null,null,null,null,null,null,null,null,null,null,null,null,null,null,null,null,null,null,null,null,null,null,null,null,null,null,null,null,null,null,null,null,null,null,null,null,null,null,null,null,null,null,null,null,null,null,null,null,null,null,null,null,null,null,null,null,null,null,null,null,null,null,null,null,null,null,null,null,null,null,null,null,null,null,null,null,null,null,null,null,null,null,null,null,null,null,null,null,null,null,null,null,null,null,null,null,null,null,null,null,null,null,null,null,null,null,null,null,null,null,null,null,null,null,null,null,null,null,null,null,null,null,null,null,null,null,null,null,null,null,null,null,null,null,null,null,null,null,null,null,null,null,null,null,null,null,null,null,null,null,null,null,null,null,null,null,null,null,null,null,null,null,null,null,null,null,null,null,null,null,null,null,null,null,null,null,null,null,null,null,null,null,null,null,null,null,null,null,null,null,null,null,null,null,null,null,null,null,null,null,null,null,null,null,null,null,null,null,null,null,null,null,null,null,null,null,null,null,null,null,null,null,null,null,null,null,null,null,null,null,null,null,null,null,null,null,null,null,null,null,null,null,null,null,null,null,null,null,null,null,"9 : Barra de Cereal con Frutas (fresa o mora o naranja o arándanos, entre otras).",4]
["FRUTA EN PORCIONES","TAME",null,null,null,null,null,null,null,null,null,null,null,null,null,null,null,null,null,null,null,null,null,null,null,"CAUCASIA",null,null,null,null,null,null,null,null,null,null,null,"CAUCASIA",null,null,"CAUCASIA",null,null,null,null,null,"PLANADAS",null,null,null,null,null,null,null,null,null,null,null,null,null,null,null,null,null,null,null,null,null,null,null,null,null,null,null,null,null,null,null,null,null,null,null,null,null,null,null,null,null,null,null,null,null,null,null,null,null,null,null,null,null,null,null,null,null,null,null,null,null,null,null,null,null,null,null,null,null,null,null,null,null,null,null,null,null,null,null,null,null,null,null,null,null,null,null,null,null,null,null,null,null,null,null,null,null,null,null,null,null,null,null,null,null,null,null,null,null,null,null,null,null,null,null,null,null,null,null,null,null,null,null,null,null,null,null,null,null,null,null,null,null,null,null,null,null,null,null,null,null,null,null,null,null,null,null,null,null,null,null,null,null,null,null,null,null,null,null,null,null,null,null,null,null,null,null,null,null,null,null,null,null,null,null,null,null,null,null,null,null,null,null,null,null,null,null,null,null,null,null,null,null,null,null,null,null,null,null,null,null,null,null,null,null,null,null,null,null,null,null,null,null,null,null,null,null,null,null,null,null,null,null,null,null,null,null,null,null,null,null,null,null,null,null,null,null,null,null,null,null,null,null,null,null,null,null,null,null,null,null,null,null,null,null,null,null,null,null,null,null,null,null,null,null,null,null,null,null,null,null,null,null,null,null,null,null,null,null,null,null,null,null,null,null,null,null,null,null,null,null,null,null,null,null,null,null,null,null,null,null,null,null,null,null,null,null,null,null,null,null,null,null,null,null,null,null,null,null,null,null,null,null,null,null,null,null,null,null,null,null,null,null,null,null,null,null,null,null,null,null,null,null,null,null,null,null,null,null,null,null,null,null,null,null,null,null,null,null,null,null,null,null,null,null,null,null,null,null,null,null,null,null,null,null,null,null,null,null,null,null,null,null,null,null,null,null,null,null,null,null,null,null,null,null,null,null,null,null,null,null,null,null,null,null,null,null,null,null,null,null,null,null,null,null,null,null,null,null,null,null,null,null,null,null,null,null,null,null,null,null,null,null,null,null,null,null,null,null,null,null,null,null,null,null,null,null,null,null,null,null,null,null,null,null,null,null,null,null,null,null,null,null,null,null,null,null,null,null,null,null,null,null,null,null,null,null,null,null,null,null,null,null,null,null,null,null,null,null,null,null,null,null,null,null,null,null,null,null,null,null,null,null,null,null,null,null,null,null,null,null,null,null,null,null,null,null,null,null,null,null,null,null,null,null,null,null,null,null,null,null,null,null,null,null,null,null,null,null,null,null,null,null,null,null,null,null,null,null,null,null,null,null,null,null,null,null,null,null,null,null,null,null,null,null,null,null,null,null,null,null,null,null,null,null,null,null,null,null,null,null,null,null,null,null,null,null,null,null,null,null,null,null,null,null,null,null,null,null,null,null,null,null,null,null,null,null,null,null,null,null,null,null,null,null,null,null,null,null,null,null,null,null,null,null,null,null,null,null,null,null,null,null,null,null,null,null,null,null,null,null,null,null,null,null,null,null,null,null,null,null,null,null,null,null,null,null,null,null,null,null,null,null,null,null,null,null,null,null,null,null,null,null,null,null,null,null,null,null,null,null,null,null,null,null,null,null,null,null,null,null,null,null,null,null,null,null,null,null,null,null,null,null,null,null,null,null,null,null,null,null,null,null,null,null,null,null,null,null,null,null,null,null,null,null,null,null,null,null,null,null,null,null,null,null,null,null,null,null,null,null,null,null,null,null,null,null,null,null,null,null,null,null,null,null,null,null,null,null,null,null,null,null,null,null,null,null,null,null,null,null,null,null,null,null,null,null,null,null,null,null,null,null,null,null,null,null,null,null,null,null,null,null,null,null,null,null,null,null,null,null,null,null,null,null,null,null,null,null,null,null,null,null,null,null,null,null,null,null,null,null,null,null,null,null,null,null,null,null,null,null,null,null,null,null,null,null,null,null,null,null,null,null,null,null,null,null,null,null,null,null,null,null,null,null,null,null,null,null,null,null,null,null,null,null,null,null,null,null,null,null,null,null,null,null,null,null,null,null,null,null,null,null,null,null,null,null,null,null,null,null,null,null,null,null,null,null,null,null,null,null,null,null,null,null,null,null,null,null,null,null,null,null,null,null,null,null,null,null,null,null,null,null,null,null,null,null,null,null,null,null,null,null,null,null,null,null,null,null,null,null,null,null,null,null,null,null,null,null,null,null,null,null,null,null,null,null,null,null,null,null,null,null,null,null,null,null,null,null,null,null,null,null,null,null,null,null,null,null,null,null,null,null,null,null,null,null,null,null,null,null,null,null,null,null,null,null,null,null,null,null,null,null,null,null,null,null,null,null,null,null,null,null,null,null,null,null,null,null,null,null,null,null,null,null,null,null,null,null,null,null,null,null,null,null,null,null,null,null,null,null,null,null,null,null,null,null,null,null,null,null,null,null,null,null,null,null,null,null,null,null,null,null,null,null,null,null,null,null,null,null,null,null,null,null,null,null,null,null,null,null,null,null,null,null,null,null,null,null,null,null,null,null,null,null,null,null,null,null,null,null,null,null,null,null,null,null,null,null,null,null,null,null,null,null,null,null,null,null,null,null,null,null,null,null,null,null,null,null,null,null,null,null,null,null,null,null,null,null,null,null,null,null,null,null,null,null,null,null,null,null,null,null,null,null,null,null,null,null,null,null,null,null,null,null,null,null,null,null,null,null,null,null,null,null,null,null,null,null,null,null,null,null,null,null,null,null,null,null,null,null,null,null,null,null,null,null,null,null,null,null,null,null,null,null,null,null,null,null,null,null,null,null,null,null,null,null,null,null,null,null,null,null,null,null,null,null,null,null,null,null,null,null,null,null,null,null,null,null,null,null,null,null,null,null,null,null,null,null,null,null,null,null,null,null,null,null,null,null,null,null,null,null,null,null,null,null,null,null,null,null,null,null,null,null,null,null,null,null,null,null,null,null,null,null,null,null,null,null,null,null,null,null,null,null,null,null,null,null,null,null,null,null,null,null,null,null,null,null,null,null,null,null,null,null,null,null,null,null,null,null,null,null,null,null,null,null,null,null,null,null,null,null,null,null,null,null,null,null,null,null,null,null,null,null,null,null,null,null,null,null,null,null,null,null,null,null,null,null,null,null,null,null,null,null,null,null,null,null,null,null,null,null,null,null,null,null,null,null,null,null,null,null,null,null,null,null,null,null,null,null,null,null,null,null,null,null,null,null,null,null,null,null,null,null,null,null,null,null,null,null,null,null,null,null,null,null,null,null,null,null,null,null,null,null,null,null,null,null,null,null,null,null,null,null,null,null,null,null,null,null,null,null,null,null,null,null,null,null,null,null,null,null,null,null,null,null,null,null,null,null,null,null,null,null,null,null,null,null,null,null,null,null,null,null,null,null,null,null,null,null,null,null,null,null,null,null,null,null,null,null,null,null,null,null,null,null,null,null,null,null,null,null,null,null,null,null,null,null,null,null,null,null,null,null,null,null,null,null,null,null,null,null,null,null,null,null,null,null,null,null,null,null,null,null,null,null,null,null,null,null,null,null,null,null,null,null,null,null,null,null,null,null,null,null,null,null,null,null,null,null,null,null,null,null,null,null,null,null,null,null,null,null,null,null,null,null,null,null,null,null,null,null,null,null,null,null,null,null,null,null,null,null,null,null,null,null,null,null,null,null,null,null,null,null,null,null,null,null,null,null,null,null,null,null,null,null,null,null,null,null,null,null,null,null,null,null,null,null,null,null,null,null,null,null,null,null,null,null,null,null,null,null,null,null,null,null,null,null,null,null,null,null,null,null,null,null,null,null,null,null,null,null,null,null,null,null,null,null,null,null,null,null,null,null,null,null,null,null,null,null,null,null,null,null,null,null,null,null,null,null,null,null,null,null,null,null,null,null,null,null,null,null,null,null,null,null,null,null,null,null,null,null,null,null,null,null,null,null,null,null,null,null,null,null,null,null,null,null,null,null,null,null,null,null,null,null,null,null,null,null,null,null,null,null,null,null,null,null,null,null,null,null,null,null,null,null,null,null,null,null,null,null,null,null,null,null,null,null,null,null,null,null,null,null,null,null,null,null,null,null,null,null,null,null,null,null,null,null,null,null,null,null,null,null,null,null,null,null,null,null,null,null,null,null,null,null,null,null,null,null,null,null,null,null,null,null,null,null,null,null,null,null,null,null,null,null,null,null,null,null,null,null,null,null,null,null,null,null,null,null,null,null,null,null,null,null,null,null,null,null,null,null,null,null,null,null,null,null,null,null,null,null,null,null,null,null,null,null,null,null,null,null,null,null,null,null,null,null,null,null,null,null,null,null,null,null,null,null,null,null,null,null,null,null,null,null,null,null,null,null,null,null,null,null,null,null,null,null,null,null,null,null,null,null,null,null,null,null,null,null,null,null,null,null,null,null,null,null,null,null,null,null,null,null,null,null,null,null,null,null,null,null,null,null,null,null,null,null,null,null,null,null,null,null,null,null,null,null,null,null,null,null,null,null,null,null,null,null,null,null,null,null,null,null,null,null,null,null,null,null,null,null,null,null,null,null,null,null,null,null,null,null,null,null,null,null,null,null,null,null,null,null,null,null,null,null,null,null,null,null,null,null,null,null,null,null,null,null,null,null,null,null,null,null,null,null,null,null,null,null,null,null,null,null,null,null,null,null,null,null,null,null,null,null,null,null,null,null,null,null,null,null,null,null,null,null,null,null,null,null,null,null,null,null,null,null,null,null,null,null,null,null,null,null,null,null,null,null,null,null,null,null,null,null,null,null,null,null,null,null,null,null,null,null,null,null,null,null,null,null,null,null,null,null,null,null,null,null,null,null,null,null,null,null,null,null,null,null,null,null,null,null,null,null,null,null,null,null,null,null,null,null,null,null,null,null,null,null,null,null,null,null,null,null,null,null,null,null,null,null,null,null,null,null,null,null,null,null,null,null,null,null,null,null,null,null,null,null,null,null,null,null,null,null,null,null,null,null,null,null,null,null,null,null,null,null,null,null,null,null,null,null,null,null,null,null,null,null,null,null,null,null,null,null,null,null,null,null,null,null,null,null,null,null,null,null,null,null,null,null,null,null,null,null,null,null,null,null,null,null,null,null,null,null,null,null,null,null,null,null,null,null,null,null,null,null,null,null,null,null,null,null,null,null,null,null,null,null,null,null,null,null,null,null,null,null,null,null,null,null,null,null,null,null,null,null,null,null,null,null,null,null,null,null,null,null,null,null,null,null,null,null,null,null,null,null,null,null,null,null,null,null,null,null,null,null,null,null,null,null,null,null,null,null,null,null,null,null,null,null,null,null,null,null,null,null,null,null,null,null,null,null,null,null,null,null,null,null,null,null,null,null,null,null,null,null,null,null,null,null,null,null,null,null,null,null,null,null,null,null,null,null,null,null,null,null,null,null,null,null,null,null,null,null,null,null,null,null,null,null,null,null,null,null,null,null,null,null,null,null,null,null,null,null,null,null,null,null,null,null,null,null,null,null,null,null,null,null,null,null,null,null,null,null,null,null,null,null,null,"96 : Barra de cereal con verduras.",5]
["FRUTOS SECOS",null,null,null,null,null,null,null,null,null,null,null,null,null,null,null,null,null,null,null,null,null,null,null,null,"EL BAGRE",null,null,null,null,null,null,null,null,null,null,null,"EL BAGRE",null,null,"EL BAGRE",null,null,null,null,null,null,null,null,null,null,null,null,null,null,null,null,null,null,null,null,null,null,null,null,null,null,null,null,null,null,null,null,null,null,null,null,null,null,null,null,null,null,null,null,null,null,null,null,null,null,null,null,null,null,null,null,null,null,null,null,null,null,null,null,null,null,null,null,null,null,null,null,null,null,null,null,null,null,null,null,null,null,null,null,null,null,null,null,null,null,null,null,null,null,null,null,null,null,null,null,null,null,null,null,null,null,null,null,null,null,null,null,null,null,null,null,null,null,null,null,null,null,null,null,null,null,null,null,null,null,null,null,null,null,null,null,null,null,null,null,null,null,null,null,null,null,null,null,null,null,null,null,null,null,null,null,null,null,null,null,null,null,null,null,null,null,null,null,null,null,null,null,null,null,null,null,null,null,null,null,null,null,null,null,null,null,null,null,null,null,null,null,null,null,null,null,null,null,null,null,null,null,null,null,null,null,null,null,null,null,null,null,null,null,null,null,null,null,null,null,null,null,null,null,null,null,null,null,null,null,null,null,null,null,null,null,null,null,null,null,null,null,null,null,null,null,null,null,null,null,null,null,null,null,null,null,null,null,null,null,null,null,null,null,null,null,null,null,null,null,null,null,null,null,null,null,null,null,null,null,null,null,null,null,null,null,null,null,null,null,null,null,null,null,null,null,null,null,null,null,null,null,null,null,null,null,null,null,null,null,null,null,null,null,null,null,null,null,null,null,null,null,null,null,null,null,null,null,null,null,null,null,null,null,null,null,null,null,null,null,null,null,null,null,null,null,null,null,null,null,null,null,null,null,null,null,null,null,null,null,null,null,null,null,null,null,null,null,null,null,null,null,null,null,null,null,null,null,null,null,null,null,null,null,null,null,null,null,null,null,null,null,null,null,null,null,null,null,null,null,null,null,null,null,null,null,null,null,null,null,null,null,null,null,null,null,null,null,null,null,null,null,null,null,null,null,null,null,null,null,null,null,null,null,null,null,null,null,null,null,null,null,null,null,null,null,null,null,null,null,null,null,null,null,null,null,null,null,null,null,null,null,null,null,null,null,null,null,null,null,null,null,null,null,null,null,null,null,null,null,null,null,null,null,null,null,null,null,null,null,null,null,null,null,null,null,null,null,null,null,null,null,null,null,null,null,null,null,null,null,null,null,null,null,null,null,null,null,null,null,null,null,null,null,null,null,null,null,null,null,null,null,null,null,null,null,null,null,null,null,null,null,null,null,null,null,null,null,null,null,null,null,null,null,null,null,null,null,null,null,null,null,null,null,null,null,null,null,null,null,null,null,null,null,null,null,null,null,null,null,null,null,null,null,null,null,null,null,null,null,null,null,null,null,null,null,null,null,null,null,null,null,null,null,null,null,null,null,null,null,null,null,null,null,null,null,null,null,null,null,null,null,null,null,null,null,null,null,null,null,null,null,null,null,null,null,null,null,null,null,null,null,null,null,null,null,null,null,null,null,null,null,null,null,null,null,null,null,null,null,null,null,null,null,null,null,null,null,null,null,null,null,null,null,null,null,null,null,null,null,null,null,null,null,null,null,null,null,null,null,null,null,null,null,null,null,null,null,null,null,null,null,null,null,null,null,null,null,null,null,null,null,null,null,null,null,null,null,null,null,null,null,null,null,null,null,null,null,null,null,null,null,null,null,null,null,null,null,null,null,null,null,null,null,null,null,null,null,null,null,null,null,null,null,null,null,null,null,null,null,null,null,null,null,null,null,null,null,null,null,null,null,null,null,null,null,null,null,null,null,null,null,null,null,null,null,null,null,null,null,null,null,null,null,null,null,null,null,null,null,null,null,null,null,null,null,null,null,null,null,null,null,null,null,null,null,null,null,null,null,null,null,null,null,null,null,null,null,null,null,null,null,null,null,null,null,null,null,null,null,null,null,null,null,null,null,null,null,null,null,null,null,null,null,null,null,null,null,null,null,null,null,null,null,null,null,null,null,null,null,null,null,null,null,null,null,null,null,null,null,null,null,null,null,null,null,null,null,null,null,null,null,null,null,null,null,null,null,null,null,null,null,null,null,null,null,null,null,null,null,null,null,null,null,null,null,null,null,null,null,null,null,null,null,null,null,null,null,null,null,null,null,null,null,null,null,null,null,null,null,null,null,null,null,null,null,null,null,null,null,null,null,null,null,null,null,null,null,null,null,null,null,null,null,null,null,null,null,null,null,null,null,null,null,null,null,null,null,null,null,null,null,null,null,null,null,null,null,null,null,null,null,null,null,null,null,null,null,null,null,null,null,null,null,null,null,null,null,null,null,null,null,null,null,null,null,null,null,null,null,null,null,null,null,null,null,null,null,null,null,null,null,null,null,null,null,null,null,null,null,null,null,null,null,null,null,null,null,null,null,null,null,null,null,null,null,null,null,null,null,null,null,null,null,null,null,null,null,null,null,null,null,null,null,null,null,null,null,null,null,null,null,null,null,null,null,null,null,null,null,null,null,null,null,null,null,null,null,null,null,null,null,null,null,null,null,null,null,null,null,null,null,null,null,null,null,null,null,null,null,null,null,null,null,null,null,null,null,null,null,null,null,null,null,null,null,null,null,null,null,null,null,null,null,null,null,null,null,null,null,null,null,null,null,null,null,null,null,null,null,null,null,null,null,null,null,null,null,null,null,null,null,null,null,null,null,null,null,null,null,null,null,null,null,null,null,null,null,null,null,null,null,null,null,null,null,null,null,null,null,null,null,null,null,null,null,null,null,null,null,null,null,null,null,null,null,null,null,null,null,null,null,null,null,null,null,null,null,null,null,null,null,null,null,null,null,null,null,null,null,null,null,null,null,null,null,null,null,null,null,null,null,null,null,null,null,null,null,null,null,null,null,null,null,null,null,null,null,null,null,null,null,null,null,null,null,null,null,null,null,null,null,null,null,null,null,null,null,null,null,null,null,null,null,null,null,null,null,null,null,null,null,null,null,null,null,null,null,null,null,null,null,null,null,null,null,null,null,null,null,null,null,null,null,null,null,null,null,null,null,null,null,null,null,null,null,null,null,null,null,null,null,null,null,null,null,null,null,null,null,null,null,null,null,null,null,null,null,null,null,null,null,null,null,null,null,null,null,null,null,null,null,null,null,null,null,null,null,null,null,null,null,null,null,null,null,null,null,null,null,null,null,null,null,null,null,null,null,null,null,null,null,null,null,null,null,null,null,null,null,null,null,null,null,null,null,null,null,null,null,null,null,null,null,null,null,null,null,null,null,null,null,null,null,null,null,null,null,null,null,null,null,null,null,null,null,null,null,null,null,null,null,null,null,null,null,null,null,null,null,null,null,null,null,null,null,null,null,null,null,null,null,null,null,null,null,null,null,null,null,null,null,null,null,null,null,null,null,null,null,null,null,null,null,null,null,null,null,null,null,null,null,null,null,null,null,null,null,null,null,null,null,null,null,null,null,null,null,null,null,null,null,null,null,null,null,null,null,null,null,null,null,null,null,null,null,null,null,null,null,null,null,null,null,null,null,null,null,null,null,null,null,null,null,null,null,null,null,null,null,null,null,null,null,null,null,null,null,null,null,null,null,null,null,null,null,null,null,null,null,null,null,null,null,null,null,null,null,null,null,null,null,null,null,null,null,null,null,null,null,null,null,null,null,null,null,null,null,null,null,null,null,null,null,null,null,null,null,null,null,null,null,null,null,null,null,null,null,null,null,null,null,null,null,null,null,null,null,null,null,null,null,null,null,null,null,null,null,null,null,null,null,null,null,null,null,null,null,null,null,null,null,null,null,null,null,null,null,null,null,null,null,null,null,null,null,null,null,null,null,null,null,null,null,null,null,null,null,null,null,null,null,null,null,null,null,null,null,null,null,null,null,null,null,null,null,null,null,null,null,null,null,null,null,null,null,null,null,null,null,null,null,null,null,null,null,null,null,null,null,null,null,null,null,null,null,null,null,null,null,null,null,null,null,null,null,null,null,null,null,null,null,null,null,null,null,null,null,null,null,null,null,null,null,null,null,null,null,null,null,null,null,null,null,null,null,null,null,null,null,null,null,null,null,null,null,null,null,null,null,null,null,null,null,null,null,null,null,null,null,null,null,null,null,null,null,null,null,null,null,null,null,null,null,null,null,null,null,null,null,null,null,null,null,null,null,null,null,null,null,null,null,null,null,null,null,null,null,null,null,null,null,null,null,null,null,null,null,null,null,null,null,null,null,null,null,null,null,null,null,null,null,null,null,null,null,null,null,null,null,null,null,null,null,null,null,null,null,null,null,null,null,null,null,null,null,null,null,null,null,null,null,null,null,null,null,null,null,null,null,null,null,null,null,null,null,null,null,null,null,null,null,null,null,null,null,null,null,null,null,null,null,null,null,null,null,null,null,null,null,null,null,null,null,null,null,null,null,null,null,null,null,null,null,null,null,null,null,null,null,null,null,null,null,null,null,null,null,null,null,null,null,null,null,null,null,null,null,null,null,null,null,null,null,null,null,null,null,null,null,null,null,null,null,null,null,null,null,null,null,null,null,null,null,null,null,null,null,null,null,null,null,null,null,null,null,null,null,null,null,null,null,null,null,null,null,null,null,null,null,null,null,null,null,null,null,null,null,null,null,null,null,null,null,null,null,null,null,null,null,null,null,null,null,null,null,null,null,null,null,null,null,null,null,null,null,null,null,null,null,null,null,null,null,null,null,null,null,null,null,null,null,null,null,null,null,null,null,null,null,null,null,null,null,null,null,null,null,null,null,null,null,null,null,null,null,null,null,null,null,null,null,null,null,null,null,null,null,null,null,null,null,null,null,null,null,null,null,null,null,null,null,null,null,null,null,null,null,null,null,null,null,null,null,null,null,null,null,null,null,null,null,null,null,null,null,null,null,null,null,null,null,null,null,null,null,null,null,null,null,null,null,null,null,null,null,null,null,null,null,null,null,null,null,null,null,null,null,null,null,null,null,null,null,null,null,null,null,null,null,null,null,null,null,null,null,null,null,null,null,null,null,null,null,null,null,null,null,null,null,null,null,null,null,null,null,null,null,null,null,null,null,null,null,null,null,null,null,null,null,null,null,null,null,null,null,null,null,null,null,null,null,null,null,null,null,null,null,null,null,null,null,null,null,null,null,null,null,null,null,null,null,null,null,null,null,null,null,null,null,null,null,null,null,null,null,null,null,null,null,null,null,null,null,null,null,null,null,null,null,null,null,null,null,null,null,null,null,null,null,null,null,null,null,null,null,null,null,null,null,null,null,null,null,null,null,null,null,null,null,null,null,null,null,null,null,null,null,null,null,null,null,null,null,null,null,null,null,null,null,null,null,null,null,null,null,null,null,null,null,null,null,null,null,null,null,null,null,null,null,null,null,null,null,null,null,null,null,null,null,null,null,null,null,null,null,null,null,null,null,null,null,null,null,null,null,null,null,null,null,null,null,null,null,null,null,null,null,null,null,null,null,null,null,null,null,null,null,null,null,null,null,null,null,null,null,null,null,null,null,null,null,null,null,null,null,"99 : Snacks de frutas deshidratadas con cobertura de chocolate (excepto uchuva).",6]
["NECTAR Y CONCENTRADO DE FRUTA",null,null,null,null,null,null,null,null,null,null,null,null,null,null,null,null,null,null,null,null,null,null,null,null,"MEDELLÍN",null,null,null,null,null,null,null,null,null,null,null,"MEDELLÍN",null,null,"MEDELLÍN",null,null,null,null,null,null,null,null,null,null,null,null,null,null,null,null,null,null,null,null,null,null,null,null,null,null,null,null,null,null,null,null,null,null,null,null,null,null,null,null,null,null,null,null,null,null,null,null,null,null,null,null,null,null,null,null,null,null,null,null,null,null,null,null,null,null,null,null,null,null,null,null,null,null,null,null,null,null,null,null,null,null,null,null,null,null,null,null,null,null,null,null,null,null,null,null,null,null,null,null,null,null,null,null,null,null,null,null,null,null,null,null,null,null,null,null,null,null,null,null,null,null,null,null,null,null,null,null,null,null,null,null,null,null,null,null,null,null,null,null,null,null,null,null,null,null,null,null,null,null,null,null,null,null,null,null,null,null,null,null,null,null,null,null,null,null,null,null,null,null,null,null,null,null,null,null,null,null,null,null,null,null,null,null,null,null,null,null,null,null,null,null,null,null,null,null,null,null,null,null,null,null,null,null,null,null,null,null,null,null,null,null,null,null,null,null,null,null,null,null,null,null,null,null,null,null,null,null,null,null,null,null,null,null,null,null,null,null,null,null,null,null,null,null,null,null,null,null,null,null,null,null,null,null,null,null,null,null,null,null,null,null,null,null,null,null,null,null,null,null,null,null,null,null,null,null,null,null,null,null,null,null,null,null,null,null,null,null,null,null,null,null,null,null,null,null,null,null,null,null,null,null,null,null,null,null,null,null,null,null,null,null,null,null,null,null,null,null,null,null,null,null,null,null,null,null,null,null,null,null,null,null,null,null,null,null,null,null,null,null,null,null,null,null,null,null,null,null,null,null,null,null,null,null,null,null,null,null,null,null,null,null,null,null,null,null,null,null,null,null,null,null,null,null,null,null,null,null,null,null,null,null,null,null,null,null,null,null,null,null,null,null,null,null,null,null,null,null,null,null,null,null,null,null,null,null,null,null,null,null,null,null,null,null,null,null,null,null,null,null,null,null,null,null,null,null,null,null,null,null,null,null,null,null,null,null,null,null,null,null,null,null,null,null,null,null,null,null,null,null,null,null,null,null,null,null,null,null,null,null,null,null,null,null,null,null,null,null,null,null,null,null,null,null,null,null,null,null,null,null,null,null,null,null,null,null,null,null,null,null,null,null,null,null,null,null,null,null,null,null,null,null,null,null,null,null,null,null,null,null,null,null,null,null,null,null,null,null,null,null,null,null,null,null,null,null,null,null,null,null,null,null,null,null,null,null,null,null,null,null,null,null,null,null,null,null,null,null,null,null,null,null,null,null,null,null,null,null,null,null,null,null,null,null,null,null,null,null,null,null,null,null,null,null,null,null,null,null,null,null,null,null,null,null,null,null,null,null,null,null,null,null,null,null,null,null,null,null,null,null,null,null,null,null,null,null,null,null,null,null,null,null,null,null,null,null,null,null,null,null,null,null,null,null,null,null,null,null,null,null,null,null,null,null,null,null,null,null,null,null,null,null,null,null,null,null,null,null,null,null,null,null,null,null,null,null,null,null,null,null,null,null,null,null,null,null,null,null,null,null,null,null,null,null,null,null,null,null,null,null,null,null,null,null,null,null,null,null,null,null,null,null,null,null,null,null,null,null,null,null,null,null,null,null,null,null,null,null,null,null,null,null,null,null,null,null,null,null,null,null,null,null,null,null,null,null,null,null,null,null,null,null,null,null,null,null,null,null,null,null,null,null,null,null,null,null,null,null,null,null,null,null,null,null,null,null,null,null,null,null,null,null,null,null,null,null,null,null,null,null,null,null,null,null,null,null,null,null,null,null,null,null,null,null,null,null,null,null,null,null,null,null,null,null,null,null,null,null,null,null,null,null,null,null,null,null,null,null,null,null,null,null,null,null,null,null,null,null,null,null,null,null,null,null,null,null,null,null,null,null,null,null,null,null,null,null,null,null,null,null,null,null,null,null,null,null,null,null,null,null,null,null,null,null,null,null,null,null,null,null,null,null,null,null,null,null,null,null,null,null,null,null,null,null,null,null,null,null,null,null,null,null,null,null,null,null,null,null,null,null,null,null,null,null,null,null,null,null,null,null,null,null,null,null,null,null,null,null,null,null,null,null,null,null,null,null,null,null,null,null,null,null,null,null,null,null,null,null,null,null,null,null,null,null,null,null,null,null,null,null,null,null,null,null,null,null,null,null,null,null,null,null,null,null,null,null,null,null,null,null,null,null,null,null,null,null,null,null,null,null,null,null,null,null,null,null,null,null,null,null,null,null,null,null,null,null,null,null,null,null,null,null,null,null,null,null,null,null,null,null,null,null,null,null,null,null,null,null,null,null,null,null,null,null,null,null,null,null,null,null,null,null,null,null,null,null,null,null,null,null,null,null,null,null,null,null,null,null,null,null,null,null,null,null,null,null,null,null,null,null,null,null,null,null,null,null,null,null,null,null,null,null,null,null,null,null,null,null,null,null,null,null,null,null,null,null,null,null,null,null,null,null,null,null,null,null,null,null,null,null,null,null,null,null,null,null,null,null,null,null,null,null,null,null,null,null,null,null,null,null,null,null,null,null,null,null,null,null,null,null,null,null,null,null,null,null,null,null,null,null,null,null,null,null,null,null,null,null,null,null,null,null,null,null,null,null,null,null,null,null,null,null,null,null,null,null,null,null,null,null,null,null,null,null,null,null,null,null,null,null,null,null,null,null,null,null,null,null,null,null,null,null,null,null,null,null,null,null,null,null,null,null,null,null,null,null,null,null,null,null,null,null,null,null,null,null,null,null,null,null,null,null,null,null,null,null,null,null,null,null,null,null,null,null,null,null,null,null,null,null,null,null,null,null,null,null,null,null,null,null,null,null,null,null,null,null,null,null,null,null,null,null,null,null,null,null,null,null,null,null,null,null,null,null,null,null,null,null,null,null,null,null,null,null,null,null,null,null,null,null,null,null,null,null,null,null,null,null,null,null,null,null,null,null,null,null,null,null,null,null,null,null,null,null,null,null,null,null,null,null,null,null,null,null,null,null,null,null,null,null,null,null,null,null,null,null,null,null,null,null,null,null,null,null,null,null,null,null,null,null,null,null,null,null,null,null,null,null,null,null,null,null,null,null,null,null,null,null,null,null,null,null,null,null,null,null,null,null,null,null,null,null,null,null,null,null,null,null,null,null,null,null,null,null,null,null,null,null,null,null,null,null,null,null,null,null,null,null,null,null,null,null,null,null,null,null,null,null,null,null,null,null,null,null,null,null,null,null,null,null,null,null,null,null,null,null,null,null,null,null,null,null,null,null,null,null,null,null,null,null,null,null,null,null,null,null,null,null,null,null,null,null,null,null,null,null,null,null,null,null,null,null,null,null,null,null,null,null,null,null,null,null,null,null,null,null,null,null,null,null,null,null,null,null,null,null,null,null,null,null,null,null,null,null,null,null,null,null,null,null,null,null,null,null,null,null,null,null,null,null,null,null,null,null,null,null,null,null,null,null,null,null,null,null,null,null,null,null,null,null,null,null,null,null,null,null,null,null,null,null,null,null,null,null,null,null,null,null,null,null,null,null,null,null,null,null,null,null,null,null,null,null,null,null,null,null,null,null,null,null,null,null,null,null,null,null,null,null,null,null,null,null,null,null,null,null,null,null,null,null,null,null,null,null,null,null,null,null,null,null,null,null,null,null,null,null,null,null,null,null,null,null,null,null,null,null,null,null,null,null,null,null,null,null,null,null,null,null,null,null,null,null,null,null,null,null,null,null,null,null,null,null,null,null,null,null,null,null,null,null,null,null,null,null,null,null,null,null,null,null,null,null,null,null,null,null,null,null,null,null,null,null,null,null,null,null,null,null,null,null,null,null,null,null,null,null,null,null,null,null,null,null,null,null,null,null,null,null,null,null,null,null,null,null,null,null,null,null,null,null,null,null,null,null,null,null,null,null,null,null,null,null,null,null,null,null,null,null,null,null,null,null,null,null,null,null,null,null,null,null,null,null,null,null,null,null,null,null,null,null,null,null,null,null,null,null,null,null,null,null,null,null,null,null,null,null,null,null,null,null,null,null,null,null,null,null,null,null,null,null,null,null,null,null,null,null,null,null,null,null,null,null,null,null,null,null,null,null,null,null,null,null,null,null,null,null,null,null,null,null,null,null,null,null,null,null,null,null,null,null,null,null,null,null,null,null,null,null,null,null,null,null,null,null,null,null,null,null,null,null,null,null,null,null,null,null,null,null,null,null,null,null,null,null,null,null,null,null,null,null,null,null,null,null,null,null,null,null,null,null,null,null,null,null,null,null,null,null,null,null,null,null,null,null,null,null,null,null,null,null,null,null,null,null,null,null,null,null,null,null,null,null,null,null,null,null,null,null,null,null,null,null,null,null,null,null,null,null,null,null,null,null,null,null,null,null,null,null,null,null,null,null,null,null,null,null,null,null,null,null,null,null,null,null,null,null,null,null,null,null,null,null,null,null,null,null,null,null,null,null,null,null,null,null,null,null,null,null,null,null,null,null,null,null,null,null,null,null,null,null,null,null,null,null,null,null,null,null,null,null,null,null,null,null,null,null,null,null,null,null,null,null,null,null,null,null,null,null,null,null,null,null,null,null,null,null,null,null,null,null,null,null,null,null,null,null,null,null,null,null,null,null,null,null,null,null,null,null,null,null,null,null,null,null,null,null,null,null,null,null,null,null,null,null,null,null,null,null,null,null,null,null,null,null,null,null,null,null,null,null,null,null,null,null,null,null,null,null,null,null,null,null,null,null,null,null,null,null,null,null,null,null,null,null,null,null,null,null,null,null,null,null,null,null,null,null,null,null,null,null,null,null,null,null,null,null,null,null,null,null,null,null,null,null,null,null,null,null,null,null,null,null,null,null,null,null,null,null,null,null,null,null,null,null,null,null,null,null,null,null,null,null,null,null,null,null,null,null,null,null,null,null,null,null,null,null,null,null,null,null,null,null,null,null,null,null,null,null,null,null,null,null,null,null,null,null,null,null,null,null,null,null,null,null,null,null,null,null,null,null,null,null,null,null,null,null,null,null,null,null,null,null,null,null,null,null,null,null,null,null,null,null,null,null,null,null,null,null,null,null,null,null,null,null,null,null,null,null,null,null,null,null,null,null,null,null,null,null,null,null,null,null,null,null,null,null,null,null,null,null,null,null,null,null,null,null,null,null,null,null,null,null,null,null,null,null,null,null,null,null,null,null,null,null,null,null,null,null,null,null,null,null,null,null,null,null,null,null,null,null,null,null,null,null,null,null,null,null,null,null,null,null,null,null,null,null,null,null,null,null,null,null,null,null,null,null,null,null,null,null,null,null,null,null,null,null,null,null,null,null,null,null,null,null,null,null,null,null,null,null,null,null,null,null,null,null,null,null,null,null,null,null,null,null,null,null,null,null,null,null,null,null,null,null,null,null,null,null,null,null,null,null,null,null,null,null,null,null,null,null,null,null,null,null,null,null,null,null,null,null,null,null,null,null,null,null,null,null,null,null,null,null,null,null,null,null,null,null,null,null,null,null,null,null,null,null,null,7]
["POSTRES",null,null,null,null,null,null,null,null,null,null,null,null,null,null,null,null,null,null,null,null,null,null,null,null,"MUTATÁ",null,null,null,null,null,null,null,null,null,null,null,"MUTATÁ",null,null,"MUTATÁ",null,null,null,null,null,null,null,null,null,null,null,null,null,null,null,null,null,null,null,null,null,null,null,null,null,null,null,null,null,null,null,null,null,null,null,null,null,null,null,null,null,null,null,null,null,null,null,null,null,null,null,null,null,null,null,null,null,null,null,null,null,null,null,null,null,null,null,null,null,null,null,null,null,null,null,null,null,null,null,null,null,null,null,null,null,null,null,null,null,null,null,null,null,null,null,null,null,null,null,null,null,null,null,null,null,null,null,null,null,null,null,null,null,null,null,null,null,null,null,null,null,null,null,null,null,null,null,null,null,null,null,null,null,null,null,null,null,null,null,null,null,null,null,null,null,null,null,null,null,null,null,null,null,null,null,null,null,null,null,null,null,null,null,null,null,null,null,null,null,null,null,null,null,null,null,null,null,null,null,null,null,null,null,null,null,null,null,null,null,null,null,null,null,null,null,null,null,null,null,null,null,null,null,null,null,null,null,null,null,null,null,null,null,null,null,null,null,null,null,null,null,null,null,null,null,null,null,null,null,null,null,null,null,null,null,null,null,null,null,null,null,null,null,null,null,null,null,null,null,null,null,null,null,null,null,null,null,null,null,null,null,null,null,null,null,null,null,null,null,null,null,null,null,null,null,null,null,null,null,null,null,null,null,null,null,null,null,null,null,null,null,null,null,null,null,null,null,null,null,null,null,null,null,null,null,null,null,null,null,null,null,null,null,null,null,null,null,null,null,null,null,null,null,null,null,null,null,null,null,null,null,null,null,null,null,null,null,null,null,null,null,null,null,null,null,null,null,null,null,null,null,null,null,null,null,null,null,null,null,null,null,null,null,null,null,null,null,null,null,null,null,null,null,null,null,null,null,null,null,null,null,null,null,null,null,null,null,null,null,null,null,null,null,null,null,null,null,null,null,null,null,null,null,null,null,null,null,null,null,null,null,null,null,null,null,null,null,null,null,null,null,null,null,null,null,null,null,null,null,null,null,null,null,null,null,null,null,null,null,null,null,null,null,null,null,null,null,null,null,null,null,null,null,null,null,null,null,null,null,null,null,null,null,null,null,null,null,null,null,null,null,null,null,null,null,null,null,null,null,null,null,null,null,null,null,null,null,null,null,null,null,null,null,null,null,null,null,null,null,null,null,null,null,null,null,null,null,null,null,null,null,null,null,null,null,null,null,null,null,null,null,null,null,null,null,null,null,null,null,null,null,null,null,null,null,null,null,null,null,null,null,null,null,null,null,null,null,null,null,null,null,null,null,null,null,null,null,null,null,null,null,null,null,null,null,null,null,null,null,null,null,null,null,null,null,null,null,null,null,null,null,null,null,null,null,null,null,null,null,null,null,null,null,null,null,null,null,null,null,null,null,null,null,null,null,null,null,null,null,null,null,null,null,null,null,null,null,null,null,null,null,null,null,null,null,null,null,null,null,null,null,null,null,null,null,null,null,null,null,null,null,null,null,null,null,null,null,null,null,null,null,null,null,null,null,null,null,null,null,null,null,null,null,null,null,null,null,null,null,null,null,null,null,null,null,null,null,null,null,null,null,null,null,null,null,null,null,null,null,null,null,null,null,null,null,null,null,null,null,null,null,null,null,null,null,null,null,null,null,null,null,null,null,null,null,null,null,null,null,null,null,null,null,null,null,null,null,null,null,null,null,null,null,null,null,null,null,null,null,null,null,null,null,null,null,null,null,null,null,null,null,null,null,null,null,null,null,null,null,null,null,null,null,null,null,null,null,null,null,null,null,null,null,null,null,null,null,null,null,null,null,null,null,null,null,null,null,null,null,null,null,null,null,null,null,null,null,null,null,null,null,null,null,null,null,null,null,null,null,null,null,null,null,null,null,null,null,null,null,null,null,null,null,null,null,null,null,null,null,null,null,null,null,null,null,null,null,null,null,null,null,null,null,null,null,null,null,null,null,null,null,null,null,null,null,null,null,null,null,null,null,null,null,null,null,null,null,null,null,null,null,null,null,null,null,null,null,null,null,null,null,null,null,null,null,null,null,null,null,null,null,null,null,null,null,null,null,null,null,null,null,null,null,null,null,null,null,null,null,null,null,null,null,null,null,null,null,null,null,null,null,null,null,null,null,null,null,null,null,null,null,null,null,null,null,null,null,null,null,null,null,null,null,null,null,null,null,null,null,null,null,null,null,null,null,null,null,null,null,null,null,null,null,null,null,null,null,null,null,null,null,null,null,null,null,null,null,null,null,null,null,null,null,null,null,null,null,null,null,null,null,null,null,null,null,null,null,null,null,null,null,null,null,null,null,null,null,null,null,null,null,null,null,null,null,null,null,null,null,null,null,null,null,null,null,null,null,null,null,null,null,null,null,null,null,null,null,null,null,null,null,null,null,null,null,null,null,null,null,null,null,null,null,null,null,null,null,null,null,null,null,null,null,null,null,null,null,null,null,null,null,null,null,null,null,null,null,null,null,null,null,null,null,null,null,null,null,null,null,null,null,null,null,null,null,null,null,null,null,null,null,null,null,null,null,null,null,null,null,null,null,null,null,null,null,null,null,null,null,null,null,null,null,null,null,null,null,null,null,null,null,null,null,null,null,null,null,null,null,null,null,null,null,null,null,null,null,null,null,null,null,null,null,null,null,null,null,null,null,null,null,null,null,null,null,null,null,null,null,null,null,null,null,null,null,null,null,null,null,null,null,null,null,null,null,null,null,null,null,null,null,null,null,null,null,null,null,null,null,null,null,null,null,null,null,null,null,null,null,null,null,null,null,null,null,null,null,null,null,null,null,null,null,null,null,null,null,null,null,null,null,null,null,null,null,null,null,null,null,null,null,null,null,null,null,null,null,null,null,null,null,null,null,null,null,null,null,null,null,null,null,null,null,null,null,null,null,null,null,null,null,null,null,null,null,null,null,null,null,null,null,null,null,null,null,null,null,null,null,null,null,null,null,null,null,null,null,null,null,null,null,null,null,null,null,null,null,null,null,null,null,null,null,null,null,null,null,null,null,null,null,null,null,null,null,null,null,null,null,null,null,null,null,null,null,null,null,null,null,null,null,null,null,null,null,null,null,null,null,null,null,null,null,null,null,null,null,null,null,null,null,null,null,null,null,null,null,null,null,null,null,null,null,null,null,null,null,null,null,null,null,null,null,null,null,null,null,null,null,null,null,null,null,null,null,null,null,null,null,null,null,null,null,null,null,null,null,null,null,null,null,null,null,null,null,null,null,null,null,null,null,null,null,null,null,null,null,null,null,null,null,null,null,null,null,null,null,null,null,null,null,null,null,null,null,null,null,null,null,null,null,null,null,null,null,null,null,null,null,null,null,null,null,null,null,null,null,null,null,null,null,null,null,null,null,null,null,null,null,null,null,null,null,null,null,null,null,null,null,null,null,null,null,null,null,null,null,null,null,null,null,null,null,null,null,null,null,null,null,null,null,null,null,null,null,null,null,null,null,null,null,null,null,null,null,null,null,null,null,null,null,null,null,null,null,null,null,null,null,null,null,null,null,null,null,null,null,null,null,null,null,null,null,null,null,null,null,null,null,null,null,null,null,null,null,null,null,null,null,null,null,null,null,null,null,null,null,null,null,null,null,null,null,null,null,null,null,null,null,null,null,null,null,null,null,null,null,null,null,null,null,null,null,null,null,null,null,null,null,null,null,null,null,null,null,null,null,null,null,null,null,null,null,null,null,null,null,null,null,null,null,null,null,null,null,null,null,null,null,null,null,null,null,null,null,null,null,null,null,null,null,null,null,null,null,null,null,null,null,null,null,null,null,null,null,null,null,null,null,null,null,null,null,null,null,null,null,null,null,null,null,null,null,null,null,null,null,null,null,null,null,null,null,null,null,null,null,null,null,null,null,null,null,null,null,null,null,null,null,null,null,null,null,null,null,null,null,null,null,null,null,null,null,null,null,null,null,null,null,null,null,null,null,null,null,null,null,null,null,null,null,null,null,null,null,null,null,null,null,null,null,null,null,null,null,null,null,null,null,null,null,null,null,null,null,null,null,null,null,null,null,null,null,null,null,null,null,null,null,null,null,null,null,null,null,null,null,null,null,null,null,null,null,null,null,null,null,null,null,null,null,null,null,null,null,null,null,null,null,null,null,null,null,null,null,null,null,null,null,null,null,null,null,null,null,null,null,null,null,null,null,null,null,null,null,null,null,null,null,null,null,null,null,null,null,null,null,null,null,null,null,null,null,null,null,null,null,null,null,null,null,null,null,null,null,null,null,null,null,null,null,null,null,null,null,null,null,null,null,null,null,null,null,null,null,null,null,null,null,null,null,null,null,null,null,null,null,null,null,null,null,null,null,null,null,null,null,null,null,null,null,null,null,null,null,null,null,null,null,null,null,null,null,null,null,null,null,null,null,null,null,null,null,null,null,null,null,null,null,null,null,null,null,null,null,null,null,null,null,null,null,null,null,null,null,null,null,null,null,null,null,null,null,null,null,null,null,null,null,null,null,null,null,null,null,null,null,null,null,null,null,null,null,null,null,null,null,null,null,null,null,null,null,null,null,null,null,null,null,null,null,null,null,null,null,null,null,null,null,null,null,null,null,null,null,null,null,null,null,null,null,null,null,null,null,null,null,null,null,null,null,null,null,null,null,null,null,null,null,null,null,null,null,null,null,null,null,null,null,null,null,null,null,null,null,null,null,null,null,null,null,null,null,null,null,null,null,null,null,null,null,null,null,null,null,null,null,null,null,null,null,null,null,null,null,null,null,null,null,null,null,null,null,null,null,null,null,null,null,null,null,null,null,null,null,null,null,null,null,null,null,null,null,null,null,null,null,null,null,null,null,null,null,null,null,null,null,null,null,null,null,null,null,null,null,null,null,null,null,null,null,null,null,null,null,null,null,null,null,null,null,null,null,null,null,null,null,null,null,null,null,null,null,null,null,null,null,null,null,null,null,null,null,null,null,null,null,null,null,null,null,null,null,null,null,null,null,null,null,null,null,null,null,null,null,null,null,null,null,null,null,null,null,null,null,null,null,null,null,null,null,null,null,null,null,null,null,null,null,null,null,null,null,null,null,null,null,null,null,null,null,null,null,null,null,null,null,null,null,null,null,null,null,null,null,null,null,null,null,null,null,null,null,null,null,null,null,null,null,null,null,null,null,null,null,null,null,null,null,null,null,null,null,null,null,null,null,null,null,null,null,null,null,null,null,null,null,null,null,null,null,null,null,null,null,null,null,null,null,null,null,null,null,null,null,null,null,null,null,null,null,null,null,null,null,null,null,null,null,null,null,null,null,null,null,null,null,null,null,null,null,null,null,null,null,null,null,null,null,null,null,null,null,null,null,null,null,null,null,null,null,null,null,null,null,null,null,null,null,null,null,null,null,null,null,null,null,null,null,null,null,null,null,null,null,null,null,null,null,null,null,null,null,null,null,null,null,null,null,null,null,null,null,null,null,null,null,null,null,null,null,null,null,null,null,null,null,null,null,null,null,null,null,null,null,null,null,null,null,null,null,null,null,null,null,null,null,8]
["PREPARACIONES COMBINADAS",null,null,null,null,null,null,null,null,null,null,null,null,null,null,null,null,null,null,null,null,null,null,null,null,"NECOCLÍ",null,null,null,null,null,null,null,null,null,null,null,"NECOCLÍ",null,null,"NECOCLÍ",null,null,null,null,null,null,null,null,null,null,null,null,null,null,null,null,null,null,null,null,null,null,null,null,null,null,null,null,null,null,null,null,null,null,null,null,null,null,null,null,null,null,null,null,null,null,null,null,null,null,null,null,null,null,null,null,null,null,null,null,null,null,null,null,null,null,null,null,null,null,null,null,null,null,null,null,null,null,null,null,null,null,null,null,null,null,null,null,null,null,null,null,null,null,null,null,null,null,null,null,null,null,null,null,null,null,null,null,null,null,null,null,null,null,null,null,null,null,null,null,null,null,null,null,null,null,null,null,null,null,null,null,null,null,null,null,null,null,null,null,null,null,null,null,null,null,null,null,null,null,null,null,null,null,null,null,null,null,null,null,null,null,null,null,null,null,null,null,null,null,null,null,null,null,null,null,null,null,null,null,null,null,null,null,null,null,null,null,null,null,null,null,null,null,null,null,null,null,null,null,null,null,null,null,null,null,null,null,null,null,null,null,null,null,null,null,null,null,null,null,null,null,null,null,null,null,null,null,null,null,null,null,null,null,null,null,null,null,null,null,null,null,null,null,null,null,null,null,null,null,null,null,null,null,null,null,null,null,null,null,null,null,null,null,null,null,null,null,null,null,null,null,null,null,null,null,null,null,null,null,null,null,null,null,null,null,null,null,null,null,null,null,null,null,null,null,null,null,null,null,null,null,null,null,null,null,null,null,null,null,null,null,null,null,null,null,null,null,null,null,null,null,null,null,null,null,null,null,null,null,null,null,null,null,null,null,null,null,null,null,null,null,null,null,null,null,null,null,null,null,null,null,null,null,null,null,null,null,null,null,null,null,null,null,null,null,null,null,null,null,null,null,null,null,null,null,null,null,null,null,null,null,null,null,null,null,null,null,null,null,null,null,null,null,null,null,null,null,null,null,null,null,null,null,null,null,null,null,null,null,null,null,null,null,null,null,null,null,null,null,null,null,null,null,null,null,null,null,null,null,null,null,null,null,null,null,null,null,null,null,null,null,null,null,null,null,null,null,null,null,null,null,null,null,null,null,null,null,null,null,null,null,null,null,null,null,null,null,null,null,null,null,null,null,null,null,null,null,null,null,null,null,null,null,null,null,null,null,null,null,null,null,null,null,null,null,null,null,null,null,null,null,null,null,null,null,null,null,null,null,null,null,null,null,null,null,null,null,null,null,null,null,null,null,null,null,null,null,null,null,null,null,null,null,null,null,null,null,null,null,null,null,null,null,null,null,null,null,null,null,null,null,null,null,null,null,null,null,null,null,null,null,null,null,null,null,null,null,null,null,null,null,null,null,null,null,null,null,null,null,null,null,null,null,null,null,null,null,null,null,null,null,null,null,null,null,null,null,null,null,null,null,null,null,null,null,null,null,null,null,null,null,null,null,null,null,null,null,null,null,null,null,null,null,null,null,null,null,null,null,null,null,null,null,null,null,null,null,null,null,null,null,null,null,null,null,null,null,null,null,null,null,null,null,null,null,null,null,null,null,null,null,null,null,null,null,null,null,null,null,null,null,null,null,null,null,null,null,null,null,null,null,null,null,null,null,null,null,null,null,null,null,null,null,null,null,null,null,null,null,null,null,null,null,null,null,null,null,null,null,null,null,null,null,null,null,null,null,null,null,null,null,null,null,null,null,null,null,null,null,null,null,null,null,null,null,null,null,null,null,null,null,null,null,null,null,null,null,null,null,null,null,null,null,null,null,null,null,null,null,null,null,null,null,null,null,null,null,null,null,null,null,null,null,null,null,null,null,null,null,null,null,null,null,null,null,null,null,null,null,null,null,null,null,null,null,null,null,null,null,null,null,null,null,null,null,null,null,null,null,null,null,null,null,null,null,null,null,null,null,null,null,null,null,null,null,null,null,null,null,null,null,null,null,null,null,null,null,null,null,null,null,null,null,null,null,null,null,null,null,null,null,null,null,null,null,null,null,null,null,null,null,null,null,null,null,null,null,null,null,null,null,null,null,null,null,null,null,null,null,null,null,null,null,null,null,null,null,null,null,null,null,null,null,null,null,null,null,null,null,null,null,null,null,null,null,null,null,null,null,null,null,null,null,null,null,null,null,null,null,null,null,null,null,null,null,null,null,null,null,null,null,null,null,null,null,null,null,null,null,null,null,null,null,null,null,null,null,null,null,null,null,null,null,null,null,null,null,null,null,null,null,null,null,null,null,null,null,null,null,null,null,null,null,null,null,null,null,null,null,null,null,null,null,null,null,null,null,null,null,null,null,null,null,null,null,null,null,null,null,null,null,null,null,null,null,null,null,null,null,null,null,null,null,null,null,null,null,null,null,null,null,null,null,null,null,null,null,null,null,null,null,null,null,null,null,null,null,null,null,null,null,null,null,null,null,null,null,null,null,null,null,null,null,null,null,null,null,null,null,null,null,null,null,null,null,null,null,null,null,null,null,null,null,null,null,null,null,null,null,null,null,null,null,null,null,null,null,null,null,null,null,null,null,null,null,null,null,null,null,null,null,null,null,null,null,null,null,null,null,null,null,null,null,null,null,null,null,null,null,null,null,null,null,null,null,null,null,null,null,null,null,null,null,null,null,null,null,null,null,null,null,null,null,null,null,null,null,null,null,null,null,null,null,null,null,null,null,null,null,null,null,null,null,null,null,null,null,null,null,null,null,null,null,null,null,null,null,null,null,null,null,null,null,null,null,null,null,null,null,null,null,null,null,null,null,null,null,null,null,null,null,null,null,null,null,null,null,null,null,null,null,null,null,null,null,null,null,null,null,null,null,null,null,null,null,null,null,null,null,null,null,null,null,null,null,null,null,null,null,null,null,null,null,null,null,null,null,null,null,null,null,null,null,null,null,null,null,null,null,null,null,null,null,null,null,null,null,null,null,null,null,null,null,null,null,null,null,null,null,null,null,null,null,null,null,null,null,null,null,null,null,null,null,null,null,null,null,null,null,null,null,null,null,null,null,null,null,null,null,null,null,null,null,null,null,null,null,null,null,null,null,null,null,null,null,null,null,null,null,null,null,null,null,null,null,null,null,null,null,null,null,null,null,null,null,null,null,null,null,null,null,null,null,null,null,null,null,null,null,null,null,null,null,null,null,null,null,null,null,null,null,null,null,null,null,null,null,null,null,null,null,null,null,null,null,null,null,null,null,null,null,null,null,null,null,null,null,null,null,null,null,null,null,null,null,null,null,null,null,null,null,null,null,null,null,null,null,null,null,null,null,null,null,null,null,null,null,null,null,null,null,null,null,null,null,null,null,null,null,null,null,null,null,null,null,null,null,null,null,null,null,null,null,null,null,null,null,null,null,null,null,null,null,null,null,null,null,null,null,null,null,null,null,null,null,null,null,null,null,null,null,null,null,null,null,null,null,null,null,null,null,null,null,null,null,null,null,null,null,null,null,null,null,null,null,null,null,null,null,null,null,null,null,null,null,null,null,null,null,null,null,null,null,null,null,null,null,null,null,null,null,null,null,null,null,null,null,null,null,null,null,null,null,null,null,null,null,null,null,null,null,null,null,null,null,null,null,null,null,null,null,null,null,null,null,null,null,null,null,null,null,null,null,null,null,null,null,null,null,null,null,null,null,null,null,null,null,null,null,null,null,null,null,null,null,null,null,null,null,null,null,null,null,null,null,null,null,null,null,null,null,null,null,null,null,null,null,null,null,null,null,null,null,null,null,null,null,null,null,null,null,null,null,null,null,null,null,null,null,null,null,null,null,null,null,null,null,null,null,null,null,null,null,null,null,null,null,null,null,null,null,null,null,null,null,null,null,null,null,null,null,null,null,null,null,null,null,null,null,null,null,null,null,null,null,null,null,null,null,null,null,null,null,null,null,null,null,null,null,null,null,null,null,null,null,null,null,null,null,null,null,null,null,null,null,null,null,null,null,null,null,null,null,null,null,null,null,null,null,null,null,null,null,null,null,null,null,null,null,null,null,null,null,null,null,null,null,null,null,null,null,null,null,null,null,null,null,null,null,null,null,null,null,null,null,null,null,null,null,null,null,null,null,null,null,null,null,null,null,null,null,null,null,null,null,null,null,null,null,null,null,null,null,null,null,null,null,null,null,null,null,null,null,null,null,null,null,null,null,null,null,null,null,null,null,null,null,null,null,null,null,null,null,null,null,null,null,null,null,null,null,null,null,null,null,null,null,null,null,null,null,null,null,null,null,null,null,null,null,null,null,null,null,null,null,null,null,null,null,null,null,null,null,null,null,null,null,null,null,null,null,null,null,null,null,null,null,null,null,null,null,null,null,null,null,null,null,null,null,null,null,null,null,null,null,null,null,null,null,null,null,null,null,null,null,null,null,null,null,null,null,null,null,null,null,null,null,null,null,null,null,null,null,null,null,null,null,null,null,null,null,null,null,null,null,null,null,null,null,null,null,null,null,null,null,null,null,null,null,null,null,null,null,null,null,null,null,null,null,null,null,null,null,null,null,null,null,null,null,null,null,null,null,null,null,null,null,null,null,null,null,null,null,null,null,null,null,null,null,null,null,null,null,null,null,null,null,null,null,null,null,null,null,null,null,null,null,null,null,null,null,null,null,null,null,null,null,null,null,null,null,null,null,null,null,null,null,null,null,null,null,null,null,null,null,null,null,null,null,null,null,null,null,null,null,null,null,null,null,null,null,null,null,null,null,null,null,null,null,null,null,null,null,null,null,null,null,null,null,null,null,null,null,null,null,null,null,null,null,null,null,null,null,null,null,null,null,null,null,null,null,null,null,null,null,null,null,null,null,null,null,null,null,null,null,null,null,null,null,null,null,null,null,null,null,null,null,null,null,null,null,null,null,null,null,null,null,null,null,null,null,null,null,null,null,null,null,null,null,null,null,null,null,null,null,null,null,null,null,null,null,null,null,null,null,null,null,null,null,null,null,null,null,null,null,null,null,null,null,null,null,null,null,null,null,null,null,null,null,null,null,null,null,null,null,null,null,null,null,null,null,null,null,null,null,null,null,null,null,null,null,null,null,null,null,null,null,null,null,null,null,null,null,null,null,null,null,null,null,null,null,null,null,null,null,null,null,null,null,null,null,null,null,null,null,null,null,null,null,null,null,null,null,null,null,null,null,null,null,null,null,null,null,null,null,null,null,null,null,null,null,null,null,null,null,null,null,null,null,null,null,null,null,null,null,null,null,null,null,null,null,null,null,null,null,null,null,null,null,null,null,null,null,null,null,null,null,null,null,null,null,null,null,null,null,null,null,null,null,null,null,null,null,null,null,null,null,null,null,null,null,null,null,null,null,null,null,null,null,null,null,null,null,null,null,null,null,null,null,null,null,null,null,null,null,null,null,null,null,null,null,null,null,null,null,null,null,null,null,null,null,null,null,null,null,null,null,null,null,null,null,null,null,null,null,null,null,null,null,null,null,null,null,null,null,null,null,null,null,null,null,null,null,null,null,null,null,null,null,null,null,null,null,null,null,null,null,null,null,null,null,null,null,null,null,null,null,null,null,null,null,null,null,null,null,null,9]
["QUÉSOS",null,null,null,null,null,null,null,null,null,null,null,null,null,null,null,null,null,null,null,null,null,null,null,null,"PUERTO BERRÍO",null,null,null,null,null,null,null,null,null,null,null,"PUERTO BERRÍO",null,null,"PUERTO BERRÍO",null,null,null,null,null,null,null,null,null,null,null,null,null,null,null,null,null,null,null,null,null,null,null,null,null,null,null,null,null,null,null,null,null,null,null,null,null,null,null,null,null,null,null,null,null,null,null,null,null,null,null,null,null,null,null,null,null,null,null,null,null,null,null,null,null,null,null,null,null,null,null,null,null,null,null,null,null,null,null,null,null,null,null,null,null,null,null,null,null,null,null,null,null,null,null,null,null,null,null,null,null,null,null,null,null,null,null,null,null,null,null,null,null,null,null,null,null,null,null,null,null,null,null,null,null,null,null,null,null,null,null,null,null,null,null,null,null,null,null,null,null,null,null,null,null,null,null,null,null,null,null,null,null,null,null,null,null,null,null,null,null,null,null,null,null,null,null,null,null,null,null,null,null,null,null,null,null,null,null,null,null,null,null,null,null,null,null,null,null,null,null,null,null,null,null,null,null,null,null,null,null,null,null,null,null,null,null,null,null,null,null,null,null,null,null,null,null,null,null,null,null,null,null,null,null,null,null,null,null,null,null,null,null,null,null,null,null,null,null,null,null,null,null,null,null,null,null,null,null,null,null,null,null,null,null,null,null,null,null,null,null,null,null,null,null,null,null,null,null,null,null,null,null,null,null,null,null,null,null,null,null,null,null,null,null,null,null,null,null,null,null,null,null,null,null,null,null,null,null,null,null,null,null,null,null,null,null,null,null,null,null,null,null,null,null,null,null,null,null,null,null,null,null,null,null,null,null,null,null,null,null,null,null,null,null,null,null,null,null,null,null,null,null,null,null,null,null,null,null,null,null,null,null,null,null,null,null,null,null,null,null,null,null,null,null,null,null,null,null,null,null,null,null,null,null,null,null,null,null,null,null,null,null,null,null,null,null,null,null,null,null,null,null,null,null,null,null,null,null,null,null,null,null,null,null,null,null,null,null,null,null,null,null,null,null,null,null,null,null,null,null,null,null,null,null,null,null,null,null,null,null,null,null,null,null,null,null,null,null,null,null,null,null,null,null,null,null,null,null,null,null,null,null,null,null,null,null,null,null,null,null,null,null,null,null,null,null,null,null,null,null,null,null,null,null,null,null,null,null,null,null,null,null,null,null,null,null,null,null,null,null,null,null,null,null,null,null,null,null,null,null,null,null,null,null,null,null,null,null,null,null,null,null,null,null,null,null,null,null,null,null,null,null,null,null,null,null,null,null,null,null,null,null,null,null,null,null,null,null,null,null,null,null,null,null,null,null,null,null,null,null,null,null,null,null,null,null,null,null,null,null,null,null,null,null,null,null,null,null,null,null,null,null,null,null,null,null,null,null,null,null,null,null,null,null,null,null,null,null,null,null,null,null,null,null,null,null,null,null,null,null,null,null,null,null,null,null,null,null,null,null,null,null,null,null,null,null,null,null,null,null,null,null,null,null,null,null,null,null,null,null,null,null,null,null,null,null,null,null,null,null,null,null,null,null,null,null,null,null,null,null,null,null,null,null,null,null,null,null,null,null,null,null,null,null,null,null,null,null,null,null,null,null,null,null,null,null,null,null,null,null,null,null,null,null,null,null,null,null,null,null,null,null,null,null,null,null,null,null,null,null,null,null,null,null,null,null,null,null,null,null,null,null,null,null,null,null,null,null,null,null,null,null,null,null,null,null,null,null,null,null,null,null,null,null,null,null,null,null,null,null,null,null,null,null,null,null,null,null,null,null,null,null,null,null,null,null,null,null,null,null,null,null,null,null,null,null,null,null,null,null,null,null,null,null,null,null,null,null,null,null,null,null,null,null,null,null,null,null,null,null,null,null,null,null,null,null,null,null,null,null,null,null,null,null,null,null,null,null,null,null,null,null,null,null,null,null,null,null,null,null,null,null,null,null,null,null,null,null,null,null,null,null,null,null,null,null,null,null,null,null,null,null,null,null,null,null,null,null,null,null,null,null,null,null,null,null,null,null,null,null,null,null,null,null,null,null,null,null,null,null,null,null,null,null,null,null,null,null,null,null,null,null,null,null,null,null,null,null,null,null,null,null,null,null,null,null,null,null,null,null,null,null,null,null,null,null,null,null,null,null,null,null,null,null,null,null,null,null,null,null,null,null,null,null,null,null,null,null,null,null,null,null,null,null,null,null,null,null,null,null,null,null,null,null,null,null,null,null,null,null,null,null,null,null,null,null,null,null,null,null,null,null,null,null,null,null,null,null,null,null,null,null,null,null,null,null,null,null,null,null,null,null,null,null,null,null,null,null,null,null,null,null,null,null,null,null,null,null,null,null,null,null,null,null,null,null,null,null,null,null,null,null,null,null,null,null,null,null,null,null,null,null,null,null,null,null,null,null,null,null,null,null,null,null,null,null,null,null,null,null,null,null,null,null,null,null,null,null,null,null,null,null,null,null,null,null,null,null,null,null,null,null,null,null,null,null,null,null,null,null,null,null,null,null,null,null,null,null,null,null,null,null,null,null,null,null,null,null,null,null,null,null,null,null,null,null,null,null,null,null,null,null,null,null,null,null,null,null,null,null,null,null,null,null,null,null,null,null,null,null,null,null,null,null,null,null,null,null,null,null,null,null,null,null,null,null,null,null,null,null,null,null,null,null,null,null,null,null,null,null,null,null,null,null,null,null,null,null,null,null,null,null,null,null,null,null,null,null,null,null,null,null,null,null,null,null,null,null,null,null,null,null,null,null,null,null,null,null,null,null,null,null,null,null,null,null,null,null,null,null,null,null,null,null,null,null,null,null,null,null,null,null,null,null,null,null,null,null,null,null,null,null,null,null,null,null,null,null,null,null,null,null,null,null,null,null,null,null,null,null,null,null,null,null,null,null,null,null,null,null,null,null,null,null,null,null,null,null,null,null,null,null,null,null,null,null,null,null,null,null,null,null,null,null,null,null,null,null,null,null,null,null,null,null,null,null,null,null,null,null,null,null,null,null,null,null,null,null,null,null,null,null,null,null,null,null,null,null,null,null,null,null,null,null,null,null,null,null,null,null,null,null,null,null,null,null,null,null,null,null,null,null,null,null,null,null,null,null,null,null,null,null,null,null,null,null,null,null,null,null,null,null,null,null,null,null,null,null,null,null,null,null,null,null,null,null,null,null,null,null,null,null,null,null,null,null,null,null,null,null,null,null,null,null,null,null,null,null,null,null,null,null,null,null,null,null,null,null,null,null,null,null,null,null,null,null,null,null,null,null,null,null,null,null,null,null,null,null,null,null,null,null,null,null,null,null,null,null,null,null,null,null,null,null,null,null,null,null,null,null,null,null,null,null,null,null,null,null,null,null,null,null,null,null,null,null,null,null,null,null,null,null,null,null,null,null,null,null,null,null,null,null,null,null,null,null,null,null,null,null,null,null,null,null,null,null,null,null,null,null,null,null,null,null,null,null,null,null,null,null,null,null,null,null,null,null,null,null,null,null,null,null,null,null,null,null,null,null,null,null,null,null,null,null,null,null,null,null,null,null,null,null,null,null,null,null,null,null,null,null,null,null,null,null,null,null,null,null,null,null,null,null,null,null,null,null,null,null,null,null,null,null,null,null,null,null,null,null,null,null,null,null,null,null,null,null,null,null,null,null,null,null,null,null,null,null,null,null,null,null,null,null,null,null,null,null,null,null,null,null,null,null,null,null,null,null,null,null,null,null,null,null,null,null,null,null,null,null,null,null,null,null,null,null,null,null,null,null,null,null,null,null,null,null,null,null,null,null,null,null,null,null,null,null,null,null,null,null,null,null,null,null,null,null,null,null,null,null,null,null,null,null,null,null,null,null,null,null,null,null,null,null,null,null,null,null,null,null,null,null,null,null,null,null,null,null,null,null,null,null,null,null,null,null,null,null,null,null,null,null,null,null,null,null,null,null,null,null,null,null,null,null,null,null,null,null,null,null,null,null,null,null,null,null,null,null,null,null,null,null,null,null,null,null,null,null,null,null,null,null,null,null,null,null,null,null,null,null,null,null,null,null,null,null,null,null,null,null,null,null,null,null,null,null,null,null,null,null,null,null,null,null,null,null,null,null,null,null,null,null,null,null,null,null,null,null,null,null,null,null,null,null,null,null,null,null,null,null,null,null,null,null,null,null,null,null,null,null,null,null,null,null,null,null,null,null,null,null,null,null,null,null,null,null,null,null,null,null,null,null,null,null,null,null,null,null,null,null,null,null,null,null,null,null,null,null,null,null,null,null,null,null,null,null,null,null,null,null,null,null,null,null,null,null,null,null,null,null,null,null,null,null,null,null,null,null,null,null,null,null,null,null,null,null,null,null,null,null,null,null,null,null,null,null,null,null,null,null,null,null,null,null,null,null,null,null,null,null,null,null,null,null,null,null,null,null,null,null,null,null,null,null,null,null,null,null,null,null,null,null,null,null,null,null,null,null,null,null,null,null,null,null,null,null,null,null,null,null,null,null,null,null,null,null,null,null,null,null,null,null,null,null,null,null,null,null,null,null,null,null,null,null,null,null,null,null,null,null,null,null,null,null,null,null,null,null,null,null,null,null,null,null,null,null,null,null,null,null,null,null,null,null,null,null,null,null,null,null,null,null,null,null,null,null,null,null,null,null,null,null,null,null,null,null,null,null,null,null,null,null,null,null,null,null,null,null,null,null,null,null,null,null,null,null,null,null,null,null,null,null,null,null,null,null,null,null,null,null,null,null,null,null,null,null,null,null,null,null,null,null,null,null,null,null,null,null,null,null,null,null,null,null,null,null,null,null,null,null,null,null,null,null,null,null,null,null,null,null,null,null,null,null,null,null,null,null,null,null,null,null,null,null,null,null,null,null,null,null,null,null,null,null,null,null,null,null,null,null,null,null,null,null,null,null,null,null,null,null,null,null,null,null,null,null,null,null,null,null,null,null,null,null,null,null,null,null,null,null,null,null,null,null,null,null,null,null,null,null,null,null,null,null,null,null,null,null,null,null,null,null,null,null,null,null,null,null,null,null,null,null,null,null,null,null,null,null,null,null,null,null,null,null,null,null,null,null,null,null,null,null,null,null,null,null,null,null,null,null,null,null,null,null,null,null,null,null,null,null,null,null,null,null,null,null,null,null,null,null,null,null,null,null,null,null,null,null,null,null,null,null,null,null,null,null,null,null,null,null,null,null,null,null,null,null,null,null,null,null,null,null,null,null,null,null,null,null,null,null,null,null,null,null,null,null,null,null,null,null,null,null,null,null,null,null,null,null,null,null,null,null,null,null,null,null,null,null,null,null,null,null,null,null,null,null,null,null,null,null,null,null,null,null,null,null,null,null,null,null,null,null,null,null,null,null,null,null,null,null,null,null,null,null,null,null,null,null,null,null,null,null,null,null,null,null,null,null,null,null,null,null,null,null,null,null,null,null,null,null,null,null,null,null,null,null,null,null,null,null,null,null,null,null,null,null,null,null,null,null,null,null,null,null,null,null,null,null,null,null,null,null,null,null,null,null,null,null,null,null,null,null,null,null,null,null,null,null,null,null,null,null,null,null,null,null,null,null,10]
[null,null,null,null,null,null,null,null,null,null,null,null,null,null,null,null,null,null,null,null,null,null,null,null,null,"RIONEGRO",null,null,null,null,null,null,null,null,null,null,null,"RIONEGRO",null,null,"RIONEGRO",null,null,null,null,null,null,null,null,null,null,null,null,null,null,null,null,null,null,null,null,null,null,null,null,null,null,null,null,null,null,null,null,null,null,null,null,null,null,null,null,null,null,null,null,null,null,null,null,null,null,null,null,null,null,null,null,null,null,null,null,null,null,null,null,null,null,null,null,null,null,null,null,null,null,null,null,null,null,null,null,null,null,null,null,null,null,null,null,null,null,null,null,null,null,null,null,null,null,null,null,null,null,null,null,null,null,null,null,null,null,null,null,null,null,null,null,null,null,null,null,null,null,null,null,null,null,null,null,null,null,null,null,null,null,null,null,null,null,null,null,null,null,null,null,null,null,null,null,null,null,null,null,null,null,null,null,null,null,null,null,null,null,null,null,null,null,null,null,null,null,null,null,null,null,null,null,null,null,null,null,null,null,null,null,null,null,null,null,null,null,null,null,null,null,null,null,null,null,null,null,null,null,null,null,null,null,null,null,null,null,null,null,null,null,null,null,null,null,null,null,null,null,null,null,null,null,null,null,null,null,null,null,null,null,null,null,null,null,null,null,null,null,null,null,null,null,null,null,null,null,null,null,null,null,null,null,null,null,null,null,null,null,null,null,null,null,null,null,null,null,null,null,null,null,null,null,null,null,null,null,null,null,null,null,null,null,null,null,null,null,null,null,null,null,null,null,null,null,null,null,null,null,null,null,null,null,null,null,null,null,null,null,null,null,null,null,null,null,null,null,null,null,null,null,null,null,null,null,null,null,null,null,null,null,null,null,null,null,null,null,null,null,null,null,null,null,null,null,null,null,null,null,null,null,null,null,null,null,null,null,null,null,null,null,null,null,null,null,null,null,null,null,null,null,null,null,null,null,null,null,null,null,null,null,null,null,null,null,null,null,null,null,null,null,null,null,null,null,null,null,null,null,null,null,null,null,null,null,null,null,null,null,null,null,null,null,null,null,null,null,null,null,null,null,null,null,null,null,null,null,null,null,null,null,null,null,null,null,null,null,null,null,null,null,null,null,null,null,null,null,null,null,null,null,null,null,null,null,null,null,null,null,null,null,null,null,null,null,null,null,null,null,null,null,null,null,null,null,null,null,null,null,null,null,null,null,null,null,null,null,null,null,null,null,null,null,null,null,null,null,null,null,null,null,null,null,null,null,null,null,null,null,null,null,null,null,null,null,null,null,null,null,null,null,null,null,null,null,null,null,null,null,null,null,null,null,null,null,null,null,null,null,null,null,null,null,null,null,null,null,null,null,null,null,null,null,null,null,null,null,null,null,null,null,null,null,null,null,null,null,null,null,null,null,null,null,null,null,null,null,null,null,null,null,null,null,null,null,null,null,null,null,null,null,null,null,null,null,null,null,null,null,null,null,null,null,null,null,null,null,null,null,null,null,null,null,null,null,null,null,null,null,null,null,null,null,null,null,null,null,null,null,null,null,null,null,null,null,null,null,null,null,null,null,null,null,null,null,null,null,null,null,null,null,null,null,null,null,null,null,null,null,null,null,null,null,null,null,null,null,null,null,null,null,null,null,null,null,null,null,null,null,null,null,null,null,null,null,null,null,null,null,null,null,null,null,null,null,null,null,null,null,null,null,null,null,null,null,null,null,null,null,null,null,null,null,null,null,null,null,null,null,null,null,null,null,null,null,null,null,null,null,null,null,null,null,null,null,null,null,null,null,null,null,null,null,null,null,null,null,null,null,null,null,null,null,null,null,null,null,null,null,null,null,null,null,null,null,null,null,null,null,null,null,null,null,null,null,null,null,null,null,null,null,null,null,null,null,null,null,null,null,null,null,null,null,null,null,null,null,null,null,null,null,null,null,null,null,null,null,null,null,null,null,null,null,null,null,null,null,null,null,null,null,null,null,null,null,null,null,null,null,null,null,null,null,null,null,null,null,null,null,null,null,null,null,null,null,null,null,null,null,null,null,null,null,null,null,null,null,null,null,null,null,null,null,null,null,null,null,null,null,null,null,null,null,null,null,null,null,null,null,null,null,null,null,null,null,null,null,null,null,null,null,null,null,null,null,null,null,null,null,null,null,null,null,null,null,null,null,null,null,null,null,null,null,null,null,null,null,null,null,null,null,null,null,null,null,null,null,null,null,null,null,null,null,null,null,null,null,null,null,null,null,null,null,null,null,null,null,null,null,null,null,null,null,null,null,null,null,null,null,null,null,null,null,null,null,null,null,null,null,null,null,null,null,null,null,null,null,null,null,null,null,null,null,null,null,null,null,null,null,null,null,null,null,null,null,null,null,null,null,null,null,null,null,null,null,null,null,null,null,null,null,null,null,null,null,null,null,null,null,null,null,null,null,null,null,null,null,null,null,null,null,null,null,null,null,null,null,null,null,null,null,null,null,null,null,null,null,null,null,null,null,null,null,null,null,null,null,null,null,null,null,null,null,null,null,null,null,null,null,null,null,null,null,null,null,null,null,null,null,null,null,null,null,null,null,null,null,null,null,null,null,null,null,null,null,null,null,null,null,null,null,null,null,null,null,null,null,null,null,null,null,null,null,null,null,null,null,null,null,null,null,null,null,null,null,null,null,null,null,null,null,null,null,null,null,null,null,null,null,null,null,null,null,null,null,null,null,null,null,null,null,null,null,null,null,null,null,null,null,null,null,null,null,null,null,null,null,null,null,null,null,null,null,null,null,null,null,null,null,null,null,null,null,null,null,null,null,null,null,null,null,null,null,null,null,null,null,null,null,null,null,null,null,null,null,null,null,null,null,null,null,null,null,null,null,null,null,null,null,null,null,null,null,null,null,null,null,null,null,null,null,null,null,null,null,null,null,null,null,null,null,null,null,null,null,null,null,null,null,null,null,null,null,null,null,null,null,null,null,null,null,null,null,null,null,null,null,null,null,null,null,null,null,null,null,null,null,null,null,null,null,null,null,null,null,null,null,null,null,null,null,null,null,null,null,null,null,null,null,null,null,null,null,null,null,null,null,null,null,null,null,null,null,null,null,null,null,null,null,null,null,null,null,null,null,null,null,null,null,null,null,null,null,null,null,null,null,null,null,null,null,null,null,null,null,null,null,null,null,null,null,null,null,null,null,null,null,null,null,null,null,null,null,null,null,null,null,null,null,null,null,null,null,null,null,null,null,null,null,null,null,null,null,null,null,null,null,null,null,null,null,null,null,null,null,null,null,null,null,null,null,null,null,null,null,null,null,null,null,null,null,null,null,null,null,null,null,null,null,null,null,null,null,null,null,null,null,null,null,null,null,null,null,null,null,null,null,null,null,null,null,null,null,null,null,null,null,null,null,null,null,null,null,null,null,null,null,null,null,null,null,null,null,null,null,null,null,null,null,null,null,null,null,null,null,null,null,null,null,null,null,null,null,null,null,null,null,null,null,null,null,null,null,null,null,null,null,null,null,null,null,null,null,null,null,null,null,null,null,null,null,null,null,null,null,null,null,null,null,null,null,null,null,null,null,null,null,null,null,null,null,null,null,null,null,null,null,null,null,null,null,null,null,null,null,null,null,null,null,null,null,null,null,null,null,null,null,null,null,null,null,null,null,null,null,null,null,null,null,null,null,null,null,null,null,null,null,null,null,null,null,null,null,null,null,null,null,null,null,null,null,null,null,null,null,null,null,null,null,null,null,null,null,null,null,null,null,null,null,null,null,null,null,null,null,null,null,null,null,null,null,null,null,null,null,null,null,null,null,null,null,null,null,null,null,null,null,null,null,null,null,null,null,null,null,null,null,null,null,null,null,null,null,null,null,null,null,null,null,null,null,null,null,null,null,null,null,null,null,null,null,null,null,null,null,null,null,null,null,null,null,null,null,null,null,null,null,null,null,null,null,null,null,null,null,null,null,null,null,null,null,null,null,null,null,null,null,null,null,null,null,null,null,null,null,null,null,null,null,null,null,null,null,null,null,null,null,null,null,null,null,null,null,null,null,null,null,null,null,null,null,null,null,null,null,null,null,null,null,null,null,null,null,null,null,null,null,null,null,null,null,null,null,null,null,null,null,null,null,null,null,null,null,null,null,null,null,null,null,null,null,null,null,null,null,null,null,null,null,null,null,null,null,null,null,null,null,null,null,null,null,null,null,null,null,null,null,null,null,null,null,null,null,null,null,null,null,null,null,null,null,null,null,null,null,null,null,null,null,null,null,null,null,null,null,null,null,null,null,null,null,null,null,null,null,null,null,null,null,null,null,null,null,null,null,null,null,null,null,null,null,null,null,null,null,null,null,null,null,null,null,null,null,null,null,null,null,null,null,null,null,null,null,null,null,null,null,null,null,null,null,null,null,null,null,null,null,null,null,null,null,null,null,null,null,null,null,null,null,null,null,null,null,null,null,null,null,null,null,null,null,null,null,null,null,null,null,null,null,null,null,null,null,null,null,null,null,null,null,null,null,null,null,null,null,null,null,null,null,null,null,null,null,null,null,null,null,null,null,null,null,null,null,null,null,null,null,null,null,null,null,null,null,null,null,null,null,null,null,null,null,null,null,null,null,null,null,null,null,null,null,null,null,null,null,null,null,null,null,null,null,null,null,null,null,null,null,null,null,null,null,null,null,null,null,null,null,null,null,null,null,null,null,null,null,null,null,null,null,null,null,null,null,null,null,null,null,null,null,null,null,null,null,null,null,null,null,null,null,null,null,null,null,null,null,null,null,null,null,null,null,null,null,null,null,null,null,null,null,null,null,null,null,null,null,null,null,null,null,null,null,null,null,null,null,null,null,null,null,null,null,null,null,null,null,null,null,null,null,null,null,null,null,null,null,null,null,null,null,null,null,null,null,null,null,null,null,null,null,null,null,null,null,null,null,null,null,null,null,null,null,null,null,null,null,null,null,null,null,null,null,null,null,null,null,null,null,null,null,null,null,null,null,null,null,null,null,null,null,null,null,null,null,null,null,null,null,null,null,null,null,null,null,null,null,null,null,null,null,null,null,null,null,null,null,null,null,null,null,null,null,null,null,null,null,null,null,null,null,null,null,null,null,null,null,null,null,null,null,null,null,null,null,null,null,null,null,null,null,null,null,null,null,null,null,null,null,null,null,null,null,null,null,null,null,null,null,null,null,null,null,null,null,null,null,null,null,null,null,null,null,null,null,null,null,null,null,null,null,null,null,null,null,null,null,null,null,null,null,null,null,null,null,null,null,null,null,null,null,null,null,null,null,null,null,null,null,null,null,null,null,null,null,null,null,null,null,null,null,null,null,null,null,null,null,null,null,null,null,null,null,null,null,null,null,null,null,null,null,null,null,null,null,null,null,null,null,null,null,null,null,null,null,null,null,null,null,null,null,null,null,null,null,null,null,null,null,null,null,null,null,null,null,null,null,null,null,null,null,null,null,null,null,null,null,null,null,null,null,null,null,null,null,null,null,null,null,null,null,null,null,null,null,null,null,null,null,null,null,null,null,null,null,null,null,null,null,null,null,null,null,null,null,null,null,null,null,null,null,null,null,null,null,null,null,null,null,null,null,null,null,null,null,null,11]
[null,null,null,null,null,null,null,null,null,null,null,null,null,null,null,null,null,null,null,null,null,null,null,null,null,"SEGOVIA",null,null,null,null,null,null,null,null,null,null,null,"SEGOVIA",null,null,"SEGOVIA",null,null,null,null,null,null,null,null,null,null,null,null,null,null,null,null,null,null,null,null,null,null,null,null,null,null,null,null,null,null,null,null,null,null,null,null,null,null,null,null,null,null,null,null,null,null,null,null,null,null,null,null,null,null,null,null,null,null,null,null,null,null,null,null,null,null,null,null,null,null,null,null,null,null,null,null,null,null,null,null,null,null,null,null,null,null,null,null,null,null,null,null,null,null,null,null,null,null,null,null,null,null,null,null,null,null,null,null,null,null,null,null,null,null,null,null,null,null,null,null,null,null,null,null,null,null,null,null,null,null,null,null,null,null,null,null,null,null,null,null,null,null,null,null,null,null,null,null,null,null,null,null,null,null,null,null,null,null,null,null,null,null,null,null,null,null,null,null,null,null,null,null,null,null,null,null,null,null,null,null,null,null,null,null,null,null,null,null,null,null,null,null,null,null,null,null,null,null,null,null,null,null,null,null,null,null,null,null,null,null,null,null,null,null,null,null,null,null,null,null,null,null,null,null,null,null,null,null,null,null,null,null,null,null,null,null,null,null,null,null,null,null,null,null,null,null,null,null,null,null,null,null,null,null,null,null,null,null,null,null,null,null,null,null,null,null,null,null,null,null,null,null,null,null,null,null,null,null,null,null,null,null,null,null,null,null,null,null,null,null,null,null,null,null,null,null,null,null,null,null,null,null,null,null,null,null,null,null,null,null,null,null,null,null,null,null,null,null,null,null,null,null,null,null,null,null,null,null,null,null,null,null,null,null,null,null,null,null,null,null,null,null,null,null,null,null,null,null,null,null,null,null,null,null,null,null,null,null,null,null,null,null,null,null,null,null,null,null,null,null,null,null,null,null,null,null,null,null,null,null,null,null,null,null,null,null,null,null,null,null,null,null,null,null,null,null,null,null,null,null,null,null,null,null,null,null,null,null,null,null,null,null,null,null,null,null,null,null,null,null,null,null,null,null,null,null,null,null,null,null,null,null,null,null,null,null,null,null,null,null,null,null,null,null,null,null,null,null,null,null,null,null,null,null,null,null,null,null,null,null,null,null,null,null,null,null,null,null,null,null,null,null,null,null,null,null,null,null,null,null,null,null,null,null,null,null,null,null,null,null,null,null,null,null,null,null,null,null,null,null,null,null,null,null,null,null,null,null,null,null,null,null,null,null,null,null,null,null,null,null,null,null,null,null,null,null,null,null,null,null,null,null,null,null,null,null,null,null,null,null,null,null,null,null,null,null,null,null,null,null,null,null,null,null,null,null,null,null,null,null,null,null,null,null,null,null,null,null,null,null,null,null,null,null,null,null,null,null,null,null,null,null,null,null,null,null,null,null,null,null,null,null,null,null,null,null,null,null,null,null,null,null,null,null,null,null,null,null,null,null,null,null,null,null,null,null,null,null,null,null,null,null,null,null,null,null,null,null,null,null,null,null,null,null,null,null,null,null,null,null,null,null,null,null,null,null,null,null,null,null,null,null,null,null,null,null,null,null,null,null,null,null,null,null,null,null,null,null,null,null,null,null,null,null,null,null,null,null,null,null,null,null,null,null,null,null,null,null,null,null,null,null,null,null,null,null,null,null,null,null,null,null,null,null,null,null,null,null,null,null,null,null,null,null,null,null,null,null,null,null,null,null,null,null,null,null,null,null,null,null,null,null,null,null,null,null,null,null,null,null,null,null,null,null,null,null,null,null,null,null,null,null,null,null,null,null,null,null,null,null,null,null,null,null,null,null,null,null,null,null,null,null,null,null,null,null,null,null,null,null,null,null,null,null,null,null,null,null,null,null,null,null,null,null,null,null,null,null,null,null,null,null,null,null,null,null,null,null,null,null,null,null,null,null,null,null,null,null,null,null,null,null,null,null,null,null,null,null,null,null,null,null,null,null,null,null,null,null,null,null,null,null,null,null,null,null,null,null,null,null,null,null,null,null,null,null,null,null,null,null,null,null,null,null,null,null,null,null,null,null,null,null,null,null,null,null,null,null,null,null,null,null,null,null,null,null,null,null,null,null,null,null,null,null,null,null,null,null,null,null,null,null,null,null,null,null,null,null,null,null,null,null,null,null,null,null,null,null,null,null,null,null,null,null,null,null,null,null,null,null,null,null,null,null,null,null,null,null,null,null,null,null,null,null,null,null,null,null,null,null,null,null,null,null,null,null,null,null,null,null,null,null,null,null,null,null,null,null,null,null,null,null,null,null,null,null,null,null,null,null,null,null,null,null,null,null,null,null,null,null,null,null,null,null,null,null,null,null,null,null,null,null,null,null,null,null,null,null,null,null,null,null,null,null,null,null,null,null,null,null,null,null,null,null,null,null,null,null,null,null,null,null,null,null,null,null,null,null,null,null,null,null,null,null,null,null,null,null,null,null,null,null,null,null,null,null,null,null,null,null,null,null,null,null,null,null,null,null,null,null,null,null,null,null,null,null,null,null,null,null,null,null,null,null,null,null,null,null,null,null,null,null,null,null,null,null,null,null,null,null,null,null,null,null,null,null,null,null,null,null,null,null,null,null,null,null,null,null,null,null,null,null,null,null,null,null,null,null,null,null,null,null,null,null,null,null,null,null,null,null,null,null,null,null,null,null,null,null,null,null,null,null,null,null,null,null,null,null,null,null,null,null,null,null,null,null,null,null,null,null,null,null,null,null,null,null,null,null,null,null,null,null,null,null,null,null,null,null,null,null,null,null,null,null,null,null,null,null,null,null,null,null,null,null,null,null,null,null,null,null,null,null,null,null,null,null,null,null,null,null,null,null,null,null,null,null,null,null,null,null,null,null,null,null,null,null,null,null,null,null,null,null,null,null,null,null,null,null,null,null,null,null,null,null,null,null,null,null,null,null,null,null,null,null,null,null,null,null,null,null,null,null,null,null,null,null,null,null,null,null,null,null,null,null,null,null,null,null,null,null,null,null,null,null,null,null,null,null,null,null,null,null,null,null,null,null,null,null,null,null,null,null,null,null,null,null,null,null,null,null,null,null,null,null,null,null,null,null,null,null,null,null,null,null,null,null,null,null,null,null,null,null,null,null,null,null,null,null,null,null,null,null,null,null,null,null,null,null,null,null,null,null,null,null,null,null,null,null,null,null,null,null,null,null,null,null,null,null,null,null,null,null,null,null,null,null,null,null,null,null,null,null,null,null,null,null,null,null,null,null,null,null,null,null,null,null,null,null,null,null,null,null,null,null,null,null,null,null,null,null,null,null,null,null,null,null,null,null,null,null,null,null,null,null,null,null,null,null,null,null,null,null,null,null,null,null,null,null,null,null,null,null,null,null,null,null,null,null,null,null,null,null,null,null,null,null,null,null,null,null,null,null,null,null,null,null,null,null,null,null,null,null,null,null,null,null,null,null,null,null,null,null,null,null,null,null,null,null,null,null,null,null,null,null,null,null,null,null,null,null,null,null,null,null,null,null,null,null,null,null,null,null,null,null,null,null,null,null,null,null,null,null,null,null,null,null,null,null,null,null,null,null,null,null,null,null,null,null,null,null,null,null,null,null,null,null,null,null,null,null,null,null,null,null,null,null,null,null,null,null,null,null,null,null,null,null,null,null,null,null,null,null,null,null,null,null,null,null,null,null,null,null,null,null,null,null,null,null,null,null,null,null,null,null,null,null,null,null,null,null,null,null,null,null,null,null,null,null,null,null,null,null,null,null,null,null,null,null,null,null,null,null,null,null,null,null,null,null,null,null,null,null,null,null,null,null,null,null,null,null,null,null,null,null,null,null,null,null,null,null,null,null,null,null,null,null,null,null,null,null,null,null,null,null,null,null,null,null,null,null,null,null,null,null,null,null,null,null,null,null,null,null,null,null,null,null,null,null,null,null,null,null,null,null,null,null,null,null,null,null,null,null,null,null,null,null,null,null,null,null,null,null,null,null,null,null,null,null,null,null,null,null,null,null,null,null,null,null,null,null,null,null,null,null,null,null,null,null,null,null,null,null,null,null,null,null,null,null,null,null,null,null,null,null,null,null,null,null,null,null,null,null,null,null,null,null,null,null,null,null,null,null,null,null,null,null,null,null,null,null,null,null,null,null,null,null,null,null,null,null,null,null,null,null,null,null,null,null,null,null,null,null,null,null,null,null,null,null,null,null,null,null,null,null,null,null,null,null,null,null,null,null,null,null,null,null,null,null,null,null,null,null,null,null,null,null,null,null,null,null,null,null,null,null,null,null,null,null,null,null,null,null,null,null,null,null,null,null,null,null,null,null,null,null,null,null,null,null,null,null,null,null,null,null,null,null,null,null,null,null,null,null,null,null,null,null,null,null,null,null,null,null,null,null,null,null,null,null,null,null,null,null,null,null,null,null,null,null,null,null,null,null,null,null,null,null,null,null,null,null,null,null,null,null,null,null,null,null,null,null,null,null,null,null,null,null,null,null,null,null,null,null,null,null,null,null,null,null,null,null,null,null,null,null,null,null,null,null,null,null,null,null,null,null,null,null,null,null,null,null,null,null,null,null,null,null,null,null,null,null,null,null,null,null,null,null,null,null,null,null,null,null,null,null,null,null,null,null,null,null,null,null,null,null,null,null,null,null,null,null,null,null,null,null,null,null,null,null,null,null,null,null,null,null,null,null,null,null,null,null,null,null,null,null,null,null,null,null,null,null,null,null,null,null,null,null,null,null,null,null,null,null,null,null,null,null,null,null,null,null,null,null,null,null,null,null,null,null,null,null,null,null,null,null,null,null,null,null,null,null,null,null,null,null,null,null,null,null,null,null,null,null,null,null,null,null,null,null,null,null,null,null,null,null,null,null,null,null,null,null,null,null,null,null,null,null,null,null,null,null,null,null,null,null,null,null,null,null,null,null,null,null,null,null,null,null,null,null,null,null,null,null,null,null,null,null,null,null,null,null,null,null,null,null,null,null,null,null,null,null,null,null,null,null,null,null,null,null,null,null,null,null,null,null,null,null,null,null,null,null,null,null,null,null,null,null,null,null,null,null,null,null,null,null,null,null,null,null,null,null,null,null,null,null,null,null,null,null,null,null,null,null,null,null,null,null,null,null,null,null,null,null,null,null,null,null,null,null,null,null,null,null,null,null,null,null,null,null,null,null,null,null,null,null,null,null,null,null,null,null,null,null,null,null,null,null,null,null,null,null,null,null,null,null,null,null,null,null,null,null,null,null,null,null,null,null,null,null,null,null,null,null,null,null,null,null,null,null,null,null,null,null,null,null,null,null,null,null,null,null,null,null,null,null,null,null,null,null,null,null,null,null,null,null,null,null,null,null,null,null,null,null,null,null,null,null,null,null,null,null,null,null,null,null,null,null,null,null,null,null,null,null,null,null,null,null,null,null,null,null,null,null,null,null,null,null,null,null,null,null,null,null,null,null,null,null,null,null,null,null,null,null,null,null,null,null,null,null,null,null,null,null,null,null,null,null,null,null,null,null,null,null,null,null,null,null,null,null,null,null,null,null,null,null,null,null,null,null,null,null,null,null,null,null,null,null,null,12]
[null,null,null,null,null,null,null,null,null,null,null,null,null,null,null,null,null,null,null,null,null,null,null,null,null,"TARAZÁ",null,null,null,null,null,null,null,null,null,null,null,"TARAZÁ",null,null,"TARAZÁ",null,null,null,null,null,null,null,null,null,null,null,null,null,null,null,null,null,null,null,null,null,null,null,null,null,null,null,null,null,null,null,null,null,null,null,null,null,null,null,null,null,null,null,null,null,null,null,null,null,null,null,null,null,null,null,null,null,null,null,null,null,null,null,null,null,null,null,null,null,null,null,null,null,null,null,null,null,null,null,null,null,null,null,null,null,null,null,null,null,null,null,null,null,null,null,null,null,null,null,null,null,null,null,null,null,null,null,null,null,null,null,null,null,null,null,null,null,null,null,null,null,null,null,null,null,null,null,null,null,null,null,null,null,null,null,null,null,null,null,null,null,null,null,null,null,null,null,null,null,null,null,null,null,null,null,null,null,null,null,null,null,null,null,null,null,null,null,null,null,null,null,null,null,null,null,null,null,null,null,null,null,null,null,null,null,null,null,null,null,null,null,null,null,null,null,null,null,null,null,null,null,null,null,null,null,null,null,null,null,null,null,null,null,null,null,null,null,null,null,null,null,null,null,null,null,null,null,null,null,null,null,null,null,null,null,null,null,null,null,null,null,null,null,null,null,null,null,null,null,null,null,null,null,null,null,null,null,null,null,null,null,null,null,null,null,null,null,null,null,null,null,null,null,null,null,null,null,null,null,null,null,null,null,null,null,null,null,null,null,null,null,null,null,null,null,null,null,null,null,null,null,null,null,null,null,null,null,null,null,null,null,null,null,null,null,null,null,null,null,null,null,null,null,null,null,null,null,null,null,null,null,null,null,null,null,null,null,null,null,null,null,null,null,null,null,null,null,null,null,null,null,null,null,null,null,null,null,null,null,null,null,null,null,null,null,null,null,null,null,null,null,null,null,null,null,null,null,null,null,null,null,null,null,null,null,null,null,null,null,null,null,null,null,null,null,null,null,null,null,null,null,null,null,null,null,null,null,null,null,null,null,null,null,null,null,null,null,null,null,null,null,null,null,null,null,null,null,null,null,null,null,null,null,null,null,null,null,null,null,null,null,null,null,null,null,null,null,null,null,null,null,null,null,null,null,null,null,null,null,null,null,null,null,null,null,null,null,null,null,null,null,null,null,null,null,null,null,null,null,null,null,null,null,null,null,null,null,null,null,null,null,null,null,null,null,null,null,null,null,null,null,null,null,null,null,null,null,null,null,null,null,null,null,null,null,null,null,null,null,null,null,null,null,null,null,null,null,null,null,null,null,null,null,null,null,null,null,null,null,null,null,null,null,null,null,null,null,null,null,null,null,null,null,null,null,null,null,null,null,null,null,null,null,null,null,null,null,null,null,null,null,null,null,null,null,null,null,null,null,null,null,null,null,null,null,null,null,null,null,null,null,null,null,null,null,null,null,null,null,null,null,null,null,null,null,null,null,null,null,null,null,null,null,null,null,null,null,null,null,null,null,null,null,null,null,null,null,null,null,null,null,null,null,null,null,null,null,null,null,null,null,null,null,null,null,null,null,null,null,null,null,null,null,null,null,null,null,null,null,null,null,null,null,null,null,null,null,null,null,null,null,null,null,null,null,null,null,null,null,null,null,null,null,null,null,null,null,null,null,null,null,null,null,null,null,null,null,null,null,null,null,null,null,null,null,null,null,null,null,null,null,null,null,null,null,null,null,null,null,null,null,null,null,null,null,null,null,null,null,null,null,null,null,null,null,null,null,null,null,null,null,null,null,null,null,null,null,null,null,null,null,null,null,null,null,null,null,null,null,null,null,null,null,null,null,null,null,null,null,null,null,null,null,null,null,null,null,null,null,null,null,null,null,null,null,null,null,null,null,null,null,null,null,null,null,null,null,null,null,null,null,null,null,null,null,null,null,null,null,null,null,null,null,null,null,null,null,null,null,null,null,null,null,null,null,null,null,null,null,null,null,null,null,null,null,null,null,null,null,null,null,null,null,null,null,null,null,null,null,null,null,null,null,null,null,null,null,null,null,null,null,null,null,null,null,null,null,null,null,null,null,null,null,null,null,null,null,null,null,null,null,null,null,null,null,null,null,null,null,null,null,null,null,null,null,null,null,null,null,null,null,null,null,null,null,null,null,null,null,null,null,null,null,null,null,null,null,null,null,null,null,null,null,null,null,null,null,null,null,null,null,null,null,null,null,null,null,null,null,null,null,null,null,null,null,null,null,null,null,null,null,null,null,null,null,null,null,null,null,null,null,null,null,null,null,null,null,null,null,null,null,null,null,null,null,null,null,null,null,null,null,null,null,null,null,null,null,null,null,null,null,null,null,null,null,null,null,null,null,null,null,null,null,null,null,null,null,null,null,null,null,null,null,null,null,null,null,null,null,null,null,null,null,null,null,null,null,null,null,null,null,null,null,null,null,null,null,null,null,null,null,null,null,null,null,null,null,null,null,null,null,null,null,null,null,null,null,null,null,null,null,null,null,null,null,null,null,null,null,null,null,null,null,null,null,null,null,null,null,null,null,null,null,null,null,null,null,null,null,null,null,null,null,null,null,null,null,null,null,null,null,null,null,null,null,null,null,null,null,null,null,null,null,null,null,null,null,null,null,null,null,null,null,null,null,null,null,null,null,null,null,null,null,null,null,null,null,null,null,null,null,null,null,null,null,null,null,null,null,null,null,null,null,null,null,null,null,null,null,null,null,null,null,null,null,null,null,null,null,null,null,null,null,null,null,null,null,null,null,null,null,null,null,null,null,null,null,null,null,null,null,null,null,null,null,null,null,null,null,null,null,null,null,null,null,null,null,null,null,null,null,null,null,null,null,null,null,null,null,null,null,null,null,null,null,null,null,null,null,null,null,null,null,null,null,null,null,null,null,null,null,null,null,null,null,null,null,null,null,null,null,null,null,null,null,null,null,null,null,null,null,null,null,null,null,null,null,null,null,null,null,null,null,null,null,null,null,null,null,null,null,null,null,null,null,null,null,null,null,null,null,null,null,null,null,null,null,null,null,null,null,null,null,null,null,null,null,null,null,null,null,null,null,null,null,null,null,null,null,null,null,null,null,null,null,null,null,null,null,null,null,null,null,null,null,null,null,null,null,null,null,null,null,null,null,null,null,null,null,null,null,null,null,null,null,null,null,null,null,null,null,null,null,null,null,null,null,null,null,null,null,null,null,null,null,null,null,null,null,null,null,null,null,null,null,null,null,null,null,null,null,null,null,null,null,null,null,null,null,null,null,null,null,null,null,null,null,null,null,null,null,null,null,null,null,null,null,null,null,null,null,null,null,null,null,null,null,null,null,null,null,null,null,null,null,null,null,null,null,null,null,null,null,null,null,null,null,null,null,null,null,null,null,null,null,null,null,null,null,null,null,null,null,null,null,null,null,null,null,null,null,null,null,null,null,null,null,null,null,null,null,null,null,null,null,null,null,null,null,null,null,null,null,null,null,null,null,null,null,null,null,null,null,null,null,null,null,null,null,null,null,null,null,null,null,null,null,null,null,null,null,null,null,null,null,null,null,null,null,null,null,null,null,null,null,null,null,null,null,null,null,null,null,null,null,null,null,null,null,null,null,null,null,null,null,null,null,null,null,null,null,null,null,null,null,null,null,null,null,null,null,null,null,null,null,null,null,null,null,null,null,null,null,null,null,null,null,null,null,null,null,null,null,null,null,null,null,null,null,null,null,null,null,null,null,null,null,null,null,null,null,null,null,null,null,null,null,null,null,null,null,null,null,null,null,null,null,null,null,null,null,null,null,null,null,null,null,null,null,null,null,null,null,null,null,null,null,null,null,null,null,null,null,null,null,null,null,null,null,null,null,null,null,null,null,null,null,null,null,null,null,null,null,null,null,null,null,null,null,null,null,null,null,null,null,null,null,null,null,null,null,null,null,null,null,null,null,null,null,null,null,null,null,null,null,null,null,null,null,null,null,null,null,null,null,null,null,null,null,null,null,null,null,null,null,null,null,null,null,null,null,null,null,null,null,null,null,null,null,null,null,null,null,null,null,null,null,null,null,null,null,null,null,null,null,null,null,null,null,null,null,null,null,null,null,null,null,null,null,null,null,null,null,null,null,null,null,null,null,null,null,null,null,null,null,null,null,null,null,null,null,null,null,null,null,null,null,null,null,null,null,null,null,null,null,null,null,null,null,null,null,null,null,null,null,null,null,null,null,null,null,null,null,null,null,null,null,null,null,null,null,null,null,null,null,null,null,null,null,null,null,null,null,null,null,null,null,null,null,null,null,null,null,null,null,null,null,null,null,null,null,null,null,null,null,null,null,null,null,null,null,null,null,null,null,null,null,null,null,null,null,null,null,null,null,null,null,null,null,null,null,null,null,null,null,null,null,null,null,null,null,null,null,null,null,null,null,null,null,null,null,null,null,null,null,null,null,null,null,null,null,null,null,null,null,null,null,null,null,null,null,null,null,null,null,null,null,null,null,null,null,null,null,null,null,null,null,null,null,null,null,null,null,null,null,null,null,null,null,null,null,null,null,null,null,null,null,null,null,null,null,null,null,null,null,null,null,null,null,null,null,null,null,null,null,null,null,null,null,null,null,null,null,null,null,null,null,null,null,null,null,null,null,null,null,null,null,null,null,null,null,null,null,null,null,null,null,null,null,null,null,null,null,null,null,null,null,null,null,null,null,null,null,null,null,null,null,null,null,null,null,null,null,null,null,null,null,null,null,null,null,null,null,null,null,null,null,null,null,null,null,null,null,null,null,null,null,null,null,null,null,null,null,null,null,null,null,null,null,null,null,null,null,null,null,null,null,null,null,null,null,null,null,null,null,null,null,null,null,null,null,null,null,null,null,null,null,null,null,null,null,null,null,null,null,null,null,null,null,null,null,null,null,null,null,null,null,null,null,null,null,null,null,null,null,null,null,null,null,null,null,null,null,null,null,null,null,null,null,null,null,null,null,null,null,null,null,null,null,null,null,null,null,null,null,null,null,null,null,null,null,null,null,null,null,null,null,null,null,null,null,null,null,null,null,null,null,null,null,null,null,null,null,null,null,null,null,null,null,null,null,null,null,null,null,null,null,null,null,null,null,null,null,null,null,null,null,null,null,null,null,null,null,null,null,null,null,null,null,null,null,null,null,null,null,null,null,null,null,null,null,null,null,null,null,null,null,null,null,null,null,null,null,null,null,null,null,null,null,null,null,null,null,null,null,null,null,null,null,null,null,null,null,null,null,null,null,null,null,null,null,null,null,null,null,null,null,null,null,null,null,null,null,null,null,null,null,null,null,null,null,null,null,null,null,null,null,null,null,null,null,null,null,null,null,null,null,null,null,null,null,null,null,null,null,null,null,null,null,null,null,null,null,null,null,null,null,null,null,null,null,null,null,null,null,null,null,null,null,null,null,null,null,null,null,null,null,null,null,null,null,null,null,null,null,null,null,null,null,null,null,null,null,null,null,null,null,null,null,null,null,null,null,null,null,null,null,null,null,null,null,null,null,null,null,null,null,null,null,null,null,null,null,null,null,null,null,null,null,null,null,null,null,null,null,null,null,null,null,null,null,null,null,null,null,null,null,13]
[null,null,null,null,null,null,null,null,null,null,null,null,null,null,null,null,null,null,null,null,null,null,null,null,null,"URRAO",null,null,null,null,null,null,null,null,null,null,null,"URRAO",null,null,"URRAO",null,null,null,null,null,null,null,null,null,null,null,null,null,null,null,null,null,null,null,null,null,null,null,null,null,null,null,null,null,null,null,null,null,null,null,null,null,null,null,null,null,null,null,null,null,null,null,null,null,null,null,null,null,null,null,null,null,null,null,null,null,null,null,null,null,null,null,null,null,null,null,null,null,null,null,null,null,null,null,null,null,null,null,null,null,null,null,null,null,null,null,null,null,null,null,null,null,null,null,null,null,null,null,null,null,null,null,null,null,null,null,null,null,null,null,null,null,null,null,null,null,null,null,null,null,null,null,null,null,null,null,null,null,null,null,null,null,null,null,null,null,null,null,null,null,null,null,null,null,null,null,null,null,null,null,null,null,null,null,null,null,null,null,null,null,null,null,null,null,null,null,null,null,null,null,null,null,null,null,null,null,null,null,null,null,null,null,null,null,null,null,null,null,null,null,null,null,null,null,null,null,null,null,null,null,null,null,null,null,null,null,null,null,null,null,null,null,null,null,null,null,null,null,null,null,null,null,null,null,null,null,null,null,null,null,null,null,null,null,null,null,null,null,null,null,null,null,null,null,null,null,null,null,null,null,null,null,null,null,null,null,null,null,null,null,null,null,null,null,null,null,null,null,null,null,null,null,null,null,null,null,null,null,null,null,null,null,null,null,null,null,null,null,null,null,null,null,null,null,null,null,null,null,null,null,null,null,null,null,null,null,null,null,null,null,null,null,null,null,null,null,null,null,null,null,null,null,null,null,null,null,null,null,null,null,null,null,null,null,null,null,null,null,null,null,null,null,null,null,null,null,null,null,null,null,null,null,null,null,null,null,null,null,null,null,null,null,null,null,null,null,null,null,null,null,null,null,null,null,null,null,null,null,null,null,null,null,null,null,null,null,null,null,null,null,null,null,null,null,null,null,null,null,null,null,null,null,null,null,null,null,null,null,null,null,null,null,null,null,null,null,null,null,null,null,null,null,null,null,null,null,null,null,null,null,null,null,null,null,null,null,null,null,null,null,null,null,null,null,null,null,null,null,null,null,null,null,null,null,null,null,null,null,null,null,null,null,null,null,null,null,null,null,null,null,null,null,null,null,null,null,null,null,null,null,null,null,null,null,null,null,null,null,null,null,null,null,null,null,null,null,null,null,null,null,null,null,null,null,null,null,null,null,null,null,null,null,null,null,null,null,null,null,null,null,null,null,null,null,null,null,null,null,null,null,null,null,null,null,null,null,null,null,null,null,null,null,null,null,null,null,null,null,null,null,null,null,null,null,null,null,null,null,null,null,null,null,null,null,null,null,null,null,null,null,null,null,null,null,null,null,null,null,null,null,null,null,null,null,null,null,null,null,null,null,null,null,null,null,null,null,null,null,null,null,null,null,null,null,null,null,null,null,null,null,null,null,null,null,null,null,null,null,null,null,null,null,null,null,null,null,null,null,null,null,null,null,null,null,null,null,null,null,null,null,null,null,null,null,null,null,null,null,null,null,null,null,null,null,null,null,null,null,null,null,null,null,null,null,null,null,null,null,null,null,null,null,null,null,null,null,null,null,null,null,null,null,null,null,null,null,null,null,null,null,null,null,null,null,null,null,null,null,null,null,null,null,null,null,null,null,null,null,null,null,null,null,null,null,null,null,null,null,null,null,null,null,null,null,null,null,null,null,null,null,null,null,null,null,null,null,null,null,null,null,null,null,null,null,null,null,null,null,null,null,null,null,null,null,null,null,null,null,null,null,null,null,null,null,null,null,null,null,null,null,null,null,null,null,null,null,null,null,null,null,null,null,null,null,null,null,null,null,null,null,null,null,null,null,null,null,null,null,null,null,null,null,null,null,null,null,null,null,null,null,null,null,null,null,null,null,null,null,null,null,null,null,null,null,null,null,null,null,null,null,null,null,null,null,null,null,null,null,null,null,null,null,null,null,null,null,null,null,null,null,null,null,null,null,null,null,null,null,null,null,null,null,null,null,null,null,null,null,null,null,null,null,null,null,null,null,null,null,null,null,null,null,null,null,null,null,null,null,null,null,null,null,null,null,null,null,null,null,null,null,null,null,null,null,null,null,null,null,null,null,null,null,null,null,null,null,null,null,null,null,null,null,null,null,null,null,null,null,null,null,null,null,null,null,null,null,null,null,null,null,null,null,null,null,null,null,null,null,null,null,null,null,null,null,null,null,null,null,null,null,null,null,null,null,null,null,null,null,null,null,null,null,null,null,null,null,null,null,null,null,null,null,null,null,null,null,null,null,null,null,null,null,null,null,null,null,null,null,null,null,null,null,null,null,null,null,null,null,null,null,null,null,null,null,null,null,null,null,null,null,null,null,null,null,null,null,null,null,null,null,null,null,null,null,null,null,null,null,null,null,null,null,null,null,null,null,null,null,null,null,null,null,null,null,null,null,null,null,null,null,null,null,null,null,null,null,null,null,null,null,null,null,null,null,null,null,null,null,null,null,null,null,null,null,null,null,null,null,null,null,null,null,null,null,null,null,null,null,null,null,null,null,null,null,null,null,null,null,null,null,null,null,null,null,null,null,null,null,null,null,null,null,null,null,null,null,null,null,null,null,null,null,null,null,null,null,null,null,null,null,null,null,null,null,null,null,null,null,null,null,null,null,null,null,null,null,null,null,null,null,null,null,null,null,null,null,null,null,null,null,null,null,null,null,null,null,null,null,null,null,null,null,null,null,null,null,null,null,null,null,null,null,null,null,null,null,null,null,null,null,null,null,null,null,null,null,null,null,null,null,null,null,null,null,null,null,null,null,null,null,null,null,null,null,null,null,null,null,null,null,null,null,null,null,null,null,null,null,null,null,null,null,null,null,null,null,null,null,null,null,null,null,null,null,null,null,null,null,null,null,null,null,null,null,null,null,null,null,null,null,null,null,null,null,null,null,null,null,null,null,null,null,null,null,null,null,null,null,null,null,null,null,null,null,null,null,null,null,null,null,null,null,null,null,null,null,null,null,null,null,null,null,null,null,null,null,null,null,null,null,null,null,null,null,null,null,null,null,null,null,null,null,null,null,null,null,null,null,null,null,null,null,null,null,null,null,null,null,null,null,null,null,null,null,null,null,null,null,null,null,null,null,null,null,null,null,null,null,null,null,null,null,null,null,null,null,null,null,null,null,null,null,null,null,null,null,null,null,null,null,null,null,null,null,null,null,null,null,null,null,null,null,null,null,null,null,null,null,null,null,null,null,null,null,null,null,null,null,null,null,null,null,null,null,null,null,null,null,null,null,null,null,null,null,null,null,null,null,null,null,null,null,null,null,null,null,null,null,null,null,null,null,null,null,null,null,null,null,null,null,null,null,null,null,null,null,null,null,null,null,null,null,null,null,null,null,null,null,null,null,null,null,null,null,null,null,null,null,null,null,null,null,null,null,null,null,null,null,null,null,null,null,null,null,null,null,null,null,null,null,null,null,null,null,null,null,null,null,null,null,null,null,null,null,null,null,null,null,null,null,null,null,null,null,null,null,null,null,null,null,null,null,null,null,null,null,null,null,null,null,null,null,null,null,null,null,null,null,null,null,null,null,null,null,null,null,null,null,null,null,null,null,null,null,null,null,null,null,null,null,null,null,null,null,null,null,null,null,null,null,null,null,null,null,null,null,null,null,null,null,null,null,null,null,null,null,null,null,null,null,null,null,null,null,null,null,null,null,null,null,null,null,null,null,null,null,null,null,null,null,null,null,null,null,null,null,null,null,null,null,null,null,null,null,null,null,null,null,null,null,null,null,null,null,null,null,null,null,null,null,null,null,null,null,null,null,null,null,null,null,null,null,null,null,null,null,null,null,null,null,null,null,null,null,null,null,null,null,null,null,null,null,null,null,null,null,null,null,null,null,null,null,null,null,null,null,null,null,null,null,null,null,null,null,null,null,null,null,null,null,null,null,null,null,null,null,null,null,null,null,null,null,null,null,null,null,null,null,null,null,null,null,null,null,null,null,null,null,null,null,null,null,null,null,null,null,null,null,null,null,null,null,null,null,null,null,null,null,null,null,null,null,null,null,null,null,null,null,null,null,null,null,null,null,null,null,null,null,null,null,null,null,null,null,null,null,null,null,null,null,null,null,null,null,null,null,null,null,null,null,null,null,null,null,null,null,null,null,null,null,null,null,null,null,null,null,null,null,null,null,null,null,null,null,null,null,null,null,null,null,null,null,null,null,null,null,null,null,null,null,null,null,null,null,null,null,null,null,null,null,null,null,null,null,null,null,null,null,null,null,null,null,null,null,null,null,null,null,null,null,null,null,null,null,null,null,null,null,null,null,null,null,null,null,null,null,null,null,null,null,null,null,null,null,null,null,null,null,null,null,null,null,null,null,null,null,null,null,null,null,null,null,null,null,null,null,null,null,null,null,null,null,null,null,null,null,null,null,null,null,null,null,null,null,null,null,null,null,null,null,null,null,null,null,null,null,null,null,null,null,null,null,null,null,null,null,null,null,null,null,null,null,null,null,null,null,null,null,null,null,null,null,null,null,null,null,null,null,null,null,null,null,null,null,null,null,null,null,null,null,null,null,null,null,null,null,null,null,null,null,null,null,null,null,null,null,null,null,null,null,null,null,null,null,null,null,null,null,null,null,null,null,null,null,null,null,null,null,null,null,null,null,null,null,null,null,null,null,null,null,null,null,null,null,null,null,null,null,null,null,null,null,null,null,null,null,null,null,null,null,null,null,null,null,null,null,null,null,null,null,null,null,null,null,null,null,null,null,null,null,null,null,null,null,null,null,null,null,null,null,null,null,null,null,null,null,null,null,null,null,null,null,null,null,null,null,null,null,null,null,null,null,null,null,null,null,null,null,null,null,null,null,null,null,null,null,null,null,null,null,null,null,null,null,null,null,null,null,null,null,null,null,null,null,null,null,null,null,null,null,null,null,null,null,null,null,null,null,null,null,null,null,null,null,null,null,null,null,null,null,null,null,null,null,null,null,null,null,null,null,null,null,null,null,null,null,null,null,null,null,null,null,null,null,null,null,null,null,null,null,null,null,null,null,null,null,null,null,null,null,null,null,null,null,null,null,null,null,null,null,null,null,null,null,null,null,null,null,null,null,null,null,null,null,null,null,null,null,null,null,null,null,null,null,null,null,null,null,null,null,null,null,null,null,null,null,null,null,null,null,null,null,null,null,null,null,null,null,null,null,null,null,null,null,null,null,null,null,null,null,null,null,null,null,null,null,null,null,null,null,null,null,null,null,null,null,null,null,null,null,null,null,null,null,null,null,null,null,null,null,null,null,null,null,null,null,null,null,null,null,null,null,null,null,null,null,null,null,null,null,null,null,null,null,null,null,null,null,null,null,null,null,null,null,null,null,null,null,null,null,null,null,null,null,null,null,null,null,null,null,null,null,null,null,null,null,null,null,null,null,null,null,null,null,null,null,null,null,null,null,null,null,null,null,null,null,null,null,null,null,null,null,null,null,null,null,null,null,null,null,null,null,null,null,null,null,null,null,null,null,null,null,14]
[null,null,null,null,null,null,null,null,null,null,null,null,null,null,null,null,null,null,null,null,null,null,null,null,null,null,null,null,null,null,null,null,null,null,null,null,null,null,null,null,null,null,null,null,null,null,null,null,null,null,null,null,null,null,null,null,null,null,null,null,null,null,null,null,null,null,null,null,null,null,null,null,null,null,null,null,null,null,null,null,null,null,null,null,null,null,null,null,null,null,null,null,null,null,null,null,null,null,null,null,null,null,null,null,null,null,null,null,null,null,null,null,null,null,null,null,null,null,null,null,null,null,null,null,null,null,null,null,null,null,null,null,null,null,null,null,null,null,null,null,null,null,null,null,null,null,null,null,null,null,null,null,null,null,null,null,null,null,null,null,null,null,null,null,null,null,null,null,null,null,null,null,null,null,null,null,null,null,null,null,null,null,null,null,null,null,null,null,null,null,null,null,null,null,null,null,null,null,null,null,null,null,null,null,null,null,null,null,null,null,null,null,null,null,null,null,null,null,null,null,null,null,null,null,null,null,null,null,null,null,null,null,null,null,null,null,null,null,null,null,null,null,null,null,null,null,null,null,null,null,null,null,null,null,null,null,null,null,null,null,null,null,null,null,null,null,null,null,null,null,null,null,null,null,null,null,null,null,null,null,null,null,null,null,null,null,null,null,null,null,null,null,null,null,null,null,null,null,null,null,null,null,null,null,null,null,null,null,null,null,null,null,null,null,null,null,null,null,null,null,null,null,null,null,null,null,null,null,null,null,null,null,null,null,null,null,null,null,null,null,null,null,null,null,null,null,null,null,null,null,null,null,null,null,null,null,null,null,null,null,null,null,null,null,null,null,null,null,null,null,null,null,null,null,null,null,null,null,null,null,null,null,null,null,null,null,null,null,null,null,null,null,null,null,null,null,null,null,null,null,null,null,null,null,null,null,null,null,null,null,null,null,null,null,null,null,null,null,null,null,null,null,null,null,null,null,null,null,null,null,null,null,null,null,null,null,null,null,null,null,null,null,null,null,null,null,null,null,null,null,null,null,null,null,null,null,null,null,null,null,null,null,null,null,null,null,null,null,null,null,null,null,null,null,null,null,null,null,null,null,null,null,null,null,null,null,null,null,null,null,null,null,null,null,null,null,null,null,null,null,null,null,null,null,null,null,null,null,null,null,null,null,null,null,null,null,null,null,null,null,null,null,null,null,null,null,null,null,null,null,null,null,null,null,null,null,null,null,null,null,null,null,null,null,null,null,null,null,null,null,null,null,null,null,null,null,null,null,null,null,null,null,null,null,null,null,null,null,null,null,null,null,null,null,null,null,null,null,null,null,null,null,null,null,null,null,null,null,null,null,null,null,null,null,null,null,null,null,null,null,null,null,null,null,null,null,null,null,null,null,null,null,null,null,null,null,null,null,null,null,null,null,null,null,null,null,null,null,null,null,null,null,null,null,null,null,null,null,null,null,null,null,null,null,null,null,null,null,null,null,null,null,null,null,null,null,null,null,null,null,null,null,null,null,null,null,null,null,null,null,null,null,null,null,null,null,null,null,null,null,null,null,null,null,null,null,null,null,null,null,null,null,null,null,null,null,null,null,null,null,null,null,null,null,null,null,null,null,null,null,null,null,null,null,null,null,null,null,null,null,null,null,null,null,null,null,null,null,null,null,null,null,null,null,null,null,null,null,null,null,null,null,null,null,null,null,null,null,null,null,null,null,null,null,null,null,null,null,null,null,null,null,null,null,null,null,null,null,null,null,null,null,null,null,null,null,null,null,null,null,null,null,null,null,null,null,null,null,null,null,null,null,null,null,null,null,null,null,null,null,null,null,null,null,null,null,null,null,null,null,null,null,null,null,null,null,null,null,null,null,null,null,null,null,null,null,null,null,null,null,null,null,null,null,null,null,null,null,null,null,null,null,null,null,null,null,null,null,null,null,null,null,null,null,null,null,null,null,null,null,null,null,null,null,null,null,null,null,null,null,null,null,null,null,null,null,null,null,null,null,null,null,null,null,null,null,null,null,null,null,null,null,null,null,null,null,null,null,null,null,null,null,null,null,null,null,null,null,null,null,null,null,null,null,null,null,null,null,null,null,null,null,null,null,null,null,null,null,null,null,null,null,null,null,null,null,null,null,null,null,null,null,null,null,null,null,null,null,null,null,null,null,null,null,null,null,null,null,null,null,null,null,null,null,null,null,null,null,null,null,null,null,null,null,null,null,null,null,null,null,null,null,null,null,null,null,null,null,null,null,null,null,null,null,null,null,null,null,null,null,null,null,null,null,null,null,null,null,null,null,null,null,null,null,null,null,null,null,null,null,null,null,null,null,null,null,null,null,null,null,null,null,null,null,null,null,null,null,null,null,null,null,null,null,null,null,null,null,null,null,null,null,null,null,null,null,null,null,null,null,null,null,null,null,null,null,null,null,null,null,null,null,null,null,null,null,null,null,null,null,null,null,null,null,null,null,null,null,null,null,null,null,null,null,null,null,null,null,null,null,null,null,null,null,null,null,null,null,null,null,null,null,null,null,null,null,null,null,null,null,null,null,null,null,null,null,null,null,null,null,null,null,null,null,null,null,null,null,null,null,null,null,null,null,null,null,null,null,null,null,null,null,null,null,null,null,null,null,null,null,null,null,null,null,null,null,null,null,null,null,null,null,null,null,null,null,null,null,null,null,null,null,null,null,null,null,null,null,null,null,null,null,null,null,null,null,null,null,null,null,null,null,null,null,null,null,null,null,null,null,null,null,null,null,null,null,null,null,null,null,null,null,null,null,null,null,null,null,null,null,null,null,null,null,null,null,null,null,null,null,null,null,null,null,null,null,null,null,null,null,null,null,null,null,null,null,null,null,null,null,null,null,null,null,null,null,null,null,null,null,null,null,null,null,null,null,null,null,null,null,null,null,null,null,null,null,null,null,null,null,null,null,null,null,null,null,null,null,null,null,null,null,null,null,null,null,null,null,null,null,null,null,null,null,null,null,null,null,null,null,null,null,null,null,null,null,null,null,null,null,null,null,null,null,null,null,null,null,null,null,null,null,null,null,null,null,null,null,null,null,null,null,null,null,null,null,null,null,null,null,null,null,null,null,null,null,null,null,null,null,null,null,null,null,null,null,null,null,null,null,null,null,null,null,null,null,null,null,null,null,null,null,null,null,null,null,null,null,null,null,null,null,null,null,null,null,null,null,null,null,null,null,null,null,null,null,null,null,null,null,null,null,null,null,null,null,null,null,null,null,null,null,null,null,null,null,null,null,null,null,null,null,null,null,null,null,null,null,null,null,null,null,null,null,null,null,null,null,null,null,null,null,null,null,null,null,null,null,null,null,null,null,null,null,null,null,null,null,null,null,null,null,null,null,null,null,null,null,null,null,null,null,null,null,null,null,null,null,null,null,null,null,null,null,null,null,null,null,null,null,null,null,null,null,null,null,null,null,null,null,null,null,null,null,null,null,null,null,null,null,null,null,null,null,null,null,null,null,null,null,null,null,null,null,null,null,null,null,null,null,null,null,null,null,null,null,null,null,null,null,null,null,null,null,null,null,null,null,null,null,null,null,null,null,null,null,null,null,null,null,null,null,null,null,null,null,null,null,null,null,null,null,null,null,null,null,null,null,null,null,null,null,null,null,null,null,null,null,null,null,null,null,null,null,null,null,null,null,null,null,null,null,null,null,null,null,null,null,null,null,null,null,null,null,null,null,null,null,null,null,null,null,null,null,null,null,null,null,null,null,null,null,null,null,null,null,null,null,null,null,null,null,null,null,null,null,null,null,null,null,null,null,null,null,null,null,null,null,null,null,null,null,null,null,null,null,null,null,null,null,null,null,null,null,null,null,null,null,null,null,null,null,null,null,null,null,null,null,null,null,null,null,null,null,null,null,null,null,null,null,null,null,null,null,null,null,null,null,null,null,null,null,null,null,null,null,null,null,null,null,null,null,null,null,null,null,null,null,null,null,null,null,null,null,null,null,null,null,null,null,null,null,null,null,null,null,null,null,null,null,null,null,null,null,null,null,null,null,null,null,null,null,null,null,null,null,null,null,null,null,null,null,null,null,null,null,null,null,null,null,null,null,null,null,null,null,null,null,null,null,null,null,null,null,null,null,null,null,null,null,null,null,null,null,null,null,null,null,null,null,null,null,null,null,null,null,null,null,null,null,null,null,null,null,null,null,null,null,null,null,null,null,null,null,null,null,null,null,null,null,null,null,null,null,null,null,null,null,null,null,null,null,null,null,null,null,null,null,null,null,null,null,null,null,null,null,null,null,null,null,null,null,null,null,null,null,null,null,null,null,null,null,null,null,null,null,null,null,null,null,null,null,null,null,null,null,null,null,null,null,null,null,null,null,null,null,null,null,null,null,null,null,null,null,null,null,null,null,null,null,null,null,null,null,null,null,null,null,null,null,null,null,null,null,null,null,null,null,null,null,null,null,null,null,null,null,null,null,null,null,null,null,null,null,null,null,null,null,null,null,null,null,null,null,null,null,null,null,null,null,null,null,null,null,null,null,null,null,null,null,null,null,null,null,null,null,null,null,null,null,null,null,null,null,null,null,null,null,null,null,null,null,null,null,null,null,null,null,null,null,null,null,null,null,null,null,null,null,null,null,null,null,null,null,null,null,null,null,null,null,null,null,null,null,null,null,null,null,null,null,null,null,null,null,null,null,null,null,null,null,null,null,null,null,null,null,null,null,null,null,null,null,null,null,null,null,null,null,null,null,null,null,null,null,null,null,null,null,null,null,null,null,null,null,null,null,null,null,null,null,null,null,null,null,null,null,null,null,null,null,null,null,null,null,null,null,null,null,null,null,null,null,null,null,null,null,null,null,null,null,null,null,null,null,null,null,null,null,null,null,null,null,null,null,null,null,null,null,null,null,null,null,null,null,null,null,null,null,null,null,null,null,null,null,null,null,null,null,null,null,null,null,null,null,null,null,null,null,null,null,null,null,null,null,null,null,null,null,null,null,null,null,null,null,null,null,null,null,null,null,null,null,null,null,null,null,null,null,null,null,null,null,null,null,null,null,null,null,null,null,null,null,null,null,null,null,null,null,null,null,null,null,null,null,null,null,null,null,null,null,null,null,null,null,null,null,null,null,null,null,null,null,null,null,null,null,null,null,null,null,null,null,null,null,null,null,null,null,null,null,null,null,null,null,null,null,null,null,null,null,null,null,null,null,null,null,null,null,null,null,null,null,null,null,null,null,null,null,null,null,null,null,null,null,null,null,null,null,null,null,null,null,null,null,null,null,null,null,null,null,null,null,null,null,null,null,null,null,null,null,null,null,null,null,null,null,null,null,null,null,null,null,null,null,null,null,null,null,null,null,null,null,null,null,null,null,null,null,null,null,null,null,null,null,null,null,null,null,null,null,null,null,null,null,null,null,null,null,null,null,null,null,null,null,null,null,null,null,null,null,null,null,null,null,null,null,null,null,null,null,null,null,null,null,null,null,null,null,null,null,null,null,null,null,null,null,null,null,null,null,null,null,null,null,null,null,null,null,null,null,null,null,null,null,null,null,null,null,null,null,null,null,null,null,null,null,null,null,null,null,null,null,null,null,null,null,null,null,15]

{"sheet":"ListaProveedores","index":18,"n_rows":2,"n_cols":1,"rows_kept":2,"cut":false,"hidden":true,"merged":[]}
["Proveedores"]
["FASTER FUEL S.A.S"]

{"sheet":"Cuadro Totales","index":19,"n_rows":15,"n_cols":25,"rows_kept":15,"cut":false,"hidden":true,"merged":[[6,0,6,12],[13,0,13,24],[1,0,1,3],[2,0,2,3],[0,0,0,3],[3,0,3,3]]}
["Valores",null,null,null,"Total","Proveedor Ganador"]
["Valor del Galón",null,null,null,"Galones estimados","Proveedor"]
[]
["Galones Totales"]
[]
[]
["Valores"]
["Precio Unitario GE A","Descuento adicional","Precio con Descuento","Precio Unitario GE B","Descuento adicional","Precio con Descuento","Precio Unitario GE C","Descuento adicional","Precio con Descuento","Precio Unitario GE N","Descuento adicional","Precio con Descuento","Precio Total"]
[]
[null,null,null,null,null,null,null,null,null,null,null,"Valor Total",{"$f":"SUM(M9)","v":0}]
[]
[]
[]
["Valores"]
["Ingreso al Productor / importador (USD/GLN)","Vr maximo permitido - Ingreso al importador USD/GLN","IVA USD/GLN","Ingreso al Productor /Importador (TOTAL USD/GLN)","TRM Promedio Semanal BANREP","VALOR $/GLN","Transporte $/GLN","Vr maximo permitido - Transporte $/GLN","Impuesto al carbono $/GLN","Vr maximo permitido - Impuesto al carbono $/GLN","IVA $/GLN","IMPUESTO AL CARBONO TOTAL $/GLN","Flete de Internación $/GLN","Vr maximo permitido - Flete de Internación $/GLN","IVA $/GLN","FLETE DE INTERNACIÓN TOTAL $/GLN","VALOR TOTAL $/GLN","Margen de comercialización catálogo $/GLN","Vr maximo permitido - Margen de comercialización catálogo $/GLN","Descuento margen de comercialización","Margen de comercialización catálogo $/GLN con descuento","IVA $/GLN","MARGEN DE COMERCIALIZACIÓN CATÁLOGO $/GLN CON DESCUENTO TOTAL","VALOR FINAL\n$/GLN","TOTAL DE GLN ESTIMADOS"]